Workbook

Sheet Cash-Basis ERs (hidden)
B1: OPEB Reporting for Washington State Cash-Basis Employers in PEBB
B3: Welcome to OSA's OPEB Liability Estimation Tool
C4: Background
C5: At the request of the Washington State Auditors Office (SAO), the Washington Office of the State Actuary (OSA) developed this Tool for purposes of estimating the retiree medical obligations of specific employers. As we understand, the SAO will distribute this Tool annually to approximately ten cash-basis employers who are not eligible to perform the Alternative Measurement Method (AMM) under the Governmental Accounting Standards Board (GASB) Statement No. 75. As such, the results produced by this Tool do NOT comply with GASB 75. Please review the following explanation and directions below before proceeding.
C7: Intended Use
C8: This Tool is intended to assist certain local government employers in Washington State covering employees under the Public Employees' Benefit Board (PEBB) health insurance with their reporting requirements for Other Postemployment Benefits (OPEB) healthcare obligations. Unless otherwise noted herein, this tool estimates your OPEB Liability using the same methods and assumptions as disclosed in our 2025 PEBB OPEB AMM Online Tool available on OSA's website.
C10: Requirements to use this Tool
C11: (1) Eligible employers must prepare their annual financial reporting on a cash-basis and have been provided this Tool directly by qualified staff at SAO. Please do not distribute.
C12: (2) Current employees must be covered under PEBB health insurance. Please see the Law Enforcement Officers' and Fire Fighters' Retirement System (LEOFF) Plan 1 AMM Online Tool for reporting LEOFF 1 healthcare obligations.
C13: (3) Employers must have at least 100 total members. This includes all current employees and retirees participating in PEBB health insurance, but not covered spouses.
C15: Steps to calculate your reporting results
C16: (1) Enter all required information into the Data Inputs table below and press the Calculate button. If you need assistance with how to prepare your data, please download the PEBB OPEB AMM Online Tool from our website (see link below) and review the "Steps to Calculate your Reporting Results" section on the Intro and Data Inputs tab.
C17: https://leg.wa.gov/studies-audits-and-reports/actuarial-reporting/other-postemployment-benefits-opeb/
C18: (2) In addition to printing these two pages, please print the Additional Disclosures tab within this Tool for further description of the assumptions and methods used in estimating the OPEB Liability. (Note that you can ignore the disclosures related to GASB 75 on the latter tab.)
C20: Data Inputs | H20: Note before distributing to SAO: Relink "Intro and Data Inputs" tab to this data inputs tab for cash-basis ER final version
C21: Current Employees (Actives)
C22: Age Divisions | D22: 20-35 | E22: 36-46 | F22: 47-56 | G22: 57+
C23: Number Active | D23: 0 | E23: 0 | F23: 0 | G23: 0
C24: Average Active Age | D24: 30 | E24: 40 | F24: 50 | G24: 60
C25: Retirees
C26: Age Divisions | D26: 20-64 | E26: 65-70 | F26: 71-77 | G26: 78+
C27: Number Inactive | D27: 0 | E27: 0 | F27: 0 | G27: 0
C28: Average Inactive Age | D28: 62 | E28: 68 | F28: 74 | G28: 82
C31: Reporting Results
C33: Total OPEB Liability (TOL) Estimate
C34: ="As of June 30, "&ToolYear -> As of June 30, 2025 | D34: ='GASB Results'!E15 -> 0
C36: The OPEB Liability estimate is only intended to provide a high-level sense for today's value of all future retiree medical obligations that have been earned as of the measurement date (as required by the SAO for financial reporting purposes; other uses are not appropriate). Further, these results are calculated using assumptions and methods we selected for the entire PEBB population; and as such, your results from this Tool may vary significantly from a full actuarial valuation performed by a consulting actuary on your covered population. That said, we believe this estimate is reasonable given the intended use. If you feel any of the simplifying assumptions or methods we selected may not be appropriate based upon your circumstances, please contact OSA via email for guidance:
C37: State.Actuary@leg.wa.gov
I38: Page 1 of 2
B40: OPEB Reporting for Washington State Cash-Basis Employers in PEBB (Cont'd)
C42: Assumptions and Methods
C44: Methodology | G44: ="What's New in this FY" &ToolYear-2000& " Tool?" -> What's New in this FY25 Tool?
C45: Actuarial Valuation Date | E45: ='GASB Results'!E36:F36 -> 6/30/2025 | G45: And how do these changes impact my resulting OPEB liabilities? ↑or↓
C46: Actuarial Measurement Date | E46: ='GASB Results'!E37:F37 -> 6/30/2025
C47: Actuarial Cost Method | E47: ='GASB Results'!E38:F38 -> Entry Age
C48: Amortization Method | E48: ='GASB Results'!E39:F39 -> Recognized Immediately | G48: - Updated healthcare trend rates, medical cost and premium assumptions consistent with our 2024 PEBB OPEB Report ↓
C49: Asset Valuation Method | E49: ='GASB Results'!E40:F40 -> N/A (No Assets)
C50: Assumptions
C51: Discount Rate1 | G51: - Updated tool to reflect House Bill 1008 (Chapter 164, Laws of 2023) which provided eligible members a deferred option for joining PEBB ↑
C52: Beginning of Measurement Year | E52: ='GASB Results'!E43:F43 -> 0.0393
C53: End of Measurement Year | E53: ='GASB Results'!E44:F44 -> 0.052
C54: Projected Salary Changes | E54: ='GASB Results'!E45:F45 -> 3.25% + Service-Based Increases
C55: Healthcare Trend Rates2 | E55: ='GASB Results'!E46:F46 -> Initial rate ranges from about (4.5%)-9.5%, reaching an ultimate rate of approximately 3.8% in 2080. | G55: - Rolled forward expected costs and premiums to align with new measurement date ↑
C56: Mortality Rates | G56: - New discount rate as of June 30, 2025 ↓
C57: Base Mortality Table | E57: ='GASB Results'!E48:F48 -> PubG.H-2010 (General)
C58: Age Setback | E58: ='GASB Results'!E49:F49 -> 0 years
C59: Mortality Improvements | E59: ='GASB Results'!E50:F50 -> MP-2017 Long-Term Rates
C60: Projection Period | E60: ='GASB Results'!E51:F51 -> Generational
C61: Inflation Rate | E61: ='GASB Results'!E52:F52 -> 0.024
C62: Post-Retirement Participation % | E62: ='GASB Results'!E53:F53 -> 0.6
C63: Percentage with Spouse Coverage | E63: ='GASB Results'!E54:F54 -> 0.45
C64: 1Source: Bond Buyer General Obligation 20-Bond Municipal Index.
C65: 2Trend rate assumptions vary by medical plan. For additional detail on the healthcare trend rates, please see OSA's 2024 PEBB OPEB Actuarial Valuation Report.
C67: Actuarial Certification
C69: This OPEB Liability Estimation Tool relies on inputs from users with respect to eligible counts and average ages. We have made efforts to screen for unreasonable user inputs by taking steps such as requiring users to include positive integers and appropriate figures for each of the four Current Employee and Retiree cohorts. However given the nature of this Tool, the ultimate responsibility of the accuracy of the inputs, and in effect the results, falls on the user of the Tool. In other words, OSA cannot take responsibility for the results if user inputs are not reasonable and accurate.
C71: We relied on an Excel model to produce this Tool. The model mirrors the approach taken to produce our 2024 PEBB OPEB Actuarial Valuation Report (AVR) but utilizes a more flexible, simplified structure. We believe these limitations are reasonable given the purpose of the measurement. To assess the general operation of this model, we reviewed the output for reasonableness; this includes comparing the results to the linked valuation report. We are not aware of any known weaknesses of the model that have a material impact on the results. Additionally, we considered how the use of different inputs to the model (e.g., assumptions/methods) produce different results and evaluated the relative impacts to our expectations; this allows us to gain a deeper knowledge of the model’s important dependencies and major sensitivities. The use of the model for this analysis is appropriate given it’s intended purpose.
C73: I believe that the assumptions and methods used in this Tool are reasonable and appropriate for the primary purpose stated above. The use of another set of assumptions and methods, however, could also be reasonable and could produce materially different results.
C75: In my opinion, all methods, assumptions, and calculations are appropriate and in conformity with the Actuarial Standards of Practice (ASOPs) as of the date of this publication. The undersigned, with actuarial credentials, meets the Qualification Standards of the American Academy of Actuaries to render the actuarial opinions contained herein. While this communication and associated disclosures in the Tool are intended to be complete, I am available to offer extra advice and explanations as needed.
C77: Michael T. Harbour, ASA, MAAA Actuary
C79: OSA distributed this tool to SAO in November, 2025.
I80: Page 2 of 2

Sheet Intro and Data Inputs
B1: GASB 75 Alternative Measurement Method for PEBB
B3: Welcome to the Office of the State Actuary's (OSA) PEBB OPEB AMM Online Tool for FY 2025
C4: Intended Use
C5: This Alternative Measurement Method (AMM) Online Tool is intended to assist employers covering employees under Public Employees' Benefit Board (PEBB) health insurance with their reporting requirements for Other Postemployment Benefits (OPEB) healthcare obligations under Governmental Accounting Standards Board (GASB) Statement No. 75. Please review the following explanation and directions below, along with the Additional Disclosures and Certification Letter, before proceeding.
C7: Requirements to Use this Tool
C8: (1) Employers must be non-state entities. State employers and employers outside the state of Washington are not eligible to use this Tool.
C9: (2) Current employees must be covered under PEBB health insurance. Please see the Law Enforcement Officers' and Fire Fighters' Retirement System Plan 1 OPEB AMM Online Tool for reporting LEOFF 1 healthcare obligations associated with these members.
C10: (3) Employers must have less than 100 total members. This includes all current employees and retirees participating in PEBB health insurance, but not covered spouses.
C12: Steps to Calculate your Reporting Results
C13: (1) Enable Macros. For Excel versions 2010 or greater, there should be a tan strip across the top of the screen when you open Excel - please allow macros to run.
C14: (2) Gather member information on the age and payroll of covered current employees. The WA Health Care Authority can assist with providing member information on participating retirees. Please see the Additional Disclosures for further guidance.
C15: (3) Group your member information by status and age divisions according to the Data Inputs table below. Important note, do not include covered spouses in the retiree count and member statistics.
C16: (4) Calculate average age for each age division of current employees and retirees.
C17: (5) Copy your data into the Data Inputs table below. There has been an effort by OSA to screen unreasonable inputs into the Tool. However, the ultimate responsibility of the accuracy of the inputs, and in effect the results, falls on the user of the Tool.
C18: (6) Enter your ending Total OPEB Liability from the prior year reporting (if available). This will serve as the beginning Total OPEB Liability for this year. The Tool will estimate a beginning OPEB liability if you did not report OPEB liabilities last year.
C19: (7) Press the Calculate button. Please print the entire workbook for your records (5 pages).
C21: Data Inputs
C22: Current Employees (Actives)
C23: Age Divisions | D23: 20-35 | E23: 36-46 | F23: 47-56 | G23: 57+
C24: Number Active | D24: 0 | E24: 0 | F24: 0 | G24: 0
C25: Average Active Age | D25: 30 | E25: 40.98 | F25: 51 | G25: 62
C26: Annual Covered Employee Payroll = | E26: 0
C27: Retirees
C28: Age Divisions | D28: 20-64 | E28: 65-70 | F28: 71-77 | G28: 78+
C29: Number Inactive | D29: 0 | E29: 0 | F29: 0 | G29: 0
C30: Average Inactive Age | D30: 62 | E30: 68 | F30: 74 | G30: 82
C31: Beginning Total OPEB Liability* = | E31: 0
C32: *Enter $0 if you did not report OPEB liabilities last year; the Tool will estimate a beginning Total OPEB Liability for you.
I38: Page 1 of 5

Sheet GASB Results
B1: PEBB - GASB 75 Reporting Results and Required Disclosures
C3: Schedule of Changes in Total OPEB Liability and Related Ratios
C4: ="Measurement Date of June 30, " & ToolYear -> Measurement Date of June 30, 2025
C5: Total OPEB Liability (TOL) | F5: ="What's New in this FY" &ToolYear-2000& " Tool?" -> What's New in this FY25 Tool?
C6: Service Cost | E6: =IF('Intro and Data Inputs'!E31>0, ROUND(Log!L5*('Intro and Data Inputs'!E31/Log!L6), 0), ROUND(Log!L5,0)) -> 0 | F6: And how do these changes impact my resulting OPEB liabilities? ↑or↓
C7: Interest Cost | E7: =ROUND(((E6+E14)*Lookups!S1+E10*((1+Lookups!S1)^0.5-1)),0) -> 0
C8: Changes in Experience Data and Assumptions | E8: =E12-E6-E7-E10-E9 -> 0 | F8: - Updated healthcare trend rates, medical cost and premium assumptions consistent with our 2024 PEBB OPEB Report ↓
C9: Changes in Benefit Terms | E9: =156785800*(SUM('Intro and Data Inputs'!D24:G24)/142475) -> 0
C10: Benefit Payments | E10: =IF('Intro and Data Inputs'!E31>0, -ROUND(Log!L7/VLOOKUP(ToolYear, Trends!$A$3:$P$94,16,FALSE) * 'Intro and Data Inputs'!E31/Log!L6, 0), -ROUND(Log!L7/VLOOKUP(ToolYear, Trends!$A$3:$P$94,16,FALSE),0)) -> 0
C11: Other | E11: 0 | F11: - Updated tool to reflect House Bill 1008 (Chapter 164, Laws of 2023) which provided eligible members a deferred option for joining PEBB ↑
C12: Net Change in Total OPEB Liability | E12: =E15-E14 -> 0
C14: Total OPEB Liability - Beginning | E14: =IF('Intro and Data Inputs'!E31>0, 'Intro and Data Inputs'!E31, ROUND((Log!L6-E10*(1+Lookups!S1)^0.5)/(1+Lookups!S1)-E6-E9/(1+Lookups!S1),0)) -> 0
C15: Total OPEB Liability - Ending | E15: =ROUND(Log!L11,0) -> 0 | F15: - Rolled forward expected costs and premiums to align with new measurement date ↑
C17: Covered Employee Payroll | E17: ='Intro and Data Inputs'!E26 -> 0
C18: TOL as a Percentage of Covered Payroll | E18: =IFERROR(E15/E17, "N/A") -> N/A | F18: - New discount rate as of June 30, 2025 ↓
C20: ="OPEB Expense for Fiscal Year Ending June 30, " & ToolYear -> OPEB Expense for Fiscal Year Ending June 30, 2025
D21: Service Cost | E21: ='GASB Results'!E6 -> 0
D22: Interest Cost | E22: ='GASB Results'!E7 -> 0
D23: Changes in Experience Data and Assumptions | E23: ='GASB Results'!E8 -> 0
D24: Changes in Benefit Terms | E24: =E9 -> 0
D25: Other Changes in Fiduciary Net Position | E25: 0
D26: Total OPEB Expense | E26: =SUM(E21:E25) -> 0
D28: Transactions Subsequent to Measurement Date | E28: N/A* | F28: *See Additional Disclosures tab for more details and guidance.
C30: Sensitivity Analysis
C31: Total OPEB Liability | E31: 1% Decrease | F31: Current | G31: 1% Increase
C32: Discount Rate | E32: =ROUND(Log!L26,0) -> 0 | F32: ='GASB Results'!E15 -> 0 | G32: =ROUND(Log!L31,0) -> 0
C33: Healthcare Trend | E33: =ROUND(Log!L16,0) -> 0 | F33: ='GASB Results'!E15 -> 0 | G33: =ROUND(Log!L21,0) -> 0
C35: Methodology
C36: Actuarial Valuation Date | E36: =E37 -> 6/30/2025
C37: Actuarial Measurement Date | E37: ="6/30/"&Lookups!S32 -> 6/30/2025
C38: Actuarial Cost Method | E38: Entry Age
C39: Amortization Method | E39: Recognized Immediately
C40: Asset Valuation Method | E40: N/A (No Assets)
C41: Assumptions
C42: Discount Rate1
C43: Beginning of Measurement Year | E43: =Lookups!S1 -> 0.0393
C44: End of Measurement Year | E44: =Lookups!S2 -> 0.052
C45: Projected Salary Changes | E45: =GSG*100&"% + Service-Based Increases" -> 3.25% + Service-Based Increases
C46: Healthcare Trend Rates2 | E46: Initial rate ranges from about (4.5%)-9.5%, reaching an ultimate rate of approximately 3.8% in 2080.
C47: Mortality Rates
C48: Base Mortality Table | E48: PubG.H-2010 (General)
C49: Age Setback | E49: 0 years
C50: Mortality Improvements | E50: MP-2017 Long-Term Rates
C51: Projection Period | E51: Generational
C52: Inflation Rate3 | E52: 0.024
C53: Post-Retirement Participation Percentage | E53: =Lookups!S8 -> 0.6
C54: Percentage with Spouse Coverage | E54: =Lookups!S26 -> 0.45
C55: 1Source: Bond Buyer General Obligation 20-Bond Municipal Index.
C56: 2Trend rate assumptions vary by medical plan. For additional detail on the healthcare trend rates, please see our 2024 PEBB OPEB Actuarial Valuation Report.
C57: 3Based on the Consumer Price Index (CPI): Urban Wage Earners & Clerical Workers, U.S. City Average, WA - All Items.
H58: Page 2 of 5

Sheet Additional Disclosures
B1: PEBB - AMM Online Tool Additional Disclosures
C3: This tab is intended to:
C4: (1) Provide guidance on concepts that require users to apply their judgment and/or consult with their auditor.
C5: (2) Document the assumptions and methods we employed for purposes of this AMM Online Tool that vary from the underlying GASB 75 actuarial valuation we performed for the state.
C7: Data Inputs:
C9: ="We assume the inputs you provide are as of the measurement date of 6/30/" &ToolYear& ". If you are not able to determine the counts and average ages as of that time, utilizing your current data or as of your reporting date may be reasonable. Please consult with your auditor for further guidance." -> We assume the inputs you provide are as of the measurement date of 6/30/2025. If you are not able to determine the counts and average ages as of that time, utilizing your current data or as of your reporting date may be reasonable. Please consult with your auditor for further guidance.
C11: The WA Health Care Authority can assist with providing member information on participating retirees. Information can be requested through the FUZE system. An eLearning video on this topic can be accessed at:
C12: SAO - OPEB for BARS Cash Basis Governments
C14: Unless readily identifiable by the user of this tool, we inherently assume that there are no inactive members entitled to but not currently receiving a benefit. In other words, certain members who stopped working may be eligible to join PEBB as a retiree at a later date.
C16: GAAP-basis only - Transactions Subsequent to Measurement Date (for GASB 75 Reporting):
C18: ="If your reporting date is after the 6/30/" &ToolYear& " measurement date, you will include the dollar amount of benefits paid between the measurement and reporting date in your accounting results."&" Please see the BARS Manual from the State Auditor's Office for more information on how to incorporate this into your financial statements." -> If your reporting date is after the 6/30/2025 measurement date, you will include the dollar amount of benefits paid between the measurement and reporting date in your accounting results. Please see the BARS Manual from the State Auditor's Office for more information on how to incorporate this into your financial statements.
C20: ="Based on your data inputs, we estimate your first-year projected monthly subsidy is $"&ROUND(Log!L12/12,0)&". If your reporting date is after the measurement date, multiply this amount by the number of months between your FYE and the measurement date. We believe this approach will serve as a reasonable estimate under this AMM Online Tool." -> Based on your data inputs, we estimate your first-year projected monthly subsidy is $0. If your reporting date is after the measurement date, multiply this amount by the number of months between your FYE and the measurement date. We believe this approach will serve as a reasonable estimate under this AMM Online Tool.
C22: ="In other words, if you have a 12/31/" &ToolYear& " reporting date, your estimated transactions subsequent to the measurement date would be $"&ROUND(Log!L12/12,0)&" x 6 = $"&ROUND(Log!L12/2,0)&". Additionally, based upon guidance from the State Auditor's Office, the estimated current portion due of the Total OPEB Liability for the financial statement reporting would be $"&ROUND(Log!L12/12,0)&" x 12 = $"&ROUND(Log!L12,0)&". Other methods of determining these liabilities may also be reasonable." -> In other words, if you have a 12/31/2025 reporting date, your estimated transactions subsequent to the measurement date would be $0 x 6 = $0. Additionally, based upon guidance from the State Auditor's Office, the estimated current portion due of the Total OPEB Liability for the financial statement reporting would be $0 x 12 = $0. Other methods of determining these liabilities may also be reasonable.
C24: PEBB OPEB valuation from OSA relied upon for purposes of this AMM Online Tool.
C25: 2024 PEBB OPEB Actuarial Valuation Report (AVR)
C27: Specific assumptions we made when developing this AMM Online Tool:
C29: ◊ We blended cost and premium assumptions for the PEBB medical plans used in this Tool.
C30: ▪ Assumed 3/4 of members select a Uniform Medical Plan (UMP) plan, 1/4 select a Kaiser Permanente (KP) plan.
C31: ▪ UMP pre- and post-Medicare costs and premiums are equal to the Uniform Medical Plan (UMP) Classic.
C32: ▪ The KP pre-Medicare costs and premiums are a 40/60 blend of KP WA Classic and KP WA Value.
C33: ▪ The KP post-Medicare costs and premiums are equal to KP WA Medicare.
C35: ◊ We estimated retirement service for each active cohort based on the average entry age of 35, with a minimum service of 1 year. For example, an age 47 member is assumed to have 12 years of service. Service is a component of benefit eligibility.
C37: ◊ Assumptions for rates of decrement (retirement, disability, termination, and mortality) are consistent with the most recent PEBB OPEB valuation as of the publication of this Tool. For model simplicity, we made the following changes:
C38: ▪ Based on an average expected retirement age of 65, we applied active mortality rates for ages less than 65 and retiree mortality rates for ages 65+.
C40: ▪ We assume members will not terminate once retirement eligible. Modeling these members as normal retirements approximates impacts from members terminating and defering participation in PEBB.
C43: ◊ Each cohort is assumed to be a 50/50 male/female split.
C45: ◊ We assume a 45% likelihood that current (and future) retirees cover a spouse.
C46: ▪ We further assume that eligible spouses are the same age as the primary member.
C48: ◊ We selected the age-based cohorts for this AMM Online Tool based upon the overall distribution of state employees and retirees that participate in PEBB.
C50: ◊ We did not include dental benefits when calculating the Total OPEB Liability.
C52: We believe these approaches and simplifying assumptions are reasonable for the purposes of this AMM. We performed internal testing on the Total OPEB Liability to ensure a reasonable relationship between the 2024 PEBB OPEB Report and this tool. We will continue to monitor the relationship in future tool updates and may adjust our assumptions and methods.
C54: For prior versions of this Tool, please contact the State Auditor's Office.
C56: We would like to hear your feedback if you used this tool. Please send us an email at:
C57: State.Actuary@leg.wa.gov
C59: Glossary - Link to the OSA website that includes definitions for frequently used actuarial and OPEB terms.
D60: Page 3 of 5

Sheet Certification Letter
B1: PEBB - GASB 75 AMM Online Tool Actuarial Certification
D58: Page 4 of 5
B60: PEBB - GASB 75 AMM Online Tool Actuarial Certification (Continued)
D117: Page 5 of 5

Sheet Active (hidden)
A1: Actives | B1: 0 | D1: Insured | G1: UMP | J1: Pre-Med (Implicit) | K1: Insured | L1: Pst-Med (Explicit) | M1: Insured | N1: Insured Med | O1: Insured | P1: Pre-Med (Implicit) | Q1: UMP | R1: Pst-Med (Explicit) | S1: UMP | T1: UMP Med | U1: UMP | X1: Insured | AB1: UMP | AE1: Average | AI1: 0.5 | AZ1: Survive pst Decrement | BF1: Retires at age XX, implicit subsidy | BQ1: Retires at age XX, explicit subsidy | CH1: =MAX(B2-35,1) -> 27
A2: Year | B2: 62 | D2: Costs | E2: Prem | G2: Costs | H2: Prem | J2: Trend | K2: Rel Trend | L2: Trend | M2: Rel Trend | N2: Premium | O2: Med Accum | P2: Trend | Q2: Rel Trend | R2: Trend | S2: Rel Trend | T2: Premium | U2: Med Accum | W2: Costs | X2: Prem | Y2: Net | AA2: Costs | AB2: Prem | AC2: Net | AE2: Net | AG2: Retire - M | AH2: Retire - F | AI2: Retire | AJ2: Term - M | AK2: Term - F | AL2: Term | AM2: Dis - M | AN2: Dis - F | AO2: Disab | AP2: Mort - M | AQ2: Mort - F | AR2: Death | AS2: Decrement | AT2: Survive | AU2: Interest | AW2: Mort - M | AX2: Mort - F | AY2: Mortality | BA2: Interest | BB2: Pay Timing | BD2: Age | BE2: Net | BF2: Imp 55 | BG2: Imp 56 | BH2: Imp 57 | BI2: Imp 58 | BJ2: Imp 59 | BK2: Imp 60 | BL2: Imp 61 | BM2: Imp 62 | BN2: Imp 63 | BO2: Imp 64 | BQ2: Exp 55 | BR2: Exp 56 | BS2: Exp 57 | BT2: Exp 58 | BU2: Exp 59 | BV2: Exp 60 | BW2: Exp 61 | BX2: Exp 62 | BY2: Exp 63 | BZ2: Exp 64 | CA2: Exp 65 | CB2: Exp 66 | CC2: Exp 67 | CD2: Exp 68 | CE2: Exp 69 | CF2: Exp 70 | CH2: Estimated MS
A3: =ToolYear - MS -> 1998 | B3: =B2-MS -> 35 | D3: =VLOOKUP(B3,Lookups!A:B,2) -> 10184.20707 | E3: =VLOOKUP(B3,Lookups!A:C,3) -> 11620.7328 | G3: =VLOOKUP(B3,Lookups!A:D,4) -> 7938.76512 | H3: =VLOOKUP(B3,Lookups!A:E,5) -> 10893.168 | J3: =VLOOKUP(A3,Trends!$A$3:$Q$94,IF(ExFlg=0,2,10))+IF(B3>=$B$2,Sens,0) -> 1.038 | K3: =IF(B3=$B$2,1,IF(B3<$B$2,K4/J3,K2*J2)) -> 0.3527445759 | L3: =VLOOKUP(A3,Trends!$A$3:$Q$94,IF(ExFlg=0,4,12))+IF(B3>=$B$2,Sens,0) -> 1.038 | M3: =IF(B3=$B$2,1,IF(B3<$B$2,M4/L3,M2*L2)) -> 0.3795799991 | N3: =VLOOKUP(A3,Trends!$A$3:$Z$94,IF(ExFlg=0,19,23))+IF(B3>=$B$2,Sens,0) -> 1.038 | O3: =IF(B3=$B$2,1,IF(B3<$B$2,O4/N3,O2*N2)) -> 0.3788215975 | P3: =VLOOKUP(A3,Trends!$A$3:$Q$94,IF(ExFlg=0,6,14))+IF(B3>=$B$2,Sens,0) -> 1.038 | Q3: =IF(B3=$B$2,1,IF(B3<$B$2,Q4/P3,Q2*P2)) -> 0.359091306 | R3: =VLOOKUP(A3,Trends!$A$3:$Q$94,IF(ExFlg=0,8,16))+IF(B3>=$B$2,Sens,0) -> 1.038 | S3: =IF(B3=$B$2,1,IF(B3<$B$2,S4/R3,S2*R2)) -> 0.3974847161 | T3: =VLOOKUP(A3,Trends!$A$3:$Z$94,IF(ExFlg=0,21,25))+IF(B3>=$B$2,Sens,0) -> 1.038 | U3: =IF(B3=$B$2,1,IF(B3<$B$2,U4/T3,U2*T2)) -> 0.4038343122 | W3: =IF(B3<65,D3*K3,D3*M3) -> 3592.423806 | X3: =IF(B3<65,E3*K3,E3*O3) -> 4099.150463 | Y3: =W3-X3 -> -506.7266577 | AA3: =IF(B3<65,G3*Q3,G3*S3) -> 2850.741535 | AB3: =IF(B3<65,H3*Q3,H3*U3) -> 3911.641923 | AC3: =AA3-AB3 -> -1060.900389 | AE3: =(1-PctUMP)*Y3+PctUMP*AC3 -> -922.3569558 | AG3: =IF(B3<71,IF(B3-35<30,VLOOKUP(B3,Lookups!A:G,6),VLOOKUP(B3,Lookups!A:G,7)),"") -> 0 | AH3: =AG3 -> 0 | AI3: =IF(B3<71,PCTMALE*AG3+(1-PCTMALE)*AH3,"") -> 0 | AJ3: =IF(OR(B3<55,B3-35<20),VLOOKUP(B3-$B$3,Lookups!$O$3:$Q$53,2),VLOOKUP(B3,Lookups!$O$57:$P$122,2)) -> 0.26 | AK3: =AJ3 -> 0.26 | AL3: =PCTMALE*AJ3+(1-PCTMALE)*AK3 -> 0.26 | AM3: =IF(B3<55,VLOOKUP(B3,Lookups!A:M,12),"") -> 0.0002 | AN3: =IF(B3<55,VLOOKUP(B3,Lookups!A:M,13),"") -> 0.0002 | AO3: =IF(B3<55,PCTMALE*AM3+(1-PCTMALE)*AN3,"") -> 0.0002 | AP3: =IF(B3<70,VLOOKUP(B3,Lookups!A:I,8)*(1-VLOOKUP(B3,Lookups!$U$3:$W$103,2))^(B3-$B$2),"") -> 0.0006661964369 | AQ3: =IF(B3<70,VLOOKUP(B3,Lookups!A:I,9)*(1-VLOOKUP(B3,Lookups!$U$3:$W$103,3))^(B3-$B$2),"") -> 0.0003155667333 | AR3: =IF(AP3<>"",PCTMALE*AP3+(1-PCTMALE)*AQ3,"") -> 0.0004908815851 | AS3: =IF(B3<71,SUM(AI3,AL3,AO3,AR3),"") -> 0.2606908816 | AT3: =IF(B3<71,IF(B3=$B$2,1, IF(B3<$B$2, AT4/(1-AS3), AT2*(1-AS2))),"") -> 4.719369565 | AU3: =IF(B3<71,IF(B3=$B$2,1,IF(B3<$B$2,AU4*(1+IntRt),AU2/(1+IntRt))),"") -> 2.831424833 | AW3: =IF(BD3>=$B$3,VLOOKUP(BD3,Lookups!A:G,8)*(1-VLOOKUP(BD3,Lookups!U:W,2))^(BD3-$B$3),"") ->  | AX3: =IF(BD3>=$B$3,VLOOKUP(BD3,Lookups!A:G,9)*(1-VLOOKUP(BD3,Lookups!U:W,3))^(BD3-$B$3),"") ->  | AY3: =IFERROR(PCTMALE*AW3+(1-PCTMALE)*AX3,"") -> 
A4: =1+A3 -> 1999 | B4: 36 | D4: =VLOOKUP(B4,Lookups!A:B,2) -> 10409.13255 | E4: =VLOOKUP(B4,Lookups!A:C,3) -> 11620.7328 | G4: =VLOOKUP(B4,Lookups!A:D,4) -> 8114.10336 | H4: =VLOOKUP(B4,Lookups!A:E,5) -> 10893.168 | J4: =VLOOKUP(A4,Trends!$A$3:$Q$94,IF(ExFlg=0,2,10))+IF(B4>=$B$2,Sens,0) -> 1.038 | K4: 0.3661488698 | L4: =VLOOKUP(A4,Trends!$A$3:$Q$94,IF(ExFlg=0,4,12))+IF(B4>=$B$2,Sens,0) -> 1.038 | M4: =IF(B4=$B$2,1,IF(B4<$B$2,M5/L4,M3*L3)) -> 0.3940040391 | N4: =VLOOKUP(A4,Trends!$A$3:$Z$94,IF(ExFlg=0,19,23))+IF(B4>=$B$2,Sens,0) -> 1.038 | O4: =IF(B4=$B$2,1,IF(B4<$B$2,O5/N4,O3*N3)) -> 0.3932168182 | P4: =VLOOKUP(A4,Trends!$A$3:$Q$94,IF(ExFlg=0,6,14))+IF(B4>=$B$2,Sens,0) -> 1.038 | Q4: 0.3727367756 | R4: =VLOOKUP(A4,Trends!$A$3:$Q$94,IF(ExFlg=0,8,16))+IF(B4>=$B$2,Sens,0) -> 1.038 | S4: 0.4125891353 | T4: =VLOOKUP(A4,Trends!$A$3:$Z$94,IF(ExFlg=0,21,25))+IF(B4>=$B$2,Sens,0) -> 1.038 | U4: =IF(B4=$B$2,1,IF(B4<$B$2,U5/T4,U3*T3)) -> 0.419180016 | W4: =IF(B4<65,D4*K4,D4*M4) -> 3811.292119 | X4: =IF(B4<65,E4*K4,E4*O4) -> 4254.918181 | Y4: -443.6260622 | AA4: =IF(B4<65,G4*Q4,G4*S4) -> 3024.424723 | AB4: =IF(B4<65,H4*Q4,H4*U4) -> 4060.284316 | AC4: =AA4-AB4 -> -1035.859593 | AE4: =(1-PctUMP)*Y4+PctUMP*AC4 -> -887.8012104 | AG4: =IF(B4<71,IF(B4-35<30,VLOOKUP(B4,Lookups!A:G,6),VLOOKUP(B4,Lookups!A:G,7)),"") -> 0 | AH4: =AG4 -> 0 | AI4: 0 | AJ4: =IF(OR(B4<55,B4-35<20),VLOOKUP(B4-$B$3,Lookups!$O$3:$Q$53,2),VLOOKUP(B4,Lookups!$O$57:$P$122,2)) -> 0.15 | AK4: =AJ4 -> 0.15 | AL4: 0.15 | AM4: =IF(B4<55,VLOOKUP(B4,Lookups!A:M,12),"") -> 0.0002 | AN4: =IF(B4<55,VLOOKUP(B4,Lookups!A:M,13),"") -> 0.0002 | AO4: 0.0002 | AP4: =IF(B4<70,VLOOKUP(B4,Lookups!A:I,8)*(1-VLOOKUP(B4,Lookups!$U$3:$W$103,2))^(B4-$B$2),"") -> 0.0007032463089 | AQ4: =IF(B4<70,VLOOKUP(B4,Lookups!A:I,9)*(1-VLOOKUP(B4,Lookups!$U$3:$W$103,3))^(B4-$B$2),"") -> 0.0003458377644 | AR4: 0.0005245420366 | AS4: =IF(B4<71,SUM(AI4,AL4,AO4,AR4),"") -> 0.150724542 | AT4: =IF(B4<71,IF(B4=$B$2,1, IF(B4<$B$2, AT5/(1-AS4), AT3*(1-AS3))),"") -> 3.489072953 | AU4: 2.72435758 | AW4: =IF(BD4>=$B$3,VLOOKUP(BD4,Lookups!A:G,8)*(1-VLOOKUP(BD4,Lookups!U:W,2))^(BD4-$B$3),"") ->  | AX4: =IF(BD4>=$B$3,VLOOKUP(BD4,Lookups!A:G,9)*(1-VLOOKUP(BD4,Lookups!U:W,3))^(BD4-$B$3),"") -> 
A5: 2000 | B5: 37 | D5: =VLOOKUP(B5,Lookups!A:B,2) -> 10642.62255 | E5: =VLOOKUP(B5,Lookups!A:C,3) -> 11620.7328 | G5: =VLOOKUP(B5,Lookups!A:D,4) -> 8296.11024 | H5: =VLOOKUP(B5,Lookups!A:E,5) -> 10893.168 | J5: =VLOOKUP(A5,Trends!$A$3:$Q$94,IF(ExFlg=0,2,10))+IF(B5>=$B$2,Sens,0) -> 1.038 | K5: 0.3800625269 | L5: =VLOOKUP(A5,Trends!$A$3:$Q$94,IF(ExFlg=0,4,12))+IF(B5>=$B$2,Sens,0) -> 1.038 | M5: 0.4089761926 | N5: =VLOOKUP(A5,Trends!$A$3:$Z$94,IF(ExFlg=0,19,23))+IF(B5>=$B$2,Sens,0) -> 1.038 | O5: 0.4081590573 | P5: =VLOOKUP(A5,Trends!$A$3:$Q$94,IF(ExFlg=0,6,14))+IF(B5>=$B$2,Sens,0) -> 1.038 | Q5: 0.3869007731 | R5: =VLOOKUP(A5,Trends!$A$3:$Q$94,IF(ExFlg=0,8,16))+IF(B5>=$B$2,Sens,0) -> 1.038 | S5: 0.4282675224 | T5: =VLOOKUP(A5,Trends!$A$3:$Z$94,IF(ExFlg=0,21,25))+IF(B5>=$B$2,Sens,0) -> 1.038 | U5: 0.4351088566 | W5: =IF(B5<65,D5*K5,D5*M5) -> 4044.862019 | X5: 4416.605072 | Y5: -371.7430532 | AA5: 3209.771465 | AB5: 4214.575121 | AC5: =AA5-AB5 -> -1004.803655 | AE5: =(1-PctUMP)*Y5+PctUMP*AC5 -> -846.5385046 | AG5: =IF(B5<71,IF(B5-35<30,VLOOKUP(B5,Lookups!A:G,6),VLOOKUP(B5,Lookups!A:G,7)),"") -> 0 | AH5: 0 | AI5: 0 | AJ5: =IF(OR(B5<55,B5-35<20),VLOOKUP(B5-$B$3,Lookups!$O$3:$Q$53,2),VLOOKUP(B5,Lookups!$O$57:$P$122,2)) -> 0.105 | AK5: 0.105 | AL5: 0.105 | AM5: =IF(B5<55,VLOOKUP(B5,Lookups!A:M,12),"") -> 0.0002 | AN5: =IF(B5<55,VLOOKUP(B5,Lookups!A:M,13),"") -> 0.0002 | AO5: 0.0002 | AP5: =IF(B5<70,VLOOKUP(B5,Lookups!A:I,8)*(1-VLOOKUP(B5,Lookups!$U$3:$W$103,2))^(B5-$B$2),"") -> 0.0007407613497 | AQ5: =IF(B5<70,VLOOKUP(B5,Lookups!A:I,9)*(1-VLOOKUP(B5,Lookups!$U$3:$W$103,3))^(B5-$B$2),"") -> 0.0003652895315 | AR5: 0.0005530254406 | AS5: 0.1057530254 | AT5: 2.96318403 | AU5: 2.621338959 | AW5: =IF(BD5>=$B$3,VLOOKUP(BD5,Lookups!A:G,8)*(1-VLOOKUP(BD5,Lookups!U:W,2))^(BD5-$B$3),"") ->  | AX5: =IF(BD5>=$B$3,VLOOKUP(BD5,Lookups!A:G,9)*(1-VLOOKUP(BD5,Lookups!U:W,3))^(BD5-$B$3),"") -> 
A6: 2001 | B6: 38 | D6: =VLOOKUP(B6,Lookups!A:B,2) -> 11221.22088 | E6: =VLOOKUP(B6,Lookups!A:C,3) -> 11620.7328 | G6: =VLOOKUP(B6,Lookups!A:D,4) -> 8747.1384 | H6: =VLOOKUP(B6,Lookups!A:E,5) -> 10893.168 | J6: =VLOOKUP(A6,Trends!$A$3:$Q$94,IF(ExFlg=0,2,10))+IF(B6>=$B$2,Sens,0) -> 1.038 | K6: 0.3945049029 | L6: =VLOOKUP(A6,Trends!$A$3:$Q$94,IF(ExFlg=0,4,12))+IF(B6>=$B$2,Sens,0) -> 1.038 | M6: 0.4245172879 | N6: =VLOOKUP(A6,Trends!$A$3:$Z$94,IF(ExFlg=0,19,23))+IF(B6>=$B$2,Sens,0) -> 1.038 | O6: 0.4236691015 | P6: =VLOOKUP(A6,Trends!$A$3:$Q$94,IF(ExFlg=0,6,14))+IF(B6>=$B$2,Sens,0) -> 1.038 | Q6: 0.4016030025 | R6: =VLOOKUP(A6,Trends!$A$3:$Q$94,IF(ExFlg=0,8,16))+IF(B6>=$B$2,Sens,0) -> 1.038 | S6: 0.4445416883 | T6: =VLOOKUP(A6,Trends!$A$3:$Z$94,IF(ExFlg=0,21,25))+IF(B6>=$B$2,Sens,0) -> 1.038 | U6: 0.4516429932 | W6: =IF(B6<65,D6*K6,D6*M6) -> 4426.826651 | X6: 4584.436065 | Y6: -157.6094132 | AA6: 3512.877044 | AB6: 4374.728975 | AC6: -861.8519307 | AE6: -685.7913013 | AG6: =IF(B6<71,IF(B6-35<30,VLOOKUP(B6,Lookups!A:G,6),VLOOKUP(B6,Lookups!A:G,7)),"") -> 0 | AH6: 0 | AI6: 0 | AJ6: =IF(OR(B6<55,B6-35<20),VLOOKUP(B6-$B$3,Lookups!$O$3:$Q$53,2),VLOOKUP(B6,Lookups!$O$57:$P$122,2)) -> 0.08 | AK6: 0.08 | AL6: 0.08 | AM6: =IF(B6<55,VLOOKUP(B6,Lookups!A:M,12),"") -> 0.0002 | AN6: =IF(B6<55,VLOOKUP(B6,Lookups!A:M,13),"") -> 0.0002 | AO6: 0.0002 | AP6: =IF(B6<70,VLOOKUP(B6,Lookups!A:I,8)*(1-VLOOKUP(B6,Lookups!$U$3:$W$103,2))^(B6-$B$2),"") -> 0.000777455765 | AQ6: =IF(B6<70,VLOOKUP(B6,Lookups!A:I,9)*(1-VLOOKUP(B6,Lookups!$U$3:$W$103,3))^(B6-$B$2),"") -> 0.0003943981433 | AR6: 0.0005859269542 | AS6: 0.08078592695 | AT6: 2.649818354 | AU6: 2.522215875 | AW6: =IF(BD6>=$B$3,VLOOKUP(BD6,Lookups!A:G,8)*(1-VLOOKUP(BD6,Lookups!U:W,2))^(BD6-$B$3),"") ->  | AX6: =IF(BD6>=$B$3,VLOOKUP(BD6,Lookups!A:G,9)*(1-VLOOKUP(BD6,Lookups!U:W,3))^(BD6-$B$3),"") ->  | CK6: Current Employees - Default Ages
A7: 2002 | B7: 39 | D7: =VLOOKUP(B7,Lookups!A:B,2) -> 11833.73008 | E7: =VLOOKUP(B7,Lookups!A:C,3) -> 11620.7328 | G7: =VLOOKUP(B7,Lookups!A:D,4) -> 9224.60352 | H7: =VLOOKUP(B7,Lookups!A:E,5) -> 10893.168 | J7: =VLOOKUP(A7,Trends!$A$3:$Q$94,IF(ExFlg=0,2,10))+IF(B7>=$B$2,Sens,0) -> 1.038 | K7: 0.4094960892 | L7: =VLOOKUP(A7,Trends!$A$3:$Q$94,IF(ExFlg=0,4,12))+IF(B7>=$B$2,Sens,0) -> 1.038 | M7: 0.4406489448 | N7: =VLOOKUP(A7,Trends!$A$3:$Z$94,IF(ExFlg=0,19,23))+IF(B7>=$B$2,Sens,0) -> 1.038 | O7: 0.4397685274 | P7: =VLOOKUP(A7,Trends!$A$3:$Q$94,IF(ExFlg=0,6,14))+IF(B7>=$B$2,Sens,0) -> 1.038 | Q7: 0.4168639166 | R7: =VLOOKUP(A7,Trends!$A$3:$Q$94,IF(ExFlg=0,8,16))+IF(B7>=$B$2,Sens,0) -> 1.038 | S7: 0.4614342724 | T7: =VLOOKUP(A7,Trends!$A$3:$Z$94,IF(ExFlg=0,21,25))+IF(B7>=$B$2,Sens,0) -> 1.038 | U7: 0.4688054269 | W7: 4845.866186 | X7: 4758.644635 | Y7: =W7-X7 -> 87.22155112 | AA7: 3845.404352 | AB7: 4540.968676 | AC7: -695.5643242 | AE7: -499.8678553 | AG7: =IF(B7<71,IF(B7-35<30,VLOOKUP(B7,Lookups!A:G,6),VLOOKUP(B7,Lookups!A:G,7)),"") -> 0 | AH7: 0 | AI7: 0 | AJ7: =IF(OR(B7<55,B7-35<20),VLOOKUP(B7-$B$3,Lookups!$O$3:$Q$53,2),VLOOKUP(B7,Lookups!$O$57:$P$122,2)) -> 0.065 | AK7: 0.065 | AL7: 0.065 | AM7: =IF(B7<55,VLOOKUP(B7,Lookups!A:M,12),"") -> 0.0002 | AN7: =IF(B7<55,VLOOKUP(B7,Lookups!A:M,13),"") -> 0.0002 | AO7: 0.0002 | AP7: =IF(B7<70,VLOOKUP(B7,Lookups!A:I,8)*(1-VLOOKUP(B7,Lookups!$U$3:$W$103,2))^(B7-$B$2),"") -> 0.000823321875 | AQ7: =IF(B7<70,VLOOKUP(B7,Lookups!A:I,9)*(1-VLOOKUP(B7,Lookups!$U$3:$W$103,3))^(B7-$B$2),"") -> 0.000422888054 | AR7: 0.0006231049645 | AS7: 0.06582310496 | AT7: 2.435750322 | AU7: 2.426841023 | AW7: =IF(BD7>=$B$3,VLOOKUP(BD7,Lookups!A:G,8)*(1-VLOOKUP(BD7,Lookups!U:W,2))^(BD7-$B$3),"") ->  | AX7: =IF(BD7>=$B$3,VLOOKUP(BD7,Lookups!A:G,9)*(1-VLOOKUP(BD7,Lookups!U:W,3))^(BD7-$B$3),"") ->  | CK7: Age Divisions | CL7: 20-35 | CM7: 36-46 | CN7: 47-56 | CO7: 57+
A8: 2003 | B8: 40 | D8: =VLOOKUP(B8,Lookups!A:B,2) -> 12482.24748 | E8: =VLOOKUP(B8,Lookups!A:C,3) -> 11620.7328 | G8: =VLOOKUP(B8,Lookups!A:D,4) -> 9730.13184 | H8: =VLOOKUP(B8,Lookups!A:E,5) -> 10893.168 | J8: =VLOOKUP(A8,Trends!$A$3:$Q$94,IF(ExFlg=0,2,10))+IF(B8>=$B$2,Sens,0) -> 1.038 | K8: =IF(B8=$B$2,1,IF(B8<$B$2,K9/J8,K7*J7)) -> 0.4250569406 | L8: =VLOOKUP(A8,Trends!$A$3:$Q$94,IF(ExFlg=0,4,12))+IF(B8>=$B$2,Sens,0) -> 1.038 | M8: =IF(B8=$B$2,1,IF(B8<$B$2,M9/L8,M7*L7)) -> 0.4573936047 | N8: =VLOOKUP(A8,Trends!$A$3:$Z$94,IF(ExFlg=0,19,23))+IF(B8>=$B$2,Sens,0) -> 1.038 | O8: 0.4564797314 | P8: =VLOOKUP(A8,Trends!$A$3:$Q$94,IF(ExFlg=0,6,14))+IF(B8>=$B$2,Sens,0) -> 1.038 | Q8: =IF(B8=$B$2,1,IF(B8<$B$2,Q9/P8,Q7*P7)) -> 0.4327047454 | R8: =VLOOKUP(A8,Trends!$A$3:$Q$94,IF(ExFlg=0,8,16))+IF(B8>=$B$2,Sens,0) -> 1.038 | S8: =IF(B8=$B$2,1,IF(B8<$B$2,S9/R8,S7*R7)) -> 0.4789687748 | T8: =VLOOKUP(A8,Trends!$A$3:$Z$94,IF(ExFlg=0,21,25))+IF(B8>=$B$2,Sens,0) -> 1.038 | U8: 0.4866200331 | W8: =IF(B8<65,D8*K8,D8*M8) -> 5305.665923 | X8: 4939.473131 | Y8: 366.192792 | AA8: 4210.27422 | AB8: 4713.525486 | AC8: -503.2512655 | AE8: -285.8902511 | AG8: =IF(B8<71,IF(B8-35<30,VLOOKUP(B8,Lookups!A:G,6),VLOOKUP(B8,Lookups!A:G,7)),"") -> 0 | AH8: 0 | AI8: 0 | AJ8: =IF(OR(B8<55,B8-35<20),VLOOKUP(B8-$B$3,Lookups!$O$3:$Q$53,2),VLOOKUP(B8,Lookups!$O$57:$P$122,2)) -> 0.06 | AK8: 0.06 | AL8: 0.06 | AM8: =IF(B8<55,VLOOKUP(B8,Lookups!A:M,12),"") -> 0.0002 | AN8: =IF(B8<55,VLOOKUP(B8,Lookups!A:M,13),"") -> 0.0002 | AO8: 0.0002 | AP8: =IF(B8<70,VLOOKUP(B8,Lookups!A:I,8)*(1-VLOOKUP(B8,Lookups!$U$3:$W$103,2))^(B8-$B$2),"") -> 0.0008694279 | AQ8: =IF(B8<70,VLOOKUP(B8,Lookups!A:I,9)*(1-VLOOKUP(B8,Lookups!$U$3:$W$103,3))^(B8-$B$2),"") -> 0.0004618835718 | AR8: 0.0006656557359 | AS8: 0.06086565574 | AT8: 2.275421673 | AU8: 2.335072667 | AW8: =IF(BD8>=$B$3,VLOOKUP(BD8,Lookups!A:G,8)*(1-VLOOKUP(BD8,Lookups!U:W,2))^(BD8-$B$3),"") ->  | AX8: =IF(BD8>=$B$3,VLOOKUP(BD8,Lookups!A:G,9)*(1-VLOOKUP(BD8,Lookups!U:W,3))^(BD8-$B$3),"") ->  | CK8: Default Age | CL8: 30 | CM8: =ROUND((46+36)/2, 0) -> 41 | CN8: =ROUND((56+47)/2,0) -> 52 | CO8: 60
A9: 2004 | B9: 41 | D9: =VLOOKUP(B9,Lookups!A:B,2) -> 13169.01553 | E9: =VLOOKUP(B9,Lookups!A:C,3) -> 11620.7328 | G9: =VLOOKUP(B9,Lookups!A:D,4) -> 10265.4816 | H9: =VLOOKUP(B9,Lookups!A:E,5) -> 10893.168 | J9: =VLOOKUP(A9,Trends!$A$3:$Q$94,IF(ExFlg=0,2,10))+IF(B9>=$B$2,Sens,0) -> 1.038 | K9: =IF(B9=$B$2,1,IF(B9<$B$2,K10/J9,K8*J8)) -> 0.4412091043 | L9: =VLOOKUP(A9,Trends!$A$3:$Q$94,IF(ExFlg=0,4,12))+IF(B9>=$B$2,Sens,0) -> 1.038 | M9: =IF(B9=$B$2,1,IF(B9<$B$2,M10/L9,M8*L8)) -> 0.4747745617 | N9: =VLOOKUP(A9,Trends!$A$3:$Z$94,IF(ExFlg=0,19,23))+IF(B9>=$B$2,Sens,0) -> 1.038 | O9: 0.4738259612 | P9: =VLOOKUP(A9,Trends!$A$3:$Q$94,IF(ExFlg=0,6,14))+IF(B9>=$B$2,Sens,0) -> 1.038 | Q9: =IF(B9=$B$2,1,IF(B9<$B$2,Q10/P9,Q8*P8)) -> 0.4491475257 | R9: =VLOOKUP(A9,Trends!$A$3:$Q$94,IF(ExFlg=0,8,16))+IF(B9>=$B$2,Sens,0) -> 1.038 | S9: =IF(B9=$B$2,1,IF(B9<$B$2,S10/R9,S8*R8)) -> 0.4971695882 | T9: =VLOOKUP(A9,Trends!$A$3:$Z$94,IF(ExFlg=0,21,25))+IF(B9>=$B$2,Sens,0) -> 1.038 | U9: 0.5051115944 | W9: =IF(B9<65,D9*K9,D9*M9) -> 5810.289545 | X9: 5127.17311 | Y9: 683.1164343 | AA9: 4610.715661 | AB9: 4892.639454 | AC9: -281.9237935 | AE9: -40.66373653 | AG9: =IF(B9<71,IF(B9-35<30,VLOOKUP(B9,Lookups!A:G,6),VLOOKUP(B9,Lookups!A:G,7)),"") -> 0 | AH9: 0 | AI9: 0 | AJ9: =IF(OR(B9<55,B9-35<20),VLOOKUP(B9-$B$3,Lookups!$O$3:$Q$53,2),VLOOKUP(B9,Lookups!$O$57:$P$122,2)) -> 0.055 | AK9: 0.055 | AL9: 0.055 | AM9: =IF(B9<55,VLOOKUP(B9,Lookups!A:M,12),"") -> 0.0002 | AN9: =IF(B9<55,VLOOKUP(B9,Lookups!A:M,13),"") -> 0.0002 | AO9: 0.0002 | AP9: =IF(B9<70,VLOOKUP(B9,Lookups!A:I,8)*(1-VLOOKUP(B9,Lookups!$U$3:$W$103,2))^(B9-$B$2),"") -> 0.0009243105361 | AQ9: =IF(B9<70,VLOOKUP(B9,Lookups!A:I,9)*(1-VLOOKUP(B9,Lookups!$U$3:$W$103,3))^(B9-$B$2),"") -> 0.0004890531937 | AR9: 0.0007066818649 | AS9: 0.05590668186 | AT9: =IF(B9<71,IF(B9=$B$2,1, IF(B9<$B$2, AT10/(1-AS9), AT8*(1-AS8))),"") -> 2.13692664 | AU9: 2.246774432 | AW9: =IF(BD9>=$B$3,VLOOKUP(BD9,Lookups!A:G,8)*(1-VLOOKUP(BD9,Lookups!U:W,2))^(BD9-$B$3),"") ->  | AX9: =IF(BD9>=$B$3,VLOOKUP(BD9,Lookups!A:G,9)*(1-VLOOKUP(BD9,Lookups!U:W,3))^(BD9-$B$3),"") -> 
A10: 2005 | B10: 42 | D10: =VLOOKUP(B10,Lookups!A:B,2) -> 13896.40997 | E10: =VLOOKUP(B10,Lookups!A:C,3) -> 11620.7328 | G10: =VLOOKUP(B10,Lookups!A:D,4) -> 10832.49552 | H10: =VLOOKUP(B10,Lookups!A:E,5) -> 10893.168 | J10: =VLOOKUP(A10,Trends!$A$3:$Q$94,IF(ExFlg=0,2,10))+IF(B10>=$B$2,Sens,0) -> 1.038 | K10: =IF(B10=$B$2,1,IF(B10<$B$2,K11/J10,K9*J9)) -> 0.4579750503 | L10: =VLOOKUP(A10,Trends!$A$3:$Q$94,IF(ExFlg=0,4,12))+IF(B10>=$B$2,Sens,0) -> 1.038 | M10: 0.4928159951 | N10: =VLOOKUP(A10,Trends!$A$3:$Z$94,IF(ExFlg=0,19,23))+IF(B10>=$B$2,Sens,0) -> 1.038 | O10: 0.4918313477 | P10: =VLOOKUP(A10,Trends!$A$3:$Q$94,IF(ExFlg=0,6,14))+IF(B10>=$B$2,Sens,0) -> 1.038 | Q10: 0.4662151317 | R10: =VLOOKUP(A10,Trends!$A$3:$Q$94,IF(ExFlg=0,8,16))+IF(B10>=$B$2,Sens,0) -> 1.038 | S10: 0.5160620326 | T10: =VLOOKUP(A10,Trends!$A$3:$Z$94,IF(ExFlg=0,21,25))+IF(B10>=$B$2,Sens,0) -> 1.038 | U10: 0.524305835 | W10: 6364.209057 | X10: 5322.005688 | Y10: 1042.203369 | AA10: 5050.273325 | AB10: 5078.559754 | AC10: -28.28642825 | AE10: 239.336021 | AG10: =IF(B10<71,IF(B10-35<30,VLOOKUP(B10,Lookups!A:G,6),VLOOKUP(B10,Lookups!A:G,7)),"") -> 0 | AH10: 0 | AI10: 0 | AJ10: =IF(OR(B10<55,B10-35<20),VLOOKUP(B10-$B$3,Lookups!$O$3:$Q$53,2),VLOOKUP(B10,Lookups!$O$57:$P$122,2)) -> 0.05 | AK10: 0.05 | AL10: 0.05 | AM10: =IF(B10<55,VLOOKUP(B10,Lookups!A:M,12),"") -> 0.0002 | AN10: =IF(B10<55,VLOOKUP(B10,Lookups!A:M,13),"") -> 0.0002 | AO10: 0.0002 | AP10: =IF(B10<70,VLOOKUP(B10,Lookups!A:I,8)*(1-VLOOKUP(B10,Lookups!$U$3:$W$103,2))^(B10-$B$2),"") -> 0.0009780085768 | AQ10: =IF(B10<70,VLOOKUP(B10,Lookups!A:I,9)*(1-VLOOKUP(B10,Lookups!$U$3:$W$103,3))^(B10-$B$2),"") -> 0.000525316488 | AR10: 0.0007516625324 | AS10: 0.05095166253 | AT10: 2.017458163 | AU10: 2.161815099 | AW10: =IF(BD10>=$B$3,VLOOKUP(BD10,Lookups!A:G,8)*(1-VLOOKUP(BD10,Lookups!U:W,2))^(BD10-$B$3),"") ->  | AX10: =IF(BD10>=$B$3,VLOOKUP(BD10,Lookups!A:G,9)*(1-VLOOKUP(BD10,Lookups!U:W,3))^(BD10-$B$3),"") -> 
A11: 2006 | B11: 43 | D11: =VLOOKUP(B11,Lookups!A:B,2) -> 14122.4986 | E11: =VLOOKUP(B11,Lookups!A:C,3) -> 11620.7328 | G11: =VLOOKUP(B11,Lookups!A:D,4) -> 11008.73664 | H11: =VLOOKUP(B11,Lookups!A:E,5) -> 10893.168 | J11: =VLOOKUP(A11,Trends!$A$3:$Q$94,IF(ExFlg=0,2,10))+IF(B11>=$B$2,Sens,0) -> 1.038 | K11: 0.4753781022 | L11: =VLOOKUP(A11,Trends!$A$3:$Q$94,IF(ExFlg=0,4,12))+IF(B11>=$B$2,Sens,0) -> 1.038 | M11: 0.5115430029 | N11: =VLOOKUP(A11,Trends!$A$3:$Z$94,IF(ExFlg=0,19,23))+IF(B11>=$B$2,Sens,0) -> 1.038 | O11: 0.5105209389 | P11: =VLOOKUP(A11,Trends!$A$3:$Q$94,IF(ExFlg=0,6,14))+IF(B11>=$B$2,Sens,0) -> 1.038 | Q11: 0.4839313067 | R11: =VLOOKUP(A11,Trends!$A$3:$Q$94,IF(ExFlg=0,8,16))+IF(B11>=$B$2,Sens,0) -> 1.038 | S11: 0.5356723898 | T11: =VLOOKUP(A11,Trends!$A$3:$Z$94,IF(ExFlg=0,21,25))+IF(B11>=$B$2,Sens,0) -> 1.038 | U11: 0.5442294567 | W11: 6713.526583 | X11: 5524.241905 | Y11: 1189.284678 | AA11: 5327.472307 | AB11: 5271.545024 | AC11: =AA11-AB11 -> 55.92728297 | AE11: 339.2666318 | AG11: =IF(B11<71,IF(B11-35<30,VLOOKUP(B11,Lookups!A:G,6),VLOOKUP(B11,Lookups!A:G,7)),"") -> 0 | AH11: 0 | AI11: 0 | AJ11: =IF(OR(B11<55,B11-35<20),VLOOKUP(B11-$B$3,Lookups!$O$3:$Q$53,2),VLOOKUP(B11,Lookups!$O$57:$P$122,2)) -> 0.045 | AK11: 0.045 | AL11: 0.045 | AM11: =IF(B11<55,VLOOKUP(B11,Lookups!A:M,12),"") -> 0.0002 | AN11: =IF(B11<55,VLOOKUP(B11,Lookups!A:M,13),"") -> 0.0002 | AO11: 0.0002 | AP11: =IF(B11<70,VLOOKUP(B11,Lookups!A:I,8)*(1-VLOOKUP(B11,Lookups!$U$3:$W$103,2))^(B11-$B$2),"") -> 0.00105091137 | AQ11: =IF(B11<70,VLOOKUP(B11,Lookups!A:I,9)*(1-VLOOKUP(B11,Lookups!$U$3:$W$103,3))^(B11-$B$2),"") -> 0.000572788637 | AR11: 0.0008118500033 | AS11: 0.04601185 | AT11: 1.914665315 | AU11: 2.08006841 | AV11: Age | AW11: =IF(BD11>=$B$3,VLOOKUP(BD11,Lookups!A:G,8)*(1-VLOOKUP(BD11,Lookups!U:W,2))^(BD11-$B$3),"") ->  | AX11: =IF(BD11>=$B$3,VLOOKUP(BD11,Lookups!A:G,9)*(1-VLOOKUP(BD11,Lookups!U:W,3))^(BD11-$B$3),"") -> 
A12: 2007 | B12: 44 | D12: =VLOOKUP(B12,Lookups!A:B,2) -> 14352.41745 | E12: =VLOOKUP(B12,Lookups!A:C,3) -> 11620.7328 | G12: =VLOOKUP(B12,Lookups!A:D,4) -> 11187.96096 | H12: =VLOOKUP(B12,Lookups!A:E,5) -> 10893.168 | J12: =VLOOKUP(A12,Trends!$A$3:$Q$94,IF(ExFlg=0,2,10))+IF(B12>=$B$2,Sens,0) -> 1.038 | K12: 0.4934424701 | L12: =VLOOKUP(A12,Trends!$A$3:$Q$94,IF(ExFlg=0,4,12))+IF(B12>=$B$2,Sens,0) -> 1.038 | M12: 0.530981637 | N12: =VLOOKUP(A12,Trends!$A$3:$Z$94,IF(ExFlg=0,19,23))+IF(B12>=$B$2,Sens,0) -> 1.038 | O12: 0.5299207346 | P12: =VLOOKUP(A12,Trends!$A$3:$Q$94,IF(ExFlg=0,6,14))+IF(B12>=$B$2,Sens,0) -> 1.038 | Q12: 0.5023206963 | R12: =VLOOKUP(A12,Trends!$A$3:$Q$94,IF(ExFlg=0,8,16))+IF(B12>=$B$2,Sens,0) -> 1.038 | S12: 0.5560279406 | T12: =VLOOKUP(A12,Trends!$A$3:$Z$94,IF(ExFlg=0,21,25))+IF(B12>=$B$2,Sens,0) -> 1.038 | U12: 0.5649101761 | W12: 7082.092318 | X12: 5734.163097 | Y12: 1347.929221 | AA12: 5619.94434 | AB12: 5471.863735 | AC12: 148.0806049 | AE12: 448.042759 | AG12: =IF(B12<71,IF(B12-35<30,VLOOKUP(B12,Lookups!A:G,6),VLOOKUP(B12,Lookups!A:G,7)),"") -> 0 | AH12: 0 | AI12: 0 | AJ12: =IF(OR(B12<55,B12-35<20),VLOOKUP(B12-$B$3,Lookups!$O$3:$Q$53,2),VLOOKUP(B12,Lookups!$O$57:$P$122,2)) -> 0.04 | AK12: 0.04 | AL12: 0.04 | AM12: =IF(B12<55,VLOOKUP(B12,Lookups!A:M,12),"") -> 0.0002 | AN12: =IF(B12<55,VLOOKUP(B12,Lookups!A:M,13),"") -> 0.0002 | AO12: 0.0002 | AP12: =IF(B12<70,VLOOKUP(B12,Lookups!A:I,8)*(1-VLOOKUP(B12,Lookups!$U$3:$W$103,2))^(B12-$B$2),"") -> 0.001123444625 | AQ12: =IF(B12<70,VLOOKUP(B12,Lookups!A:I,9)*(1-VLOOKUP(B12,Lookups!$U$3:$W$103,3))^(B12-$B$2),"") -> 0.0006180724918 | AR12: 0.0008707585585 | AS12: 0.04107075856 | AT12: 1.826568022 | AU12: 2.001412884 | AV12: 55 | AW12: =IF(BD12>=$B$3,VLOOKUP(BD12,Lookups!A:I,8)*(1-VLOOKUP(BD12,Lookups!U:W,2))^(BD12-$B$2),"") -> 0.002407910567 | AX12: =IF(BD12>=$B$3,VLOOKUP(BD12,Lookups!A:I,9)*(1-VLOOKUP(BD12,Lookups!U:W,3))^(BD12-$B$2),"") -> 0.001310702091 | AY12: 0.001859306329 | AZ12: =IF(AY11="",1,AZ11*(1-AY11)) -> 1 | BA12: =IF(AY11="",1,BA11/(1+IntRt)) -> 1 | BB12: =IF(AY12="",1,ROUND((13/24)+(11/24)*(1/(1+IntRt))*(1-AY12),6)) -> 0.981849 | BD12: 55 | BE12: =IF(BD12>=$B$3,VLOOKUP(BD12,$B$3:$AE$93,30),"") -> 1963.923265 | BF12: =IF(BE12<>"",BE12*BA12*BB12*AZ12,"") -> 1928.276093 | BQ12: 0
A13: 2008 | B13: 45 | D13: =VLOOKUP(B13,Lookups!A:B,2) -> 14586.22888 | E13: =VLOOKUP(B13,Lookups!A:C,3) -> 11620.7328 | G13: =VLOOKUP(B13,Lookups!A:D,4) -> 11370.22656 | H13: =VLOOKUP(B13,Lookups!A:E,5) -> 10893.168 | J13: =VLOOKUP(A13,Trends!$A$3:$Q$94,IF(ExFlg=0,2,10))+IF(B13>=$B$2,Sens,0) -> 1.038 | K13: 0.5121932839 | L13: =VLOOKUP(A13,Trends!$A$3:$Q$94,IF(ExFlg=0,4,12))+IF(B13>=$B$2,Sens,0) -> 1.038 | M13: 0.5511589392 | N13: =VLOOKUP(A13,Trends!$A$3:$Z$94,IF(ExFlg=0,19,23))+IF(B13>=$B$2,Sens,0) -> 1.038 | O13: 0.5500577225 | P13: =VLOOKUP(A13,Trends!$A$3:$Q$94,IF(ExFlg=0,6,14))+IF(B13>=$B$2,Sens,0) -> 1.038 | Q13: 0.5214088828 | R13: =VLOOKUP(A13,Trends!$A$3:$Q$94,IF(ExFlg=0,8,16))+IF(B13>=$B$2,Sens,0) -> 1.038 | S13: 0.5771570023 | T13: =VLOOKUP(A13,Trends!$A$3:$Z$94,IF(ExFlg=0,21,25))+IF(B13>=$B$2,Sens,0) -> 1.038 | U13: 0.5863767628 | W13: 7470.968468 | X13: 5952.061295 | Y13: 1518.907173 | AA13: 5928.537128 | AB13: 5679.794557 | AC13: 248.7425708 | AE13: 566.2837214 | AG13: =IF(B13<71,IF(B13-35<30,VLOOKUP(B13,Lookups!A:G,6),VLOOKUP(B13,Lookups!A:G,7)),"") -> 0 | AH13: 0 | AI13: 0 | AJ13: =IF(OR(B13<55,B13-35<20),VLOOKUP(B13-$B$3,Lookups!$O$3:$Q$53,2),VLOOKUP(B13,Lookups!$O$57:$P$122,2)) -> 0.04 | AK13: 0.04 | AL13: 0.04 | AM13: =IF(B13<55,VLOOKUP(B13,Lookups!A:M,12),"") -> 0.0005 | AN13: =IF(B13<55,VLOOKUP(B13,Lookups!A:M,13),"") -> 0.0005 | AO13: 0.0005 | AP13: =IF(B13<70,VLOOKUP(B13,Lookups!A:I,8)*(1-VLOOKUP(B13,Lookups!$U$3:$W$103,2))^(B13-$B$2),"") -> 0.001203817776 | AQ13: =IF(B13<70,VLOOKUP(B13,Lookups!A:I,9)*(1-VLOOKUP(B13,Lookups!$U$3:$W$103,3))^(B13-$B$2),"") -> 0.000663567847 | AR13: 0.0009336928113 | AS13: 0.04143369281 | AT13: 1.751549488 | AU13: 1.925731631 | AV13: 56 | AW13: =IF(BD13>=$B$3,VLOOKUP(BD13,Lookups!A:I,8)*(1-VLOOKUP(BD13,Lookups!U:W,2))^(BD13-$B$2),"") -> 0.002566798675 | AX13: =IF(BD13>=$B$3,VLOOKUP(BD13,Lookups!A:I,9)*(1-VLOOKUP(BD13,Lookups!U:W,3))^(BD13-$B$2),"") -> 0.001406954784 | AY13: 0.001986876729 | AZ13: 0.9981406937 | BA13: 0.9621860868 | BB13: 0.981792 | BD13: =1+BD12 -> 56 | BE13: =IF(BD13>=$B$3,VLOOKUP(BD13,$B$3:$AE$93,30),"") -> 2201.066354 | BF13: =IF(BE13<>"",BE13*BA13*BB13*AZ13,"") -> 2075.407867 | BG13: =IF(BE13<>"",BE13*AZ13/$AZ$13*BA13/$BA$13*BB13,"") -> 2160.989337 | BQ13: 0 | BR13: 0
A14: 2009 | B14: 46 | D14: =VLOOKUP(B14,Lookups!A:B,2) -> 14824.0092 | E14: =VLOOKUP(B14,Lookups!A:C,3) -> 11620.7328 | G14: =VLOOKUP(B14,Lookups!A:D,4) -> 11555.57568 | H14: =VLOOKUP(B14,Lookups!A:E,5) -> 10893.168 | J14: =VLOOKUP(A14,Trends!$A$3:$Q$94,IF(ExFlg=0,2,10))+IF(B14>=$B$2,Sens,0) -> 1.038 | K14: =IF(B14=$B$2,1,IF(B14<$B$2,K15/J14,K13*J13)) -> 0.5316566287 | L14: =VLOOKUP(A14,Trends!$A$3:$Q$94,IF(ExFlg=0,4,12))+IF(B14>=$B$2,Sens,0) -> 1.038 | M14: 0.5721029789 | N14: =VLOOKUP(A14,Trends!$A$3:$Z$94,IF(ExFlg=0,19,23))+IF(B14>=$B$2,Sens,0) -> 1.038 | O14: 0.570959916 | P14: =VLOOKUP(A14,Trends!$A$3:$Q$94,IF(ExFlg=0,6,14))+IF(B14>=$B$2,Sens,0) -> 1.038 | Q14: 0.5412224203 | R14: =VLOOKUP(A14,Trends!$A$3:$Q$94,IF(ExFlg=0,8,16))+IF(B14>=$B$2,Sens,0) -> 1.038 | S14: 0.5990889684 | T14: =VLOOKUP(A14,Trends!$A$3:$Z$94,IF(ExFlg=0,21,25))+IF(B14>=$B$2,Sens,0) -> 1.038 | U14: 0.6086590798 | W14: 7881.282756 | X14: 6178.239624 | Y14: 1703.043132 | AA14: 6254.136638 | AB14: 5895.62675 | AC14: 358.5098878 | AE14: 694.6431988 | AG14: =IF(B14<71,IF(B14-35<30,VLOOKUP(B14,Lookups!A:G,6),VLOOKUP(B14,Lookups!A:G,7)),"") -> 0 | AH14: 0 | AI14: 0 | AJ14: =IF(OR(B14<55,B14-35<20),VLOOKUP(B14-$B$3,Lookups!$O$3:$Q$53,2),VLOOKUP(B14,Lookups!$O$57:$P$122,2)) -> 0.035 | AK14: 0.035 | AL14: 0.035 | AM14: =IF(B14<55,VLOOKUP(B14,Lookups!A:M,12),"") -> 0.0005 | AN14: =IF(B14<55,VLOOKUP(B14,Lookups!A:M,13),"") -> 0.0005 | AO14: 0.0005 | AP14: =IF(B14<70,VLOOKUP(B14,Lookups!A:I,8)*(1-VLOOKUP(B14,Lookups!$U$3:$W$103,2))^(B14-$B$2),"") -> 0.001292935525 | AQ14: =IF(B14<70,VLOOKUP(B14,Lookups!A:I,9)*(1-VLOOKUP(B14,Lookups!$U$3:$W$103,3))^(B14-$B$2),"") -> 0.0007069287761 | AR14: 0.0009999321504 | AS14: 0.03649993215 | AT14: 1.678976324 | AU14: 1.852912182 | AV14: 57 | AW14: =IF(BD14>=$B$3,VLOOKUP(BD14,Lookups!A:I,8)*(1-VLOOKUP(BD14,Lookups!U:W,2))^(BD14-$B$2),"") -> 0.002739965576 | AX14: =IF(BD14>=$B$3,VLOOKUP(BD14,Lookups!A:I,9)*(1-VLOOKUP(BD14,Lookups!U:W,3))^(BD14-$B$2),"") -> 0.001501151353 | AY14: 0.002120558465 | AZ14: =IF(AY13="",1,AZ13*(1-AY13)) -> 0.9961575112 | BA14: 0.9258020656 | BB14: 0.981733 | BD14: =1+BD13 -> 57 | BE14: 2456.750317 | BF14: =IF(BE14<>"",BE14*BA14*BB14*AZ14,"") -> 2224.336917 | BG14: =IF(BE14<>"",BE14*AZ14/$AZ$13*BA14/$BA$13*BB14,"") -> 2316.059622 | BH14: =IF(BE14<>"",BE14*AZ14/$AZ$14*BA14/$BA$14*BB14,"") -> 2411.872859 | BQ14: 0 | BR14: 0 | BS14: 0
A15: 2010 | B15: 47 | D15: =VLOOKUP(B15,Lookups!A:B,2) -> 15065.81755 | E15: =VLOOKUP(B15,Lookups!A:C,3) -> 11620.7328 | G15: =VLOOKUP(B15,Lookups!A:D,4) -> 11744.0664 | H15: =VLOOKUP(B15,Lookups!A:E,5) -> 10893.168 | J15: =VLOOKUP(A15,Trends!$A$3:$Q$94,IF(ExFlg=0,2,10))+IF(B15>=$B$2,Sens,0) -> 1.038 | K15: =IF(B15=$B$2,1,IF(B15<$B$2,K16/J15,K14*J14)) -> 0.5518595806 | L15: =VLOOKUP(A15,Trends!$A$3:$Q$94,IF(ExFlg=0,4,12))+IF(B15>=$B$2,Sens,0) -> 1.038 | M15: 0.5938428921 | N15: =VLOOKUP(A15,Trends!$A$3:$Z$94,IF(ExFlg=0,19,23))+IF(B15>=$B$2,Sens,0) -> 1.038 | O15: 0.5926563928 | P15: =VLOOKUP(A15,Trends!$A$3:$Q$94,IF(ExFlg=0,6,14))+IF(B15>=$B$2,Sens,0) -> 1.038 | Q15: 0.5617888723 | R15: =VLOOKUP(A15,Trends!$A$3:$Q$94,IF(ExFlg=0,8,16))+IF(B15>=$B$2,Sens,0) -> 1.038 | S15: 0.6218543492 | T15: =VLOOKUP(A15,Trends!$A$3:$Z$94,IF(ExFlg=0,21,25))+IF(B15>=$B$2,Sens,0) -> 1.038 | U15: 0.6317881248 | W15: 8314.215755 | X15: 6413.01273 | Y15: 1901.203025 | AA15: 6597.685819 | AB15: 6119.660567 | AC15: 478.0252526 | AE15: 833.8196958 | AG15: =IF(B15<71,IF(B15-35<30,VLOOKUP(B15,Lookups!A:G,6),VLOOKUP(B15,Lookups!A:G,7)),"") -> 0 | AH15: 0 | AI15: 0 | AJ15: =IF(OR(B15<55,B15-35<20),VLOOKUP(B15-$B$3,Lookups!$O$3:$Q$53,2),VLOOKUP(B15,Lookups!$O$57:$P$122,2)) -> 0.03 | AK15: 0.03 | AL15: 0.03 | AM15: =IF(B15<55,VLOOKUP(B15,Lookups!A:M,12),"") -> 0.0005 | AN15: =IF(B15<55,VLOOKUP(B15,Lookups!A:M,13),"") -> 0.0005 | AO15: 0.0005 | AP15: =IF(B15<70,VLOOKUP(B15,Lookups!A:I,8)*(1-VLOOKUP(B15,Lookups!$U$3:$W$103,2))^(B15-$B$2),"") -> 0.001390510299 | AQ15: =IF(B15<70,VLOOKUP(B15,Lookups!A:I,9)*(1-VLOOKUP(B15,Lookups!$U$3:$W$103,3))^(B15-$B$2),"") -> 0.0007597158919 | AR15: 0.001075113096 | AS15: 0.0315751131 | AT15: 1.617693802 | AU15: 1.782846321 | AV15: 58 | AW15: =IF(BD15>=$B$3,VLOOKUP(BD15,Lookups!A:I,8)*(1-VLOOKUP(BD15,Lookups!U:W,2))^(BD15-$B$2),"") -> 0.002918687951 | AX15: =IF(BD15>=$B$3,VLOOKUP(BD15,Lookups!A:I,9)*(1-VLOOKUP(BD15,Lookups!U:W,3))^(BD15-$B$2),"") -> 0.001602598787 | AY15: 0.002260643369 | AZ15: 0.9940451009 | BA15: 0.8907938667 | BB15: 0.981672 | BD15: 58 | BE15: 2876.436885 | BF15: =IF(BE15<>"",BE15*BA15*BB15*AZ15,"") -> 2500.371617 | BG15: =IF(BE15<>"",BE15*AZ15/$AZ$13*BA15/$BA$13*BB15,"") -> 2603.476883 | BH15: =IF(BE15<>"",BE15*AZ15/$AZ$14*BA15/$BA$14*BB15,"") -> 2711.180305 | BI15: =IF(BE15<>"",BE15*AZ15/$AZ$15*BA15/$BA$15*BB15,"") -> 2823.717549 | BQ15: 0 | BR15: 0 | BS15: 0 | BT15: 0
A16: 2011 | B16: 48 | D16: =VLOOKUP(B16,Lookups!A:B,2) -> 15172.13935 | E16: =VLOOKUP(B16,Lookups!A:C,3) -> 11620.7328 | G16: =VLOOKUP(B16,Lookups!A:D,4) -> 11826.94656 | H16: =VLOOKUP(B16,Lookups!A:E,5) -> 10893.168 | J16: =VLOOKUP(A16,Trends!$A$3:$Q$94,IF(ExFlg=0,2,10))+IF(B16>=$B$2,Sens,0) -> 1.038 | K16: 0.5728302447 | L16: =VLOOKUP(A16,Trends!$A$3:$Q$94,IF(ExFlg=0,4,12))+IF(B16>=$B$2,Sens,0) -> 1.038 | M16: 0.616408922 | N16: =VLOOKUP(A16,Trends!$A$3:$Z$94,IF(ExFlg=0,19,23))+IF(B16>=$B$2,Sens,0) -> 1.038 | O16: 0.6151773357 | P16: =VLOOKUP(A16,Trends!$A$3:$Q$94,IF(ExFlg=0,6,14))+IF(B16>=$B$2,Sens,0) -> 1.038 | Q16: =IF(B16=$B$2,1,IF(B16<$B$2,Q17/P16,Q15*P15)) -> 0.5831368495 | R16: =VLOOKUP(A16,Trends!$A$3:$Q$94,IF(ExFlg=0,8,16))+IF(B16>=$B$2,Sens,0) -> 1.038 | S16: 0.6454848145 | T16: =VLOOKUP(A16,Trends!$A$3:$Z$94,IF(ExFlg=0,21,25))+IF(B16>=$B$2,Sens,0) -> 1.038 | U16: 0.6557960735 | W16: 8691.060296 | X16: 6656.707213 | Y16: 2034.353083 | AA16: 6896.728356 | AB16: 6352.207668 | AC16: 544.5206876 | AE16: 916.9787864 | AG16: =IF(B16<71,IF(B16-35<30,VLOOKUP(B16,Lookups!A:G,6),VLOOKUP(B16,Lookups!A:G,7)),"") -> 0 | AH16: 0 | AI16: 0 | AJ16: =IF(OR(B16<55,B16-35<20),VLOOKUP(B16-$B$3,Lookups!$O$3:$Q$53,2),VLOOKUP(B16,Lookups!$O$57:$P$122,2)) -> 0.03 | AK16: 0.03 | AL16: 0.03 | AM16: =IF(B16<55,VLOOKUP(B16,Lookups!A:M,12),"") -> 0.0005 | AN16: =IF(B16<55,VLOOKUP(B16,Lookups!A:M,13),"") -> 0.0005 | AO16: 0.0005 | AP16: =IF(B16<70,VLOOKUP(B16,Lookups!A:I,8)*(1-VLOOKUP(B16,Lookups!$U$3:$W$103,2))^(B16-$B$2),"") -> 0.001484864711 | AQ16: =IF(B16<70,VLOOKUP(B16,Lookups!A:I,9)*(1-VLOOKUP(B16,Lookups!$U$3:$W$103,3))^(B16-$B$2),"") -> 0.0008216327371 | AR16: 0.001153248724 | AS16: 0.03165324872 | AT16: 1.566614937 | AU16: 1.715429925 | AV16: 59 | AW16: =IF(BD16>=$B$3,VLOOKUP(BD16,Lookups!A:I,8)*(1-VLOOKUP(BD16,Lookups!U:W,2))^(BD16-$B$2),"") -> 0.003102744618 | AX16: =IF(BD16>=$B$3,VLOOKUP(BD16,Lookups!A:I,9)*(1-VLOOKUP(BD16,Lookups!U:W,3))^(BD16-$B$2),"") -> 0.001719212325 | AY16: 0.002410978472 | AZ16: 0.9917979194 | BA16: 0.8571094647 | BB16: 0.981605 | BD16: 59 | BE16: 3334.326192 | BF16: 2782.302395 | BG16: 2897.033352 | BH16: =IF(BE16<>"",BE16*AZ16/$AZ$14*BA16/$BA$14*BB16,"") -> 3016.880933 | BI16: 3142.107376 | BJ16: =IF(BE16<>"",BE16*AZ16/$AZ$16*BA16/$BA$16*BB16,"") -> 3272.991262 | BQ16: 0 | BR16: 0 | BS16: 0 | BT16: 0 | BU16: 0
A17: 2012 | B17: 49 | D17: =VLOOKUP(B17,Lookups!A:B,2) -> 15286.87732 | E17: =VLOOKUP(B17,Lookups!A:C,3) -> 11620.7328 | G17: =VLOOKUP(B17,Lookups!A:D,4) -> 11916.38976 | H17: =VLOOKUP(B17,Lookups!A:E,5) -> 10893.168 | J17: =VLOOKUP(A17,Trends!$A$3:$Q$94,IF(ExFlg=0,2,10))+IF(B17>=$B$2,Sens,0) -> 1.038 | K17: 0.594597794 | L17: =VLOOKUP(A17,Trends!$A$3:$Q$94,IF(ExFlg=0,4,12))+IF(B17>=$B$2,Sens,0) -> 1.038 | M17: 0.639832461 | N17: =VLOOKUP(A17,Trends!$A$3:$Z$94,IF(ExFlg=0,19,23))+IF(B17>=$B$2,Sens,0) -> 1.038 | O17: 0.6385540745 | P17: =VLOOKUP(A17,Trends!$A$3:$Q$94,IF(ExFlg=0,6,14))+IF(B17>=$B$2,Sens,0) -> 1.038 | Q17: 0.6052960498 | R17: =VLOOKUP(A17,Trends!$A$3:$Q$94,IF(ExFlg=0,8,16))+IF(B17>=$B$2,Sens,0) -> 1.038 | S17: 0.6700132375 | T17: =VLOOKUP(A17,Trends!$A$3:$Z$94,IF(ExFlg=0,21,25))+IF(B17>=$B$2,Sens,0) -> 1.038 | U17: 0.6807163243 | W17: 9089.543534 | X17: 6909.662087 | Y17: 2179.881447 | AA17: 7212.943649 | AB17: 6593.59156 | AC17: 619.3520893 | AE17: 1009.484429 | AG17: =IF(B17<71,IF(B17-35<30,VLOOKUP(B17,Lookups!A:G,6),VLOOKUP(B17,Lookups!A:G,7)),"") -> 0 | AH17: 0 | AI17: 0 | AJ17: =IF(OR(B17<55,B17-35<20),VLOOKUP(B17-$B$3,Lookups!$O$3:$Q$53,2),VLOOKUP(B17,Lookups!$O$57:$P$122,2)) -> 0.03 | AK17: 0.03 | AL17: 0.03 | AM17: =IF(B17<55,VLOOKUP(B17,Lookups!A:M,12),"") -> 0.0005 | AN17: =IF(B17<55,VLOOKUP(B17,Lookups!A:M,13),"") -> 0.0005 | AO17: 0.0005 | AP17: =IF(B17<70,VLOOKUP(B17,Lookups!A:I,8)*(1-VLOOKUP(B17,Lookups!$U$3:$W$103,2))^(B17-$B$2),"") -> 0.001597500189 | AQ17: =IF(B17<70,VLOOKUP(B17,Lookups!A:I,9)*(1-VLOOKUP(B17,Lookups!$U$3:$W$103,3))^(B17-$B$2),"") -> 0.0008822352738 | AR17: 0.001239867731 | AS17: 0.03173986773 | AT17: 1.517026485 | AU17: 1.650562807 | AV17: 60 | AW17: =IF(BD17>=$B$3,VLOOKUP(BD17,Lookups!A:I,8)*(1-VLOOKUP(BD17,Lookups!U:W,2))^(BD17-$B$2),"") -> 0.003298989899 | AX17: =IF(BD17>=$B$3,VLOOKUP(BD17,Lookups!A:I,9)*(1-VLOOKUP(BD17,Lookups!U:W,3))^(BD17-$B$2),"") -> 0.001842424242 | AY17: 0.002570707071 | AZ17: 0.989406716 | BA17: 0.8246988018 | BB17: 0.981535 | BD17: 60 | BE17: 3833.401975 | BF17: =IF(BE17<>"",BE17*BA17*BB17*AZ17,"") -> 3070.155484 | BG17: 3196.756344 | BH17: 3329.003187 | BI17: 3467.185382 | BJ17: 3611.61033 | BK17: =IF(BE17<>"",BE17*AZ17/$AZ$17*BA17/$BA$17*BB17,"") -> 3762.618207 | BQ17: 0 | BR17: 0 | BS17: 0 | BT17: 0 | BU17: 0 | BV17: 0
A18: 2013 | B18: 50 | D18: =VLOOKUP(B18,Lookups!A:B,2) -> 15410.26798 | E18: =VLOOKUP(B18,Lookups!A:C,3) -> 11620.7328 | G18: =VLOOKUP(B18,Lookups!A:D,4) -> 12012.57024 | H18: =VLOOKUP(B18,Lookups!A:E,5) -> 10893.168 | J18: =VLOOKUP(A18,Trends!$A$3:$Q$94,IF(ExFlg=0,2,10))+IF(B18>=$B$2,Sens,0) -> 1.038 | K18: 0.6171925102 | L18: =VLOOKUP(A18,Trends!$A$3:$Q$94,IF(ExFlg=0,4,12))+IF(B18>=$B$2,Sens,0) -> 1.038 | M18: 0.6641460945 | N18: =VLOOKUP(A18,Trends!$A$3:$Z$94,IF(ExFlg=0,19,23))+IF(B18>=$B$2,Sens,0) -> 1.038 | O18: 0.6628191293 | P18: =VLOOKUP(A18,Trends!$A$3:$Q$94,IF(ExFlg=0,6,14))+IF(B18>=$B$2,Sens,0) -> 1.038 | Q18: 0.6282972996 | R18: =VLOOKUP(A18,Trends!$A$3:$Q$94,IF(ExFlg=0,8,16))+IF(B18>=$B$2,Sens,0) -> 1.038 | S18: 0.6954737405 | T18: =VLOOKUP(A18,Trends!$A$3:$Z$94,IF(ExFlg=0,21,25))+IF(B18>=$B$2,Sens,0) -> 1.038 | U18: 0.7065835446 | W18: 9511.101974 | X18: 7172.229247 | Y18: 2338.872727 | AA18: 7547.465444 | AB18: 6844.148039 | AC18: 703.3174046 | AE18: 1112.206235 | AG18: =IF(B18<71,IF(B18-35<30,VLOOKUP(B18,Lookups!A:G,6),VLOOKUP(B18,Lookups!A:G,7)),"") -> 0 | AH18: 0 | AI18: 0 | AJ18: =IF(OR(B18<55,B18-35<20),VLOOKUP(B18-$B$3,Lookups!$O$3:$Q$53,2),VLOOKUP(B18,Lookups!$O$57:$P$122,2)) -> 0.03 | AK18: 0.03 | AL18: 0.03 | AM18: =IF(B18<55,VLOOKUP(B18,Lookups!A:M,12),"") -> 0.0015 | AN18: =IF(B18<55,VLOOKUP(B18,Lookups!A:M,13),"") -> 0.0015 | AO18: 0.0015 | AP18: =IF(B18<70,VLOOKUP(B18,Lookups!A:I,8)*(1-VLOOKUP(B18,Lookups!$U$3:$W$103,2))^(B18-$B$2),"") -> 0.001717786538 | AQ18: =IF(B18<70,VLOOKUP(B18,Lookups!A:I,9)*(1-VLOOKUP(B18,Lookups!$U$3:$W$103,3))^(B18-$B$2),"") -> 0.0009415435965 | AR18: 0.001329665067 | AS18: 0.03282966507 | AT18: 1.468876265 | AU18: 1.588148568 | AV18: 61 | AW18: =IF(BD18>=$B$3,VLOOKUP(BD18,Lookups!A:I,8)*(1-VLOOKUP(BD18,Lookups!U:W,2))^(BD18-$B$2),"") -> 0.00351 | AX18: =IF(BD18>=$B$3,VLOOKUP(BD18,Lookups!A:I,9)*(1-VLOOKUP(BD18,Lookups!U:W,3))^(BD18-$B$2),"") -> 0.001989 | AY18: 0.0027495 | AZ18: 0.9868632412 | BA18: 0.7935137129 | BB18: 0.981456 | BD18: 61 | BE18: 4376.8705 | BF18: 3363.92218 | BG18: 3502.636797 | BH18: 3647.53763 | BI18: 3798.941737 | BJ18: 3957.185934 | BK18: =IF(BE18<>"",BE18*AZ18/$AZ$17*BA18/$BA$17*BB18,"") -> 4122.642944 | BL18: =IF(BE18<>"",BE18*AZ18/$AZ$18*BA18/$BA$18*BB18,"") -> 4295.705813 | BQ18: 0 | BR18: 0 | BS18: 0 | BT18: 0 | BU18: 0 | BV18: 0 | BW18: 0
A19: 2014 | B19: 51 | D19: =VLOOKUP(B19,Lookups!A:B,2) -> 15542.5435 | E19: =VLOOKUP(B19,Lookups!A:C,3) -> 11620.7328 | G19: =VLOOKUP(B19,Lookups!A:D,4) -> 12115.68864 | H19: =VLOOKUP(B19,Lookups!A:E,5) -> 10893.168 | J19: =VLOOKUP(A19,Trends!$A$3:$Q$94,IF(ExFlg=0,2,10))+IF(B19>=$B$2,Sens,0) -> 1.038 | K19: 0.6406458255 | L19: =VLOOKUP(A19,Trends!$A$3:$Q$94,IF(ExFlg=0,4,12))+IF(B19>=$B$2,Sens,0) -> 1.038 | M19: 0.6893836461 | N19: =VLOOKUP(A19,Trends!$A$3:$Z$94,IF(ExFlg=0,19,23))+IF(B19>=$B$2,Sens,0) -> 1.038 | O19: 0.6880062562 | P19: =VLOOKUP(A19,Trends!$A$3:$Q$94,IF(ExFlg=0,6,14))+IF(B19>=$B$2,Sens,0) -> 1.038 | Q19: 0.652172597 | R19: =VLOOKUP(A19,Trends!$A$3:$Q$94,IF(ExFlg=0,8,16))+IF(B19>=$B$2,Sens,0) -> 1.038 | S19: 0.7219017426 | T19: =VLOOKUP(A19,Trends!$A$3:$Z$94,IF(ExFlg=0,21,25))+IF(B19>=$B$2,Sens,0) -> 1.038 | U19: 0.7334337193 | W19: 9957.265612 | X19: 7444.773958 | Y19: 2512.491654 | AA19: 7901.520125 | AB19: 7104.225664 | AC19: 797.2944607 | AE19: 1226.093759 | AG19: =IF(B19<71,IF(B19-35<30,VLOOKUP(B19,Lookups!A:G,6),VLOOKUP(B19,Lookups!A:G,7)),"") -> 0 | AH19: 0 | AI19: 0 | AJ19: =IF(OR(B19<55,B19-35<20),VLOOKUP(B19-$B$3,Lookups!$O$3:$Q$53,2),VLOOKUP(B19,Lookups!$O$57:$P$122,2)) -> 0.025 | AK19: 0.025 | AL19: 0.025 | AM19: =IF(B19<55,VLOOKUP(B19,Lookups!A:M,12),"") -> 0.0015 | AN19: =IF(B19<55,VLOOKUP(B19,Lookups!A:M,13),"") -> 0.0015 | AO19: 0.0015 | AP19: =IF(B19<70,VLOOKUP(B19,Lookups!A:I,8)*(1-VLOOKUP(B19,Lookups!$U$3:$W$103,2))^(B19-$B$2),"") -> 0.001844353229 | AQ19: =IF(B19<70,VLOOKUP(B19,Lookups!A:I,9)*(1-VLOOKUP(B19,Lookups!$U$3:$W$103,3))^(B19-$B$2),"") -> 0.001008423348 | AR19: 0.001426388288 | AS19: 0.02792638829 | AT19: 1.420653549 | AU19: 1.528094456 | AV19: 62 | AW19: =IF(BD19>=$B$3,VLOOKUP(BD19,Lookups!A:I,8)*(1-VLOOKUP(BD19,Lookups!U:W,2))^(BD19-$B$2),"") -> 0.0037323 | AX19: =IF(BD19>=$B$3,VLOOKUP(BD19,Lookups!A:I,9)*(1-VLOOKUP(BD19,Lookups!U:W,3))^(BD19-$B$2),"") -> 0.00214137 | AY19: 0.002936835 | AZ19: 0.9841498607 | BA19: 0.7635078542 | BB19: 0.981373 | BD19: 62 | BE19: 5088.55534 | BF19: 3752.350097 | BG19: 3907.081918 | BH19: 4068.714271 | BI19: 4237.600823 | BJ19: 4414.11728 | BK19: =IF(BE19<>"",BE19*AZ19/$AZ$17*BA19/$BA$17*BB19,"") -> 4598.679406 | BL19: =IF(BE19<>"",BE19*AZ19/$AZ$18*BA19/$BA$18*BB19,"") -> 4791.72563 | BM19: =IF(BE19<>"",BE19*AZ19/$AZ$19*BA19/$BA$19*BB19,"") -> 4993.77082 | BQ19: 0 | BR19: 0 | BS19: 0 | BT19: 0 | BU19: 0 | BV19: 0 | BW19: 0 | BX19: 0
A20: =1+A19 -> 2015 | B20: 52 | D20: =VLOOKUP(B20,Lookups!A:B,2) -> 15683.9619 | E20: =VLOOKUP(B20,Lookups!A:C,3) -> 11620.7328 | G20: =VLOOKUP(B20,Lookups!A:D,4) -> 12225.92448 | H20: =VLOOKUP(B20,Lookups!A:E,5) -> 10893.168 | J20: =VLOOKUP(A20,Trends!$A$3:$Q$94,IF(ExFlg=0,2,10))+IF(B20>=$B$2,Sens,0) -> 1.038 | K20: 0.6649903669 | L20: =VLOOKUP(A20,Trends!$A$3:$Q$94,IF(ExFlg=0,4,12))+IF(B20>=$B$2,Sens,0) -> 1.038 | M20: 0.7155802247 | N20: =VLOOKUP(A20,Trends!$A$3:$Z$94,IF(ExFlg=0,19,23))+IF(B20>=$B$2,Sens,0) -> 1.038 | O20: 0.7141504939 | P20: =VLOOKUP(A20,Trends!$A$3:$Q$94,IF(ExFlg=0,6,14))+IF(B20>=$B$2,Sens,0) -> 1.038 | Q20: 0.6769551557 | R20: =VLOOKUP(A20,Trends!$A$3:$Q$94,IF(ExFlg=0,8,16))+IF(B20>=$B$2,Sens,0) -> 1.038 | S20: 0.7493340088 | T20: =VLOOKUP(A20,Trends!$A$3:$Z$94,IF(ExFlg=0,21,25))+IF(B20>=$B$2,Sens,0) -> 1.038 | U20: 0.7613042007 | W20: =IF(B20<65,D20*K20,D20*M20) -> 10429.68358 | X20: 7727.675368 | Y20: 2702.00821 | AA20: 8276.40261 | AB20: 7374.18624 | AC20: 902.2163704 | AE20: 1352.16433 | AG20: =IF(B20<71,IF(B20-35<30,VLOOKUP(B20,Lookups!A:G,6),VLOOKUP(B20,Lookups!A:G,7)),"") -> 0 | AH20: 0 | AI20: 0 | AJ20: =IF(OR(B20<55,B20-35<20),VLOOKUP(B20-$B$3,Lookups!$O$3:$Q$53,2),VLOOKUP(B20,Lookups!$O$57:$P$122,2)) -> 0.02 | AK20: 0.02 | AL20: 0.02 | AM20: =IF(B20<55,VLOOKUP(B20,Lookups!A:M,12),"") -> 0.0015 | AN20: =IF(B20<55,VLOOKUP(B20,Lookups!A:M,13),"") -> 0.0015 | AO20: 0.0015 | AP20: =IF(B20<70,VLOOKUP(B20,Lookups!A:I,8)*(1-VLOOKUP(B20,Lookups!$U$3:$W$103,2))^(B20-$B$2),"") -> 0.001968216807 | AQ20: =IF(B20<70,VLOOKUP(B20,Lookups!A:I,9)*(1-VLOOKUP(B20,Lookups!$U$3:$W$103,3))^(B20-$B$2),"") -> 0.00107496602 | AR20: 0.001521591414 | AS20: 0.02302159141 | AT20: 1.380979827 | AU20: 1.470311225 | AV20: 63 | AW20: =IF(BD20>=$B$3,VLOOKUP(BD20,Lookups!A:I,8)*(1-VLOOKUP(BD20,Lookups!U:W,2))^(BD20-$B$2),"") -> 0.0039762657 | AX20: =IF(BD20>=$B$3,VLOOKUP(BD20,Lookups!A:I,9)*(1-VLOOKUP(BD20,Lookups!U:W,3))^(BD20-$B$2),"") -> 0.0023159763 | AY20: 0.003146121 | AZ20: =IF(AY19="",1,AZ19*(1-AY19)) -> 0.9812595749 | BA20: 0.7346366345 | BB20: 0.981281 | BD20: 63 | BE20: 6128.976884 | BF20: 4335.486743 | BG20: 4514.264773 | BH20: 4701.015717 | BI20: 4896.148203 | BJ20: 5100.096327 | BK20: =IF(BE20<>"",BE20*AZ20/$AZ$17*BA20/$BA$17*BB20,"") -> 5313.340462 | BL20: =IF(BE20<>"",BE20*AZ20/$AZ$18*BA20/$BA$18*BB20,"") -> 5536.387172 | BM20: =IF(BE20<>"",BE20*AZ20/$AZ$19*BA20/$BA$19*BB20,"") -> 5769.831339 | BN20: =IF(BE20<>"",BE20*AZ20/$AZ$20*BA20/$BA$20*BB20,"") -> 6014.248566 | BQ20: 0 | BR20: 0 | BS20: 0 | BT20: 0 | BU20: 0 | BV20: 0 | BW20: 0 | BX20: 0 | BY20: 0
A21: 2016 | B21: 53 | D21: =VLOOKUP(B21,Lookups!A:B,2) -> 15918.8236 | E21: =VLOOKUP(B21,Lookups!A:C,3) -> 11620.7328 | G21: =VLOOKUP(B21,Lookups!A:D,4) -> 12409.0032 | H21: =VLOOKUP(B21,Lookups!A:E,5) -> 10893.168 | J21: =VLOOKUP(A21,Trends!$A$3:$Q$94,IF(ExFlg=0,2,10))+IF(B21>=$B$2,Sens,0) -> 1.038 | K21: 0.6902600009 | L21: =VLOOKUP(A21,Trends!$A$3:$Q$94,IF(ExFlg=0,4,12))+IF(B21>=$B$2,Sens,0) -> 1.038 | M21: 0.7427722732 | N21: =VLOOKUP(A21,Trends!$A$3:$Z$94,IF(ExFlg=0,19,23))+IF(B21>=$B$2,Sens,0) -> 1.038 | O21: 0.7412882127 | P21: =VLOOKUP(A21,Trends!$A$3:$Q$94,IF(ExFlg=0,6,14))+IF(B21>=$B$2,Sens,0) -> 1.038 | Q21: 0.7026794516 | R21: =VLOOKUP(A21,Trends!$A$3:$Q$94,IF(ExFlg=0,8,16))+IF(B21>=$B$2,Sens,0) -> 1.038 | S21: 0.7778087012 | T21: =VLOOKUP(A21,Trends!$A$3:$Z$94,IF(ExFlg=0,21,25))+IF(B21>=$B$2,Sens,0) -> 1.038 | U21: 0.7902337603 | W21: 10988.12719 | X21: 8021.327032 | Y21: 2966.800159 | AA21: 8719.551564 | AB21: 7654.405317 | AC21: 1065.146247 | AE21: 1540.559725 | AG21: =IF(B21<71,IF(B21-35<30,VLOOKUP(B21,Lookups!A:G,6),VLOOKUP(B21,Lookups!A:G,7)),"") -> 0 | AH21: 0 | AI21: 0 | AJ21: =IF(OR(B21<55,B21-35<20),VLOOKUP(B21-$B$3,Lookups!$O$3:$Q$53,2),VLOOKUP(B21,Lookups!$O$57:$P$122,2)) -> 0.02 | AK21: 0.02 | AL21: 0.02 | AM21: =IF(B21<55,VLOOKUP(B21,Lookups!A:M,12),"") -> 0.0015 | AN21: =IF(B21<55,VLOOKUP(B21,Lookups!A:M,13),"") -> 0.0015 | AO21: 0.0015 | AP21: =IF(B21<70,VLOOKUP(B21,Lookups!A:I,8)*(1-VLOOKUP(B21,Lookups!$U$3:$W$103,2))^(B21-$B$2),"") -> 0.002108925699 | AQ21: =IF(B21<70,VLOOKUP(B21,Lookups!A:I,9)*(1-VLOOKUP(B21,Lookups!$U$3:$W$103,3))^(B21-$B$2),"") -> 0.001148746784 | AR21: 0.001628836242 | AS21: 0.02312883624 | AT21: =IF(B21<71,IF(B21=$B$2,1, IF(B21<$B$2, AT22/(1-AS21), AT20*(1-AS20))),"") -> 1.349187473 | AU21: 1.414713004 | AV21: 64 | AW21: =IF(BD21>=$B$3,VLOOKUP(BD21,Lookups!A:I,8)*(1-VLOOKUP(BD21,Lookups!U:W,2))^(BD21-$B$2),"") -> 0.00424020663 | AX21: =IF(BD21>=$B$3,VLOOKUP(BD21,Lookups!A:I,9)*(1-VLOOKUP(BD21,Lookups!U:W,3))^(BD21-$B$2),"") -> 0.002512104111 | AY21: 0.003376155371 | AZ21: =IF(AY20="",1,AZ20*(1-AY20)) -> 0.9781724136 | BA21: 0.7068571485 | BB21: 0.98118 | BD21: 64 | BE21: 7305.188006 | BF21: 4955.952664 | BG21: =IF(BE21<>"",BE21*AZ21/$AZ$13*BA21/$BA$13*BB21,"") -> 5160.316212 | BH21: 5373.793705 | BI21: 5596.85225 | BJ21: 5829.988068 | BK21: =IF(BE21<>"",BE21*AZ21/$AZ$17*BA21/$BA$17*BB21,"") -> 6073.75028 | BL21: =IF(BE21<>"",BE21*AZ21/$AZ$18*BA21/$BA$18*BB21,"") -> 6328.717946 | BM21: =IF(BE21<>"",BE21*AZ21/$AZ$19*BA21/$BA$19*BB21,"") -> 6595.571084 | BN21: =IF(BE21<>"",BE21*AZ21/$AZ$20*BA21/$BA$20*BB21,"") -> 6874.967673 | BO21: =IF(BE21<>"",BE21*AZ21/$AZ$21*BA21/$BA$21*BB21,"") -> 7167.704368 | BQ21: 0 | BR21: 0 | BS21: 0 | BT21: 0 | BU21: 0 | BV21: 0 | BW21: 0 | BX21: 0 | BY21: 0 | BZ21: 0
A22: 2017 | B22: 54 | D22: =VLOOKUP(B22,Lookups!A:B,2) -> 16158.32177 | E22: =VLOOKUP(B22,Lookups!A:C,3) -> 11620.7328 | G22: =VLOOKUP(B22,Lookups!A:D,4) -> 12595.69344 | H22: =VLOOKUP(B22,Lookups!A:E,5) -> 10893.168 | J22: =VLOOKUP(A22,Trends!$A$3:$Q$94,IF(ExFlg=0,2,10))+IF(B22>=$B$2,Sens,0) -> 1.038 | K22: 0.7164898809 | L22: =VLOOKUP(A22,Trends!$A$3:$Q$94,IF(ExFlg=0,4,12))+IF(B22>=$B$2,Sens,0) -> 1.038 | M22: 0.7709976196 | N22: =VLOOKUP(A22,Trends!$A$3:$Z$94,IF(ExFlg=0,19,23))+IF(B22>=$B$2,Sens,0) -> 1.038 | O22: 0.7694571648 | P22: =VLOOKUP(A22,Trends!$A$3:$Q$94,IF(ExFlg=0,6,14))+IF(B22>=$B$2,Sens,0) -> 1.038 | Q22: 0.7293812708 | R22: =VLOOKUP(A22,Trends!$A$3:$Q$94,IF(ExFlg=0,8,16))+IF(B22>=$B$2,Sens,0) -> 1.038 | S22: 0.8073654318 | T22: =VLOOKUP(A22,Trends!$A$3:$Z$94,IF(ExFlg=0,21,25))+IF(B22>=$B$2,Sens,0) -> 1.038 | U22: 0.8202626432 | W22: 11577.27404 | X22: 8326.13746 | Y22: 3251.136584 | AA22: 9187.062888 | AB22: 7945.272719 | AC22: 1241.790169 | AE22: 1744.126773 | AG22: =IF(B22<71,IF(B22-35<30,VLOOKUP(B22,Lookups!A:G,6),VLOOKUP(B22,Lookups!A:G,7)),"") -> 0 | AH22: 0 | AI22: 0 | AJ22: =IF(OR(B22<55,B22-35<20),VLOOKUP(B22-$B$3,Lookups!$O$3:$Q$53,2),VLOOKUP(B22,Lookups!$O$57:$P$122,2)) -> 0.02 | AK22: 0.02 | AL22: 0.02 | AM22: =IF(B22<55,VLOOKUP(B22,Lookups!A:M,12),"") -> 0.0015 | AN22: =IF(B22<55,VLOOKUP(B22,Lookups!A:M,13),"") -> 0.0015 | AO22: 0.0015 | AP22: =IF(B22<70,VLOOKUP(B22,Lookups!A:I,8)*(1-VLOOKUP(B22,Lookups!$U$3:$W$103,2))^(B22-$B$2),"") -> 0.002255206681 | AQ22: =IF(B22<70,VLOOKUP(B22,Lookups!A:I,9)*(1-VLOOKUP(B22,Lookups!$U$3:$W$103,3))^(B22-$B$2),"") -> 0.001230600411 | AR22: 0.001742903546 | AS22: 0.02324290355 | AT22: 1.317982337 | AU22: 1.361217169 | AV22: 65 | AW22: =IF(BD22>=$B$3,VLOOKUP(BD22,Lookups!A:I,8)*(1-VLOOKUP(BD22,Lookups!U:W,2))^(BD22-$B$2),"") -> 0.009387904806 | AX22: =IF(BD22>=$B$3,VLOOKUP(BD22,Lookups!A:I,9)*(1-VLOOKUP(BD22,Lookups!U:W,3))^(BD22-$B$2),"") -> 0.005691531359 | AY22: 0.007539718082 | AZ22: 0.9748699515 | BA22: 0.6801281137 | BB22: 0.979344 | BD22: 65 | BE22: 1217.684059 | BQ22: =IF(BE22<>"",$BE22*$AZ22/$AZ$12*$BA22/$BA$12*$BB22,"") -> 790.6919169 | BR22: =IF(BE22<>"",$BE22*$AZ22/$AZ$13*$BA22/$BA$13*$BB22,"") -> 823.2968704 | BS22: =IF(BE22<>"",$BE22*$AZ22/$AZ$14*$BA22/$BA$14*$BB22,"") -> 857.3558979 | BT22: =IF(BE22<>"",$BE22*$AZ22/$AZ$15*$BA22/$BA$15*$BB22,"") -> 892.9435236 | BU22: =IF(BE22<>"",$BE22*$AZ22/$AZ$16*$BA22/$BA$16*$BB22,"") -> 930.1389164 | BV22: =IF(BE22<>"",$BE22*$AZ22/$AZ$17*$BA22/$BA$17*$BB22,"") -> 969.0296856 | BW22: =IF(BE22<>"",$BE22*$AZ22/$AZ$18*$BA22/$BA$18*$BB22,"") -> 1009.708216 | BX22: =IF(BE22<>"",$BE22*$AZ22/$AZ$19*$BA22/$BA$19*$BB22,"") -> 1052.283001 | BY22: =IF(BE22<>"",$BE22*$AZ22/$AZ$20*$BA22/$BA$20*$BB22,"") -> 1096.859017 | BZ22: =IF(BE22<>"",$BE22*$AZ22/$AZ$21*$BA22/$BA$21*$BB22,"") -> 1143.563365 | CA22: =IF(BE22<>"",$BE22*$AZ22/$AZ$22*$BA22/$BA$22*$BB22,"") -> 1192.531577
A23: 2018 | B23: 55 | D23: =VLOOKUP(B23,Lookups!A:B,2) -> 16402.55962 | E23: =VLOOKUP(B23,Lookups!A:C,3) -> 11620.7328 | G23: =VLOOKUP(B23,Lookups!A:D,4) -> 12786.08496 | H23: =VLOOKUP(B23,Lookups!A:E,5) -> 10893.168 | J23: =VLOOKUP(A23,Trends!$A$3:$Q$94,IF(ExFlg=0,2,10))+IF(B23>=$B$2,Sens,0) -> 1.038 | K23: =IF(B23=$B$2,1,IF(B23<$B$2,K24/J23,K22*J22)) -> 0.7437164964 | L23: =VLOOKUP(A23,Trends!$A$3:$Q$94,IF(ExFlg=0,4,12))+IF(B23>=$B$2,Sens,0) -> 1.038 | M23: =IF(B23=$B$2,1,IF(B23<$B$2,M24/L23,M22*L22)) -> 0.8002955291 | N23: =VLOOKUP(A23,Trends!$A$3:$Z$94,IF(ExFlg=0,19,23))+IF(B23>=$B$2,Sens,0) -> 1.038 | O23: 0.7986965371 | P23: =VLOOKUP(A23,Trends!$A$3:$Q$94,IF(ExFlg=0,6,14))+IF(B23>=$B$2,Sens,0) -> 1.038 | Q23: 0.7570977591 | R23: =VLOOKUP(A23,Trends!$A$3:$Q$94,IF(ExFlg=0,8,16))+IF(B23>=$B$2,Sens,0) -> 1.038 | S23: 0.8380453182 | T23: =VLOOKUP(A23,Trends!$A$3:$Z$94,IF(ExFlg=0,21,25))+IF(B23>=$B$2,Sens,0) -> 1.038 | U23: 0.8514326236 | W23: 12198.85418 | X23: 8642.530683 | Y23: 3556.323493 | AA23: 9680.316271 | AB23: 8247.193082 | AC23: 1433.123189 | AE23: 1963.923265 | AG23: =IF(B23<71,IF(B23-35<30,VLOOKUP(B23,Lookups!A:G,6),VLOOKUP(B23,Lookups!A:G,7)),"") -> 0.01 | AH23: 0.01 | AI23: 0.01 | AJ23: =IF(OR(B23<55,B23-35<20),VLOOKUP(B23-$B$3,Lookups!$O$3:$Q$53,2),VLOOKUP(B23,Lookups!$O$57:$P$122,2)) -> 0 | AK23: 0 | AL23: 0 | AM23: =IF(B23<55,VLOOKUP(B23,Lookups!A:M,12),"") ->  | AN23: =IF(B23<55,VLOOKUP(B23,Lookups!A:M,13),"") ->  | AP23: =IF(B23<70,VLOOKUP(B23,Lookups!A:I,8)*(1-VLOOKUP(B23,Lookups!$U$3:$W$103,2))^(B23-$B$2),"") -> 0.002407910567 | AQ23: =IF(B23<70,VLOOKUP(B23,Lookups!A:I,9)*(1-VLOOKUP(B23,Lookups!$U$3:$W$103,3))^(B23-$B$2),"") -> 0.001310702091 | AR23: 0.001859306329 | AS23: 0.01185930633 | AT23: 1.287348601 | AU23: 1.309744221 | AV23: 66 | AW23: =IF(BD23>=$B$3,VLOOKUP(BD23,Lookups!A:I,8)*(1-VLOOKUP(BD23,Lookups!U:W,2))^(BD23-$B$2),"") -> 0.01012899502 | AX23: =IF(BD23>=$B$3,VLOOKUP(BD23,Lookups!A:I,9)*(1-VLOOKUP(BD23,Lookups!U:W,3))^(BD23-$B$2),"") -> 0.006221376906 | AY23: 0.008175185964 | AZ23: 0.9675197069 | BA23: 0.6544098082 | BB23: 0.979063 | BD23: 66 | BE23: 1379.748661 | BQ23: =IF(BE23<>"",$BE23*$AZ23/$AZ$12*$BA23/$BA$12*$BB23,"") -> 855.3034802 | BR23: =IF(BE23<>"",$BE23*$AZ23/$AZ$13*$BA23/$BA$13*$BB23,"") -> 890.5727546 | BS23: =IF(BE23<>"",$BE23*$AZ23/$AZ$14*$BA23/$BA$14*$BB23,"") -> 927.4149229 | BT23: =IF(BE23<>"",$BE23*$AZ23/$AZ$15*$BA23/$BA$15*$BB23,"") -> 965.9105993 | BU23: =IF(BE23<>"",$BE23*$AZ23/$AZ$16*$BA23/$BA$16*$BB23,"") -> 1006.145422 | BV23: =IF(BE23<>"",$BE23*$AZ23/$AZ$17*$BA23/$BA$17*$BB23,"") -> 1048.214159 | BW23: =IF(BE23<>"",$BE23*$AZ23/$AZ$18*$BA23/$BA$18*$BB23,"") -> 1092.216744 | BX23: =IF(BE23<>"",$BE23*$AZ23/$AZ$19*$BA23/$BA$19*$BB23,"") -> 1138.270537 | BY23: =IF(BE23<>"",$BE23*$AZ23/$AZ$20*$BA23/$BA$20*$BB23,"") -> 1186.489092 | BZ23: =IF(BE23<>"",$BE23*$AZ23/$AZ$21*$BA23/$BA$21*$BB23,"") -> 1237.009896 | CA23: =IF(BE23<>"",$BE23*$AZ23/$AZ$22*$BA23/$BA$22*$BB23,"") -> 1289.979557 | CB23: =IF(BE23<>"",$BE23*$AZ23/$AZ$23*$BA23/$BA$23*$BB23,"") -> 1350.860863
A24: 2019 | B24: 56 | D24: =VLOOKUP(B24,Lookups!A:B,2) -> 16651.64465 | E24: =VLOOKUP(B24,Lookups!A:C,3) -> 11620.7328 | G24: =VLOOKUP(B24,Lookups!A:D,4) -> 12980.25168 | H24: =VLOOKUP(B24,Lookups!A:E,5) -> 10893.168 | J24: =VLOOKUP(A24,Trends!$A$3:$Q$94,IF(ExFlg=0,2,10))+IF(B24>=$B$2,Sens,0) -> 1.038 | K24: =IF(B24=$B$2,1,IF(B24<$B$2,K25/J24,K23*J23)) -> 0.7719777232 | L24: =VLOOKUP(A24,Trends!$A$3:$Q$94,IF(ExFlg=0,4,12))+IF(B24>=$B$2,Sens,0) -> 1.038 | M24: 0.8307067592 | N24: =VLOOKUP(A24,Trends!$A$3:$Z$94,IF(ExFlg=0,19,23))+IF(B24>=$B$2,Sens,0) -> 1.038 | O24: 0.8290470055 | P24: =VLOOKUP(A24,Trends!$A$3:$Q$94,IF(ExFlg=0,6,14))+IF(B24>=$B$2,Sens,0) -> 1.038 | Q24: 0.7858674739 | R24: =VLOOKUP(A24,Trends!$A$3:$Q$94,IF(ExFlg=0,8,16))+IF(B24>=$B$2,Sens,0) -> 1.038 | S24: 0.8698910403 | T24: =VLOOKUP(A24,Trends!$A$3:$Z$94,IF(ExFlg=0,21,25))+IF(B24>=$B$2,Sens,0) -> 1.038 | U24: 0.8837870633 | W24: =IF(B24<65,D24*K24,D24*M24) -> 12854.69872 | X24: 8970.946849 | Y24: 3883.751876 | AA24: 10200.7576 | AB24: 8560.586419 | AC24: 1640.171179 | AE24: 2201.066354 | AG24: =IF(B24<71,IF(B24-35<30,VLOOKUP(B24,Lookups!A:G,6),VLOOKUP(B24,Lookups!A:G,7)),"") -> 0.01 | AH24: 0.01 | AI24: 0.01 | AJ24: =IF(OR(B24<55,B24-35<20),VLOOKUP(B24-$B$3,Lookups!$O$3:$Q$53,2),VLOOKUP(B24,Lookups!$O$57:$P$122,2)) -> 0 | AK24: 0 | AL24: 0 | AM24: =IF(B24<55,VLOOKUP(B24,Lookups!A:M,12),"") ->  | AN24: =IF(B24<55,VLOOKUP(B24,Lookups!A:M,13),"") ->  | AP24: =IF(B24<70,VLOOKUP(B24,Lookups!A:I,8)*(1-VLOOKUP(B24,Lookups!$U$3:$W$103,2))^(B24-$B$2),"") -> 0.002566798675 | AQ24: =IF(B24<70,VLOOKUP(B24,Lookups!A:I,9)*(1-VLOOKUP(B24,Lookups!$U$3:$W$103,3))^(B24-$B$2),"") -> 0.001406954784 | AR24: 0.001986876729 | AS24: 0.01198687673 | AT24: 1.27208154 | AU24: 1.260217667 | AV24: 67 | AW24: =IF(BD24>=$B$3,VLOOKUP(BD24,Lookups!A:I,8)*(1-VLOOKUP(BD24,Lookups!U:W,2))^(BD24-$B$2),"") -> 0.01100119555 | AX24: =IF(BD24>=$B$3,VLOOKUP(BD24,Lookups!A:I,9)*(1-VLOOKUP(BD24,Lookups!U:W,3))^(BD24-$B$2),"") -> 0.006837970325 | AY24: 0.008919582935 | AZ24: 0.9596100534 | BA24: 0.6296640125 | BB24: 0.978735 | BD24: 67 | BE24: 1554.671814 | BQ24: 919.4063649 | BR24: 957.3189843 | BS24: 996.9223823 | BT24: 1038.303215 | BU24: 1081.553538 | BV24: 1126.775223 | BW24: 1174.075693 | BX24: 1223.581104 | BY24: 1275.413521 | BZ24: 1329.720735 | CA24: =IF(BE24<>"",$BE24*$AZ24/$AZ$22*$BA24/$BA$22*$BB24,"") -> 1386.66034 | CB24: =IF(BE24<>"",$BE24*$AZ24/$AZ$23*$BA24/$BA$23*$BB24,"") -> 1452.104551 | CC24: =IF(BE24<>"",$BE24*$AZ24/$AZ$24*$BA24/$BA$24*$BB24,"") -> 1521.611718
A25: 2020 | B25: 57 | D25: =VLOOKUP(B25,Lookups!A:B,2) -> 16905.68435 | E25: =VLOOKUP(B25,Lookups!A:C,3) -> 11620.7328 | G25: =VLOOKUP(B25,Lookups!A:D,4) -> 13178.27808 | H25: =VLOOKUP(B25,Lookups!A:E,5) -> 10893.168 | J25: =VLOOKUP(A25,Trends!$A$3:$Q$94,IF(ExFlg=0,2,10))+IF(B25>=$B$2,Sens,0) -> 1.038 | K25: 0.8013128767 | L25: =VLOOKUP(A25,Trends!$A$3:$Q$94,IF(ExFlg=0,4,12))+IF(B25>=$B$2,Sens,0) -> 1.038 | M25: 0.8622736161 | N25: =VLOOKUP(A25,Trends!$A$3:$Z$94,IF(ExFlg=0,19,23))+IF(B25>=$B$2,Sens,0) -> 1.038 | O25: 0.8605507917 | P25: =VLOOKUP(A25,Trends!$A$3:$Q$94,IF(ExFlg=0,6,14))+IF(B25>=$B$2,Sens,0) -> 1.038 | Q25: 0.8157304379 | R25: =VLOOKUP(A25,Trends!$A$3:$Q$94,IF(ExFlg=0,8,16))+IF(B25>=$B$2,Sens,0) -> 1.038 | S25: 0.9029468999 | T25: =VLOOKUP(A25,Trends!$A$3:$Z$94,IF(ExFlg=0,21,25))+IF(B25>=$B$2,Sens,0) -> 1.038 | U25: 0.9173709717 | W25: 13546.74256 | X25: 9311.842829 | Y25: 4234.89973 | AA25: 10749.92255 | AB25: 8885.888703 | AC25: 1864.033846 | AE25: 2456.750317 | AG25: =IF(B25<71,IF(B25-35<30,VLOOKUP(B25,Lookups!A:G,6),VLOOKUP(B25,Lookups!A:G,7)),"") -> 0.02 | AH25: 0.02 | AI25: 0.02 | AJ25: =IF(OR(B25<55,B25-35<20),VLOOKUP(B25-$B$3,Lookups!$O$3:$Q$53,2),VLOOKUP(B25,Lookups!$O$57:$P$122,2)) -> 0 | AK25: 0 | AL25: 0 | AM25: =IF(B25<55,VLOOKUP(B25,Lookups!A:M,12),"") ->  | AN25: =IF(B25<55,VLOOKUP(B25,Lookups!A:M,13),"") ->  | AP25: =IF(B25<70,VLOOKUP(B25,Lookups!A:I,8)*(1-VLOOKUP(B25,Lookups!$U$3:$W$103,2))^(B25-$B$2),"") -> 0.002739965576 | AQ25: =IF(B25<70,VLOOKUP(B25,Lookups!A:I,9)*(1-VLOOKUP(B25,Lookups!$U$3:$W$103,3))^(B25-$B$2),"") -> 0.001501151353 | AR25: 0.002120558465 | AS25: 0.02212055846 | AT25: =IF(B25<71,IF(B25=$B$2,1, IF(B25<$B$2, AT26/(1-AS25), AT24*(1-AS24))),"") -> 1.256833255 | AU25: 1.212563906 | AV25: 68 | AW25: =IF(BD25>=$B$3,VLOOKUP(BD25,Lookups!A:I,8)*(1-VLOOKUP(BD25,Lookups!U:W,2))^(BD25-$B$2),"") -> 0.01201618647 | AX25: =IF(BD25>=$B$3,VLOOKUP(BD25,Lookups!A:I,9)*(1-VLOOKUP(BD25,Lookups!U:W,3))^(BD25-$B$2),"") -> 0.007538544534 | AY25: 0.0097773655 | AZ25: 0.9510507319 | BA25: 0.6058539522 | BB25: 0.978357 | BD25: 68 | BE25: 1741.792072 | BQ25: 981.8955583 | BR25: 1022.384981 | BS25: 1064.680098 | BT25: 1108.873457 | BU25: 1155.063371 | BV25: 1203.358633 | BW25: 1253.87397 | BX25: 1306.74411 | BY25: 1362.099414 | BZ25: 1420.097721 | CA25: 1480.907334 | CB25: =IF(BE25<>"",$BE25*$AZ25/$AZ$23*$BA25/$BA$23*$BB25,"") -> 1550.799584 | CC25: =IF(BE25<>"",$BE25*$AZ25/$AZ$24*$BA25/$BA$24*$BB25,"") -> 1625.030938 | CD25: =IF(BE25<>"",$BE25*$AZ25/$AZ$25*$BA25/$BA$25*$BB25,"") -> 1704.094466 | CN25: Age | CO25: Service | CP25: Salary
A26: 2021 | B26: 58 | D26: =VLOOKUP(B26,Lookups!A:B,2) -> 17369.89945 | E26: =VLOOKUP(B26,Lookups!A:C,3) -> 11620.7328 | G26: =VLOOKUP(B26,Lookups!A:D,4) -> 13540.14288 | H26: =VLOOKUP(B26,Lookups!A:E,5) -> 10893.168 | J26: =VLOOKUP(A26,Trends!$A$3:$Q$94,IF(ExFlg=0,2,10))+IF(B26>=$B$2,Sens,0) -> 1.038 | K26: 0.831762766 | L26: =VLOOKUP(A26,Trends!$A$3:$Q$94,IF(ExFlg=0,4,12))+IF(B26>=$B$2,Sens,0) -> 1.038 | M26: 0.8950400135 | N26: =VLOOKUP(A26,Trends!$A$3:$Z$94,IF(ExFlg=0,19,23))+IF(B26>=$B$2,Sens,0) -> 1.038 | O26: 0.8932517218 | P26: =VLOOKUP(A26,Trends!$A$3:$Q$94,IF(ExFlg=0,6,14))+IF(B26>=$B$2,Sens,0) -> 1.038 | Q26: 0.8467281946 | R26: =VLOOKUP(A26,Trends!$A$3:$Q$94,IF(ExFlg=0,8,16))+IF(B26>=$B$2,Sens,0) -> 1.038 | S26: 0.937258882 | T26: =VLOOKUP(A26,Trends!$A$3:$Z$94,IF(ExFlg=0,21,25))+IF(B26>=$B$2,Sens,0) -> 1.038 | U26: 0.9522310687 | W26: 14447.63561 | X26: 9665.692857 | Y26: 4781.942755 | AA26: 11464.82074 | AB26: 9223.552474 | AC26: 2241.268261 | AE26: 2876.436885 | AG26: =IF(B26<71,IF(B26-35<30,VLOOKUP(B26,Lookups!A:G,6),VLOOKUP(B26,Lookups!A:G,7)),"") -> 0.02 | AH26: 0.02 | AI26: 0.02 | AJ26: =IF(OR(B26<55,B26-35<20),VLOOKUP(B26-$B$3,Lookups!$O$3:$Q$53,2),VLOOKUP(B26,Lookups!$O$57:$P$122,2)) -> 0 | AK26: 0 | AL26: 0 | AM26: =IF(B26<55,VLOOKUP(B26,Lookups!A:M,12),"") ->  | AN26: =IF(B26<55,VLOOKUP(B26,Lookups!A:M,13),"") ->  | AP26: =IF(B26<70,VLOOKUP(B26,Lookups!A:I,8)*(1-VLOOKUP(B26,Lookups!$U$3:$W$103,2))^(B26-$B$2),"") -> 0.002918687951 | AQ26: =IF(B26<70,VLOOKUP(B26,Lookups!A:I,9)*(1-VLOOKUP(B26,Lookups!$U$3:$W$103,3))^(B26-$B$2),"") -> 0.001602598787 | AR26: 0.002260643369 | AS26: 0.02226064337 | AT26: 1.229031401 | AU26: 1.166712119 | AV26: 69 | AW26: =IF(BD26>=$B$3,VLOOKUP(BD26,Lookups!A:I,8)*(1-VLOOKUP(BD26,Lookups!U:W,2))^(BD26-$B$2),"") -> 0.01316295307 | AX26: =IF(BD26>=$B$3,VLOOKUP(BD26,Lookups!A:I,9)*(1-VLOOKUP(BD26,Lookups!U:W,3))^(BD26-$B$2),"") -> 0.008328693612 | AY26: 0.01074582334 | AZ26: 0.9417519613 | BA26: 0.5829442434 | BB26: 0.97793 | BD26: 69 | BE26: 1948.584197 | BQ26: 1046.141659 | BR26: 1089.280332 | BS26: 1134.342848 | BT26: 1181.427809 | BU26: 1230.63996 | BV26: 1282.095214 | BW26: 1335.915805 | BX26: 1392.245274 | BY26: 1451.222514 | BZ26: 1513.01569 | CA26: 1577.804118 | CB26: 1652.269466 | CC26: =IF(BE26<>"",$BE26*$AZ26/$AZ$24*$BA26/$BA$24*$BB26,"") -> 1731.357828 | CD26: =IF(BE26<>"",$BE26*$AZ26/$AZ$25*$BA26/$BA$25*$BB26,"") -> 1815.594537 | CE26: =IF(BE26<>"",$BE26*$AZ26/$AZ$26*$BA26/$BA$26*$BB26,"") -> 1905.578944 | CN26: =IF(OR(CN27<=($CN$76-MS), CN27 = 20), CN27, CN27-1) -> 35 | CO26: =IF(CO27=0,0,CO27-1) -> 0 | CP26: =IF(CN26<CN27,CP27*1/(1-VLOOKUP(CN26,$B$3:$AU$93,44,FALSE)) * (1+IntRt) * 1/(1+GSG) * 1/VLOOKUP(MIN(CO26,30),$CR$63:$CT$93,3,FALSE), "") -> 
A27: 2022 | B27: 59 | D27: =VLOOKUP(B27,Lookups!A:B,2) -> 17847.61547 | E27: =VLOOKUP(B27,Lookups!A:C,3) -> 11620.7328 | G27: =VLOOKUP(B27,Lookups!A:D,4) -> 13912.536 | H27: =VLOOKUP(B27,Lookups!A:E,5) -> 10893.168 | J27: =VLOOKUP(A27,Trends!$A$3:$Q$94,IF(ExFlg=0,2,10))+IF(B27>=$B$2,Sens,0) -> 1.038 | K27: 0.8633697511 | L27: =VLOOKUP(A27,Trends!$A$3:$Q$94,IF(ExFlg=0,4,12))+IF(B27>=$B$2,Sens,0) -> 1.038 | M27: 0.929051534 | N27: =VLOOKUP(A27,Trends!$A$3:$Z$94,IF(ExFlg=0,19,23))+IF(B27>=$B$2,Sens,0) -> 1.038 | O27: 0.9271952872 | P27: =VLOOKUP(A27,Trends!$A$3:$Q$94,IF(ExFlg=0,6,14))+IF(B27>=$B$2,Sens,0) -> 1.038 | Q27: 0.878903866 | R27: =VLOOKUP(A27,Trends!$A$3:$Q$94,IF(ExFlg=0,8,16))+IF(B27>=$B$2,Sens,0) -> 1.038 | S27: 0.9728747196 | T27: =VLOOKUP(A27,Trends!$A$3:$Z$94,IF(ExFlg=0,21,25))+IF(B27>=$B$2,Sens,0) -> 1.038 | U27: 0.9884158493 | W27: 15409.09133 | X27: 10032.98919 | Y27: 5376.102145 | AA27: 12227.78168 | AB27: 9574.047468 | AC27: 2653.734208 | AE27: 3334.326192 | AG27: =IF(B27<71,IF(B27-35<30,VLOOKUP(B27,Lookups!A:G,6),VLOOKUP(B27,Lookups!A:G,7)),"") -> 0.04 | AH27: 0.04 | AI27: 0.04 | AJ27: =IF(OR(B27<55,B27-35<20),VLOOKUP(B27-$B$3,Lookups!$O$3:$Q$53,2),VLOOKUP(B27,Lookups!$O$57:$P$122,2)) -> 0 | AK27: 0 | AL27: 0 | AM27: =IF(B27<55,VLOOKUP(B27,Lookups!A:M,12),"") ->  | AN27: =IF(B27<55,VLOOKUP(B27,Lookups!A:M,13),"") ->  | AP27: =IF(B27<70,VLOOKUP(B27,Lookups!A:I,8)*(1-VLOOKUP(B27,Lookups!$U$3:$W$103,2))^(B27-$B$2),"") -> 0.003102744618 | AQ27: =IF(B27<70,VLOOKUP(B27,Lookups!A:I,9)*(1-VLOOKUP(B27,Lookups!$U$3:$W$103,3))^(B27-$B$2),"") -> 0.001719212325 | AR27: 0.002410978472 | AS27: 0.04241097847 | AT27: =IF(B27<71,IF(B27=$B$2,1, IF(B27<$B$2, AT28/(1-AS27), AT26*(1-AS26))),"") -> 1.201672372 | AU27: 1.122594168 | AV27: 70 | AW27: =IF(BD27>=$B$3,VLOOKUP(BD27,Lookups!A:I,8)*(1-VLOOKUP(BD27,Lookups!U:W,2))^(BD27-$B$2),"") -> 0.01446006451 | AX27: =IF(BD27>=$B$3,VLOOKUP(BD27,Lookups!A:I,9)*(1-VLOOKUP(BD27,Lookups!U:W,3))^(BD27-$B$2),"") -> 0.009213734958 | AY27: 0.01183689973 | AZ27: 0.9316320611 | BA27: 0.5609008404 | BB27: 0.977449 | BD27: 70 | BE27: 2167.664036 | BQ27: 1107.175828 | BR27: 1152.831304 | BS27: 1200.522866 | BT27: 1250.354865 | BU27: 1302.438159 | BV27: 1356.895424 | BW27: 1413.856024 | BX27: 1473.471877 | BY27: 1535.889977 | BZ27: 1601.2883 | CA27: 1669.856626 | CB27: 1748.666443 | CC27: 1832.368991 | CD27: =IF(BE27<>"",$BE27*$AZ27/$AZ$25*$BA27/$BA$25*$BB27,"") -> 1921.520252 | CE27: =IF(BE27<>"",$BE27*$AZ27/$AZ$26*$BA27/$BA$26*$BB27,"") -> 2016.754544 | CF27: =IF(BE27<>"",$BE27*$AZ27/$AZ$27*$BA27/$BA$27*$BB27,"") -> 2118.781045 | CN27: 35 | CO27: 0
A28: 2023 | B28: 60 | D28: =VLOOKUP(B28,Lookups!A:B,2) -> 18339.25705 | E28: =VLOOKUP(B28,Lookups!A:C,3) -> 11620.7328 | G28: =VLOOKUP(B28,Lookups!A:D,4) -> 14295.77424 | H28: =VLOOKUP(B28,Lookups!A:E,5) -> 10893.168 | J28: =VLOOKUP(A28,Trends!$A$3:$Q$94,IF(ExFlg=0,2,10))+IF(B28>=$B$2,Sens,0) -> 1.038 | K28: 0.8961778017 | L28: =VLOOKUP(A28,Trends!$A$3:$Q$94,IF(ExFlg=0,4,12))+IF(B28>=$B$2,Sens,0) -> 1.038 | M28: 0.9643554923 | N28: =VLOOKUP(A28,Trends!$A$3:$Z$94,IF(ExFlg=0,19,23))+IF(B28>=$B$2,Sens,0) -> 1.038 | O28: 0.9624287081 | P28: =VLOOKUP(A28,Trends!$A$3:$Q$94,IF(ExFlg=0,6,14))+IF(B28>=$B$2,Sens,0) -> 1.038 | Q28: 0.9123022129 | R28: =VLOOKUP(A28,Trends!$A$3:$Q$94,IF(ExFlg=0,8,16))+IF(B28>=$B$2,Sens,0) -> 1.038 | S28: 1.009843959 | T28: =VLOOKUP(A28,Trends!$A$3:$Z$94,IF(ExFlg=0,21,25))+IF(B28>=$B$2,Sens,0) -> 1.038 | U28: 1.025975652 | W28: =IF(B28<65,D28*K28,D28*M28) -> 16435.23507 | X28: 10414.24277 | Y28: 6020.992293 | AA28: 13042.06647 | AB28: 9937.861272 | AC28: 3104.205202 | AE28: 3833.401975 | AG28: =IF(B28<71,IF(B28-35<30,VLOOKUP(B28,Lookups!A:G,6),VLOOKUP(B28,Lookups!A:G,7)),"") -> 0.05 | AH28: 0.05 | AI28: 0.05 | AJ28: =IF(OR(B28<55,B28-35<20),VLOOKUP(B28-$B$3,Lookups!$O$3:$Q$53,2),VLOOKUP(B28,Lookups!$O$57:$P$122,2)) -> 0 | AK28: 0 | AL28: 0 | AM28: =IF(B28<55,VLOOKUP(B28,Lookups!A:M,12),"") ->  | AN28: =IF(B28<55,VLOOKUP(B28,Lookups!A:M,13),"") ->  | AP28: =IF(B28<70,VLOOKUP(B28,Lookups!A:I,8)*(1-VLOOKUP(B28,Lookups!$U$3:$W$103,2))^(B28-$B$2),"") -> 0.003298989899 | AQ28: =IF(B28<70,VLOOKUP(B28,Lookups!A:I,9)*(1-VLOOKUP(B28,Lookups!$U$3:$W$103,3))^(B28-$B$2),"") -> 0.001842424242 | AR28: 0.002570707071 | AS28: 0.05257070707 | AT28: 1.150708271 | AU28: =IF(B28<71,IF(B28=$B$2,1,IF(B28<$B$2,AU29*(1+IntRt),AU27/(1+IntRt))),"") -> 1.08014449 | AV28: 71 | AW28: =IF(BD28>=$B$3,VLOOKUP(BD28,Lookups!A:I,8)*(1-VLOOKUP(BD28,Lookups!U:W,2))^(BD28-$B$2),"") -> 0.01589451497 | AX28: =IF(BD28>=$B$3,VLOOKUP(BD28,Lookups!A:I,9)*(1-VLOOKUP(BD28,Lookups!U:W,3))^(BD28-$B$2),"") -> 0.01017429834 | AY28: 0.01303440666 | AZ28: 0.9206044258 | BA28: 0.5396909847 | BB28: 0.97692 | BD28: 71 | BE28: 2401.728133 | BQ28: 1165.738307 | BR28: 1213.808665 | BS28: 1264.022803 | BT28: 1316.490594 | BU28: 1371.32876 | BV28: 1428.666464 | BW28: 1488.639913 | BX28: 1551.409061 | BY28: 1617.128677 | BZ28: 1685.986151 | CA28: 1758.1813 | CB28: 1841.159649 | CC28: 1929.289524 | CD28: 2023.156313 | CE28: =IF(BE28<>"",$BE28*$AZ28/$AZ$26*$BA28/$BA$26*$BB28,"") -> 2123.427887 | CF28: =IF(BE28<>"",$BE28*$AZ28/$AZ$27*$BA28/$BA$27*$BB28,"") -> 2230.850933 | CN28: 35 | CO28: 0
A29: 2024 | B29: 61 | D29: =VLOOKUP(B29,Lookups!A:B,2) -> 18845.2402 | E29: =VLOOKUP(B29,Lookups!A:C,3) -> 11620.7328 | G29: =VLOOKUP(B29,Lookups!A:D,4) -> 14690.19552 | H29: =VLOOKUP(B29,Lookups!A:E,5) -> 10893.168 | J29: =VLOOKUP(A29,Trends!$A$3:$Q$94,IF(ExFlg=0,2,10))+IF(B29>=$B$2,Sens,0) -> 1.075 | K29: =IF(B29=$B$2,1,IF(B29<$B$2,K30/J29,K28*J28)) -> 0.9302325581 | L29: =VLOOKUP(A29,Trends!$A$3:$Q$94,IF(ExFlg=0,4,12))+IF(B29>=$B$2,Sens,0) -> 0.999 | M29: 1.001001001 | N29: =VLOOKUP(A29,Trends!$A$3:$Z$94,IF(ExFlg=0,19,23))+IF(B29>=$B$2,Sens,0) -> 1.001 | O29: 0.999000999 | P29: =VLOOKUP(A29,Trends!$A$3:$Q$94,IF(ExFlg=0,6,14))+IF(B29>=$B$2,Sens,0) -> 1.056 | Q29: 0.946969697 | R29: =VLOOKUP(A29,Trends!$A$3:$Q$94,IF(ExFlg=0,8,16))+IF(B29>=$B$2,Sens,0) -> 0.954 | S29: 1.048218029 | T29: =VLOOKUP(A29,Trends!$A$3:$Z$94,IF(ExFlg=0,21,25))+IF(B29>=$B$2,Sens,0) -> 0.939 | U29: 1.064962726 | W29: 17530.456 | X29: 10809.984 | Y29: 6720.472 | AA29: 13911.17 | AB29: 10315.5 | AC29: 3595.67 | AE29: 4376.8705 | AG29: =IF(B29<71,IF(B29-35<30,VLOOKUP(B29,Lookups!A:G,6),VLOOKUP(B29,Lookups!A:G,7)),"") -> 0.08 | AH29: 0.08 | AI29: 0.08 | AJ29: =IF(OR(B29<55,B29-35<20),VLOOKUP(B29-$B$3,Lookups!$O$3:$Q$53,2),VLOOKUP(B29,Lookups!$O$57:$P$122,2)) -> 0 | AK29: 0 | AL29: 0 | AM29: =IF(B29<55,VLOOKUP(B29,Lookups!A:M,12),"") ->  | AN29: =IF(B29<55,VLOOKUP(B29,Lookups!A:M,13),"") ->  | AP29: =IF(B29<70,VLOOKUP(B29,Lookups!A:I,8)*(1-VLOOKUP(B29,Lookups!$U$3:$W$103,2))^(B29-$B$2),"") -> 0.00351 | AQ29: =IF(B29<70,VLOOKUP(B29,Lookups!A:I,9)*(1-VLOOKUP(B29,Lookups!$U$3:$W$103,3))^(B29-$B$2),"") -> 0.001989 | AR29: 0.0027495 | AS29: 0.0827495 | AT29: =IF(B29<71,IF(B29=$B$2,1, IF(B29<$B$2, AT30/(1-AS29), AT28*(1-AS28))),"") -> 1.090214723 | AU29: 1.0393 | AV29: 72 | AW29: =IF(BD29>=$B$3,VLOOKUP(BD29,Lookups!A:I,8)*(1-VLOOKUP(BD29,Lookups!U:W,2))^(BD29-$B$2),"") -> 0.01748506077 | AX29: =IF(BD29>=$B$3,VLOOKUP(BD29,Lookups!A:I,9)*(1-VLOOKUP(BD29,Lookups!U:W,3))^(BD29-$B$2),"") -> 0.01123918111 | AY29: 0.01436212094 | AZ29: 0.9086048934 | BA29: 0.5192831566 | BB29: 0.976335 | BD29: 72 | BE29: 2653.798239 | BQ29: 1222.492117 | BR29: 1272.902774 | BS29: 1325.56158 | BT29: 1380.583759 | BU29: 1438.091713 | BV29: 1498.220895 | BW29: 1561.114144 | BX29: 1626.939199 | BY29: 1695.858366 | BZ29: 1768.068156 | CA29: 1843.778116 | CB29: 1930.796255 | CC29: 2023.216721 | CD29: 2121.653402 | CE29: 2226.806683 | CF29: =IF(BE29<>"",$BE29*$AZ29/$AZ$27*$BA29/$BA$27*$BB29,"") -> 2339.459605 | CN29: 35 | CO29: 0
A30: 2025 | B30: 62 | D30: =VLOOKUP(B30,Lookups!A:B,2) -> 19366.0132 | E30: =VLOOKUP(B30,Lookups!A:C,3) -> 11620.7328 | G30: =VLOOKUP(B30,Lookups!A:D,4) -> 15096.14832 | H30: =VLOOKUP(B30,Lookups!A:E,5) -> 10893.168 | J30: =VLOOKUP(A30,Trends!$A$3:$Q$94,IF(ExFlg=0,2,10))+IF(B30>=$B$2,Sens,0) -> 1.059 | K30: =IF(B30=$B$2,1,IF(B30<$B$2,K31/J30,K29*J29)) -> 1 | L30: =VLOOKUP(A30,Trends!$A$3:$Q$94,IF(ExFlg=0,4,12))+IF(B30>=$B$2,Sens,0) -> 1.06 | M30: 1 | N30: =VLOOKUP(A30,Trends!$A$3:$Z$94,IF(ExFlg=0,19,23))+IF(B30>=$B$2,Sens,0) -> 1.091 | O30: 1 | P30: =VLOOKUP(A30,Trends!$A$3:$Q$94,IF(ExFlg=0,6,14))+IF(B30>=$B$2,Sens,0) -> 1.06 | Q30: 1 | R30: =VLOOKUP(A30,Trends!$A$3:$Q$94,IF(ExFlg=0,8,16))+IF(B30>=$B$2,Sens,0) -> 1.088 | S30: 1 | T30: =VLOOKUP(A30,Trends!$A$3:$Z$94,IF(ExFlg=0,21,25))+IF(B30>=$B$2,Sens,0) -> 1.127 | U30: 1 | W30: =IF(B30<65,D30*K30,D30*M30) -> 19366.0132 | X30: 11620.7328 | Y30: 7745.2804 | AA30: 15096.14832 | AB30: 10893.168 | AC30: 4202.98032 | AE30: 5088.55534 | AG30: =IF(B30<71,IF(B30-35<30,VLOOKUP(B30,Lookups!A:G,6),VLOOKUP(B30,Lookups!A:G,7)),"") -> 0.15 | AH30: 0.15 | AI30: 0.15 | AJ30: =IF(OR(B30<55,B30-35<20),VLOOKUP(B30-$B$3,Lookups!$O$3:$Q$53,2),VLOOKUP(B30,Lookups!$O$57:$P$122,2)) -> 0 | AK30: 0 | AL30: 0 | AM30: =IF(B30<55,VLOOKUP(B30,Lookups!A:M,12),"") ->  | AN30: =IF(B30<55,VLOOKUP(B30,Lookups!A:M,13),"") ->  | AP30: =IF(B30<70,VLOOKUP(B30,Lookups!A:I,8)*(1-VLOOKUP(B30,Lookups!$U$3:$W$103,2))^(B30-$B$2),"") -> 0.0037323 | AQ30: =IF(B30<70,VLOOKUP(B30,Lookups!A:I,9)*(1-VLOOKUP(B30,Lookups!$U$3:$W$103,3))^(B30-$B$2),"") -> 0.00214137 | AR30: 0.002936835 | AS30: 0.152936835 | AT30: 1 | AU30: 1 | AV30: 73 | AW30: =IF(BD30>=$B$3,VLOOKUP(BD30,Lookups!A:I,8)*(1-VLOOKUP(BD30,Lookups!U:W,2))^(BD30-$B$2),"") -> 0.01925848411 | AX30: =IF(BD30>=$B$3,VLOOKUP(BD30,Lookups!A:I,9)*(1-VLOOKUP(BD30,Lookups!U:W,3))^(BD30-$B$2),"") -> 0.01241293374 | AY30: 0.01583570893 | AZ30: 0.8955554 | BA30: 0.4996470284 | BB30: 0.975685 | BD30: 73 | BE30: 2888.690018 | BQ30: 1261.148811 | BR30: 1313.153514 | BS30: 1367.477456 | BT30: 1424.239503 | BU30: 1483.565929 | BV30: 1545.59647 | BW30: 1610.47848 | BX30: 1678.385004 | BY30: 1749.483479 | BZ30: 1823.97663 | CA30: 1902.080632 | CB30: 1991.850391 | CC30: 2087.193305 | CD30: 2188.742674 | CE30: 2297.22103 | CF30: 2413.436175 | CN30: 35 | CO30: 0
A31: 2026 | B31: 63 | D31: =VLOOKUP(B31,Lookups!A:B,2) -> 20199.336 | E31: =VLOOKUP(B31,Lookups!A:C,3) -> 11620.7328 | G31: =VLOOKUP(B31,Lookups!A:D,4) -> 15745.73616 | H31: =VLOOKUP(B31,Lookups!A:E,5) -> 10893.168 | J31: =VLOOKUP(A31,Trends!$A$3:$Q$94,IF(ExFlg=0,2,10))+IF(B31>=$B$2,Sens,0) -> 1.054 | K31: 1.059 | L31: =VLOOKUP(A31,Trends!$A$3:$Q$94,IF(ExFlg=0,4,12))+IF(B31>=$B$2,Sens,0) -> 1.053 | M31: 1.06 | N31: =VLOOKUP(A31,Trends!$A$3:$Z$94,IF(ExFlg=0,19,23))+IF(B31>=$B$2,Sens,0) -> 1.082 | O31: 1.091 | P31: =VLOOKUP(A31,Trends!$A$3:$Q$94,IF(ExFlg=0,6,14))+IF(B31>=$B$2,Sens,0) -> 1.061 | Q31: 1.06 | R31: =VLOOKUP(A31,Trends!$A$3:$Q$94,IF(ExFlg=0,8,16))+IF(B31>=$B$2,Sens,0) -> 1.092 | S31: 1.088 | T31: =VLOOKUP(A31,Trends!$A$3:$Z$94,IF(ExFlg=0,21,25))+IF(B31>=$B$2,Sens,0) -> 1.119 | U31: 1.127 | W31: 21391.09682 | X31: 12306.35604 | Y31: 9084.740789 | AA31: 16690.48033 | AB31: 11546.75808 | AC31: 5143.72225 | AE31: 6128.976884 | AG31: =IF(B31<71,IF(B31-35<30,VLOOKUP(B31,Lookups!A:G,6),VLOOKUP(B31,Lookups!A:G,7)),"") -> 0.2 | AH31: 0.2 | AI31: 0.2 | AJ31: =IF(OR(B31<55,B31-35<20),VLOOKUP(B31-$B$3,Lookups!$O$3:$Q$53,2),VLOOKUP(B31,Lookups!$O$57:$P$122,2)) -> 0 | AK31: 0 | AL31: 0 | AM31: =IF(B31<55,VLOOKUP(B31,Lookups!A:M,12),"") ->  | AN31: =IF(B31<55,VLOOKUP(B31,Lookups!A:M,13),"") ->  | AP31: =IF(B31<70,VLOOKUP(B31,Lookups!A:I,8)*(1-VLOOKUP(B31,Lookups!$U$3:$W$103,2))^(B31-$B$2),"") -> 0.0039762657 | AQ31: =IF(B31<70,VLOOKUP(B31,Lookups!A:I,9)*(1-VLOOKUP(B31,Lookups!$U$3:$W$103,3))^(B31-$B$2),"") -> 0.0023159763 | AR31: 0.003146121 | AS31: 0.203146121 | AT31: 0.847063165 | AU31: 0.9621860868 | AV31: 74 | AW31: =IF(BD31>=$B$3,VLOOKUP(BD31,Lookups!A:I,8)*(1-VLOOKUP(BD31,Lookups!U:W,2))^(BD31-$B$2),"") -> 0.02122372346 | AX31: =IF(BD31>=$B$3,VLOOKUP(BD31,Lookups!A:I,9)*(1-VLOOKUP(BD31,Lookups!U:W,3))^(BD31-$B$2),"") -> 0.01371477607 | AY31: 0.01746924977 | AZ31: 0.8813736454 | BA31: 0.480753419 | BB31: 0.974965 | BD31: 74 | BE31: 3140.211543 | BQ31: 1297.269993 | BR31: 1350.764189 | BS31: 1406.64405 | BT31: 1465.031846 | BU31: 1526.05747 | BV31: 1589.864658 | BW31: 1656.604985 | BX31: 1726.456453 | BY31: 1799.591294 | BZ31: 1876.218041 | CA31: 1956.559057 | CB31: 2048.899956 | CC31: 2146.973633 | CD31: 2251.431527 | CE31: 2363.016866 | CF31: 2482.560586 | CN31: 35 | CO31: 0
A32: 2027 | B32: 64 | D32: =VLOOKUP(B32,Lookups!A:B,2) -> 21072.99603 | E32: =VLOOKUP(B32,Lookups!A:C,3) -> 11620.7328 | G32: =VLOOKUP(B32,Lookups!A:D,4) -> 16426.77168 | H32: =VLOOKUP(B32,Lookups!A:E,5) -> 10893.168 | J32: =VLOOKUP(A32,Trends!$A$3:$Q$94,IF(ExFlg=0,2,10))+IF(B32>=$B$2,Sens,0) -> 1.052 | K32: 1.116186 | L32: =VLOOKUP(A32,Trends!$A$3:$Q$94,IF(ExFlg=0,4,12))+IF(B32>=$B$2,Sens,0) -> 1.051 | M32: 1.11618 | N32: =VLOOKUP(A32,Trends!$A$3:$Z$94,IF(ExFlg=0,19,23))+IF(B32>=$B$2,Sens,0) -> 1.053 | O32: 1.180462 | P32: =VLOOKUP(A32,Trends!$A$3:$Q$94,IF(ExFlg=0,6,14))+IF(B32>=$B$2,Sens,0) -> 1.053 | Q32: 1.12466 | R32: =VLOOKUP(A32,Trends!$A$3:$Q$94,IF(ExFlg=0,8,16))+IF(B32>=$B$2,Sens,0) -> 1.051 | S32: 1.188096 | T32: =VLOOKUP(A32,Trends!$A$3:$Z$94,IF(ExFlg=0,21,25))+IF(B32>=$B$2,Sens,0) -> 1.053 | U32: 1.261113 | W32: 23521.38314 | X32: 12970.89926 | Y32: 10550.48388 | AA32: 18474.53304 | AB32: 12251.11032 | AC32: 6223.422715 | AE32: 7305.188006 | AG32: =IF(B32<71,IF(B32-35<30,VLOOKUP(B32,Lookups!A:G,6),VLOOKUP(B32,Lookups!A:G,7)),"") -> 0.4 | AH32: 0.4 | AI32: 0.4 | AJ32: =IF(OR(B32<55,B32-35<20),VLOOKUP(B32-$B$3,Lookups!$O$3:$Q$53,2),VLOOKUP(B32,Lookups!$O$57:$P$122,2)) -> 0 | AK32: 0 | AL32: 0 | AM32: =IF(B32<55,VLOOKUP(B32,Lookups!A:M,12),"") ->  | AN32: =IF(B32<55,VLOOKUP(B32,Lookups!A:M,13),"") ->  | AP32: =IF(B32<70,VLOOKUP(B32,Lookups!A:I,8)*(1-VLOOKUP(B32,Lookups!$U$3:$W$103,2))^(B32-$B$2),"") -> 0.00424020663 | AQ32: =IF(B32<70,VLOOKUP(B32,Lookups!A:I,9)*(1-VLOOKUP(B32,Lookups!$U$3:$W$103,3))^(B32-$B$2),"") -> 0.002512104111 | AR32: 0.003376155371 | AS32: 0.4033761554 | AT32: 0.6749855688 | AU32: 0.9258020656 | AV32: 75 | AW32: =IF(BD32>=$B$3,VLOOKUP(BD32,Lookups!A:I,8)*(1-VLOOKUP(BD32,Lookups!U:W,2))^(BD32-$B$2),"") -> 0.02341096216 | AX32: =IF(BD32>=$B$3,VLOOKUP(BD32,Lookups!A:I,9)*(1-VLOOKUP(BD32,Lookups!U:W,3))^(BD32-$B$2),"") -> 0.01516222067 | AY32: 0.01928659142 | AZ32: 0.865976709 | BA32: 0.462574251 | BB32: 0.974163 | BD32: 75 | BE32: 3409.427101 | BQ32: 1330.456578 | BR32: 1385.319255 | BS32: 1442.628627 | BT32: 1502.510092 | BU32: 1565.096865 | BV32: 1630.53636 | BW32: 1698.984029 | BX32: 1770.622428 | BY32: 1845.628194 | BZ32: 1924.215196 | CA32: 2006.611486 | CB32: 2101.314637 | CC32: 2201.897222 | CD32: 2309.027343 | CE32: 2423.467243 | CF32: 2546.069114 | CN32: 35 | CO32: 0
A33: 2028 | B33: 65 | D33: =VLOOKUP(B33,Lookups!A:B,2) -> 3671.699625 | E33: =VLOOKUP(B33,Lookups!A:C,3) -> 2128.40628 | G33: =VLOOKUP(B33,Lookups!A:D,4) -> 6492.62826 | H33: =VLOOKUP(B33,Lookups!A:E,5) -> 5299.56576 | J33: =VLOOKUP(A33,Trends!$A$3:$Q$94,IF(ExFlg=0,2,10))+IF(B33>=$B$2,Sens,0) -> 1.05 | K33: 1.174227672 | L33: =VLOOKUP(A33,Trends!$A$3:$Q$94,IF(ExFlg=0,4,12))+IF(B33>=$B$2,Sens,0) -> 1.05 | M33: 1.17310518 | N33: =VLOOKUP(A33,Trends!$A$3:$Z$94,IF(ExFlg=0,19,23))+IF(B33>=$B$2,Sens,0) -> 1.052 | O33: =IF(B33=$B$2,1,IF(B33<$B$2,O34/N33,O32*N32)) -> 1.243026486 | P33: =VLOOKUP(A33,Trends!$A$3:$Q$94,IF(ExFlg=0,6,14))+IF(B33>=$B$2,Sens,0) -> 1.051 | Q33: 1.18426698 | R33: =VLOOKUP(A33,Trends!$A$3:$Q$94,IF(ExFlg=0,8,16))+IF(B33>=$B$2,Sens,0) -> 1.049 | S33: 1.248688896 | T33: =VLOOKUP(A33,Trends!$A$3:$Z$94,IF(ExFlg=0,21,25))+IF(B33>=$B$2,Sens,0) -> 1.051 | U33: 1.327951989 | W33: 4307.289849 | X33: 2645.665379 | Y33: 1661.62447 | AA33: =IF(B33<65,G33*Q33,G33*S33) -> 8107.272814 | AB33: 7037.568892 | AC33: 1069.703922 | AE33: 1217.684059 | AG33: =IF(B33<71,IF(B33-35<30,VLOOKUP(B33,Lookups!A:G,6),VLOOKUP(B33,Lookups!A:G,7)),"") -> 0.45 | AH33: 0.45 | AI33: 0.45 | AJ33: =IF(OR(B33<55,B33-35<20),VLOOKUP(B33-$B$3,Lookups!$O$3:$Q$53,2),VLOOKUP(B33,Lookups!$O$57:$P$122,2)) -> 0 | AK33: 0 | AL33: 0 | AM33: =IF(B33<55,VLOOKUP(B33,Lookups!A:M,12),"") ->  | AN33: =IF(B33<55,VLOOKUP(B33,Lookups!A:M,13),"") ->  | AP33: =IF(B33<70,VLOOKUP(B33,Lookups!A:I,8)*(1-VLOOKUP(B33,Lookups!$U$3:$W$103,2))^(B33-$B$2),"") -> 0.009387904806 | AQ33: =IF(B33<70,VLOOKUP(B33,Lookups!A:I,9)*(1-VLOOKUP(B33,Lookups!$U$3:$W$103,3))^(B33-$B$2),"") -> 0.005691531359 | AR33: 0.007539718082 | AS33: 0.4575397181 | AT33: 0.4027124851 | AU33: 0.8907938667 | AV33: 76 | AW33: =IF(BD33>=$B$3,VLOOKUP(BD33,Lookups!A:I,8)*(1-VLOOKUP(BD33,Lookups!U:W,2))^(BD33-$B$2),"") -> 0.02585249408 | AX33: =IF(BD33>=$B$3,VLOOKUP(BD33,Lookups!A:I,9)*(1-VLOOKUP(BD33,Lookups!U:W,3))^(BD33-$B$2),"") -> 0.01678145862 | AY33: 0.02131697635 | AZ33: 0.8492749701 | BA33: 0.4450825084 | BB33: 0.973268 | BD33: 76 | BE33: 3697.476838 | BQ33: 1360.275131 | BR33: 1416.367405 | BS33: 1474.96121 | BT33: 1536.184755 | BU33: 1600.174239 | BV33: 1667.080382 | BW33: 1737.062119 | BX33: 1810.306097 | BY33: 1886.992913 | BZ33: 1967.341228 | CA33: 2051.584205 | CB33: 2148.409869 | CC33: 2251.246738 | CD33: 2360.777889 | CE33: 2477.782647 | CF33: 2603.132305 | CN33: 35 | CO33: 0
A34: 2029 | B34: 66 | D34: =VLOOKUP(B34,Lookups!A:B,2) -> 3733.907355 | E34: =VLOOKUP(B34,Lookups!A:C,3) -> 2128.40628 | G34: =VLOOKUP(B34,Lookups!A:D,4) -> 6589.02996 | H34: =VLOOKUP(B34,Lookups!A:E,5) -> 5299.56576 | J34: =VLOOKUP(A34,Trends!$A$3:$Q$94,IF(ExFlg=0,2,10))+IF(B34>=$B$2,Sens,0) -> 1.049 | K34: 1.232939056 | L34: =VLOOKUP(A34,Trends!$A$3:$Q$94,IF(ExFlg=0,4,12))+IF(B34>=$B$2,Sens,0) -> 1.048 | M34: 1.231760439 | N34: =VLOOKUP(A34,Trends!$A$3:$Z$94,IF(ExFlg=0,19,23))+IF(B34>=$B$2,Sens,0) -> 1.05 | O34: 1.307663863 | P34: =VLOOKUP(A34,Trends!$A$3:$Q$94,IF(ExFlg=0,6,14))+IF(B34>=$B$2,Sens,0) -> 1.049 | Q34: 1.244664596 | R34: =VLOOKUP(A34,Trends!$A$3:$Q$94,IF(ExFlg=0,8,16))+IF(B34>=$B$2,Sens,0) -> 1.048 | S34: 1.309874652 | T34: =VLOOKUP(A34,Trends!$A$3:$Z$94,IF(ExFlg=0,21,25))+IF(B34>=$B$2,Sens,0) -> 1.05 | U34: 1.39567754 | W34: 4599.279363 | X34: 2783.239979 | Y34: 1816.039384 | AA34: =IF(B34<65,G34*Q34,G34*S34) -> 8630.803325 | AB34: 7396.484905 | AC34: 1234.31842 | AE34: 1379.748661 | AG34: =IF(B34<71,IF(B34-35<30,VLOOKUP(B34,Lookups!A:G,6),VLOOKUP(B34,Lookups!A:G,7)),"") -> 0.4 | AH34: 0.4 | AI34: 0.4 | AJ34: =IF(OR(B34<55,B34-35<20),VLOOKUP(B34-$B$3,Lookups!$O$3:$Q$53,2),VLOOKUP(B34,Lookups!$O$57:$P$122,2)) -> 0 | AK34: 0 | AL34: 0 | AM34: =IF(B34<55,VLOOKUP(B34,Lookups!A:M,12),"") ->  | AN34: =IF(B34<55,VLOOKUP(B34,Lookups!A:M,13),"") ->  | AP34: =IF(B34<70,VLOOKUP(B34,Lookups!A:I,8)*(1-VLOOKUP(B34,Lookups!$U$3:$W$103,2))^(B34-$B$2),"") -> 0.01012899502 | AQ34: =IF(B34<70,VLOOKUP(B34,Lookups!A:I,9)*(1-VLOOKUP(B34,Lookups!$U$3:$W$103,3))^(B34-$B$2),"") -> 0.006221376906 | AR34: 0.008175185964 | AS34: 0.408175186 | AT34: 0.2184555282 | AU34: 0.8571094647 | AV34: 77 | AW34: =IF(BD34>=$B$3,VLOOKUP(BD34,Lookups!A:I,8)*(1-VLOOKUP(BD34,Lookups!U:W,2))^(BD34-$B$2),"") -> 0.02856725968 | AX34: =IF(BD34>=$B$3,VLOOKUP(BD34,Lookups!A:I,9)*(1-VLOOKUP(BD34,Lookups!U:W,3))^(BD34-$B$2),"") -> 0.01860350084 | AY34: 0.02358538026 | AZ34: 0.8311709956 | BA34: 0.4282521971 | BB34: 0.972267 | BD34: 77 | BE34: 4005.558227 | BQ34: 1386.240472 | BR34: 1443.403452 | BS34: 1503.115713 | BT34: 1565.507912 | BU34: 1630.718847 | BV34: 1698.902114 | BW34: 1770.219683 | BX34: 1844.861764 | BY34: 1923.012401 | BZ34: 2004.894429 | CA34: 2090.745462 | CB34: 2189.419363 | CC34: 2294.219213 | CD34: 2405.841128 | CE34: 2525.079307 | CF34: 2652.821677 | CN34: 35 | CO34: 0
A35: 2030 | B35: 67 | D35: =VLOOKUP(B35,Lookups!A:B,2) -> 3797.174025 | E35: =VLOOKUP(B35,Lookups!A:C,3) -> 2128.40628 | G35: =VLOOKUP(B35,Lookups!A:D,4) -> 6686.90082 | H35: =VLOOKUP(B35,Lookups!A:E,5) -> 5299.56576 | J35: =VLOOKUP(A35,Trends!$A$3:$Q$94,IF(ExFlg=0,2,10))+IF(B35>=$B$2,Sens,0) -> 1.047 | K35: 1.293353069 | L35: =VLOOKUP(A35,Trends!$A$3:$Q$94,IF(ExFlg=0,4,12))+IF(B35>=$B$2,Sens,0) -> 1.046 | M35: 1.29088494 | N35: =VLOOKUP(A35,Trends!$A$3:$Z$94,IF(ExFlg=0,19,23))+IF(B35>=$B$2,Sens,0) -> 1.048 | O35: 1.373047056 | P35: =VLOOKUP(A35,Trends!$A$3:$Q$94,IF(ExFlg=0,6,14))+IF(B35>=$B$2,Sens,0) -> 1.047 | Q35: 1.305653161 | R35: =VLOOKUP(A35,Trends!$A$3:$Q$94,IF(ExFlg=0,8,16))+IF(B35>=$B$2,Sens,0) -> 1.046 | S35: 1.372748635 | T35: =VLOOKUP(A35,Trends!$A$3:$Z$94,IF(ExFlg=0,21,25))+IF(B35>=$B$2,Sens,0) -> 1.048 | U35: 1.465461417 | W35: 4901.714764 | X35: 2922.401978 | Y35: 1979.312786 | AA35: 9179.433974 | AB35: 7766.309151 | AC35: 1413.124824 | AE35: =(1-PctUMP)*Y35+PctUMP*AC35 -> 1554.671814 | AG35: =IF(B35<71,IF(B35-35<30,VLOOKUP(B35,Lookups!A:G,6),VLOOKUP(B35,Lookups!A:G,7)),"") -> 0.3 | AH35: 0.3 | AI35: =IF(B35<71,PCTMALE*AG35+(1-PCTMALE)*AH35,"") -> 0.3 | AJ35: =IF(OR(B35<55,B35-35<20),VLOOKUP(B35-$B$3,Lookups!$O$3:$Q$53,2),VLOOKUP(B35,Lookups!$O$57:$P$122,2)) -> 0 | AK35: 0 | AL35: =PCTMALE*AJ35+(1-PCTMALE)*AK35 -> 0 | AM35: =IF(B35<55,VLOOKUP(B35,Lookups!A:M,12),"") ->  | AN35: =IF(B35<55,VLOOKUP(B35,Lookups!A:M,13),"") ->  | AO35: =IF(B35<55,PCTMALE*AM35+(1-PCTMALE)*AN35,"") ->  | AP35: =IF(B35<70,VLOOKUP(B35,Lookups!A:I,8)*(1-VLOOKUP(B35,Lookups!$U$3:$W$103,2))^(B35-$B$2),"") -> 0.01100119555 | AQ35: =IF(B35<70,VLOOKUP(B35,Lookups!A:I,9)*(1-VLOOKUP(B35,Lookups!$U$3:$W$103,3))^(B35-$B$2),"") -> 0.006837970325 | AR35: =IF(AP35<>"",PCTMALE*AP35+(1-PCTMALE)*AQ35,"") -> 0.008919582935 | AS35: 0.3089195829 | AT35: 0.1292874024 | AU35: =IF(B35<71,IF(B35=$B$2,1,IF(B35<$B$2,AU36*(1+IntRt),AU34/(1+IntRt))),"") -> 0.8246988018 | AV35: 78 | AW35: =IF(BD35>=$B$3,VLOOKUP(BD35,Lookups!A:I,8)*(1-VLOOKUP(BD35,Lookups!U:W,2))^(BD35-$B$2),"") -> 0.031591825 | AX35: =IF(BD35>=$B$3,VLOOKUP(BD35,Lookups!A:I,9)*(1-VLOOKUP(BD35,Lookups!U:W,3))^(BD35-$B$2),"") -> 0.02063609232 | AY35: =IFERROR(PCTMALE*AW35+(1-PCTMALE)*AX35,"") -> 0.02611395866 | AZ35: 0.8115675116 | BA35: 0.4120583056 | BB35: 0.971152 | BD35: 78 | BE35: 4258.606699 | BQ35: 1383.050594 | BR35: 1440.082036 | BS35: 1499.656893 | BT35: 1561.905521 | BU35: 1626.966399 | BV35: 1694.992769 | BW35: 1766.14623 | BX35: 1840.616552 | BY35: 1918.587357 | BZ35: 2000.280966 | CA35: 2085.934447 | CB35: 2184.381289 | CC35: 2288.939984 | CD35: 2400.305045 | CE35: 2519.268846 | CF35: 2646.717268 | CN35: 35 | CO35: 0
A36: 2031 | B36: 68 | D36: =VLOOKUP(B36,Lookups!A:B,2) -> 3861.51462 | E36: =VLOOKUP(B36,Lookups!A:C,3) -> 2128.40628 | G36: =VLOOKUP(B36,Lookups!A:D,4) -> 6786.25515 | H36: =VLOOKUP(B36,Lookups!A:E,5) -> 5299.56576 | J36: =VLOOKUP(A36,Trends!$A$3:$Q$94,IF(ExFlg=0,2,10))+IF(B36>=$B$2,Sens,0) -> 1.045 | K36: 1.354140664 | L36: =VLOOKUP(A36,Trends!$A$3:$Q$94,IF(ExFlg=0,4,12))+IF(B36>=$B$2,Sens,0) -> 1.045 | M36: 1.350265647 | N36: =VLOOKUP(A36,Trends!$A$3:$Z$94,IF(ExFlg=0,19,23))+IF(B36>=$B$2,Sens,0) -> 1.046 | O36: 1.438953315 | P36: =VLOOKUP(A36,Trends!$A$3:$Q$94,IF(ExFlg=0,6,14))+IF(B36>=$B$2,Sens,0) -> 1.045 | Q36: 1.36701886 | R36: =VLOOKUP(A36,Trends!$A$3:$Q$94,IF(ExFlg=0,8,16))+IF(B36>=$B$2,Sens,0) -> 1.044 | S36: 1.435895072 | T36: =VLOOKUP(A36,Trends!$A$3:$Z$94,IF(ExFlg=0,21,25))+IF(B36>=$B$2,Sens,0) -> 1.045 | U36: 1.535803565 | W36: 5214.070538 | X36: 3062.677273 | Y36: 2151.393265 | AA36: 9744.35033 | AB36: 8139.09199 | AC36: 1605.25834 | AE36: 1741.792072 | AG36: =IF(B36<71,IF(B36-35<30,VLOOKUP(B36,Lookups!A:G,6),VLOOKUP(B36,Lookups!A:G,7)),"") -> 0.3 | AH36: 0.3 | AI36: 0.3 | AJ36: =IF(OR(B36<55,B36-35<20),VLOOKUP(B36-$B$3,Lookups!$O$3:$Q$53,2),VLOOKUP(B36,Lookups!$O$57:$P$122,2)) -> 0 | AK36: 0 | AL36: 0 | AM36: =IF(B36<55,VLOOKUP(B36,Lookups!A:M,12),"") ->  | AN36: =IF(B36<55,VLOOKUP(B36,Lookups!A:M,13),"") ->  | AP36: =IF(B36<70,VLOOKUP(B36,Lookups!A:I,8)*(1-VLOOKUP(B36,Lookups!$U$3:$W$103,2))^(B36-$B$2),"") -> 0.01201618647 | AQ36: =IF(B36<70,VLOOKUP(B36,Lookups!A:I,9)*(1-VLOOKUP(B36,Lookups!$U$3:$W$103,3))^(B36-$B$2),"") -> 0.007538544534 | AR36: 0.0097773655 | AS36: 0.3097773655 | AT36: 0.08934799194 | AU36: 0.7935137129 | AV36: 79 | AW36: =IF(BD36>=$B$3,VLOOKUP(BD36,Lookups!A:I,8)*(1-VLOOKUP(BD36,Lookups!U:W,2))^(BD36-$B$2),"") -> 0.03495861598 | AX36: =IF(BD36>=$B$3,VLOOKUP(BD36,Lookups!A:I,9)*(1-VLOOKUP(BD36,Lookups!U:W,3))^(BD36-$B$2),"") -> 0.0229165824 | AY36: 0.02893759919 | AZ36: 0.7903742712 | BA36: 0.3964767686 | BB36: 0.969907 | BD36: 79 | BE36: 4526.451713 | BQ36: 1375.746843 | BR36: 1432.477108 | BS36: 1491.737357 | BT36: 1553.657256 | BU36: 1618.374554 | BV36: 1686.041684 | BW36: 1756.81939 | BX36: 1830.896442 | BY36: 1908.455491 | BZ36: 1989.717684 | CA36: 2074.918837 | CB36: 2172.845793 | CC36: 2276.852323 | CD36: 2387.629277 | CE36: 2505.964842 | CF36: 2632.740221 | CN36: 35 | CO36: 0
A37: 2032 | B37: 69 | D37: =VLOOKUP(B37,Lookups!A:B,2) -> 3926.944125 | E37: =VLOOKUP(B37,Lookups!A:C,3) -> 2128.40628 | G37: =VLOOKUP(B37,Lookups!A:D,4) -> 6887.12157 | H37: =VLOOKUP(B37,Lookups!A:E,5) -> 5299.56576 | J37: =VLOOKUP(A37,Trends!$A$3:$Q$94,IF(ExFlg=0,2,10))+IF(B37>=$B$2,Sens,0) -> 1.043 | K37: 1.415076993 | L37: =VLOOKUP(A37,Trends!$A$3:$Q$94,IF(ExFlg=0,4,12))+IF(B37>=$B$2,Sens,0) -> 1.042 | M37: 1.411027601 | N37: =VLOOKUP(A37,Trends!$A$3:$Z$94,IF(ExFlg=0,19,23))+IF(B37>=$B$2,Sens,0) -> 1.043 | O37: 1.505145168 | P37: =VLOOKUP(A37,Trends!$A$3:$Q$94,IF(ExFlg=0,6,14))+IF(B37>=$B$2,Sens,0) -> 1.043 | Q37: 1.428534708 | R37: =VLOOKUP(A37,Trends!$A$3:$Q$94,IF(ExFlg=0,8,16))+IF(B37>=$B$2,Sens,0) -> 1.042 | S37: 1.499074456 | T37: =VLOOKUP(A37,Trends!$A$3:$Z$94,IF(ExFlg=0,21,25))+IF(B37>=$B$2,Sens,0) -> 1.043 | U37: 1.604914726 | W37: 5541.02655 | X37: 3203.560427 | Y37: 2337.466123 | AA37: 10324.30802 | AB37: 8505.351129 | AC37: 1818.956889 | AE37: 1948.584197 | AG37: =IF(B37<71,IF(B37-35<30,VLOOKUP(B37,Lookups!A:G,6),VLOOKUP(B37,Lookups!A:G,7)),"") -> 0.3 | AH37: 0.3 | AI37: 0.3 | AJ37: =IF(OR(B37<55,B37-35<20),VLOOKUP(B37-$B$3,Lookups!$O$3:$Q$53,2),VLOOKUP(B37,Lookups!$O$57:$P$122,2)) -> 0 | AK37: 0 | AL37: 0 | AM37: =IF(B37<55,VLOOKUP(B37,Lookups!A:M,12),"") ->  | AN37: =IF(B37<55,VLOOKUP(B37,Lookups!A:M,13),"") ->  | AP37: =IF(B37<70,VLOOKUP(B37,Lookups!A:I,8)*(1-VLOOKUP(B37,Lookups!$U$3:$W$103,2))^(B37-$B$2),"") -> 0.01316295307 | AQ37: =IF(B37<70,VLOOKUP(B37,Lookups!A:I,9)*(1-VLOOKUP(B37,Lookups!$U$3:$W$103,3))^(B37-$B$2),"") -> 0.008328693612 | AR37: 0.01074582334 | AS37: 0.3107458233 | AT37: 0.06167000639 | AU37: 0.7635078542 | AV37: 80 | AW37: =IF(BD37>=$B$3,VLOOKUP(BD37,Lookups!A:I,8)*(1-VLOOKUP(BD37,Lookups!U:W,2))^(BD37-$B$2),"") -> 0.03869278133 | AX37: =IF(BD37>=$B$3,VLOOKUP(BD37,Lookups!A:I,9)*(1-VLOOKUP(BD37,Lookups!U:W,3))^(BD37-$B$2),"") -> 0.02547243101 | AY37: 0.03208260617 | AZ37: 0.7675027373 | BA37: 0.3814844305 | BB37: 0.96852 | BD37: 80 | BE37: 4809.915801 | BQ37: 1363.963718 | BR37: 1420.208095 | BS37: 1478.960785 | BT37: 1540.350347 | BU37: 1604.513348 | BV37: 1671.600917 | BW37: 1741.772419 | BX37: 1815.215009 | BY37: 1892.109773 | BZ37: 1972.675965 | CA37: 2057.147379 | CB37: 2154.2356 | CC37: 2257.351326 | CD37: 2367.179487 | CE37: 2484.50152 | CF37: 2610.191082 | CN37: 35 | CO37: 0
A38: 2033 | B38: 70 | D38: =VLOOKUP(B38,Lookups!A:B,2) -> 3993.48252 | E38: =VLOOKUP(B38,Lookups!A:C,3) -> 2128.40628 | G38: =VLOOKUP(B38,Lookups!A:D,4) -> 6989.51916 | H38: =VLOOKUP(B38,Lookups!A:E,5) -> 5299.56576 | J38: =VLOOKUP(A38,Trends!$A$3:$Q$94,IF(ExFlg=0,2,10))+IF(B38>=$B$2,Sens,0) -> 1.041 | K38: 1.475925304 | L38: =VLOOKUP(A38,Trends!$A$3:$Q$94,IF(ExFlg=0,4,12))+IF(B38>=$B$2,Sens,0) -> 1.041 | M38: 1.470290761 | N38: =VLOOKUP(A38,Trends!$A$3:$Z$94,IF(ExFlg=0,19,23))+IF(B38>=$B$2,Sens,0) -> 1.042 | O38: 1.56986641 | P38: =VLOOKUP(A38,Trends!$A$3:$Q$94,IF(ExFlg=0,6,14))+IF(B38>=$B$2,Sens,0) -> 1.042 | Q38: 1.489961701 | R38: =VLOOKUP(A38,Trends!$A$3:$Q$94,IF(ExFlg=0,8,16))+IF(B38>=$B$2,Sens,0) -> 1.041 | S38: 1.562035583 | T38: =VLOOKUP(A38,Trends!$A$3:$Z$94,IF(ExFlg=0,21,25))+IF(B38>=$B$2,Sens,0) -> 1.042 | U38: 1.673926059 | W38: 5871.580452 | X38: 3341.313525 | Y38: 2530.266927 | AA38: 10917.87763 | AB38: 8871.081228 | AC38: 2046.796406 | AE38: 2167.664036 | AG38: =IF(B38<71,IF(B38-35<30,VLOOKUP(B38,Lookups!A:G,6),VLOOKUP(B38,Lookups!A:G,7)),"") -> 1 | AH38: 1 | AI38: 1 | AJ38: =IF(OR(B38<55,B38-35<20),VLOOKUP(B38-$B$3,Lookups!$O$3:$Q$53,2),VLOOKUP(B38,Lookups!$O$57:$P$122,2)) -> 0 | AK38: 0 | AL38: 0 | AM38: =IF(B38<55,VLOOKUP(B38,Lookups!A:M,12),"") ->  | AN38: =IF(B38<55,VLOOKUP(B38,Lookups!A:M,13),"") ->  | AP38: =IF(B38<70,VLOOKUP(B38,Lookups!A:I,8)*(1-VLOOKUP(B38,Lookups!$U$3:$W$103,2))^(B38-$B$2),"") ->  | AQ38: =IF(B38<70,VLOOKUP(B38,Lookups!A:I,9)*(1-VLOOKUP(B38,Lookups!$U$3:$W$103,3))^(B38-$B$2),"") ->  | AS38: 1 | AT38: 0.04250630948 | AU38: 0.7346366345 | AV38: 81 | AW38: =IF(BD38>=$B$3,VLOOKUP(BD38,Lookups!A:I,8)*(1-VLOOKUP(BD38,Lookups!U:W,2))^(BD38-$B$2),"") -> 0.04283951167 | AX38: =IF(BD38>=$B$3,VLOOKUP(BD38,Lookups!A:I,9)*(1-VLOOKUP(BD38,Lookups!U:W,3))^(BD38-$B$2),"") -> 0.02834374702 | AY38: 0.03559162934 | AZ38: 0.7428792492 | BA38: 0.3670590114 | BB38: 0.966973 | BD38: 81 | BE38: 5109.871682 | BQ38: 1347.343899 | BR38: 1402.902941 | BS38: 1460.939733 | BT38: 1521.581267 | BU38: 1584.962445 | BV38: 1651.232556 | BW38: 1720.549023 | BX38: 1793.096719 | BY38: 1869.054525 | BZ38: 1948.639021 | CA38: 2032.081157 | CB38: 2127.986363 | CC38: 2229.84563 | CD38: 2338.335541 | CE38: 2454.228012 | CF38: 2578.386054 | CN38: 35 | CO38: 0
A39: 2034 | B39: 71 | D39: =VLOOKUP(B39,Lookups!A:B,2) -> 4061.14479 | E39: =VLOOKUP(B39,Lookups!A:C,3) -> 2128.40628 | G39: =VLOOKUP(B39,Lookups!A:D,4) -> 7093.48131 | H39: =VLOOKUP(B39,Lookups!A:E,5) -> 5299.56576 | J39: =VLOOKUP(A39,Trends!$A$3:$Q$94,IF(ExFlg=0,2,10))+IF(B39>=$B$2,Sens,0) -> 1.041 | K39: 1.536438242 | L39: =VLOOKUP(A39,Trends!$A$3:$Q$94,IF(ExFlg=0,4,12))+IF(B39>=$B$2,Sens,0) -> 1.041 | M39: 1.530572682 | N39: =VLOOKUP(A39,Trends!$A$3:$Z$94,IF(ExFlg=0,19,23))+IF(B39>=$B$2,Sens,0) -> 1.042 | O39: 1.635800799 | P39: =VLOOKUP(A39,Trends!$A$3:$Q$94,IF(ExFlg=0,6,14))+IF(B39>=$B$2,Sens,0) -> 1.042 | Q39: 1.552540092 | R39: =VLOOKUP(A39,Trends!$A$3:$Q$94,IF(ExFlg=0,8,16))+IF(B39>=$B$2,Sens,0) -> 1.041 | S39: 1.626079042 | T39: =VLOOKUP(A39,Trends!$A$3:$Z$94,IF(ExFlg=0,21,25))+IF(B39>=$B$2,Sens,0) -> 1.042 | U39: 1.744230954 | W39: 6215.877273 | X39: 3481.648694 | Y39: 2734.228579 | AA39: 11534.56129 | AB39: 9243.666639 | AC39: 2290.894651 | AE39: 2401.728133 | AG39: =IF(B39<71,IF(B39-35<30,VLOOKUP(B39,Lookups!A:G,6),VLOOKUP(B39,Lookups!A:G,7)),"") ->  | AJ39: =IF(OR(B39<55,B39-35<20),VLOOKUP(B39-$B$3,Lookups!$O$3:$Q$53,2),VLOOKUP(B39,Lookups!$O$57:$P$122,2)) -> 0 | AK39: 0 | AL39: 0 | AM39: =IF(B39<55,VLOOKUP(B39,Lookups!A:M,12),"") ->  | AN39: =IF(B39<55,VLOOKUP(B39,Lookups!A:M,13),"") ->  | AP39: =IF(B39<70,VLOOKUP(B39,Lookups!A:I,8)*(1-VLOOKUP(B39,Lookups!$U$3:$W$103,2))^(B39-$B$2),"") ->  | AQ39: =IF(B39<70,VLOOKUP(B39,Lookups!A:I,9)*(1-VLOOKUP(B39,Lookups!$U$3:$W$103,3))^(B39-$B$2),"") ->  | AS39: =IF(B39<71,SUM(AI39,AL39,AO39,AR39),"") ->  | AV39: 82 | AW39: =IF(BD39>=$B$3,VLOOKUP(BD39,Lookups!A:I,8)*(1-VLOOKUP(BD39,Lookups!U:W,2))^(BD39-$B$2),"") -> 0.04741928342 | AX39: =IF(BD39>=$B$3,VLOOKUP(BD39,Lookups!A:I,9)*(1-VLOOKUP(BD39,Lookups!U:W,3))^(BD39-$B$2),"") -> 0.03157047985 | AY39: 0.03949488164 | AZ39: 0.7164389664 | BA39: 0.3531790738 | BB39: 0.965251 | BD39: 82 | BE39: 5427.245293 | BQ39: 1325.543159 | BR39: 1380.203226 | BS39: 1437.300953 | BT39: 1496.961274 | BU39: 1559.316912 | BV39: 1624.514736 | BW39: 1692.709626 | BX39: 1764.083462 | BY39: 1838.81223 | BZ39: 1917.109007 | CA39: 1999.201005 | CB39: 2093.554414 | CC39: 2193.765544 | CD39: 2300.500031 | CE39: 2414.5173 | CF39: 2536.666399 | CN39: 35 | CO39: 0
A40: 2035 | B40: 72 | D40: =VLOOKUP(B40,Lookups!A:B,2) -> 4129.960905 | E40: =VLOOKUP(B40,Lookups!A:C,3) -> 2128.40628 | G40: =VLOOKUP(B40,Lookups!A:D,4) -> 7199.02233 | H40: =VLOOKUP(B40,Lookups!A:E,5) -> 5299.56576 | J40: =VLOOKUP(A40,Trends!$A$3:$Q$94,IF(ExFlg=0,2,10))+IF(B40>=$B$2,Sens,0) -> 1.041 | K40: 1.59943221 | L40: =VLOOKUP(A40,Trends!$A$3:$Q$94,IF(ExFlg=0,4,12))+IF(B40>=$B$2,Sens,0) -> 1.041 | M40: 1.593326162 | N40: =VLOOKUP(A40,Trends!$A$3:$Z$94,IF(ExFlg=0,19,23))+IF(B40>=$B$2,Sens,0) -> 1.042 | O40: 1.704504433 | P40: =VLOOKUP(A40,Trends!$A$3:$Q$94,IF(ExFlg=0,6,14))+IF(B40>=$B$2,Sens,0) -> 1.042 | Q40: 1.617746776 | R40: =VLOOKUP(A40,Trends!$A$3:$Q$94,IF(ExFlg=0,8,16))+IF(B40>=$B$2,Sens,0) -> 1.041 | S40: 1.692748282 | T40: =VLOOKUP(A40,Trends!$A$3:$Z$94,IF(ExFlg=0,21,25))+IF(B40>=$B$2,Sens,0) -> 1.042 | U40: 1.817488654 | W40: 6580.374757 | X40: 3627.877939 | Y40: 2952.496819 | AA40: 12186.13268 | AB40: 9631.900638 | AC40: 2554.232045 | AE40: 2653.798239 | AG40: =IF(B40<71,IF(B40-35<30,VLOOKUP(B40,Lookups!A:G,6),VLOOKUP(B40,Lookups!A:G,7)),"") ->  | AJ40: =IF(OR(B40<55,B40-35<20),VLOOKUP(B40-$B$3,Lookups!$O$3:$Q$53,2),VLOOKUP(B40,Lookups!$O$57:$P$122,2)) -> 0 | AK40: 0 | AL40: 0 | AM40: =IF(B40<55,VLOOKUP(B40,Lookups!A:M,12),"") ->  | AN40: =IF(B40<55,VLOOKUP(B40,Lookups!A:M,13),"") ->  | AP40: =IF(B40<70,VLOOKUP(B40,Lookups!A:I,8)*(1-VLOOKUP(B40,Lookups!$U$3:$W$103,2))^(B40-$B$2),"") ->  | AQ40: =IF(B40<70,VLOOKUP(B40,Lookups!A:I,9)*(1-VLOOKUP(B40,Lookups!$U$3:$W$103,3))^(B40-$B$2),"") ->  | AV40: 83 | AW40: =IF(BD40>=$B$3,VLOOKUP(BD40,Lookups!A:I,8)*(1-VLOOKUP(BD40,Lookups!U:W,2))^(BD40-$B$2),"") -> 0.05247473839 | AX40: =IF(BD40>=$B$3,VLOOKUP(BD40,Lookups!A:I,9)*(1-VLOOKUP(BD40,Lookups!U:W,3))^(BD40-$B$2),"") -> 0.03523166441 | AY40: 0.0438532014 | AZ40: 0.6881432942 | BA40: 0.3398239909 | BB40: 0.963329 | BD40: 83 | BE40: 5682.341548 | BQ40: 1280.073441 | BR40: 1332.858519 | BS40: 1387.997639 | BT40: 1445.61145 | BU40: 1505.82812 | BV40: 1568.789483 | BW40: 1634.645104 | BX40: 1703.570624 | BY40: 1775.735993 | BZ40: 1851.346979 | CA40: 1930.622998 | CB40: 2021.73983 | CC40: 2118.513447 | CD40: 2221.586652 | CE40: 2331.69282 | CF40: 2449.651875 | CN40: 35 | CO40: 0
A41: 2036 | B41: 73 | D41: =VLOOKUP(B41,Lookups!A:B,2) -> 4179.331485 | E41: =VLOOKUP(B41,Lookups!A:C,3) -> 2128.40628 | G41: =VLOOKUP(B41,Lookups!A:D,4) -> 7285.08744 | H41: =VLOOKUP(B41,Lookups!A:E,5) -> 5299.56576 | J41: =VLOOKUP(A41,Trends!$A$3:$Q$94,IF(ExFlg=0,2,10))+IF(B41>=$B$2,Sens,0) -> 1.041 | K41: 1.66500893 | L41: =VLOOKUP(A41,Trends!$A$3:$Q$94,IF(ExFlg=0,4,12))+IF(B41>=$B$2,Sens,0) -> 1.041 | M41: 1.658652534 | N41: =VLOOKUP(A41,Trends!$A$3:$Z$94,IF(ExFlg=0,19,23))+IF(B41>=$B$2,Sens,0) -> 1.042 | O41: 1.776093619 | P41: =VLOOKUP(A41,Trends!$A$3:$Q$94,IF(ExFlg=0,6,14))+IF(B41>=$B$2,Sens,0) -> 1.042 | Q41: 1.685692141 | R41: =VLOOKUP(A41,Trends!$A$3:$Q$94,IF(ExFlg=0,8,16))+IF(B41>=$B$2,Sens,0) -> 1.041 | S41: 1.762150962 | T41: =VLOOKUP(A41,Trends!$A$3:$Z$94,IF(ExFlg=0,21,25))+IF(B41>=$B$2,Sens,0) -> 1.042 | U41: 1.893823177 | W41: 6932.05876 | X41: 3780.248812 | Y41: 3151.809948 | AA41: 12837.42384 | AB41: 10036.44047 | AC41: 2800.983375 | AE41: 2888.690018 | AG41: =IF(B41<71,IF(B41-35<30,VLOOKUP(B41,Lookups!A:G,6),VLOOKUP(B41,Lookups!A:G,7)),"") ->  | AJ41: =IF(OR(B41<55,B41-35<20),VLOOKUP(B41-$B$3,Lookups!$O$3:$Q$53,2),VLOOKUP(B41,Lookups!$O$57:$P$122,2)) -> 0 | AK41: 0 | AL41: 0 | AM41: =IF(B41<55,VLOOKUP(B41,Lookups!A:M,12),"") ->  | AN41: =IF(B41<55,VLOOKUP(B41,Lookups!A:M,13),"") ->  | AP41: =IF(B41<70,VLOOKUP(B41,Lookups!A:I,8)*(1-VLOOKUP(B41,Lookups!$U$3:$W$103,2))^(B41-$B$2),"") ->  | AQ41: =IF(B41<70,VLOOKUP(B41,Lookups!A:I,9)*(1-VLOOKUP(B41,Lookups!$U$3:$W$103,3))^(B41-$B$2),"") ->  | AV41: 84 | AW41: =IF(BD41>=$B$3,VLOOKUP(BD41,Lookups!A:I,8)*(1-VLOOKUP(BD41,Lookups!U:W,2))^(BD41-$B$2),"") -> 0.05801002968 | AX41: =IF(BD41>=$B$3,VLOOKUP(BD41,Lookups!A:I,9)*(1-VLOOKUP(BD41,Lookups!U:W,3))^(BD41-$B$2),"") -> 0.03940215557 | AY41: 0.04870609262 | AZ41: 0.6579660077 | BA41: 0.326973916 | BB41: 0.961189 | BD41: 84 | BE41: 5949.36048 | BQ41: 1230.256426 | BR41: 1280.987252 | BS41: 1333.980506 | BT41: 1389.352142 | BU41: 1447.225341 | BV41: 1507.736417 | BW41: 1571.029114 | BX41: 1637.272238 | BY41: 1706.629125 | BZ41: 1779.297535 | CA41: 1855.488346 | CB41: 1943.059156 | CC41: 2036.066604 | CD41: 2135.128477 | CE41: 2240.949609 | CF41: 2354.318014 | CN41: 35 | CO41: 0
A42: 2037 | B42: 74 | D42: =VLOOKUP(B42,Lookups!A:B,2) -> 4229.35641 | E42: =VLOOKUP(B42,Lookups!A:C,3) -> 2128.40628 | G42: =VLOOKUP(B42,Lookups!A:D,4) -> 7372.28304 | H42: =VLOOKUP(B42,Lookups!A:E,5) -> 5299.56576 | J42: =VLOOKUP(A42,Trends!$A$3:$Q$94,IF(ExFlg=0,2,10))+IF(B42>=$B$2,Sens,0) -> 1.041 | K42: 1.733274296 | L42: =VLOOKUP(A42,Trends!$A$3:$Q$94,IF(ExFlg=0,4,12))+IF(B42>=$B$2,Sens,0) -> 1.041 | M42: 1.726657288 | N42: =VLOOKUP(A42,Trends!$A$3:$Z$94,IF(ExFlg=0,19,23))+IF(B42>=$B$2,Sens,0) -> 1.042 | O42: 1.850689551 | P42: =VLOOKUP(A42,Trends!$A$3:$Q$94,IF(ExFlg=0,6,14))+IF(B42>=$B$2,Sens,0) -> 1.042 | Q42: 1.756491211 | R42: =VLOOKUP(A42,Trends!$A$3:$Q$94,IF(ExFlg=0,8,16))+IF(B42>=$B$2,Sens,0) -> 1.041 | S42: 1.834399151 | T42: =VLOOKUP(A42,Trends!$A$3:$Z$94,IF(ExFlg=0,21,25))+IF(B42>=$B$2,Sens,0) -> 1.042 | U42: 1.973363751 | W42: 7302.649071 | X42: 3939.019262 | Y42: 3363.629808 | AA42: 13523.70975 | AB42: 10457.97096 | AC42: 3065.738787 | AE42: 3140.211543 | AG42: =IF(B42<71,IF(B42-35<30,VLOOKUP(B42,Lookups!A:G,6),VLOOKUP(B42,Lookups!A:G,7)),"") ->  | AJ42: =IF(OR(B42<55,B42-35<20),VLOOKUP(B42-$B$3,Lookups!$O$3:$Q$53,2),VLOOKUP(B42,Lookups!$O$57:$P$122,2)) -> 0 | AK42: 0 | AL42: 0 | AM42: =IF(B42<55,VLOOKUP(B42,Lookups!A:M,12),"") ->  | AN42: =IF(B42<55,VLOOKUP(B42,Lookups!A:M,13),"") ->  | AP42: =IF(B42<70,VLOOKUP(B42,Lookups!A:I,8)*(1-VLOOKUP(B42,Lookups!$U$3:$W$103,2))^(B42-$B$2),"") ->  | AQ42: =IF(B42<70,VLOOKUP(B42,Lookups!A:I,9)*(1-VLOOKUP(B42,Lookups!$U$3:$W$103,3))^(B42-$B$2),"") ->  | AV42: 85 | AW42: =IF(BD42>=$B$3,VLOOKUP(BD42,Lookups!A:I,8)*(1-VLOOKUP(BD42,Lookups!U:W,2))^(BD42-$B$2),"") -> 0.06405791018 | AX42: =IF(BD42>=$B$3,VLOOKUP(BD42,Lookups!A:I,9)*(1-VLOOKUP(BD42,Lookups!U:W,3))^(BD42-$B$2),"") -> 0.04418182457 | AY42: 0.05411986737 | AZ42: 0.6259190544 | BA42: 0.3146097527 | BB42: 0.958802 | BD42: 85 | BE42: 6228.829038 | BQ42: 1176.049757 | BR42: 1224.545317 | BS42: 1275.20362 | BT42: 1328.135511 | BU42: 1383.458744 | BV42: 1441.303625 | BW42: 1501.807564 | BX42: 1565.131932 | BY42: 1631.432866 | BZ42: 1700.899413 | CA42: 1773.733159 | CB42: 1857.445487 | CC42: 1946.354908 | CD42: 2041.051988 | CE42: 2142.210507 | CF42: 2250.583755 | CN42: 35 | CO42: 0
A43: 2038 | B43: 75 | D43: =VLOOKUP(B43,Lookups!A:B,2) -> 4280.03568 | E43: =VLOOKUP(B43,Lookups!A:C,3) -> 2128.40628 | G43: =VLOOKUP(B43,Lookups!A:D,4) -> 7460.62344 | H43: =VLOOKUP(B43,Lookups!A:E,5) -> 5299.56576 | J43: =VLOOKUP(A43,Trends!$A$3:$Q$94,IF(ExFlg=0,2,10))+IF(B43>=$B$2,Sens,0) -> 1.041 | K43: 1.804338542 | L43: =VLOOKUP(A43,Trends!$A$3:$Q$94,IF(ExFlg=0,4,12))+IF(B43>=$B$2,Sens,0) -> 1.041 | M43: 1.797450237 | N43: =VLOOKUP(A43,Trends!$A$3:$Z$94,IF(ExFlg=0,19,23))+IF(B43>=$B$2,Sens,0) -> 1.042 | O43: 1.928418512 | P43: =VLOOKUP(A43,Trends!$A$3:$Q$94,IF(ExFlg=0,6,14))+IF(B43>=$B$2,Sens,0) -> 1.042 | Q43: 1.830263842 | R43: =VLOOKUP(A43,Trends!$A$3:$Q$94,IF(ExFlg=0,8,16))+IF(B43>=$B$2,Sens,0) -> 1.041 | S43: 1.909609517 | T43: =VLOOKUP(A43,Trends!$A$3:$Z$94,IF(ExFlg=0,21,25))+IF(B43>=$B$2,Sens,0) -> 1.042 | U43: 2.056245028 | W43: 7693.151148 | X43: 4104.458071 | Y43: 3588.693077 | AA43: 14246.87752 | AB43: 10897.20575 | AC43: 3349.671775 | AE43: 3409.427101 | AG43: =IF(B43<71,IF(B43-35<30,VLOOKUP(B43,Lookups!A:G,6),VLOOKUP(B43,Lookups!A:G,7)),"") ->  | AJ43: =IF(OR(B43<55,B43-35<20),VLOOKUP(B43-$B$3,Lookups!$O$3:$Q$53,2),VLOOKUP(B43,Lookups!$O$57:$P$122,2)) -> 0 | AK43: 0 | AL43: 0 | AM43: =IF(B43<55,VLOOKUP(B43,Lookups!A:M,12),"") ->  | AN43: =IF(B43<55,VLOOKUP(B43,Lookups!A:M,13),"") ->  | AP43: =IF(B43<70,VLOOKUP(B43,Lookups!A:I,8)*(1-VLOOKUP(B43,Lookups!$U$3:$W$103,2))^(B43-$B$2),"") ->  | AQ43: =IF(B43<70,VLOOKUP(B43,Lookups!A:I,9)*(1-VLOOKUP(B43,Lookups!$U$3:$W$103,3))^(B43-$B$2),"") ->  | AV43: 86 | AW43: =IF(BD43>=$B$3,VLOOKUP(BD43,Lookups!A:I,8)*(1-VLOOKUP(BD43,Lookups!U:W,2))^(BD43-$B$2),"") -> 0.07090611715 | AX43: =IF(BD43>=$B$3,VLOOKUP(BD43,Lookups!A:I,9)*(1-VLOOKUP(BD43,Lookups!U:W,3))^(BD43-$B$2),"") -> 0.04986899818 | AY43: 0.06038755766 | AZ43: 0.5920443982 | BA43: 0.3027131269 | BB43: 0.956038 | BD43: 86 | BE43: 6521.312941 | BQ43: 1117.366706 | BR43: 1163.442413 | BS43: 1211.572946 | BT43: 1261.863618 | BU43: 1314.426308 | BV43: 1369.384819 | BW43: 1426.869706 | BX43: 1487.034286 | BY43: 1550.026907 | BZ43: 1616.027182 | CA43: 1685.226637 | CB43: 1764.76185 | CC43: 1849.23483 | CD43: 1939.206673 | CE43: 2035.317539 | CF43: 2138.283131 | CN43: 35 | CO43: 0
A44: 2039 | B44: 76 | D44: =VLOOKUP(B44,Lookups!A:B,2) -> 4331.379285 | E44: =VLOOKUP(B44,Lookups!A:C,3) -> 2128.40628 | G44: =VLOOKUP(B44,Lookups!A:D,4) -> 7550.12772 | H44: =VLOOKUP(B44,Lookups!A:E,5) -> 5299.56576 | J44: =VLOOKUP(A44,Trends!$A$3:$Q$94,IF(ExFlg=0,2,10))+IF(B44>=$B$2,Sens,0) -> 1.041 | K44: 1.878316423 | L44: =VLOOKUP(A44,Trends!$A$3:$Q$94,IF(ExFlg=0,4,12))+IF(B44>=$B$2,Sens,0) -> 1.041 | M44: 1.871145697 | N44: =VLOOKUP(A44,Trends!$A$3:$Z$94,IF(ExFlg=0,19,23))+IF(B44>=$B$2,Sens,0) -> 1.042 | O44: 2.009412089 | P44: =VLOOKUP(A44,Trends!$A$3:$Q$94,IF(ExFlg=0,6,14))+IF(B44>=$B$2,Sens,0) -> 1.042 | Q44: 1.907134923 | R44: =VLOOKUP(A44,Trends!$A$3:$Q$94,IF(ExFlg=0,8,16))+IF(B44>=$B$2,Sens,0) -> 1.041 | S44: 1.987903507 | T44: =VLOOKUP(A44,Trends!$A$3:$Z$94,IF(ExFlg=0,21,25))+IF(B44>=$B$2,Sens,0) -> 1.042 | U44: 2.142607319 | W44: 8104.641711 | X44: 4276.84531 | Y44: 3827.796401 | AA44: 15008.92537 | AB44: 11354.88839 | AC44: 3654.036984 | AE44: 3697.476838 | AG44: =IF(B44<71,IF(B44-35<30,VLOOKUP(B44,Lookups!A:G,6),VLOOKUP(B44,Lookups!A:G,7)),"") ->  | AJ44: =IF(OR(B44<55,B44-35<20),VLOOKUP(B44-$B$3,Lookups!$O$3:$Q$53,2),VLOOKUP(B44,Lookups!$O$57:$P$122,2)) -> 0 | AK44: 0 | AL44: 0 | AM44: =IF(B44<55,VLOOKUP(B44,Lookups!A:M,12),"") ->  | AN44: =IF(B44<55,VLOOKUP(B44,Lookups!A:M,13),"") ->  | AP44: =IF(B44<70,VLOOKUP(B44,Lookups!A:I,8)*(1-VLOOKUP(B44,Lookups!$U$3:$W$103,2))^(B44-$B$2),"") ->  | AQ44: =IF(B44<70,VLOOKUP(B44,Lookups!A:I,9)*(1-VLOOKUP(B44,Lookups!$U$3:$W$103,3))^(B44-$B$2),"") ->  | AV44: 87 | AW44: =IF(BD44>=$B$3,VLOOKUP(BD44,Lookups!A:I,8)*(1-VLOOKUP(BD44,Lookups!U:W,2))^(BD44-$B$2),"") -> 0.07868205433 | AX44: =IF(BD44>=$B$3,VLOOKUP(BD44,Lookups!A:I,9)*(1-VLOOKUP(BD44,Lookups!U:W,3))^(BD44-$B$2),"") -> 0.05658787083 | AY44: 0.06763496258 | AZ44: 0.556292283 | BA44: =IF(AY43="",1,BA43/(1+IntRt)) -> 0.291266359 | BB44: =IF(AY44="",1,ROUND((13/24)+(11/24)*(1/(1+IntRt))*(1-AY44),6)) -> 0.952841 | BD44: 87 | BE44: 6827.439503 | BQ44: 1054.075354 | BR44: 1097.541181 | BS44: 1142.945441 | BT44: 1190.387483 | BU44: 1239.972848 | BV44: 1291.818327 | BW44: 1346.04708 | BX44: 1402.803739 | BY44: 1462.228249 | BZ44: 1524.490049 | CA44: 1589.769818 | CB44: 1664.799894 | CC44: 1744.488044 | CD44: 1829.363584 | CE44: 1920.030412 | CF44: 2017.163692 | CN44: 35 | CO44: 0
A45: 2040 | B45: 77 | D45: =VLOOKUP(B45,Lookups!A:B,2) -> 4383.40221 | E45: =VLOOKUP(B45,Lookups!A:C,3) -> 2128.40628 | G45: =VLOOKUP(B45,Lookups!A:D,4) -> 7640.80542 | H45: =VLOOKUP(B45,Lookups!A:E,5) -> 5299.56576 | J45: =VLOOKUP(A45,Trends!$A$3:$Q$94,IF(ExFlg=0,2,10))+IF(B45>=$B$2,Sens,0) -> 1.042 | K45: 1.955327396 | L45: =VLOOKUP(A45,Trends!$A$3:$Q$94,IF(ExFlg=0,4,12))+IF(B45>=$B$2,Sens,0) -> 1.041 | M45: 1.947862671 | N45: =VLOOKUP(A45,Trends!$A$3:$Z$94,IF(ExFlg=0,19,23))+IF(B45>=$B$2,Sens,0) -> 1.042 | O45: 2.093807397 | P45: =VLOOKUP(A45,Trends!$A$3:$Q$94,IF(ExFlg=0,6,14))+IF(B45>=$B$2,Sens,0) -> 1.042 | Q45: 1.98723459 | R45: =VLOOKUP(A45,Trends!$A$3:$Q$94,IF(ExFlg=0,8,16))+IF(B45>=$B$2,Sens,0) -> 1.041 | S45: 2.069407551 | T45: =VLOOKUP(A45,Trends!$A$3:$Z$94,IF(ExFlg=0,21,25))+IF(B45>=$B$2,Sens,0) -> 1.042 | U45: 2.232596827 | W45: 8538.265535 | X45: 4456.472813 | Y45: 4081.792722 | AA45: 15811.94043 | AB45: 11831.7937 | AC45: 3980.146729 | AE45: 4005.558227 | AG45: =IF(B45<71,IF(B45-35<30,VLOOKUP(B45,Lookups!A:G,6),VLOOKUP(B45,Lookups!A:G,7)),"") ->  | AJ45: =IF(OR(B45<55,B45-35<20),VLOOKUP(B45-$B$3,Lookups!$O$3:$Q$53,2),VLOOKUP(B45,Lookups!$O$57:$P$122,2)) -> 0 | AK45: 0 | AL45: 0 | AM45: =IF(B45<55,VLOOKUP(B45,Lookups!A:M,12),"") ->  | AN45: =IF(B45<55,VLOOKUP(B45,Lookups!A:M,13),"") ->  | AP45: =IF(B45<70,VLOOKUP(B45,Lookups!A:I,8)*(1-VLOOKUP(B45,Lookups!$U$3:$W$103,2))^(B45-$B$2),"") ->  | AQ45: =IF(B45<70,VLOOKUP(B45,Lookups!A:I,9)*(1-VLOOKUP(B45,Lookups!$U$3:$W$103,3))^(B45-$B$2),"") ->  | AV45: 88 | AW45: =IF(BD45>=$B$3,VLOOKUP(BD45,Lookups!A:I,8)*(1-VLOOKUP(BD45,Lookups!U:W,2))^(BD45-$B$2),"") -> 0.08682740113 | AX45: =IF(BD45>=$B$3,VLOOKUP(BD45,Lookups!A:I,9)*(1-VLOOKUP(BD45,Lookups!U:W,3))^(BD45-$B$2),"") -> 0.06391362993 | AY45: 0.07537051553 | AZ45: 0.5186674752 | BA45: 0.2802524381 | BB45: 0.94943 | BD45: 88 | BE45: 7149.508484 | BQ45: 986.6827845 | BR45: 1027.369613 | BS45: 1069.87094 | BT45: 1114.279764 | BU45: 1160.694875 | BV45: 1209.225601 | BW45: 1259.987225 | BX45: 1313.115133 | BY45: 1368.740322 | BZ45: 1427.021399 | CA45: 1488.12749 | CB45: 1558.360499 | CC45: 1632.953767 | CD45: 1712.402769 | CE45: 1797.27279 | CF45: 1888.19583 | CN45: 35 | CO45: 0
A46: 2041 | B46: 78 | D46: =VLOOKUP(B46,Lookups!A:B,2) -> 4413.137445 | E46: =VLOOKUP(B46,Lookups!A:C,3) -> 2128.40628 | G46: =VLOOKUP(B46,Lookups!A:D,4) -> 7692.63147 | H46: =VLOOKUP(B46,Lookups!A:E,5) -> 5299.56576 | J46: =VLOOKUP(A46,Trends!$A$3:$Q$94,IF(ExFlg=0,2,10))+IF(B46>=$B$2,Sens,0) -> 1.042 | K46: 2.037451147 | L46: =VLOOKUP(A46,Trends!$A$3:$Q$94,IF(ExFlg=0,4,12))+IF(B46>=$B$2,Sens,0) -> 1.041 | M46: 2.02772504 | N46: =VLOOKUP(A46,Trends!$A$3:$Z$94,IF(ExFlg=0,19,23))+IF(B46>=$B$2,Sens,0) -> 1.042 | O46: 2.181747308 | P46: =VLOOKUP(A46,Trends!$A$3:$Q$94,IF(ExFlg=0,6,14))+IF(B46>=$B$2,Sens,0) -> 1.042 | Q46: 2.070698442 | R46: =VLOOKUP(A46,Trends!$A$3:$Q$94,IF(ExFlg=0,8,16))+IF(B46>=$B$2,Sens,0) -> 1.041 | S46: 2.15425326 | T46: =VLOOKUP(A46,Trends!$A$3:$Z$94,IF(ExFlg=0,21,25))+IF(B46>=$B$2,Sens,0) -> 1.042 | U46: 2.326365893 | W46: 8948.629302 | X46: 4643.644671 | Y46: 4304.984631 | AA46: 16571.87642 | AB46: 12328.72903 | AC46: 4243.147389 | AE46: 4258.606699 | AG46: =IF(B46<71,IF(B46-35<30,VLOOKUP(B46,Lookups!A:G,6),VLOOKUP(B46,Lookups!A:G,7)),"") ->  | AJ46: =IF(OR(B46<55,B46-35<20),VLOOKUP(B46-$B$3,Lookups!$O$3:$Q$53,2),VLOOKUP(B46,Lookups!$O$57:$P$122,2)) -> 0 | AK46: 0 | AL46: 0 | AM46: =IF(B46<55,VLOOKUP(B46,Lookups!A:M,12),"") ->  | AN46: =IF(B46<55,VLOOKUP(B46,Lookups!A:M,13),"") ->  | AP46: =IF(B46<70,VLOOKUP(B46,Lookups!A:I,8)*(1-VLOOKUP(B46,Lookups!$U$3:$W$103,2))^(B46-$B$2),"") ->  | AQ46: =IF(B46<70,VLOOKUP(B46,Lookups!A:I,9)*(1-VLOOKUP(B46,Lookups!$U$3:$W$103,3))^(B46-$B$2),"") ->  | AV46: 89 | AW46: =IF(BD46>=$B$3,VLOOKUP(BD46,Lookups!A:I,8)*(1-VLOOKUP(BD46,Lookups!U:W,2))^(BD46-$B$2),"") -> 0.09604150814 | AX46: =IF(BD46>=$B$3,VLOOKUP(BD46,Lookups!A:I,9)*(1-VLOOKUP(BD46,Lookups!U:W,3))^(BD46-$B$2),"") -> 0.07232014455 | AY46: 0.08418082635 | AZ46: 0.4795752402 | BA46: 0.2696549968 | BB46: 0.945545 | BD46: 89 | BE46: 7486.634086 | BQ46: 915.4487478 | BR46: 953.198171 | BS46: 992.6310947 | BT46: 1033.833802 | BU46: 1076.897952 | BV46: 1121.924979 | BW46: 1169.021843 | BX46: 1218.314156 | BY46: 1269.923458 | BZ46: 1323.996905 | CA46: 1380.691412 | CB46: 1445.853915 | CC46: 1515.061887 | CD46: 1588.77503 | CE46: 1667.51782 | CF46: 1751.876627 | CN46: 35 | CO46: 0
A47: 2042 | B47: 79 | D47: =VLOOKUP(B47,Lookups!A:B,2) -> 4443.09246 | E47: =VLOOKUP(B47,Lookups!A:C,3) -> 2128.40628 | G47: =VLOOKUP(B47,Lookups!A:D,4) -> 7744.8582 | H47: =VLOOKUP(B47,Lookups!A:E,5) -> 5299.56576 | J47: =VLOOKUP(A47,Trends!$A$3:$Q$94,IF(ExFlg=0,2,10))+IF(B47>=$B$2,Sens,0) -> 1.042 | K47: 2.123024095 | L47: =VLOOKUP(A47,Trends!$A$3:$Q$94,IF(ExFlg=0,4,12))+IF(B47>=$B$2,Sens,0) -> 1.041 | M47: 2.110861767 | N47: =VLOOKUP(A47,Trends!$A$3:$Z$94,IF(ExFlg=0,19,23))+IF(B47>=$B$2,Sens,0) -> 1.042 | O47: 2.273380695 | P47: =VLOOKUP(A47,Trends!$A$3:$Q$94,IF(ExFlg=0,6,14))+IF(B47>=$B$2,Sens,0) -> 1.042 | Q47: 2.157667777 | R47: =VLOOKUP(A47,Trends!$A$3:$Q$94,IF(ExFlg=0,8,16))+IF(B47>=$B$2,Sens,0) -> 1.041 | S47: 2.242577644 | T47: =VLOOKUP(A47,Trends!$A$3:$Z$94,IF(ExFlg=0,21,25))+IF(B47>=$B$2,Sens,0) -> 1.042 | U47: 2.424073261 | W47: 9378.754 | X47: 4838.677748 | Y47: 4540.076252 | AA47: 17368.44585 | AB47: 12846.53565 | AC47: 4521.9102 | AE47: 4526.451713 | AG47: =IF(B47<71,IF(B47-35<30,VLOOKUP(B47,Lookups!A:G,6),VLOOKUP(B47,Lookups!A:G,7)),"") ->  | AJ47: =IF(OR(B47<55,B47-35<20),VLOOKUP(B47-$B$3,Lookups!$O$3:$Q$53,2),VLOOKUP(B47,Lookups!$O$57:$P$122,2)) -> 0 | AK47: 0 | AL47: 0 | AM47: =IF(B47<55,VLOOKUP(B47,Lookups!A:M,12),"") ->  | AN47: =IF(B47<55,VLOOKUP(B47,Lookups!A:M,13),"") ->  | AP47: =IF(B47<70,VLOOKUP(B47,Lookups!A:I,8)*(1-VLOOKUP(B47,Lookups!$U$3:$W$103,2))^(B47-$B$2),"") ->  | AQ47: =IF(B47<70,VLOOKUP(B47,Lookups!A:I,9)*(1-VLOOKUP(B47,Lookups!$U$3:$W$103,3))^(B47-$B$2),"") ->  | AV47: 90 | AW47: =IF(BD47>=$B$3,VLOOKUP(BD47,Lookups!A:I,8)*(1-VLOOKUP(BD47,Lookups!U:W,2))^(BD47-$B$2),"") -> 0.1055958995 | AX47: =IF(BD47>=$B$3,VLOOKUP(BD47,Lookups!A:I,9)*(1-VLOOKUP(BD47,Lookups!U:W,3))^(BD47-$B$2),"") -> 0.08111879136 | AY47: 0.09335734544 | AZ47: 0.4392042002 | BA47: 0.2594582861 | BB47: 0.941498 | BD47: 90 | BE47: 7784.705209 | BQ47: 835.209841 | BR47: 869.6505345 | BS47: 905.6271701 | BT47: 943.2184677 | BU47: 982.5080538 | BV47: 1023.58847 | BW47: 1066.557303 | BX47: 1111.529155 | BY47: 1158.614911 | BZ47: 1207.948831 | CA47: 1259.674075 | CB47: 1319.125098 | CC47: 1382.267004 | CD47: 1449.519204 | CE47: 1521.360203 | CF47: 1598.324977 | CN47: 35 | CO47: 0
A48: 2043 | B48: 80 | D48: =VLOOKUP(B48,Lookups!A:B,2) -> 4473.287235 | E48: =VLOOKUP(B48,Lookups!A:C,3) -> 2128.40628 | G48: =VLOOKUP(B48,Lookups!A:D,4) -> 7797.48084 | H48: =VLOOKUP(B48,Lookups!A:E,5) -> 5299.56576 | J48: =VLOOKUP(A48,Trends!$A$3:$Q$94,IF(ExFlg=0,2,10))+IF(B48>=$B$2,Sens,0) -> 1.042 | K48: 2.212191107 | L48: =VLOOKUP(A48,Trends!$A$3:$Q$94,IF(ExFlg=0,4,12))+IF(B48>=$B$2,Sens,0) -> 1.041 | M48: 2.197407099 | N48: =VLOOKUP(A48,Trends!$A$3:$Z$94,IF(ExFlg=0,19,23))+IF(B48>=$B$2,Sens,0) -> 1.042 | O48: 2.368862684 | P48: =VLOOKUP(A48,Trends!$A$3:$Q$94,IF(ExFlg=0,6,14))+IF(B48>=$B$2,Sens,0) -> 1.042 | Q48: 2.248289824 | R48: =VLOOKUP(A48,Trends!$A$3:$Q$94,IF(ExFlg=0,8,16))+IF(B48>=$B$2,Sens,0) -> 1.041 | S48: 2.334523327 | T48: =VLOOKUP(A48,Trends!$A$3:$Z$94,IF(ExFlg=0,21,25))+IF(B48>=$B$2,Sens,0) -> 1.042 | U48: 2.525884338 | W48: 9829.633126 | X48: 5041.902213 | Y48: 4787.730913 | AA48: 18203.40091 | AB48: 13386.09015 | AC48: 4817.310763 | AE48: 4809.915801 | AG48: =IF(B48<71,IF(B48-35<30,VLOOKUP(B48,Lookups!A:G,6),VLOOKUP(B48,Lookups!A:G,7)),"") ->  | AJ48: =IF(OR(B48<55,B48-35<20),VLOOKUP(B48-$B$3,Lookups!$O$3:$Q$53,2),VLOOKUP(B48,Lookups!$O$57:$P$122,2)) -> 0 | AK48: 0 | AL48: 0 | AM48: =IF(B48<55,VLOOKUP(B48,Lookups!A:M,12),"") ->  | AN48: =IF(B48<55,VLOOKUP(B48,Lookups!A:M,13),"") ->  | AP48: =IF(B48<70,VLOOKUP(B48,Lookups!A:I,8)*(1-VLOOKUP(B48,Lookups!$U$3:$W$103,2))^(B48-$B$2),"") ->  | AQ48: =IF(B48<70,VLOOKUP(B48,Lookups!A:I,9)*(1-VLOOKUP(B48,Lookups!$U$3:$W$103,3))^(B48-$B$2),"") ->  | AV48: 91 | AW48: =IF(BD48>=$B$3,VLOOKUP(BD48,Lookups!A:I,8)*(1-VLOOKUP(BD48,Lookups!U:W,2))^(BD48-$B$2),"") -> 0.1161079227 | AX48: =IF(BD48>=$B$3,VLOOKUP(BD48,Lookups!A:I,9)*(1-VLOOKUP(BD48,Lookups!U:W,3))^(BD48-$B$2),"") -> 0.09074653783 | AY48: 0.1034272303 | AZ48: 0.398201262 | BA48: 0.249647153 | BB48: 0.937057 | BD48: 91 | BE48: 8094.591516 | BQ48: 754.0327282 | BR48: 785.1260042 | BS48: 817.6059383 | BT48: 851.5435997 | BU48: 887.0144866 | BV48: 924.1021463 | BW48: 962.8946808 | BX48: 1003.495553 | BY48: 1046.004872 | BZ48: 1090.543846 | CA48: 1137.241724 | CB48: 1190.914483 | CC48: 1247.919396 | CD48: 1308.635107 | CE48: 1373.493616 | CF48: 1442.977901 | CN48: 35 | CO48: 0
A49: 2044 | B49: 81 | D49: =VLOOKUP(B49,Lookups!A:B,2) -> 4503.706785 | E49: =VLOOKUP(B49,Lookups!A:C,3) -> 2128.40628 | G49: =VLOOKUP(B49,Lookups!A:D,4) -> 7850.50893 | H49: =VLOOKUP(B49,Lookups!A:E,5) -> 5299.56576 | J49: =VLOOKUP(A49,Trends!$A$3:$Q$94,IF(ExFlg=0,2,10))+IF(B49>=$B$2,Sens,0) -> 1.042 | K49: 2.305103133 | L49: =VLOOKUP(A49,Trends!$A$3:$Q$94,IF(ExFlg=0,4,12))+IF(B49>=$B$2,Sens,0) -> 1.041 | M49: 2.28750079 | N49: =VLOOKUP(A49,Trends!$A$3:$Z$94,IF(ExFlg=0,19,23))+IF(B49>=$B$2,Sens,0) -> 1.042 | O49: 2.468354917 | P49: =VLOOKUP(A49,Trends!$A$3:$Q$94,IF(ExFlg=0,6,14))+IF(B49>=$B$2,Sens,0) -> 1.042 | Q49: 2.342717996 | R49: =VLOOKUP(A49,Trends!$A$3:$Q$94,IF(ExFlg=0,8,16))+IF(B49>=$B$2,Sens,0) -> 1.041 | S49: 2.430238784 | T49: =VLOOKUP(A49,Trends!$A$3:$Z$94,IF(ExFlg=0,21,25))+IF(B49>=$B$2,Sens,0) -> 1.042 | U49: 2.63197148 | W49: 10302.23283 | X49: 5253.662106 | Y49: 5048.570723 | AA49: 19078.61127 | AB49: 13948.30594 | AC49: 5130.305335 | AE49: 5109.871682 | AG49: =IF(B49<71,IF(B49-35<30,VLOOKUP(B49,Lookups!A:G,6),VLOOKUP(B49,Lookups!A:G,7)),"") ->  | AJ49: =IF(OR(B49<55,B49-35<20),VLOOKUP(B49-$B$3,Lookups!$O$3:$Q$53,2),VLOOKUP(B49,Lookups!$O$57:$P$122,2)) -> 0 | AK49: 0 | AL49: 0 | AM49: =IF(B49<55,VLOOKUP(B49,Lookups!A:M,12),"") ->  | AN49: =IF(B49<55,VLOOKUP(B49,Lookups!A:M,13),"") ->  | AP49: =IF(B49<70,VLOOKUP(B49,Lookups!A:I,8)*(1-VLOOKUP(B49,Lookups!$U$3:$W$103,2))^(B49-$B$2),"") ->  | AQ49: =IF(B49<70,VLOOKUP(B49,Lookups!A:I,9)*(1-VLOOKUP(B49,Lookups!$U$3:$W$103,3))^(B49-$B$2),"") ->  | AV49: 92 | AW49: =IF(BD49>=$B$3,VLOOKUP(BD49,Lookups!A:I,8)*(1-VLOOKUP(BD49,Lookups!U:W,2))^(BD49-$B$2),"") -> 0.1264403382 | AX49: =IF(BD49>=$B$3,VLOOKUP(BD49,Lookups!A:I,9)*(1-VLOOKUP(BD49,Lookups!U:W,3))^(BD49-$B$2),"") -> 0.1003159892 | AY49: 0.1133781637 | AZ49: 0.3570164083 | BA49: 0.2402070172 | BB49: 0.932669 | BD49: 92 | BE49: 8416.758981 | BQ49: 673.2033989 | BR49: 700.9635986 | BS49: 729.9618121 | BT49: 760.2614903 | BU49: 791.9300382 | BV49: 825.0420474 | BW49: 859.6761754 | BX49: 895.9247944 | BY49: 933.8772823 | BZ49: 973.6418545 | CA49: 1015.333904 | CB49: 1063.253156 | CC49: 1114.147367 | CD49: 1168.354594 | CE49: 1226.260527 | CF49: 1288.296371 | CN49: 35 | CO49: 0 | CP49: 4.02345487 | CU49: Implement breakout formula for next update.
A50: 2045 | B50: 82 | D50: =VLOOKUP(B50,Lookups!A:B,2) -> 4534.3611 | E50: =VLOOKUP(B50,Lookups!A:C,3) -> 2128.40628 | G50: =VLOOKUP(B50,Lookups!A:D,4) -> 7903.94724 | H50: =VLOOKUP(B50,Lookups!A:E,5) -> 5299.56576 | J50: =VLOOKUP(A50,Trends!$A$3:$Q$94,IF(ExFlg=0,2,10))+IF(B50>=$B$2,Sens,0) -> 1.042 | K50: 2.401917465 | L50: =VLOOKUP(A50,Trends!$A$3:$Q$94,IF(ExFlg=0,4,12))+IF(B50>=$B$2,Sens,0) -> 1.041 | M50: 2.381288323 | N50: =VLOOKUP(A50,Trends!$A$3:$Z$94,IF(ExFlg=0,19,23))+IF(B50>=$B$2,Sens,0) -> 1.042 | O50: 2.572025823 | P50: =VLOOKUP(A50,Trends!$A$3:$Q$94,IF(ExFlg=0,6,14))+IF(B50>=$B$2,Sens,0) -> 1.042 | Q50: 2.441112152 | R50: =VLOOKUP(A50,Trends!$A$3:$Q$94,IF(ExFlg=0,8,16))+IF(B50>=$B$2,Sens,0) -> 1.041 | S50: 2.529878574 | T50: =VLOOKUP(A50,Trends!$A$3:$Z$94,IF(ExFlg=0,21,25))+IF(B50>=$B$2,Sens,0) -> 1.042 | U50: 2.742514282 | W50: 10797.62114 | X50: 5474.315914 | Y50: 5323.305223 | AA50: 19996.02677 | AB50: 14534.13479 | AC50: 5461.891983 | AE50: 5427.245293 | AG50: =IF(B50<71,IF(B50-35<30,VLOOKUP(B50,Lookups!A:G,6),VLOOKUP(B50,Lookups!A:G,7)),"") ->  | AJ50: =IF(OR(B50<55,B50-35<20),VLOOKUP(B50-$B$3,Lookups!$O$3:$Q$53,2),VLOOKUP(B50,Lookups!$O$57:$P$122,2)) -> 0 | AK50: 0 | AL50: 0 | AM50: =IF(B50<55,VLOOKUP(B50,Lookups!A:M,12),"") ->  | AN50: =IF(B50<55,VLOOKUP(B50,Lookups!A:M,13),"") ->  | AP50: =IF(B50<70,VLOOKUP(B50,Lookups!A:I,8)*(1-VLOOKUP(B50,Lookups!$U$3:$W$103,2))^(B50-$B$2),"") ->  | AQ50: =IF(B50<70,VLOOKUP(B50,Lookups!A:I,9)*(1-VLOOKUP(B50,Lookups!$U$3:$W$103,3))^(B50-$B$2),"") ->  | AV50: 93 | AW50: =IF(BD50>=$B$3,VLOOKUP(BD50,Lookups!A:I,8)*(1-VLOOKUP(BD50,Lookups!U:W,2))^(BD50-$B$2),"") -> 0.1376183768 | AX50: =IF(BD50>=$B$3,VLOOKUP(BD50,Lookups!A:I,9)*(1-VLOOKUP(BD50,Lookups!U:W,3))^(BD50-$B$2),"") -> 0.1106615861 | AY50: 0.1241399815 | AZ50: 0.3165385436 | BA50: 0.2311238499 | BB50: 0.927923 | BD50: 93 | BE50: 8751.691849 | BQ50: 594.1215699 | BR50: 618.620753 | BS50: 644.2125195 | BT50: 670.9528663 | BU50: 698.9012805 | BV50: 728.1235911 | BW50: 758.689216 | BX50: 790.6796759 | BY50: 824.1738498 | BZ50: 859.2672408 | CA50: 896.0616869 | CB50: 938.3518193 | CC50: 983.26744 | CD50: 1031.106894 | CE50: 1082.210563 | CF50: 1136.958999 | CN50: 36 | CO50: =IF(CO51=0,0,CO51-1) -> 1 | CP50: 3.132421494 | CU50: Salary | CV50: Surv | CW50: Int | CX50: PvSal
A51: 2046 | B51: 83 | D51: =VLOOKUP(B51,Lookups!A:B,2) -> 4545.40005 | E51: =VLOOKUP(B51,Lookups!A:C,3) -> 2128.40628 | G51: =VLOOKUP(B51,Lookups!A:D,4) -> 7923.18942 | H51: =VLOOKUP(B51,Lookups!A:E,5) -> 5299.56576 | J51: =VLOOKUP(A51,Trends!$A$3:$Q$94,IF(ExFlg=0,2,10))+IF(B51>=$B$2,Sens,0) -> 1.042 | K51: 2.502797998 | L51: =VLOOKUP(A51,Trends!$A$3:$Q$94,IF(ExFlg=0,4,12))+IF(B51>=$B$2,Sens,0) -> 1.041 | M51: 2.478921144 | N51: =VLOOKUP(A51,Trends!$A$3:$Z$94,IF(ExFlg=0,19,23))+IF(B51>=$B$2,Sens,0) -> 1.042 | O51: 2.680050908 | P51: =VLOOKUP(A51,Trends!$A$3:$Q$94,IF(ExFlg=0,6,14))+IF(B51>=$B$2,Sens,0) -> 1.042 | Q51: 2.543638863 | R51: =VLOOKUP(A51,Trends!$A$3:$Q$94,IF(ExFlg=0,8,16))+IF(B51>=$B$2,Sens,0) -> 1.041 | S51: 2.633603595 | T51: =VLOOKUP(A51,Trends!$A$3:$Z$94,IF(ExFlg=0,21,25))+IF(B51>=$B$2,Sens,0) -> 1.042 | U51: 2.857699882 | W51: 11267.68829 | X51: 5704.237183 | Y51: 5563.451108 | AA51: 20866.54014 | AB51: 15144.56845 | AC51: 5721.971694 | AE51: 5682.341548 | AG51: =IF(B51<71,IF(B51-35<30,VLOOKUP(B51,Lookups!A:G,6),VLOOKUP(B51,Lookups!A:G,7)),"") ->  | AJ51: =IF(OR(B51<55,B51-35<20),VLOOKUP(B51-$B$3,Lookups!$O$3:$Q$53,2),VLOOKUP(B51,Lookups!$O$57:$P$122,2)) -> 0 | AK51: 0 | AL51: 0 | AM51: =IF(B51<55,VLOOKUP(B51,Lookups!A:M,12),"") ->  | AN51: =IF(B51<55,VLOOKUP(B51,Lookups!A:M,13),"") ->  | AP51: =IF(B51<70,VLOOKUP(B51,Lookups!A:I,8)*(1-VLOOKUP(B51,Lookups!$U$3:$W$103,2))^(B51-$B$2),"") ->  | AQ51: =IF(B51<70,VLOOKUP(B51,Lookups!A:I,9)*(1-VLOOKUP(B51,Lookups!$U$3:$W$103,3))^(B51-$B$2),"") ->  | AV51: 94 | AW51: =IF(BD51>=$B$3,VLOOKUP(BD51,Lookups!A:I,8)*(1-VLOOKUP(BD51,Lookups!U:W,2))^(BD51-$B$2),"") -> 0.1484096728 | AX51: =IF(BD51>=$B$3,VLOOKUP(BD51,Lookups!A:I,9)*(1-VLOOKUP(BD51,Lookups!U:W,3))^(BD51-$B$2),"") -> 0.1208335182 | AY51: 0.1346215955 | AZ51: 0.2772434546 | BA51: 0.2223841527 | BB51: 0.9233 | BD51: 94 | BE51: 9119.262906 | BQ51: 519.1199385 | BR51: 540.5263561 | BS51: 562.8874299 | BT51: 586.2520877 | BU51: 610.672307 | BV51: 636.2056067 | BW51: 662.9126413 | BX51: 690.8646404 | BY51: 720.1305253 | BZ51: 750.7937429 | CA51: 782.9432751 | CB51: 819.8947209 | CC51: 859.1402145 | CD51: 900.9404379 | CE51: 945.5928035 | CF51: 993.4298221 | CN51: 37 | CO51: 2 | CP51: 2.801455755
A52: 2047 | B52: 84 | D52: =VLOOKUP(B52,Lookups!A:B,2) -> 4556.473965 | E52: =VLOOKUP(B52,Lookups!A:C,3) -> 2128.40628 | G52: =VLOOKUP(B52,Lookups!A:D,4) -> 7942.48884 | H52: =VLOOKUP(B52,Lookups!A:E,5) -> 5299.56576 | J52: =VLOOKUP(A52,Trends!$A$3:$Q$94,IF(ExFlg=0,2,10))+IF(B52>=$B$2,Sens,0) -> 1.042 | K52: 2.607915514 | L52: =VLOOKUP(A52,Trends!$A$3:$Q$94,IF(ExFlg=0,4,12))+IF(B52>=$B$2,Sens,0) -> 1.041 | M52: 2.580556911 | N52: =VLOOKUP(A52,Trends!$A$3:$Z$94,IF(ExFlg=0,19,23))+IF(B52>=$B$2,Sens,0) -> 1.042 | O52: 2.792613046 | P52: =VLOOKUP(A52,Trends!$A$3:$Q$94,IF(ExFlg=0,6,14))+IF(B52>=$B$2,Sens,0) -> 1.042 | Q52: 2.650471695 | R52: =VLOOKUP(A52,Trends!$A$3:$Q$94,IF(ExFlg=0,8,16))+IF(B52>=$B$2,Sens,0) -> 1.041 | S52: 2.741581343 | T52: =VLOOKUP(A52,Trends!$A$3:$Z$94,IF(ExFlg=0,21,25))+IF(B52>=$B$2,Sens,0) -> 1.042 | U52: 2.977723277 | W52: 11758.24038 | X52: 5943.815144 | Y52: 5814.425234 | AA52: 21774.97922 | AB52: 15780.64032 | AC52: 5994.338895 | AE52: 5949.36048 | AG52: =IF(B52<71,IF(B52-35<30,VLOOKUP(B52,Lookups!A:G,6),VLOOKUP(B52,Lookups!A:G,7)),"") ->  | AJ52: =IF(OR(B52<55,B52-35<20),VLOOKUP(B52-$B$3,Lookups!$O$3:$Q$53,2),VLOOKUP(B52,Lookups!$O$57:$P$122,2)) -> 0 | AK52: 0 | AL52: 0 | AM52: =IF(B52<55,VLOOKUP(B52,Lookups!A:M,12),"") ->  | AN52: =IF(B52<55,VLOOKUP(B52,Lookups!A:M,13),"") ->  | AP52: =IF(B52<70,VLOOKUP(B52,Lookups!A:I,8)*(1-VLOOKUP(B52,Lookups!$U$3:$W$103,2))^(B52-$B$2),"") ->  | AQ52: =IF(B52<70,VLOOKUP(B52,Lookups!A:I,9)*(1-VLOOKUP(B52,Lookups!$U$3:$W$103,3))^(B52-$B$2),"") ->  | AV52: 95 | AW52: =IF(BD52>=$B$3,VLOOKUP(BD52,Lookups!A:I,8)*(1-VLOOKUP(BD52,Lookups!U:W,2))^(BD52-$B$2),"") -> 0.1601864921 | AX52: =IF(BD52>=$B$3,VLOOKUP(BD52,Lookups!A:I,9)*(1-VLOOKUP(BD52,Lookups!U:W,3))^(BD52-$B$2),"") -> 0.1319940645 | AY52: 0.1460902783 | AZ52: 0.2399204984 | BA52: 0.2139749377 | BB52: 0.918243 | BD52: 95 | BE52: 9502.271948 | BQ52: 447.9353582 | BR52: 466.4064102 | BS52: 485.7012106 | BT52: 505.861978 | BU52: 526.9335626 | BV52: 548.9655959 | BW52: 572.010415 | BX52: 596.1294823 | BY52: 621.3822682 | BZ52: 647.8407768 | CA52: 675.5817884 | CB52: 707.4662488 | CC52: 741.3301845 | CD52: 777.3985314 | CE52: 815.9279191 | CF52: 857.2052627 | CN52: 38 | CO52: 3 | CP52: 2.60079829
A53: 2048 | B53: 85 | D53: =VLOOKUP(B53,Lookups!A:B,2) -> 4567.572855 | E53: =VLOOKUP(B53,Lookups!A:C,3) -> 2128.40628 | G53: =VLOOKUP(B53,Lookups!A:D,4) -> 7961.83596 | H53: =VLOOKUP(B53,Lookups!A:E,5) -> 5299.56576 | J53: =VLOOKUP(A53,Trends!$A$3:$Q$94,IF(ExFlg=0,2,10))+IF(B53>=$B$2,Sens,0) -> 1.042 | K53: 2.717447966 | L53: =VLOOKUP(A53,Trends!$A$3:$Q$94,IF(ExFlg=0,4,12))+IF(B53>=$B$2,Sens,0) -> 1.041 | M53: 2.686359744 | N53: =VLOOKUP(A53,Trends!$A$3:$Z$94,IF(ExFlg=0,19,23))+IF(B53>=$B$2,Sens,0) -> 1.042 | O53: 2.909902794 | P53: =VLOOKUP(A53,Trends!$A$3:$Q$94,IF(ExFlg=0,6,14))+IF(B53>=$B$2,Sens,0) -> 1.042 | Q53: 2.761791506 | R53: =VLOOKUP(A53,Trends!$A$3:$Q$94,IF(ExFlg=0,8,16))+IF(B53>=$B$2,Sens,0) -> 1.041 | S53: 2.853986178 | T53: =VLOOKUP(A53,Trends!$A$3:$Z$94,IF(ExFlg=0,21,25))+IF(B53>=$B$2,Sens,0) -> 1.042 | U53: 3.102787655 | W53: 12270.14385 | X53: 6193.455381 | Y53: 6076.688465 | AA53: 22722.96978 | AB53: 16443.42722 | AC53: 6279.542562 | AE53: 6228.829038 | AG53: =IF(B53<71,IF(B53-35<30,VLOOKUP(B53,Lookups!A:G,6),VLOOKUP(B53,Lookups!A:G,7)),"") ->  | AJ53: =IF(OR(B53<55,B53-35<20),VLOOKUP(B53-$B$3,Lookups!$O$3:$Q$53,2),VLOOKUP(B53,Lookups!$O$57:$P$122,2)) -> 0 | AK53: 0 | AL53: 0 | AM53: =IF(B53<55,VLOOKUP(B53,Lookups!A:M,12),"") ->  | AN53: =IF(B53<55,VLOOKUP(B53,Lookups!A:M,13),"") ->  | AP53: =IF(B53<70,VLOOKUP(B53,Lookups!A:I,8)*(1-VLOOKUP(B53,Lookups!$U$3:$W$103,2))^(B53-$B$2),"") ->  | AQ53: =IF(B53<70,VLOOKUP(B53,Lookups!A:I,9)*(1-VLOOKUP(B53,Lookups!$U$3:$W$103,3))^(B53-$B$2),"") ->  | AV53: 96 | AW53: =IF(BD53>=$B$3,VLOOKUP(BD53,Lookups!A:I,8)*(1-VLOOKUP(BD53,Lookups!U:W,2))^(BD53-$B$2),"") -> 0.1740589442 | AX53: =IF(BD53>=$B$3,VLOOKUP(BD53,Lookups!A:I,9)*(1-VLOOKUP(BD53,Lookups!U:W,3))^(BD53-$B$2),"") -> 0.1451452859 | AY53: 0.1596021151 | AZ53: 0.204870446 | BA53: 0.205883708 | BB53: 0.912284 | BD53: 96 | BE53: 9901.36737 | BQ53: 381.0013607 | BR53: 396.7123239 | BS53: 413.1239446 | BT53: 430.2721329 | BU53: 448.1950368 | BV53: 466.9348717 | BW53: 486.5361541 | BX53: 507.0511621 | BY53: 528.5304796 | BZ53: 551.0353513 | CA53: 574.6310845 | CB53: 601.7511199 | CC53: 630.554842 | CD53: 661.233575 | CE53: 694.0056009 | CF53: 729.1149616 | CN53: 39 | CO53: 4 | CP53: 2.462925215
A54: 2049 | B54: 86 | D54: =VLOOKUP(B54,Lookups!A:B,2) -> 4578.69672 | E54: =VLOOKUP(B54,Lookups!A:C,3) -> 2128.40628 | G54: =VLOOKUP(B54,Lookups!A:D,4) -> 7981.22601 | H54: =VLOOKUP(B54,Lookups!A:E,5) -> 5299.56576 | J54: =VLOOKUP(A54,Trends!$A$3:$Q$94,IF(ExFlg=0,2,10))+IF(B54>=$B$2,Sens,0) -> 1.042 | K54: 2.83158078 | L54: =VLOOKUP(A54,Trends!$A$3:$Q$94,IF(ExFlg=0,4,12))+IF(B54>=$B$2,Sens,0) -> 1.041 | M54: 2.796500494 | N54: =VLOOKUP(A54,Trends!$A$3:$Z$94,IF(ExFlg=0,19,23))+IF(B54>=$B$2,Sens,0) -> 1.042 | O54: 3.032118711 | P54: =VLOOKUP(A54,Trends!$A$3:$Q$94,IF(ExFlg=0,6,14))+IF(B54>=$B$2,Sens,0) -> 1.042 | Q54: 2.877786749 | R54: =VLOOKUP(A54,Trends!$A$3:$Q$94,IF(ExFlg=0,8,16))+IF(B54>=$B$2,Sens,0) -> 1.041 | S54: 2.970999611 | T54: =VLOOKUP(A54,Trends!$A$3:$Z$94,IF(ExFlg=0,21,25))+IF(B54>=$B$2,Sens,0) -> 1.042 | U54: 3.233104736 | W54: 12804.32764 | X54: 6453.580507 | Y54: 6350.747131 | AA54: 23712.21937 | AB54: 17134.05116 | AC54: 6578.168211 | AE54: 6521.312941 | AG54: =IF(B54<71,IF(B54-35<30,VLOOKUP(B54,Lookups!A:G,6),VLOOKUP(B54,Lookups!A:G,7)),"") ->  | AJ54: =IF(OR(B54<55,B54-35<20),VLOOKUP(B54-$B$3,Lookups!$O$3:$Q$53,2),VLOOKUP(B54,Lookups!$O$57:$P$122,2)) -> 0 | AK54: 0 | AL54: 0 | AM54: =IF(B54<55,VLOOKUP(B54,Lookups!A:M,12),"") ->  | AN54: =IF(B54<55,VLOOKUP(B54,Lookups!A:M,13),"") ->  | AP54: =IF(B54<70,VLOOKUP(B54,Lookups!A:I,8)*(1-VLOOKUP(B54,Lookups!$U$3:$W$103,2))^(B54-$B$2),"") ->  | AQ54: =IF(B54<70,VLOOKUP(B54,Lookups!A:I,9)*(1-VLOOKUP(B54,Lookups!$U$3:$W$103,3))^(B54-$B$2),"") ->  | AV54: 97 | AW54: =IF(BD54>=$B$3,VLOOKUP(BD54,Lookups!A:I,8)*(1-VLOOKUP(BD54,Lookups!U:W,2))^(BD54-$B$2),"") -> 0.1887070315 | AX54: =IF(BD54>=$B$3,VLOOKUP(BD54,Lookups!A:I,9)*(1-VLOOKUP(BD54,Lookups!U:W,3))^(BD54-$B$2),"") -> 0.1592804453 | AY54: 0.1739937384 | AZ54: 0.1721726895 | BA54: 0.1980984393 | BB54: 0.905937 | BD54: 97 | BE54: 10317.2248 | BQ54: 318.7911148 | BR54: 331.9367777 | BS54: 345.6686942 | BT54: 360.0169108 | BU54: 375.0133468 | BV54: 390.6933245 | BW54: 407.0940918 | BX54: 424.2593908 | BY54: 442.231546 | BZ54: 461.061802 | CA54: 480.8048025 | CB54: 503.4966541 | CC54: 527.5972784 | CD54: 553.2667602 | CE54: 580.6877402 | CF54: 610.0644128 | CN54: 40 | CO54: 5 | CP54: 2.354326573
A55: 2050 | B55: 87 | D55: =VLOOKUP(B55,Lookups!A:B,2) -> 4589.850555 | E55: =VLOOKUP(B55,Lookups!A:C,3) -> 2128.40628 | G55: =VLOOKUP(B55,Lookups!A:D,4) -> 8000.66853 | H55: =VLOOKUP(B55,Lookups!A:E,5) -> 5299.56576 | J55: =VLOOKUP(A55,Trends!$A$3:$Q$94,IF(ExFlg=0,2,10))+IF(B55>=$B$2,Sens,0) -> 1.042 | K55: 2.950507173 | L55: =VLOOKUP(A55,Trends!$A$3:$Q$94,IF(ExFlg=0,4,12))+IF(B55>=$B$2,Sens,0) -> 1.042 | M55: 2.911157014 | N55: =VLOOKUP(A55,Trends!$A$3:$Z$94,IF(ExFlg=0,19,23))+IF(B55>=$B$2,Sens,0) -> 1.043 | O55: 3.159467697 | P55: =VLOOKUP(A55,Trends!$A$3:$Q$94,IF(ExFlg=0,6,14))+IF(B55>=$B$2,Sens,0) -> 1.042 | Q55: 2.998653793 | R55: =VLOOKUP(A55,Trends!$A$3:$Q$94,IF(ExFlg=0,8,16))+IF(B55>=$B$2,Sens,0) -> 1.041 | S55: 3.092810595 | T55: =VLOOKUP(A55,Trends!$A$3:$Z$94,IF(ExFlg=0,21,25))+IF(B55>=$B$2,Sens,0) -> 1.042 | U55: 3.368895135 | W55: 13361.77564 | X55: 6724.630888 | Y55: 6637.144747 | AA55: 24744.5524 | AB55: 17853.68131 | AC55: 6890.871089 | AE55: 6827.439503 | AG55: =IF(B55<71,IF(B55-35<30,VLOOKUP(B55,Lookups!A:G,6),VLOOKUP(B55,Lookups!A:G,7)),"") ->  | AJ55: =IF(OR(B55<55,B55-35<20),VLOOKUP(B55-$B$3,Lookups!$O$3:$Q$53,2),VLOOKUP(B55,Lookups!$O$57:$P$122,2)) -> 0 | AK55: 0 | AL55: 0 | AM55: =IF(B55<55,VLOOKUP(B55,Lookups!A:M,12),"") ->  | AN55: =IF(B55<55,VLOOKUP(B55,Lookups!A:M,13),"") ->  | AP55: =IF(B55<70,VLOOKUP(B55,Lookups!A:I,8)*(1-VLOOKUP(B55,Lookups!$U$3:$W$103,2))^(B55-$B$2),"") ->  | AQ55: =IF(B55<70,VLOOKUP(B55,Lookups!A:I,9)*(1-VLOOKUP(B55,Lookups!$U$3:$W$103,3))^(B55-$B$2),"") ->  | AV55: 98 | AW55: =IF(BD55>=$B$3,VLOOKUP(BD55,Lookups!A:I,8)*(1-VLOOKUP(BD55,Lookups!U:W,2))^(BD55-$B$2),"") -> 0.2052497658 | AX55: =IF(BD55>=$B$3,VLOOKUP(BD55,Lookups!A:I,9)*(1-VLOOKUP(BD55,Lookups!U:W,3))^(BD55-$B$2),"") -> 0.1754009044 | AY55: 0.1903253351 | AZ55: 0.1422157196 | BA55: 0.1906075621 | BB55: 0.898735 | BD55: 98 | BE55: 10750.54824 | BQ55: 261.9087436 | BR55: 272.7088065 | BS55: 283.9905167 | BT55: 295.7785598 | BU55: 308.0991595 | BV55: 320.9813355 | BW55: 334.4556896 | BX55: 348.5581589 | BY55: 363.3235157 | BZ55: 378.7938612 | CA55: 395.0140889 | CB55: 413.6569998 | CC55: 433.457314 | CD55: 454.5465521 | CE55: 477.074766 | CF55: 501.2097153 | CN55: 41 | CO55: 6 | CP55: 2.244886852
A56: 2051 | B56: 88 | D56: =VLOOKUP(B56,Lookups!A:B,2) -> 4601.03436 | E56: =VLOOKUP(B56,Lookups!A:C,3) -> 2128.40628 | G56: =VLOOKUP(B56,Lookups!A:D,4) -> 8020.16352 | H56: =VLOOKUP(B56,Lookups!A:E,5) -> 5299.56576 | J56: =VLOOKUP(A56,Trends!$A$3:$Q$94,IF(ExFlg=0,2,10))+IF(B56>=$B$2,Sens,0) -> 1.042 | K56: 3.074428475 | L56: =VLOOKUP(A56,Trends!$A$3:$Q$94,IF(ExFlg=0,4,12))+IF(B56>=$B$2,Sens,0) -> 1.042 | M56: 3.033425608 | N56: =VLOOKUP(A56,Trends!$A$3:$Z$94,IF(ExFlg=0,19,23))+IF(B56>=$B$2,Sens,0) -> 1.043 | O56: 3.295324808 | P56: =VLOOKUP(A56,Trends!$A$3:$Q$94,IF(ExFlg=0,6,14))+IF(B56>=$B$2,Sens,0) -> 1.042 | Q56: 3.124597252 | R56: =VLOOKUP(A56,Trends!$A$3:$Q$94,IF(ExFlg=0,8,16))+IF(B56>=$B$2,Sens,0) -> 1.041 | S56: 3.219615829 | T56: =VLOOKUP(A56,Trends!$A$3:$Z$94,IF(ExFlg=0,21,25))+IF(B56>=$B$2,Sens,0) -> 1.042 | U56: 3.510388731 | W56: 13956.89545 | X56: 7013.790016 | Y56: 6943.105436 | AA56: 25821.84542 | AB56: 18603.53592 | AC56: 7218.3095 | AE56: 7149.508484 | AG56: =IF(B56<71,IF(B56-35<30,VLOOKUP(B56,Lookups!A:G,6),VLOOKUP(B56,Lookups!A:G,7)),"") ->  | AJ56: =IF(OR(B56<55,B56-35<20),VLOOKUP(B56-$B$3,Lookups!$O$3:$Q$53,2),VLOOKUP(B56,Lookups!$O$57:$P$122,2)) -> 0 | AK56: 0 | AL56: 0 | AM56: =IF(B56<55,VLOOKUP(B56,Lookups!A:M,12),"") ->  | AN56: =IF(B56<55,VLOOKUP(B56,Lookups!A:M,13),"") ->  | AP56: =IF(B56<70,VLOOKUP(B56,Lookups!A:I,8)*(1-VLOOKUP(B56,Lookups!$U$3:$W$103,2))^(B56-$B$2),"") ->  | AQ56: =IF(B56<70,VLOOKUP(B56,Lookups!A:I,9)*(1-VLOOKUP(B56,Lookups!$U$3:$W$103,3))^(B56-$B$2),"") ->  | AV56: 99 | AW56: =IF(BD56>=$B$3,VLOOKUP(BD56,Lookups!A:I,8)*(1-VLOOKUP(BD56,Lookups!U:W,2))^(BD56-$B$2),"") -> 0.2217183719 | AX56: =IF(BD56>=$B$3,VLOOKUP(BD56,Lookups!A:I,9)*(1-VLOOKUP(BD56,Lookups!U:W,3))^(BD56-$B$2),"") -> 0.1918642042 | AY56: 0.206791288 | AZ56: 0.1151484651 | BA56: 0.1833999443 | BB56: 0.891473 | BD56: 99 | BE56: 11202.07127 | BQ56: 210.8938321 | BR56: 219.5902453 | BS56: 228.6744899 | BT56: 238.1664433 | BU56: 248.0872212 | BV56: 258.460191 | BW56: 269.3099936 | BX56: 280.6655663 | BY56: 292.5549085 | BZ56: 305.0119209 | CA56: 318.0727524 | CB56: 333.0843738 | CC56: 349.0279582 | CD56: 366.0094082 | CE56: 384.1495485 | CF56: 403.5834623 | CN56: 42 | CO56: 7 | CP56: 2.141309611
A57: =1+A56 -> 2052 | B57: =1+B56 -> 89 | D57: =VLOOKUP(B57,Lookups!A:B,2) -> 4612.238145 | E57: =VLOOKUP(B57,Lookups!A:C,3) -> 2128.40628 | G57: =VLOOKUP(B57,Lookups!A:D,4) -> 8039.70144 | H57: =VLOOKUP(B57,Lookups!A:E,5) -> 5299.56576 | J57: =VLOOKUP(A57,Trends!$A$3:$Q$94,IF(ExFlg=0,2,10))+IF(B57>=$B$2,Sens,0) -> 1.042 | K57: 3.20355447 | L57: =VLOOKUP(A57,Trends!$A$3:$Q$94,IF(ExFlg=0,4,12))+IF(B57>=$B$2,Sens,0) -> 1.042 | M57: 3.160829484 | N57: =VLOOKUP(A57,Trends!$A$3:$Z$94,IF(ExFlg=0,19,23))+IF(B57>=$B$2,Sens,0) -> 1.043 | O57: 3.437023775 | P57: =VLOOKUP(A57,Trends!$A$3:$Q$94,IF(ExFlg=0,6,14))+IF(B57>=$B$2,Sens,0) -> 1.042 | Q57: 3.255830337 | R57: =VLOOKUP(A57,Trends!$A$3:$Q$94,IF(ExFlg=0,8,16))+IF(B57>=$B$2,Sens,0) -> 1.042 | S57: 3.351620078 | T57: =VLOOKUP(A57,Trends!$A$3:$Z$94,IF(ExFlg=0,21,25))+IF(B57>=$B$2,Sens,0) -> 1.043 | U57: 3.657825058 | W57: 14578.49832 | X57: 7315.382987 | Y57: 7263.115329 | AA57: 26946.02477 | AB57: 19384.88443 | AC57: 7561.140339 | AE57: 7486.634086 | AG57: =IF(B57<71,IF(B57-35<30,VLOOKUP(B57,Lookups!A:G,6),VLOOKUP(B57,Lookups!A:G,7)),"") ->  | AJ57: =IF(OR(B57<55,B57-35<20),VLOOKUP(B57-$B$3,Lookups!$O$3:$Q$53,2),VLOOKUP(B57,Lookups!$O$57:$P$122,2)) -> 0 | AK57: 0 | AL57: 0 | AM57: =IF(B57<55,VLOOKUP(B57,Lookups!A:M,12),"") ->  | AN57: =IF(B57<55,VLOOKUP(B57,Lookups!A:M,13),"") ->  | AP57: =IF(B57<70,VLOOKUP(B57,Lookups!A:I,8)*(1-VLOOKUP(B57,Lookups!$U$3:$W$103,2))^(B57-$B$2),"") ->  | AQ57: =IF(B57<70,VLOOKUP(B57,Lookups!A:I,9)*(1-VLOOKUP(B57,Lookups!$U$3:$W$103,3))^(B57-$B$2),"") ->  | AV57: 100 | AW57: =IF(BD57>=$B$3,VLOOKUP(BD57,Lookups!A:I,8)*(1-VLOOKUP(BD57,Lookups!U:W,2))^(BD57-$B$2),"") -> 0.2390214004 | AX57: =IF(BD57>=$B$3,VLOOKUP(BD57,Lookups!A:I,9)*(1-VLOOKUP(BD57,Lookups!U:W,3))^(BD57-$B$2),"") -> 0.2094559962 | AY57: 0.2242386983 | AZ57: 0.09133676572 | BA57: 0.1764648747 | BB57: 0.883779 | BD57: 100 | BE57: 11672.55826 | BQ57: 166.2698975 | BR57: 173.1261991 | BS57: 180.2882693 | BT57: 187.7717794 | BU57: 195.5933772 | BV57: 203.7714856 | BW57: 212.3255317 | BX57: 221.2783298 | BY57: 230.6519549 | BZ57: 240.4731343 | CA57: 250.7703683 | CB57: 262.605616 | CC57: 275.1756287 | CD57: 288.5639005 | CE57: 302.8656904 | CF57: 318.1874987 | CN57: 43 | CO57: 8 | CP57: 2.049193522
A58: 2053 | B58: 90 | D58: =VLOOKUP(B58,Lookups!A:B,2) -> 4612.238145 | E58: =VLOOKUP(B58,Lookups!A:C,3) -> 2128.40628 | G58: =VLOOKUP(B58,Lookups!A:D,4) -> 8039.70144 | H58: =VLOOKUP(B58,Lookups!A:E,5) -> 5299.56576 | J58: =VLOOKUP(A58,Trends!$A$3:$Q$94,IF(ExFlg=0,2,10))+IF(B58>=$B$2,Sens,0) -> 1.042 | K58: 3.338103758 | L58: =VLOOKUP(A58,Trends!$A$3:$Q$94,IF(ExFlg=0,4,12))+IF(B58>=$B$2,Sens,0) -> 1.042 | M58: 3.293584322 | N58: =VLOOKUP(A58,Trends!$A$3:$Z$94,IF(ExFlg=0,19,23))+IF(B58>=$B$2,Sens,0) -> 1.043 | O58: 3.584815797 | P58: =VLOOKUP(A58,Trends!$A$3:$Q$94,IF(ExFlg=0,6,14))+IF(B58>=$B$2,Sens,0) -> 1.042 | Q58: 3.392575211 | R58: =VLOOKUP(A58,Trends!$A$3:$Q$94,IF(ExFlg=0,8,16))+IF(B58>=$B$2,Sens,0) -> 1.042 | S58: 3.492388122 | T58: =VLOOKUP(A58,Trends!$A$3:$Z$94,IF(ExFlg=0,21,25))+IF(B58>=$B$2,Sens,0) -> 1.043 | U58: 3.815111535 | W58: 15190.79524 | X58: 7629.944455 | Y58: 7560.85079 | AA58: 28077.75781 | AB58: 20218.43446 | AC58: 7859.323349 | AE58: 7784.705209 | AG58: =IF(B58<71,IF(B58-35<30,VLOOKUP(B58,Lookups!A:G,6),VLOOKUP(B58,Lookups!A:G,7)),"") ->  | AJ58: =IF(OR(B58<55,B58-35<20),VLOOKUP(B58-$B$3,Lookups!$O$3:$Q$53,2),VLOOKUP(B58,Lookups!$O$57:$P$122,2)) -> 0 | AK58: 0 | AL58: 0 | AM58: =IF(B58<55,VLOOKUP(B58,Lookups!A:M,12),"") ->  | AN58: =IF(B58<55,VLOOKUP(B58,Lookups!A:M,13),"") ->  | AP58: =IF(B58<70,VLOOKUP(B58,Lookups!A:I,8)*(1-VLOOKUP(B58,Lookups!$U$3:$W$103,2))^(B58-$B$2),"") ->  | AQ58: =IF(B58<70,VLOOKUP(B58,Lookups!A:I,9)*(1-VLOOKUP(B58,Lookups!$U$3:$W$103,3))^(B58-$B$2),"") ->  | AV58: 101 | AW58: =IF(BD58>=$B$3,VLOOKUP(BD58,Lookups!A:I,8)*(1-VLOOKUP(BD58,Lookups!U:W,2))^(BD58-$B$2),"") -> 0.2570595093 | AX58: =IF(BD58>=$B$3,VLOOKUP(BD58,Lookups!A:I,9)*(1-VLOOKUP(BD58,Lookups!U:W,3))^(BD58-$B$2),"") -> 0.2280492004 | AY58: 0.2425543548 | AZ58: 0.07085552826 | BA58: 0.1697920473 | BB58: 0.875702 | BD58: 101 | BE58: 12162.80571 | BQ58: 128.1389603 | BR58: 133.4228955 | BS58: 138.9424769 | BT58: 144.7097818 | BU58: 150.7376402 | BV58: 157.0402501 | BW58: 163.6325834 | BX58: 170.5322223 | BY58: 177.7561792 | BZ58: 185.3250521 | CA58: 193.2608051 | CB58: 202.3818569 | CC58: 212.0691688 | CD58: 222.3870872 | CE58: 233.4090251 | CF58: 245.2170589 | CN58: =IF(OR(CN59<=($CN$76-MS), CN59 = 20), CN59, CN59-1) -> 44 | CO58: 9 | CP58: =IF(CN58<CN59,CP59*1/(1-VLOOKUP(CN58,$B$3:$AU$93,44,FALSE)) * (1+IntRt) * 1/(1+GSG) * 1/VLOOKUP(MIN(CO58,30),$CR$63:$CT$93,3,FALSE), "") -> 1.961536804
A59: 2054 | B59: 91 | D59: =VLOOKUP(B59,Lookups!A:B,2) -> 4612.238145 | E59: =VLOOKUP(B59,Lookups!A:C,3) -> 2128.40628 | G59: =VLOOKUP(B59,Lookups!A:D,4) -> 8039.70144 | H59: =VLOOKUP(B59,Lookups!A:E,5) -> 5299.56576 | J59: =VLOOKUP(A59,Trends!$A$3:$Q$94,IF(ExFlg=0,2,10))+IF(B59>=$B$2,Sens,0) -> 1.042 | K59: 3.478304116 | L59: =VLOOKUP(A59,Trends!$A$3:$Q$94,IF(ExFlg=0,4,12))+IF(B59>=$B$2,Sens,0) -> 1.042 | M59: 3.431914864 | N59: =VLOOKUP(A59,Trends!$A$3:$Z$94,IF(ExFlg=0,19,23))+IF(B59>=$B$2,Sens,0) -> 1.043 | O59: 3.738962876 | P59: =VLOOKUP(A59,Trends!$A$3:$Q$94,IF(ExFlg=0,6,14))+IF(B59>=$B$2,Sens,0) -> 1.042 | Q59: 3.535063369 | R59: =VLOOKUP(A59,Trends!$A$3:$Q$94,IF(ExFlg=0,8,16))+IF(B59>=$B$2,Sens,0) -> 1.042 | S59: 3.639068423 | T59: =VLOOKUP(A59,Trends!$A$3:$Z$94,IF(ExFlg=0,21,25))+IF(B59>=$B$2,Sens,0) -> 1.043 | U59: 3.979161331 | W59: 15828.80864 | X59: 7958.032067 | Y59: 7870.776578 | AA59: 29257.02364 | AB59: 21087.82714 | AC59: 8169.196495 | AE59: 8094.591516 | AG59: =IF(B59<71,IF(B59-35<30,VLOOKUP(B59,Lookups!A:G,6),VLOOKUP(B59,Lookups!A:G,7)),"") ->  | AJ59: =IF(OR(B59<55,B59-35<20),VLOOKUP(B59-$B$3,Lookups!$O$3:$Q$53,2),VLOOKUP(B59,Lookups!$O$57:$P$122,2)) -> 0 | AK59: 0 | AL59: 0 | AM59: =IF(B59<55,VLOOKUP(B59,Lookups!A:M,12),"") ->  | AN59: =IF(B59<55,VLOOKUP(B59,Lookups!A:M,13),"") ->  | AP59: =IF(B59<70,VLOOKUP(B59,Lookups!A:I,8)*(1-VLOOKUP(B59,Lookups!$U$3:$W$103,2))^(B59-$B$2),"") ->  | AQ59: =IF(B59<70,VLOOKUP(B59,Lookups!A:I,9)*(1-VLOOKUP(B59,Lookups!$U$3:$W$103,3))^(B59-$B$2),"") ->  | AV59: 102 | AW59: =IF(BD59>=$B$3,VLOOKUP(BD59,Lookups!A:I,8)*(1-VLOOKUP(BD59,Lookups!U:W,2))^(BD59-$B$2),"") -> 0.2771108956 | AX59: =IF(BD59>=$B$3,VLOOKUP(BD59,Lookups!A:I,9)*(1-VLOOKUP(BD59,Lookups!U:W,3))^(BD59-$B$2),"") -> 0.2487507025 | AY59: 0.262930799 | AZ59: 0.05366921132 | BA59: 0.1633715455 | BB59: 0.866716 | BD59: 102 | BE59: 12673.64355 | BQ59: 96.3118961 | BR59: 100.2834112 | BS59: 104.4320429 | BT59: 108.7668686 | BU59: 113.2975319 | BV59: 118.034704 | BW59: 122.9896382 | BX59: 128.1755497 | BY59: 133.6052253 | BZ59: 139.2941469 | CA59: 145.2588232 | CB59: 152.1143946 | CC59: 159.3955788 | CD59: 167.15074 | CE59: 175.4350567 | CF59: 184.3102195 | CN59: 45 | CO59: 10 | CP59: 1.887354714
A60: 2055 | B60: 92 | D60: =VLOOKUP(B60,Lookups!A:B,2) -> 4612.238145 | E60: =VLOOKUP(B60,Lookups!A:C,3) -> 2128.40628 | G60: =VLOOKUP(B60,Lookups!A:D,4) -> 8039.70144 | H60: =VLOOKUP(B60,Lookups!A:E,5) -> 5299.56576 | J60: =VLOOKUP(A60,Trends!$A$3:$Q$94,IF(ExFlg=0,2,10))+IF(B60>=$B$2,Sens,0) -> 1.042 | K60: 3.624392889 | L60: =VLOOKUP(A60,Trends!$A$3:$Q$94,IF(ExFlg=0,4,12))+IF(B60>=$B$2,Sens,0) -> 1.042 | M60: 3.576055288 | N60: =VLOOKUP(A60,Trends!$A$3:$Z$94,IF(ExFlg=0,19,23))+IF(B60>=$B$2,Sens,0) -> 1.043 | O60: 3.89973828 | P60: =VLOOKUP(A60,Trends!$A$3:$Q$94,IF(ExFlg=0,6,14))+IF(B60>=$B$2,Sens,0) -> 1.042 | Q60: 3.683536031 | R60: =VLOOKUP(A60,Trends!$A$3:$Q$94,IF(ExFlg=0,8,16))+IF(B60>=$B$2,Sens,0) -> 1.042 | S60: 3.791909297 | T60: =VLOOKUP(A60,Trends!$A$3:$Z$94,IF(ExFlg=0,21,25))+IF(B60>=$B$2,Sens,0) -> 1.043 | U60: 4.150265268 | W60: 16493.61861 | X60: 8300.227446 | Y60: 8193.391162 | AA60: 30485.81863 | AB60: 21994.60371 | AC60: 8491.214921 | AE60: 8416.758981 | AG60: =IF(B60<71,IF(B60-35<30,VLOOKUP(B60,Lookups!A:G,6),VLOOKUP(B60,Lookups!A:G,7)),"") ->  | AJ60: =IF(OR(B60<55,B60-35<20),VLOOKUP(B60-$B$3,Lookups!$O$3:$Q$53,2),VLOOKUP(B60,Lookups!$O$57:$P$122,2)) -> 0 | AK60: 0 | AL60: 0 | AM60: =IF(B60<55,VLOOKUP(B60,Lookups!A:M,12),"") ->  | AN60: =IF(B60<55,VLOOKUP(B60,Lookups!A:M,13),"") ->  | AP60: =IF(B60<70,VLOOKUP(B60,Lookups!A:I,8)*(1-VLOOKUP(B60,Lookups!$U$3:$W$103,2))^(B60-$B$2),"") ->  | AQ60: =IF(B60<70,VLOOKUP(B60,Lookups!A:I,9)*(1-VLOOKUP(B60,Lookups!$U$3:$W$103,3))^(B60-$B$2),"") ->  | AV60: 103 | AW60: =IF(BD60>=$B$3,VLOOKUP(BD60,Lookups!A:I,8)*(1-VLOOKUP(BD60,Lookups!U:W,2))^(BD60-$B$2),"") -> 0.2962003336 | AX60: =IF(BD60>=$B$3,VLOOKUP(BD60,Lookups!A:I,9)*(1-VLOOKUP(BD60,Lookups!U:W,3))^(BD60-$B$2),"") -> 0.2688629842 | AY60: 0.2825316589 | AZ60: 0.0395579227 | BA60: 0.1571938281 | BB60: 0.858072 | BD60: 103 | BE60: 13193.26293 | BQ60: 70.39550294 | BR60: 73.29833025 | BS60: 76.33061415 | BT60: 79.49898955 | BU60: 82.81050485 | BV60: 86.27295994 | BW60: 89.8945799 | BX60: 93.68502386 | BY60: 97.65363792 | BZ60: 101.8117379 | CA60: 106.1713904 | CB60: 111.1822085 | CC60: 116.5041121 | CD60: 122.172451 | CE60: 128.227556 | CF60: 134.7145174 | CN60: 46 | CO60: 11 | CP60: 1.809898806
A61: 2056 | B61: 93 | D61: =VLOOKUP(B61,Lookups!A:B,2) -> 4612.238145 | E61: =VLOOKUP(B61,Lookups!A:C,3) -> 2128.40628 | G61: =VLOOKUP(B61,Lookups!A:D,4) -> 8039.70144 | H61: =VLOOKUP(B61,Lookups!A:E,5) -> 5299.56576 | J61: =VLOOKUP(A61,Trends!$A$3:$Q$94,IF(ExFlg=0,2,10))+IF(B61>=$B$2,Sens,0) -> 1.042 | K61: 3.77661739 | L61: =VLOOKUP(A61,Trends!$A$3:$Q$94,IF(ExFlg=0,4,12))+IF(B61>=$B$2,Sens,0) -> 1.042 | M61: 3.72624961 | N61: =VLOOKUP(A61,Trends!$A$3:$Z$94,IF(ExFlg=0,19,23))+IF(B61>=$B$2,Sens,0) -> 1.042 | O61: 4.067427026 | P61: =VLOOKUP(A61,Trends!$A$3:$Q$94,IF(ExFlg=0,6,14))+IF(B61>=$B$2,Sens,0) -> 1.042 | Q61: 3.838244544 | R61: =VLOOKUP(A61,Trends!$A$3:$Q$94,IF(ExFlg=0,8,16))+IF(B61>=$B$2,Sens,0) -> 1.042 | S61: 3.951169487 | T61: =VLOOKUP(A61,Trends!$A$3:$Z$94,IF(ExFlg=0,21,25))+IF(B61>=$B$2,Sens,0) -> 1.042 | U61: 4.328726675 | W61: 17186.35059 | X61: 8657.137226 | Y61: 8529.213364 | AA61: 31766.22301 | AB61: 22940.37167 | AC61: 8825.851344 | AE61: 8751.691849 | AG61: =IF(B61<71,IF(B61-35<30,VLOOKUP(B61,Lookups!A:G,6),VLOOKUP(B61,Lookups!A:G,7)),"") ->  | AJ61: =IF(OR(B61<55,B61-35<20),VLOOKUP(B61-$B$3,Lookups!$O$3:$Q$53,2),VLOOKUP(B61,Lookups!$O$57:$P$122,2)) -> 0 | AK61: 0 | AL61: 0 | AM61: =IF(B61<55,VLOOKUP(B61,Lookups!A:M,12),"") ->  | AN61: =IF(B61<55,VLOOKUP(B61,Lookups!A:M,13),"") ->  | AP61: =IF(B61<70,VLOOKUP(B61,Lookups!A:I,8)*(1-VLOOKUP(B61,Lookups!$U$3:$W$103,2))^(B61-$B$2),"") ->  | AQ61: =IF(B61<70,VLOOKUP(B61,Lookups!A:I,9)*(1-VLOOKUP(B61,Lookups!$U$3:$W$103,3))^(B61-$B$2),"") ->  | AV61: 104 | AW61: =IF(BD61>=$B$3,VLOOKUP(BD61,Lookups!A:I,8)*(1-VLOOKUP(BD61,Lookups!U:W,2))^(BD61-$B$2),"") -> 0.3156627666 | AX61: =IF(BD61>=$B$3,VLOOKUP(BD61,Lookups!A:I,9)*(1-VLOOKUP(BD61,Lookups!U:W,3))^(BD61-$B$2),"") -> 0.2895397793 | AY61: 0.3026012729 | AZ61: 0.02838155718 | BA61: 0.1512497143 | BB61: 0.849221 | BD61: 104 | BE61: 13734.18671 | BQ61: 50.06733267 | BR61: 52.13190803 | BS61: 54.28855668 | BT61: 56.54199757 | BU61: 58.89724374 | BV61: 61.35984268 | BW61: 63.93564431 | BX61: 66.63151849 | BY61: 69.45411244 | BZ61: 72.41147432 | CA61: 75.51218613 | CB61: 79.07602599 | CC61: 82.86111886 | CD61: 86.89260665 | CE61: 91.19917374 | CF61: 95.81288966 | CN61: 47 | CO61: 12 | CP61: 1.741090067 | CR61: PERS Salary Merit Table
A62: 2057 | B62: 94 | D62: =VLOOKUP(B62,Lookups!A:B,2) -> 4612.238145 | E62: =VLOOKUP(B62,Lookups!A:C,3) -> 2128.40628 | G62: =VLOOKUP(B62,Lookups!A:D,4) -> 8039.70144 | H62: =VLOOKUP(B62,Lookups!A:E,5) -> 5299.56576 | J62: =VLOOKUP(A62,Trends!$A$3:$Q$94,IF(ExFlg=0,2,10))+IF(B62>=$B$2,Sens,0) -> 1.042 | K62: 3.935235321 | L62: =VLOOKUP(A62,Trends!$A$3:$Q$94,IF(ExFlg=0,4,12))+IF(B62>=$B$2,Sens,0) -> 1.042 | M62: 3.882752094 | N62: =VLOOKUP(A62,Trends!$A$3:$Z$94,IF(ExFlg=0,19,23))+IF(B62>=$B$2,Sens,0) -> 1.042 | O62: 4.238258961 | P62: =VLOOKUP(A62,Trends!$A$3:$Q$94,IF(ExFlg=0,6,14))+IF(B62>=$B$2,Sens,0) -> 1.042 | Q62: 3.999450815 | R62: =VLOOKUP(A62,Trends!$A$3:$Q$94,IF(ExFlg=0,8,16))+IF(B62>=$B$2,Sens,0) -> 1.042 | S62: 4.117118605 | T62: =VLOOKUP(A62,Trends!$A$3:$Z$94,IF(ExFlg=0,21,25))+IF(B62>=$B$2,Sens,0) -> 1.042 | U62: 4.510533195 | W62: 17908.17731 | X62: 9020.736989 | Y62: 8887.440325 | AA62: 33100.40438 | AB62: 23903.86728 | AC62: 9196.5371 | AE62: 9119.262906 | AG62: =IF(B62<71,IF(B62-35<30,VLOOKUP(B62,Lookups!A:G,6),VLOOKUP(B62,Lookups!A:G,7)),"") ->  | AJ62: =IF(OR(B62<55,B62-35<20),VLOOKUP(B62-$B$3,Lookups!$O$3:$Q$53,2),VLOOKUP(B62,Lookups!$O$57:$P$122,2)) -> 0 | AK62: 0 | AL62: 0 | AM62: =IF(B62<55,VLOOKUP(B62,Lookups!A:M,12),"") ->  | AN62: =IF(B62<55,VLOOKUP(B62,Lookups!A:M,13),"") ->  | AP62: =IF(B62<70,VLOOKUP(B62,Lookups!A:I,8)*(1-VLOOKUP(B62,Lookups!$U$3:$W$103,2))^(B62-$B$2),"") ->  | AQ62: =IF(B62<70,VLOOKUP(B62,Lookups!A:I,9)*(1-VLOOKUP(B62,Lookups!$U$3:$W$103,3))^(B62-$B$2),"") ->  | AV62: 105 | AW62: =IF(BD62>=$B$3,VLOOKUP(BD62,Lookups!A:I,8)*(1-VLOOKUP(BD62,Lookups!U:W,2))^(BD62-$B$2),"") -> 0.3354427394 | AX62: =IF(BD62>=$B$3,VLOOKUP(BD62,Lookups!A:I,9)*(1-VLOOKUP(BD62,Lookups!U:W,3))^(BD62-$B$2),"") -> 0.3106986927 | AY62: 0.3230707161 | AZ62: 0.01979326185 | BA62: 0.1455303707 | BB62: 0.840194 | BD62: 105 | BE62: 14283.55418 | BQ62: 34.5690041 | BR62: 35.99449074 | BS62: 37.48354942 | BT62: 39.03943833 | BU62: 40.66561871 | BV62: 42.36592085 | BW62: 44.14438382 | BX62: 46.00575092 | BY62: 47.95461171 | BZ62: 49.99652306 | CA62: 52.13741042 | CB62: 54.59806466 | CC62: 57.21148312 | CD62: 59.995025 | CE62: 62.96849548 | CF62: 66.15403695 | CN62: 48 | CO62: 13 | CP62: 1.683458343 | CR62: Service | CS62: Salary Increase | CT62: 1+ Sal Inc
A63: 2058 | B63: 95 | D63: =VLOOKUP(B63,Lookups!A:B,2) -> 4612.238145 | E63: =VLOOKUP(B63,Lookups!A:C,3) -> 2128.40628 | G63: =VLOOKUP(B63,Lookups!A:D,4) -> 8039.70144 | H63: =VLOOKUP(B63,Lookups!A:E,5) -> 5299.56576 | J63: =VLOOKUP(A63,Trends!$A$3:$Q$94,IF(ExFlg=0,2,10))+IF(B63>=$B$2,Sens,0) -> 1.042 | K63: 4.100515204 | L63: =VLOOKUP(A63,Trends!$A$3:$Q$94,IF(ExFlg=0,4,12))+IF(B63>=$B$2,Sens,0) -> 1.042 | M63: 4.045827682 | N63: =VLOOKUP(A63,Trends!$A$3:$Z$94,IF(ExFlg=0,19,23))+IF(B63>=$B$2,Sens,0) -> 1.042 | O63: 4.416265838 | P63: =VLOOKUP(A63,Trends!$A$3:$Q$94,IF(ExFlg=0,6,14))+IF(B63>=$B$2,Sens,0) -> 1.042 | Q63: 4.167427749 | R63: =VLOOKUP(A63,Trends!$A$3:$Q$94,IF(ExFlg=0,8,16))+IF(B63>=$B$2,Sens,0) -> 1.042 | S63: 4.290037587 | T63: =VLOOKUP(A63,Trends!$A$3:$Z$94,IF(ExFlg=0,21,25))+IF(B63>=$B$2,Sens,0) -> 1.042 | U63: 4.699975589 | W63: 18660.32076 | X63: 9399.607943 | Y63: 9260.712819 | AA63: 34490.62136 | AB63: 24907.82971 | AC63: 9582.791658 | AE63: 9502.271948 | AG63: =IF(B63<71,IF(B63-35<30,VLOOKUP(B63,Lookups!A:G,6),VLOOKUP(B63,Lookups!A:G,7)),"") ->  | AJ63: =IF(OR(B63<55,B63-35<20),VLOOKUP(B63-$B$3,Lookups!$O$3:$Q$53,2),VLOOKUP(B63,Lookups!$O$57:$P$122,2)) -> 0 | AK63: 0 | AL63: 0 | AM63: =IF(B63<55,VLOOKUP(B63,Lookups!A:M,12),"") ->  | AN63: =IF(B63<55,VLOOKUP(B63,Lookups!A:M,13),"") ->  | AP63: =IF(B63<70,VLOOKUP(B63,Lookups!A:I,8)*(1-VLOOKUP(B63,Lookups!$U$3:$W$103,2))^(B63-$B$2),"") ->  | AQ63: =IF(B63<70,VLOOKUP(B63,Lookups!A:I,9)*(1-VLOOKUP(B63,Lookups!$U$3:$W$103,3))^(B63-$B$2),"") ->  | AV63: 106 | AW63: =IF(BD63>=$B$3,VLOOKUP(BD63,Lookups!A:I,8)*(1-VLOOKUP(BD63,Lookups!U:W,2))^(BD63-$B$2),"") -> 0.3576132144 | AX63: =IF(BD63>=$B$3,VLOOKUP(BD63,Lookups!A:I,9)*(1-VLOOKUP(BD63,Lookups!U:W,3))^(BD63-$B$2),"") -> 0.3342316901 | AY63: 0.3459224523 | AZ63: 0.01339863857 | BA63: 0.1400272979 | BB63: 0.830116 | BD63: 106 | BE63: 14854.89635 | BQ63: 23.13565455 | BR63: 24.08967586 | BS63: 25.0862434 | BT63: 26.12753774 | BU63: 27.21587536 | BV63: 28.35381971 | BW63: 29.54407398 | BX63: 30.78981268 | BY63: 32.09410742 | BZ63: 33.46067718 | CA63: 34.89348762 | CB63: 36.54030529 | CC63: 38.28936194 | CD63: 40.15227542 | CE63: 42.14230051 | CF63: 44.27425626 | CN63: 49 | CO63: 14 | CP63: 1.627602952 | CR63: 0 | CS63: 0.06 | CT63: =CS63+1 -> 1.06
A64: 2059 | B64: 96 | D64: =VLOOKUP(B64,Lookups!A:B,2) -> 4612.238145 | E64: =VLOOKUP(B64,Lookups!A:C,3) -> 2128.40628 | G64: =VLOOKUP(B64,Lookups!A:D,4) -> 8039.70144 | H64: =VLOOKUP(B64,Lookups!A:E,5) -> 5299.56576 | J64: =VLOOKUP(A64,Trends!$A$3:$Q$94,IF(ExFlg=0,2,10))+IF(B64>=$B$2,Sens,0) -> 1.042 | K64: 4.272736843 | L64: =VLOOKUP(A64,Trends!$A$3:$Q$94,IF(ExFlg=0,4,12))+IF(B64>=$B$2,Sens,0) -> 1.042 | M64: 4.215752444 | N64: =VLOOKUP(A64,Trends!$A$3:$Z$94,IF(ExFlg=0,19,23))+IF(B64>=$B$2,Sens,0) -> 1.042 | O64: 4.601749003 | P64: =VLOOKUP(A64,Trends!$A$3:$Q$94,IF(ExFlg=0,6,14))+IF(B64>=$B$2,Sens,0) -> 1.042 | Q64: 4.342459715 | R64: =VLOOKUP(A64,Trends!$A$3:$Q$94,IF(ExFlg=0,8,16))+IF(B64>=$B$2,Sens,0) -> 1.042 | S64: 4.470219166 | T64: =VLOOKUP(A64,Trends!$A$3:$Z$94,IF(ExFlg=0,21,25))+IF(B64>=$B$2,Sens,0) -> 1.042 | U64: 4.897374564 | W64: 19444.05423 | X64: 9794.391476 | Y64: 9649.662757 | AA64: 35939.22746 | AB64: 25953.95855 | AC64: 9985.268908 | AE64: 9901.36737 | AG64: =IF(B64<71,IF(B64-35<30,VLOOKUP(B64,Lookups!A:G,6),VLOOKUP(B64,Lookups!A:G,7)),"") ->  | AJ64: =IF(OR(B64<55,B64-35<20),VLOOKUP(B64-$B$3,Lookups!$O$3:$Q$53,2),VLOOKUP(B64,Lookups!$O$57:$P$122,2)) -> 0 | AK64: 0 | AL64: 0 | AM64: =IF(B64<55,VLOOKUP(B64,Lookups!A:M,12),"") ->  | AN64: =IF(B64<55,VLOOKUP(B64,Lookups!A:M,13),"") ->  | AP64: =IF(B64<70,VLOOKUP(B64,Lookups!A:I,8)*(1-VLOOKUP(B64,Lookups!$U$3:$W$103,2))^(B64-$B$2),"") ->  | AQ64: =IF(B64<70,VLOOKUP(B64,Lookups!A:I,9)*(1-VLOOKUP(B64,Lookups!$U$3:$W$103,3))^(B64-$B$2),"") ->  | AV64: 107 | AW64: =IF(BD64>=$B$3,VLOOKUP(BD64,Lookups!A:I,8)*(1-VLOOKUP(BD64,Lookups!U:W,2))^(BD64-$B$2),"") -> 0.3780719332 | AX64: =IF(BD64>=$B$3,VLOOKUP(BD64,Lookups!A:I,9)*(1-VLOOKUP(BD64,Lookups!U:W,3))^(BD64-$B$2),"") -> 0.3562825344 | AY64: 0.3671772338 | AZ64: 0.008763748659 | BA64: 0.1347323178 | BB64: 0.820743 | BD64: 107 | BE64: 15449.0922 | BQ64: 14.9717252 | BR64: 15.58909891 | BS64: 16.23400547 | BT64: 16.90785598 | BU64: 17.61214951 | BV64: 18.34854493 | BW64: 19.11879156 | BX64: 19.9249437 | BY64: 20.76898908 | BZ64: 21.65333436 | CA64: 22.58054583 | CB64: 23.64624732 | CC64: 24.77811051 | CD64: 25.9836536 | CE64: 27.27145416 | CF64: 28.65110199 | CN64: 50 | CO64: 15 | CP64: 1.570328762 | CR64: =CR63+1 -> 1 | CS64: 0.06 | CT64: =CS64+1 -> 1.06
A65: 2060 | B65: 97 | D65: =VLOOKUP(B65,Lookups!A:B,2) -> 4612.238145 | E65: =VLOOKUP(B65,Lookups!A:C,3) -> 2128.40628 | G65: =VLOOKUP(B65,Lookups!A:D,4) -> 8039.70144 | H65: =VLOOKUP(B65,Lookups!A:E,5) -> 5299.56576 | J65: =VLOOKUP(A65,Trends!$A$3:$Q$94,IF(ExFlg=0,2,10))+IF(B65>=$B$2,Sens,0) -> 1.042 | K65: 4.45219179 | L65: =VLOOKUP(A65,Trends!$A$3:$Q$94,IF(ExFlg=0,4,12))+IF(B65>=$B$2,Sens,0) -> 1.042 | M65: 4.392814047 | N65: =VLOOKUP(A65,Trends!$A$3:$Z$94,IF(ExFlg=0,19,23))+IF(B65>=$B$2,Sens,0) -> 1.042 | O65: 4.795022461 | P65: =VLOOKUP(A65,Trends!$A$3:$Q$94,IF(ExFlg=0,6,14))+IF(B65>=$B$2,Sens,0) -> 1.043 | Q65: 4.524843023 | R65: =VLOOKUP(A65,Trends!$A$3:$Q$94,IF(ExFlg=0,8,16))+IF(B65>=$B$2,Sens,0) -> 1.042 | S65: 4.65796837 | T65: =VLOOKUP(A65,Trends!$A$3:$Z$94,IF(ExFlg=0,21,25))+IF(B65>=$B$2,Sens,0) -> 1.042 | U65: 5.103064296 | W65: 20260.70451 | X65: 10205.75592 | Y65: 10054.94859 | AA65: 37448.67502 | AB65: 27044.02481 | AC65: 10404.6502 | AE65: 10317.2248 | AG65: =IF(B65<71,IF(B65-35<30,VLOOKUP(B65,Lookups!A:G,6),VLOOKUP(B65,Lookups!A:G,7)),"") ->  | AJ65: =IF(OR(B65<55,B65-35<20),VLOOKUP(B65-$B$3,Lookups!$O$3:$Q$53,2),VLOOKUP(B65,Lookups!$O$57:$P$122,2)) -> 0 | AK65: 0 | AL65: 0 | AM65: =IF(B65<55,VLOOKUP(B65,Lookups!A:M,12),"") ->  | AN65: =IF(B65<55,VLOOKUP(B65,Lookups!A:M,13),"") ->  | AP65: =IF(B65<70,VLOOKUP(B65,Lookups!A:I,8)*(1-VLOOKUP(B65,Lookups!$U$3:$W$103,2))^(B65-$B$2),"") ->  | AQ65: =IF(B65<70,VLOOKUP(B65,Lookups!A:I,9)*(1-VLOOKUP(B65,Lookups!$U$3:$W$103,3))^(B65-$B$2),"") ->  | AV65: 108 | AW65: =IF(BD65>=$B$3,VLOOKUP(BD65,Lookups!A:I,8)*(1-VLOOKUP(BD65,Lookups!U:W,2))^(BD65-$B$2),"") -> 0.3987527009 | AX65: =IF(BD65>=$B$3,VLOOKUP(BD65,Lookups!A:I,9)*(1-VLOOKUP(BD65,Lookups!U:W,3))^(BD65-$B$2),"") -> 0.3786140966 | AY65: 0.3886833987 | AZ65: 0.005545899668 | BA65: 0.1296375617 | BB65: 0.811258 | BD65: 108 | BE65: 16051.6068 | BQ65: 9.362252879 | BR65: 9.74831452 | BS65: 10.15159324 | BT65: 10.57297146 | BU65: 11.01338658 | BV65: 11.47387594 | BW65: 11.95553344 | BX65: 12.4596437 | BY65: 12.98744969 | BZ65: 13.54045638 | CA65: 14.12026853 | CB65: 14.7866825 | CC65: 15.49446929 | CD65: 16.24833027 | CE65: 17.05362921 | CF65: 17.91636291 | CN65: 51 | CO65: 16 | CP65: 1.513364767 | CR65: =CR64+1 -> 2 | CS65: 0.045 | CT65: 1.045
A66: 2061 | B66: 98 | D66: =VLOOKUP(B66,Lookups!A:B,2) -> 4612.238145 | E66: =VLOOKUP(B66,Lookups!A:C,3) -> 2128.40628 | G66: =VLOOKUP(B66,Lookups!A:D,4) -> 8039.70144 | H66: =VLOOKUP(B66,Lookups!A:E,5) -> 5299.56576 | J66: =VLOOKUP(A66,Trends!$A$3:$Q$94,IF(ExFlg=0,2,10))+IF(B66>=$B$2,Sens,0) -> 1.042 | K66: 4.639183845 | L66: =VLOOKUP(A66,Trends!$A$3:$Q$94,IF(ExFlg=0,4,12))+IF(B66>=$B$2,Sens,0) -> 1.042 | M66: 4.577312237 | N66: =VLOOKUP(A66,Trends!$A$3:$Z$94,IF(ExFlg=0,19,23))+IF(B66>=$B$2,Sens,0) -> 1.042 | O66: 4.996413404 | P66: =VLOOKUP(A66,Trends!$A$3:$Q$94,IF(ExFlg=0,6,14))+IF(B66>=$B$2,Sens,0) -> 1.042 | Q66: 4.719411273 | R66: =VLOOKUP(A66,Trends!$A$3:$Q$94,IF(ExFlg=0,8,16))+IF(B66>=$B$2,Sens,0) -> 1.042 | S66: 4.853603042 | T66: =VLOOKUP(A66,Trends!$A$3:$Z$94,IF(ExFlg=0,21,25))+IF(B66>=$B$2,Sens,0) -> 1.042 | U66: 5.317392996 | W66: 21111.6541 | X66: 10634.39767 | Y66: 10477.25643 | AA66: 39021.51937 | AB66: 28179.87386 | AC66: 10841.64551 | AE66: 10750.54824 | AG66: =IF(B66<71,IF(B66-35<30,VLOOKUP(B66,Lookups!A:G,6),VLOOKUP(B66,Lookups!A:G,7)),"") ->  | AJ66: =IF(OR(B66<55,B66-35<20),VLOOKUP(B66-$B$3,Lookups!$O$3:$Q$53,2),VLOOKUP(B66,Lookups!$O$57:$P$122,2)) -> 0 | AK66: 0 | AL66: 0 | AM66: =IF(B66<55,VLOOKUP(B66,Lookups!A:M,12),"") ->  | AN66: =IF(B66<55,VLOOKUP(B66,Lookups!A:M,13),"") ->  | AP66: =IF(B66<70,VLOOKUP(B66,Lookups!A:I,8)*(1-VLOOKUP(B66,Lookups!$U$3:$W$103,2))^(B66-$B$2),"") ->  | AQ66: =IF(B66<70,VLOOKUP(B66,Lookups!A:I,9)*(1-VLOOKUP(B66,Lookups!$U$3:$W$103,3))^(B66-$B$2),"") ->  | AV66: 109 | AW66: =IF(BD66>=$B$3,VLOOKUP(BD66,Lookups!A:I,8)*(1-VLOOKUP(BD66,Lookups!U:W,2))^(BD66-$B$2),"") -> 0.4196597724 | AX66: =IF(BD66>=$B$3,VLOOKUP(BD66,Lookups!A:I,9)*(1-VLOOKUP(BD66,Lookups!U:W,3))^(BD66-$B$2),"") -> 0.4011769471 | AY66: 0.4104183598 | AZ66: 0.003390300536 | BA66: 0.1247354582 | BB66: 0.801673 | BD66: 109 | BE66: 16677.61946 | BQ66: 5.654047362 | BR66: 5.887197527 | BS66: 6.130745425 | BT66: 6.385223961 | BU66: 6.651199252 | BV66: 6.929297771 | BW66: 7.220180141 | BX66: 7.524622169 | BY66: 7.843374517 | BZ66: 8.177346056 | CA66: 8.527505941 | CB66: 8.929966353 | CC66: 9.357412619 | CD66: 9.812683984 | CE66: 10.29901974 | CF66: 10.82004147 | CN66: 52 | CO66: 17 | CP66: 1.465861163 | CR66: 3 | CS66: 0.037 | CT66: 1.037
A67: 2062 | B67: 99 | D67: =VLOOKUP(B67,Lookups!A:B,2) -> 4612.238145 | E67: =VLOOKUP(B67,Lookups!A:C,3) -> 2128.40628 | G67: =VLOOKUP(B67,Lookups!A:D,4) -> 8039.70144 | H67: =VLOOKUP(B67,Lookups!A:E,5) -> 5299.56576 | J67: =VLOOKUP(A67,Trends!$A$3:$Q$94,IF(ExFlg=0,2,10))+IF(B67>=$B$2,Sens,0) -> 1.042 | K67: 4.834029567 | L67: =VLOOKUP(A67,Trends!$A$3:$Q$94,IF(ExFlg=0,4,12))+IF(B67>=$B$2,Sens,0) -> 1.042 | M67: 4.769559351 | N67: =VLOOKUP(A67,Trends!$A$3:$Z$94,IF(ExFlg=0,19,23))+IF(B67>=$B$2,Sens,0) -> 1.042 | O67: 5.206262767 | P67: =VLOOKUP(A67,Trends!$A$3:$Q$94,IF(ExFlg=0,6,14))+IF(B67>=$B$2,Sens,0) -> 1.042 | Q67: 4.917626546 | R67: =VLOOKUP(A67,Trends!$A$3:$Q$94,IF(ExFlg=0,8,16))+IF(B67>=$B$2,Sens,0) -> 1.042 | S67: 5.05745437 | T67: =VLOOKUP(A67,Trends!$A$3:$Z$94,IF(ExFlg=0,21,25))+IF(B67>=$B$2,Sens,0) -> 1.042 | U67: 5.540723502 | W67: 21998.34357 | X67: 11081.04237 | Y67: =W67-X67 -> 10917.3012 | AA67: 40660.42318 | AB67: 29363.42856 | AC67: 11296.99462 | AE67: =(1-PctUMP)*Y67+PctUMP*AC67 -> 11202.07127 | AG67: =IF(B67<71,IF(B67-35<30,VLOOKUP(B67,Lookups!A:G,6),VLOOKUP(B67,Lookups!A:G,7)),"") ->  | AI67: =IF(B67<71,PCTMALE*AG67+(1-PCTMALE)*AH67,"") ->  | AJ67: =IF(OR(B67<55,B67-35<20),VLOOKUP(B67-$B$3,Lookups!$O$3:$Q$53,2),VLOOKUP(B67,Lookups!$O$57:$P$122,2)) -> 0 | AK67: 0 | AL67: =PCTMALE*AJ67+(1-PCTMALE)*AK67 -> 0 | AM67: =IF(B67<55,VLOOKUP(B67,Lookups!A:M,12),"") ->  | AN67: =IF(B67<55,VLOOKUP(B67,Lookups!A:M,13),"") ->  | AO67: =IF(B67<55,PCTMALE*AM67+(1-PCTMALE)*AN67,"") ->  | AP67: =IF(B67<70,VLOOKUP(B67,Lookups!A:I,8)*(1-VLOOKUP(B67,Lookups!$U$3:$W$103,2))^(B67-$B$2),"") ->  | AQ67: =IF(B67<70,VLOOKUP(B67,Lookups!A:I,9)*(1-VLOOKUP(B67,Lookups!$U$3:$W$103,3))^(B67-$B$2),"") ->  | AR67: =IF(AP67<>"",PCTMALE*AP67+(1-PCTMALE)*AQ67,"") ->  | AU67: =IF(B67<71,IF(B67=$B$2,1,IF(B67<$B$2,AU68*(1+IntRt),AU66/(1+IntRt))),"") ->  | AV67: 110 | AW67: =IF(BD67>=$B$3,VLOOKUP(BD67,Lookups!A:I,8)*(1-VLOOKUP(BD67,Lookups!U:W,2))^(BD67-$B$2),"") -> 0.4379781536 | AX67: =IF(BD67>=$B$3,VLOOKUP(BD67,Lookups!A:I,9)*(1-VLOOKUP(BD67,Lookups!U:W,3))^(BD67-$B$2),"") -> 0.426634902 | AY67: =IFERROR(PCTMALE*AW67+(1-PCTMALE)*AX67,"") -> 0.4323065278 | AZ67: 0.001998858951 | BA67: 0.1200187224 | BB67: 0.792021 | BD67: 110 | BE67: 17311.369 | BP67: PV Benefits from Entry Age | BQ67: 3.289267994 | BR67: 3.424904172 | BS67: 3.566589279 | BT67: 3.714633335 | BU67: 3.869365681 | BV67: 4.03115077 | BW67: 4.200372923 | BX67: 4.37748347 | BY67: 4.562919111 | BZ67: 4.757208586 | CA67: 4.960915705 | CB67: 5.195048897 | CC67: 5.443717723 | CD67: 5.708573928 | CE67: 5.991501988 | CF67: 6.29460877 | CG67: PV Benefits from Entry Age | CN67: 53 | CO67: 18 | CP67: 1.427012806 | CR67: 4 | CS67: 0.03 | CT67: 1.03
A68: =1+A67 -> 2063 | B68: =1+B67 -> 100 | D68: =VLOOKUP(B68,Lookups!A:B,2) -> 4612.238145 | E68: =VLOOKUP(B68,Lookups!A:C,3) -> 2128.40628 | G68: =VLOOKUP(B68,Lookups!A:D,4) -> 8039.70144 | H68: =VLOOKUP(B68,Lookups!A:E,5) -> 5299.56576 | J68: =VLOOKUP(A68,Trends!$A$3:$Q$94,IF(ExFlg=0,2,10))+IF(B68>=$B$2,Sens,0) -> 1.042 | K68: 5.037058809 | L68: =VLOOKUP(A68,Trends!$A$3:$Q$94,IF(ExFlg=0,4,12))+IF(B68>=$B$2,Sens,0) -> 1.042 | M68: 4.969880844 | N68: =VLOOKUP(A68,Trends!$A$3:$Z$94,IF(ExFlg=0,19,23))+IF(B68>=$B$2,Sens,0) -> 1.042 | O68: =IF(B68=$B$2,1,IF(B68<$B$2,O69/N68,O67*N67)) -> 5.424925803 | P68: =VLOOKUP(A68,Trends!$A$3:$Q$94,IF(ExFlg=0,6,14))+IF(B68>=$B$2,Sens,0) -> 1.042 | Q68: 5.124166861 | R68: =VLOOKUP(A68,Trends!$A$3:$Q$94,IF(ExFlg=0,8,16))+IF(B68>=$B$2,Sens,0) -> 1.042 | S68: 5.269867453 | T68: =VLOOKUP(A68,Trends!$A$3:$Z$94,IF(ExFlg=0,21,25))+IF(B68>=$B$2,Sens,0) -> 1.042 | U68: =IF(B68=$B$2,1,IF(B68<$B$2,U69/T68,U67*T67)) -> 5.773433889 | W68: =IF(B68<65,D68*K68,D68*M68) -> 22922.274 | X68: =IF(B68<65,E68*K68,E68*O68) -> 11546.44615 | Y68: 11375.82785 | AA68: 42368.16095 | AB68: =IF(B68<65,H68*Q68,H68*U68) -> 30596.69256 | AC68: =AA68-AB68 -> 11771.4684 | AE68: 11672.55826 | AG68: =IF(B68<71,IF(B68-35<30,VLOOKUP(B68,Lookups!A:G,6),VLOOKUP(B68,Lookups!A:G,7)),"") ->  | AH68: =AG68 ->  | AJ68: =IF(OR(B68<55,B68-35<20),VLOOKUP(B68-$B$3,Lookups!$O$3:$Q$53,2),VLOOKUP(B68,Lookups!$O$57:$P$122,2)) -> 0 | AK68: =AJ68 -> 0 | AL68: 0 | AM68: =IF(B68<55,VLOOKUP(B68,Lookups!A:M,12),"") ->  | AN68: =IF(B68<55,VLOOKUP(B68,Lookups!A:M,13),"") ->  | AP68: =IF(B68<70,VLOOKUP(B68,Lookups!A:I,8)*(1-VLOOKUP(B68,Lookups!$U$3:$W$103,2))^(B68-$B$2),"") ->  | AQ68: =IF(B68<70,VLOOKUP(B68,Lookups!A:I,9)*(1-VLOOKUP(B68,Lookups!$U$3:$W$103,3))^(B68-$B$2),"") ->  | AS68: =IF(B68<71,SUM(AI68,AL68,AO68,AR68),"") ->  | AT68: =IF(B68<71,IF(B68=$B$2,1, IF(B68<$B$2, AT69/(1-AS68), AT67*(1-AS67))),"") ->  | AV68: 111 | AW68: =IF(BD68>=$B$3,VLOOKUP(BD68,Lookups!A:I,8)*(1-VLOOKUP(BD68,Lookups!U:W,2))^(BD68-$B$2),"") -> 0.4484137353 | AX68: =IF(BD68>=$B$3,VLOOKUP(BD68,Lookups!A:I,9)*(1-VLOOKUP(BD68,Lookups!U:W,3))^(BD68-$B$2),"") -> 0.4484137353 | AY68: 0.4484137353 | AZ68: =IF(AY67="",1,AZ67*(1-AY67)) -> 0.001134739178 | BA68: 0.1154803448 | BB68: 0.784917 | BD68: 111 | BF68: =IF($BE$12<>"",SUM(BF12:BF67)*BF70*BF71*BF72*Part,"") -> 313.4984018 | BG68: =IF($BE$13<>"",SUM(BG12:BG67)*BG70*BG71*BG72*Part,"") -> 291.0454494 | BH68: =IF($BE$14<>"",SUM(BH12:BH67)*BH70*BH71*BH72*Part,"") -> 535.1035682 | BI68: =IF($BE$15<>"",SUM(BI12:BI67)*BI70*BI71*BI72*Part,"") -> 481.1547301 | BJ68: =IF($BE$16<>"",SUM(BJ12:BJ67)*BJ70*BJ71*BJ72*Part,"") -> 847.7915512 | BK68: =IF($BE$17<>"",SUM(BK12:BK67)*BK70*BK71*BK72*Part,"") -> 890.101486 | BL68: =IF($BE$18<>"",SUM(BL12:BL67)*BL70*BL71*BL72*Part,"") -> 1139.543254 | BM68: =IF($BE$19<>"",SUM(BM12:BM67)*BM70*BM71*BM72*Part,"") -> 1562.325592 | BN68: =IF($BE$20<>"",SUM(BN12:BN67)*BN70*BN71*BN72*Part,"") -> 1260.615449 | BO68: =IF($BE$21<>"",SUM(BO12:BO67)*BO70*BO71*BO72*Part,"") -> 1074.988849 | BP68: =SUM(BF68:BO68) -> 8396.168331 | BQ68: =IF($BE12<>"",SUM(BQ12:BQ67)*BQ70*BQ71*BQ72*Part,"") -> 352.8484653 | BR68: =IF($BE13<>"",SUM(BR12:BR67)*BR70*BR71*BR72*Part,"") -> 349.3134079 | BS68: =IF($BE14<>"",SUM(BS12:BS67)*BS70*BS71*BS72*Part,"") -> 691.6266392 | BT68: =IF($BE15<>"",SUM(BT12:BT67)*BT70*BT71*BT72*Part,"") -> 677.7647114 | BU68: =IF($BE16<>"",SUM(BU12:BU67)*BU70*BU71*BU72*Part,"") -> 1328.357408 | BV68: =IF($BE17<>"",SUM(BV12:BV67)*BV70*BV71*BV72*Part,"") -> 1593.868371 | BW68: =IF($BE18<>"",SUM(BW12:BW67)*BW70*BW71*BW72*Part,"") -> 2422.351289 | BX68: =IF($BE19<>"",SUM(BX12:BX67)*BX70*BX71*BX72*Part,"") -> 4177.554181 | BY68: =IF($BE20<>"",SUM(BY12:BY67)*BY70*BY71*BY72*Part,"") -> 4732.10042 | BZ68: =IF($BE21<>"",SUM(BZ12:BZ67)*BZ70*BZ71*BZ72*Part,"") -> 7565.386774 | CA68: =IF($BE22<>"",SUM(CA12:CA67)*CA70*CA71*CA72*Part,"") -> 5095.103271 | CB68: =IF($BE23<>"",SUM(CB12:CB67)*CB70*CB71*CB72*Part,"") -> 2419.337599 | CC68: =IF($BE24<>"",SUM(CC12:CC67)*CC70*CC71*CC72*Part,"") -> 1055.552515 | CD68: =IF($BE25<>"",SUM(CD12:CD67)*CD70*CD71*CD72*Part,"") -> 715.6735396 | CE68: =IF($BE26<>"",SUM(CE12:CE67)*CE70*CE71*CE72*Part,"") -> 483.6928369 | CF68: =IF($BE27<>"",SUM(CF12:CF67)*CF70*CF71*CF72*Part,"") -> 1085.853333 | CG68: =SUM(BQ68:CF68) -> 34746.38476 | CN68: 54 | CO68: 19 | CP68: 1.386271743 | CR68: 5 | CS68: 0.022 | CT68: 1.022
A69: 2064 | B69: 101 | D69: =VLOOKUP(B69,Lookups!A:B,2) -> 4612.238145 | E69: =VLOOKUP(B69,Lookups!A:C,3) -> 2128.40628 | G69: =VLOOKUP(B69,Lookups!A:D,4) -> 8039.70144 | H69: =VLOOKUP(B69,Lookups!A:E,5) -> 5299.56576 | J69: =VLOOKUP(A69,Trends!$A$3:$Q$94,IF(ExFlg=0,2,10))+IF(B69>=$B$2,Sens,0) -> 1.042 | K69: 5.248615279 | L69: =VLOOKUP(A69,Trends!$A$3:$Q$94,IF(ExFlg=0,4,12))+IF(B69>=$B$2,Sens,0) -> 1.042 | M69: 5.178615839 | N69: =VLOOKUP(A69,Trends!$A$3:$Z$94,IF(ExFlg=0,19,23))+IF(B69>=$B$2,Sens,0) -> 1.042 | O69: 5.652772687 | P69: =VLOOKUP(A69,Trends!$A$3:$Q$94,IF(ExFlg=0,6,14))+IF(B69>=$B$2,Sens,0) -> 1.042 | Q69: 5.339381869 | R69: =VLOOKUP(A69,Trends!$A$3:$Q$94,IF(ExFlg=0,8,16))+IF(B69>=$B$2,Sens,0) -> 1.042 | S69: 5.491201886 | T69: =VLOOKUP(A69,Trends!$A$3:$Z$94,IF(ExFlg=0,21,25))+IF(B69>=$B$2,Sens,0) -> 1.042 | U69: 6.015918113 | W69: 23885.00951 | X69: 12031.39689 | Y69: =W69-X69 -> 11853.61262 | AA69: 44147.62371 | AB69: 31881.75364 | AC69: 12265.87007 | AE69: 12162.80571 | AG69: =IF(B69<71,IF(B69-35<30,VLOOKUP(B69,Lookups!A:G,6),VLOOKUP(B69,Lookups!A:G,7)),"") ->  | AJ69: =IF(OR(B69<55,B69-35<20),VLOOKUP(B69-$B$3,Lookups!$O$3:$Q$53,2),VLOOKUP(B69,Lookups!$O$57:$P$122,2)) -> 0 | AK69: 0 | AL69: 0 | AM69: =IF(B69<55,VLOOKUP(B69,Lookups!A:M,12),"") ->  | AN69: =IF(B69<55,VLOOKUP(B69,Lookups!A:M,13),"") ->  | AP69: =IF(B69<70,VLOOKUP(B69,Lookups!A:I,8)*(1-VLOOKUP(B69,Lookups!$U$3:$W$103,2))^(B69-$B$2),"") ->  | AQ69: =IF(B69<70,VLOOKUP(B69,Lookups!A:I,9)*(1-VLOOKUP(B69,Lookups!$U$3:$W$103,3))^(B69-$B$2),"") ->  | AV69: 112 | AW69: =IF(BD69>=$B$3,VLOOKUP(BD69,Lookups!A:I,8)*(1-VLOOKUP(BD69,Lookups!U:W,2))^(BD69-$B$2),"") -> 0.4594601045 | AX69: =IF(BD69>=$B$3,VLOOKUP(BD69,Lookups!A:I,9)*(1-VLOOKUP(BD69,Lookups!U:W,3))^(BD69-$B$2),"") -> 0.4594601045 | AY69: 0.4594601045 | AZ69: 0.0006259065448 | BA69: 0.1111135811 | BB69: 0.780046 | BD69: 112 | CN69: 55 | CO69: 20 | CP69: 1.346536582 | CR69: 6 | CS69: 0.017 | CT69: 1.017
A70: 2065 | B70: 102 | D70: =VLOOKUP(B70,Lookups!A:B,2) -> 4612.238145 | E70: =VLOOKUP(B70,Lookups!A:C,3) -> 2128.40628 | G70: =VLOOKUP(B70,Lookups!A:D,4) -> 8039.70144 | H70: =VLOOKUP(B70,Lookups!A:E,5) -> 5299.56576 | J70: =VLOOKUP(A70,Trends!$A$3:$Q$94,IF(ExFlg=0,2,10))+IF(B70>=$B$2,Sens,0) -> 1.042 | K70: 5.46905712 | L70: =VLOOKUP(A70,Trends!$A$3:$Q$94,IF(ExFlg=0,4,12))+IF(B70>=$B$2,Sens,0) -> 1.041 | M70: 5.396117704 | N70: =VLOOKUP(A70,Trends!$A$3:$Z$94,IF(ExFlg=0,19,23))+IF(B70>=$B$2,Sens,0) -> 1.041 | O70: 5.89018914 | P70: =VLOOKUP(A70,Trends!$A$3:$Q$94,IF(ExFlg=0,6,14))+IF(B70>=$B$2,Sens,0) -> 1.042 | Q70: 5.563635908 | R70: =VLOOKUP(A70,Trends!$A$3:$Q$94,IF(ExFlg=0,8,16))+IF(B70>=$B$2,Sens,0) -> 1.041 | S70: 5.721832366 | T70: =VLOOKUP(A70,Trends!$A$3:$Z$94,IF(ExFlg=0,21,25))+IF(B70>=$B$2,Sens,0) -> 1.041 | U70: 6.268586673 | W70: =IF(B70<65,D70*K70,D70*M70) -> 24888.17991 | X70: 12536.71556 | Y70: 12351.46435 | AA70: 46001.82391 | AB70: 33220.7873 | AC70: =AA70-AB70 -> 12781.03661 | AE70: 12673.64355 | AG70: =IF(B70<71,IF(B70-35<30,VLOOKUP(B70,Lookups!A:G,6),VLOOKUP(B70,Lookups!A:G,7)),"") ->  | AJ70: =IF(OR(B70<55,B70-35<20),VLOOKUP(B70-$B$3,Lookups!$O$3:$Q$53,2),VLOOKUP(B70,Lookups!$O$57:$P$122,2)) -> 0 | AK70: 0 | AL70: 0 | AM70: =IF(B70<55,VLOOKUP(B70,Lookups!A:M,12),"") ->  | AN70: =IF(B70<55,VLOOKUP(B70,Lookups!A:M,13),"") ->  | AP70: =IF(B70<70,VLOOKUP(B70,Lookups!A:I,8)*(1-VLOOKUP(B70,Lookups!$U$3:$W$103,2))^(B70-$B$2),"") ->  | AQ70: =IF(B70<70,VLOOKUP(B70,Lookups!A:I,9)*(1-VLOOKUP(B70,Lookups!$U$3:$W$103,3))^(B70-$B$2),"") ->  | AV70: 113 | AW70: =IF(BD70>=$B$3,VLOOKUP(BD70,Lookups!A:I,8)*(1-VLOOKUP(BD70,Lookups!U:W,2))^(BD70-$B$2),"") -> 0.471152544 | AX70: =IF(BD70>=$B$3,VLOOKUP(BD70,Lookups!A:I,9)*(1-VLOOKUP(BD70,Lookups!U:W,3))^(BD70-$B$2),"") -> 0.471152544 | AY70: 0.471152544 | AZ70: 0.0003383274583 | BA70: 0.1069119418 | BB70: 0.774889 | BD70: 113 | BE70: Survive | BF70: =IF(55<$B$3,"",VLOOKUP(BF78,$B$3:$AU$93,45)) -> 1.287348601 | BG70: =IF(55<$B$3,"",VLOOKUP(BG78,$B$3:$AU$93,45)) -> 1.27208154 | BH70: 1.256833255 | BI70: 1.229031401 | BJ70: 1.201672372 | BK70: 1.150708271 | BL70: 1.090214723 | BM70: 1 | BN70: 0.847063165 | BO70: 0.6749855688 | BQ70: =BF70 -> 1.287348601 | BR70: =BG70 -> 1.27208154 | BS70: 1.256833255 | BT70: 1.229031401 | BU70: 1.201672372 | BV70: 1.150708271 | BW70: 1.090214723 | BX70: 1 | BY70: 0.847063165 | BZ70: 0.6749855688 | CA70: =VLOOKUP(CA78,$B$3:$AU$93,45) -> 0.4027124851 | CB70: =VLOOKUP(CB78,$B$3:$AU$93,45) -> 0.2184555282 | CC70: 0.1292874024 | CD70: 0.08934799194 | CE70: 0.06167000639 | CF70: 0.04250630948 | CG70: Totals - Scaled for Headcount | CN70: 56 | CO70: 21 | CP70: 1.323183729 | CR70: 7 | CS70: 0.015 | CT70: 1.015
A71: 2066 | B71: 103 | D71: =VLOOKUP(B71,Lookups!A:B,2) -> 4612.238145 | E71: =VLOOKUP(B71,Lookups!A:C,3) -> 2128.40628 | G71: =VLOOKUP(B71,Lookups!A:D,4) -> 8039.70144 | H71: =VLOOKUP(B71,Lookups!A:E,5) -> 5299.56576 | J71: =VLOOKUP(A71,Trends!$A$3:$Q$94,IF(ExFlg=0,2,10))+IF(B71>=$B$2,Sens,0) -> 1.041 | K71: 5.698757519 | L71: =VLOOKUP(A71,Trends!$A$3:$Q$94,IF(ExFlg=0,4,12))+IF(B71>=$B$2,Sens,0) -> 1.041 | M71: 5.61735853 | N71: =VLOOKUP(A71,Trends!$A$3:$Z$94,IF(ExFlg=0,19,23))+IF(B71>=$B$2,Sens,0) -> 1.041 | O71: 6.131686895 | P71: =VLOOKUP(A71,Trends!$A$3:$Q$94,IF(ExFlg=0,6,14))+IF(B71>=$B$2,Sens,0) -> 1.041 | Q71: 5.797308616 | R71: =VLOOKUP(A71,Trends!$A$3:$Q$94,IF(ExFlg=0,8,16))+IF(B71>=$B$2,Sens,0) -> 1.041 | S71: 5.956427493 | T71: =VLOOKUP(A71,Trends!$A$3:$Z$94,IF(ExFlg=0,21,25))+IF(B71>=$B$2,Sens,0) -> 1.041 | U71: 6.525598727 | W71: 25908.59529 | X71: 13050.72089 | Y71: 12857.87439 | AA71: 47887.89869 | AB71: 34582.83958 | AC71: 13305.05911 | AE71: 13193.26293 | AG71: =IF(B71<71,IF(B71-35<30,VLOOKUP(B71,Lookups!A:G,6),VLOOKUP(B71,Lookups!A:G,7)),"") ->  | AJ71: =IF(OR(B71<55,B71-35<20),VLOOKUP(B71-$B$3,Lookups!$O$3:$Q$53,2),VLOOKUP(B71,Lookups!$O$57:$P$122,2)) -> 0 | AK71: 0 | AL71: 0 | AM71: =IF(B71<55,VLOOKUP(B71,Lookups!A:M,12),"") ->  | AN71: =IF(B71<55,VLOOKUP(B71,Lookups!A:M,13),"") ->  | AP71: =IF(B71<70,VLOOKUP(B71,Lookups!A:I,8)*(1-VLOOKUP(B71,Lookups!$U$3:$W$103,2))^(B71-$B$2),"") ->  | AQ71: =IF(B71<70,VLOOKUP(B71,Lookups!A:I,9)*(1-VLOOKUP(B71,Lookups!$U$3:$W$103,3))^(B71-$B$2),"") ->  | AV71: 114 | AW71: =IF(BD71>=$B$3,VLOOKUP(BD71,Lookups!A:I,8)*(1-VLOOKUP(BD71,Lookups!U:W,2))^(BD71-$B$2),"") -> 0.4867750941 | AX71: =IF(BD71>=$B$3,VLOOKUP(BD71,Lookups!A:I,9)*(1-VLOOKUP(BD71,Lookups!U:W,3))^(BD71-$B$2),"") -> 0.4867750941 | AY71: 0.4867750941 | AZ71: 0.0001789236156 | BA71: 0.1028691829 | BB71: 0.768 | BD71: 114 | BE71: Interest | BF71: =IF(55<$B$3,"",VLOOKUP(BF78,$B$3:$AU$93,46)) -> 1.309744221 | BG71: =IF(55<$B$3,"",VLOOKUP(BG78,$B$3:$AU$93,46)) -> 1.260217667 | BH71: 1.212563906 | BI71: 1.166712119 | BJ71: 1.122594168 | BK71: 1.08014449 | BL71: 1.0393 | BM71: 1 | BN71: 0.9621860868 | BO71: 0.9258020656 | BQ71: =BF71 -> 1.309744221 | BR71: 1.260217667 | BS71: 1.212563906 | BT71: 1.166712119 | BU71: 1.122594168 | BV71: 1.08014449 | BW71: 1.0393 | BX71: 1 | BY71: 0.9621860868 | BZ71: 0.9258020656 | CA71: =VLOOKUP(CA78,$B$3:$AU$93,46) -> 0.8907938667 | CB71: =VLOOKUP(CB78,$B$3:$AU$93,46) -> 0.8571094647 | CC71: 0.8246988018 | CD71: 0.7935137129 | CE71: 0.7635078542 | CF71: 0.7346366345 | CG71: =BP73 -> 0 | CH71: Count in Cohort | CN71: 57 | CO71: 22 | CP71: 1.298769252 | CR71: 8 | CS71: 0.01 | CT71: 1.01
A72: 2067 | B72: 104 | D72: =VLOOKUP(B72,Lookups!A:B,2) -> 4612.238145 | E72: =VLOOKUP(B72,Lookups!A:C,3) -> 2128.40628 | G72: =VLOOKUP(B72,Lookups!A:D,4) -> 8039.70144 | H72: =VLOOKUP(B72,Lookups!A:E,5) -> 5299.56576 | J72: =VLOOKUP(A72,Trends!$A$3:$Q$94,IF(ExFlg=0,2,10))+IF(B72>=$B$2,Sens,0) -> 1.041 | K72: 5.932406578 | L72: =VLOOKUP(A72,Trends!$A$3:$Q$94,IF(ExFlg=0,4,12))+IF(B72>=$B$2,Sens,0) -> 1.04 | M72: 5.84767023 | N72: =VLOOKUP(A72,Trends!$A$3:$Z$94,IF(ExFlg=0,19,23))+IF(B72>=$B$2,Sens,0) -> 1.04 | O72: 6.383086057 | P72: =VLOOKUP(A72,Trends!$A$3:$Q$94,IF(ExFlg=0,6,14))+IF(B72>=$B$2,Sens,0) -> 1.041 | Q72: 6.034998269 | R72: =VLOOKUP(A72,Trends!$A$3:$Q$94,IF(ExFlg=0,8,16))+IF(B72>=$B$2,Sens,0) -> 1.04 | S72: 6.20064102 | T72: =VLOOKUP(A72,Trends!$A$3:$Z$94,IF(ExFlg=0,21,25))+IF(B72>=$B$2,Sens,0) -> 1.04 | U72: 6.793148275 | W72: 26970.84769 | X72: 13585.80045 | Y72: 13385.04724 | AA72: 49851.30254 | AB72: 36000.736 | AC72: 13850.56654 | AE72: 13734.18671 | AG72: =IF(B72<71,IF(B72-35<30,VLOOKUP(B72,Lookups!A:G,6),VLOOKUP(B72,Lookups!A:G,7)),"") ->  | AJ72: =IF(OR(B72<55,B72-35<20),VLOOKUP(B72-$B$3,Lookups!$O$3:$Q$53,2),VLOOKUP(B72,Lookups!$O$57:$P$122,2)) -> 0 | AK72: 0 | AL72: 0 | AM72: =IF(B72<55,VLOOKUP(B72,Lookups!A:M,12),"") ->  | AN72: =IF(B72<55,VLOOKUP(B72,Lookups!A:M,13),"") ->  | AP72: =IF(B72<70,VLOOKUP(B72,Lookups!A:I,8)*(1-VLOOKUP(B72,Lookups!$U$3:$W$103,2))^(B72-$B$2),"") ->  | AQ72: =IF(B72<70,VLOOKUP(B72,Lookups!A:I,9)*(1-VLOOKUP(B72,Lookups!$U$3:$W$103,3))^(B72-$B$2),"") ->  | AV72: 115 | AW72: =IF(BD72>=$B$3,VLOOKUP(BD72,Lookups!A:I,8)*(1-VLOOKUP(BD72,Lookups!U:W,2))^(BD72-$B$2),"") -> 0.5 | AX72: =IF(BD72>=$B$3,VLOOKUP(BD72,Lookups!A:I,9)*(1-VLOOKUP(BD72,Lookups!U:W,3))^(BD72-$B$2),"") -> 0.5 | AY72: 0.5 | AZ72: 9.18280558e-05 | BA72: 0.09897929652 | BB72: 0.762168 | BD72: 115 | BE72: Retire | BF72: =IF(55<$B$3,"",VLOOKUP(BF78,$B$3:$AU$93,34)) -> 0.01 | BG72: =IF(55<$B$3,"",VLOOKUP(BG78,$B$3:$AU$93,34)) -> 0.01 | BH72: 0.02 | BI72: 0.02 | BJ72: 0.04 | BK72: 0.05 | BL72: 0.08 | BM72: 0.15 | BN72: 0.2 | BO72: 0.4 | BP72: Totals - Scaled for Headcount | BQ72: =BF72 -> 0.01 | BR72: 0.01 | BS72: 0.02 | BT72: 0.02 | BU72: 0.04 | BV72: 0.05 | BW72: 0.08 | BX72: 0.15 | BY72: 0.2 | BZ72: 0.4 | CA72: =VLOOKUP(CA78,$B$3:$AU$93,34) -> 0.45 | CB72: =VLOOKUP(CB78,$B$3:$AU$93,34) -> 0.4 | CC72: 0.3 | CD72: 0.3 | CE72: 0.3 | CF72: 1 | CG72: =CG68*CG71 -> 0 | CJ72: PVSalary @ Entry Age | CK72: =SUM(CP26:CP138) -> 54.02925277 | CN72: 58 | CO72: 23 | CP72: 1.261730051 | CR72: 9 | CS72: 0.01 | CT72: 1.01
A73: 2068 | B73: 105 | D73: =VLOOKUP(B73,Lookups!A:B,2) -> 4612.238145 | E73: =VLOOKUP(B73,Lookups!A:C,3) -> 2128.40628 | G73: =VLOOKUP(B73,Lookups!A:D,4) -> 8039.70144 | H73: =VLOOKUP(B73,Lookups!A:E,5) -> 5299.56576 | J73: =VLOOKUP(A73,Trends!$A$3:$Q$94,IF(ExFlg=0,2,10))+IF(B73>=$B$2,Sens,0) -> 1.04 | K73: =IF(B73=$B$2,1,IF(B73<$B$2,K74/J73,K72*J72)) -> 6.175635247 | L73: =VLOOKUP(A73,Trends!$A$3:$Q$94,IF(ExFlg=0,4,12))+IF(B73>=$B$2,Sens,0) -> 1.04 | M73: =IF(B73=$B$2,1,IF(B73<$B$2,M74/L73,M72*L72)) -> 6.081577039 | N73: =VLOOKUP(A73,Trends!$A$3:$Z$94,IF(ExFlg=0,19,23))+IF(B73>=$B$2,Sens,0) -> 1.04 | O73: 6.6384095 | P73: =VLOOKUP(A73,Trends!$A$3:$Q$94,IF(ExFlg=0,6,14))+IF(B73>=$B$2,Sens,0) -> 1.04 | Q73: =IF(B73=$B$2,1,IF(B73<$B$2,Q74/P73,Q72*P72)) -> 6.282433198 | R73: =VLOOKUP(A73,Trends!$A$3:$Q$94,IF(ExFlg=0,8,16))+IF(B73>=$B$2,Sens,0) -> 1.04 | S73: =IF(B73=$B$2,1,IF(B73<$B$2,S74/R73,S72*R72)) -> 6.448666661 | T73: =VLOOKUP(A73,Trends!$A$3:$Z$94,IF(ExFlg=0,21,25))+IF(B73>=$B$2,Sens,0) -> 1.04 | U73: 7.064874206 | W73: 28049.6816 | X73: 14129.23247 | Y73: 13920.44913 | AA73: 51845.35464 | AB73: 37440.76544 | AC73: 14404.5892 | AE73: 14283.55418 | AG73: =IF(B73<71,IF(B73-35<30,VLOOKUP(B73,Lookups!A:G,6),VLOOKUP(B73,Lookups!A:G,7)),"") ->  | AJ73: =IF(OR(B73<55,B73-35<20),VLOOKUP(B73-$B$3,Lookups!$O$3:$Q$53,2),VLOOKUP(B73,Lookups!$O$57:$P$122,2)) -> 0 | AK73: 0 | AL73: 0 | AM73: =IF(B73<55,VLOOKUP(B73,Lookups!A:M,12),"") ->  | AN73: =IF(B73<55,VLOOKUP(B73,Lookups!A:M,13),"") ->  | AP73: =IF(B73<70,VLOOKUP(B73,Lookups!A:I,8)*(1-VLOOKUP(B73,Lookups!$U$3:$W$103,2))^(B73-$B$2),"") ->  | AQ73: =IF(B73<70,VLOOKUP(B73,Lookups!A:I,9)*(1-VLOOKUP(B73,Lookups!$U$3:$W$103,3))^(B73-$B$2),"") ->  | AV73: 116 | AW73: =IF(BD73>=$B$3,VLOOKUP(BD73,Lookups!A:I,8)*(1-VLOOKUP(BD73,Lookups!U:W,2))^(BD73-$B$2),"") -> 0.5 | AX73: =IF(BD73>=$B$3,VLOOKUP(BD73,Lookups!A:I,9)*(1-VLOOKUP(BD73,Lookups!U:W,3))^(BD73-$B$2),"") -> 0.5 | AY73: 0.5 | AZ73: 4.59140279e-05 | BA73: 0.095236502 | BB73: 0.762168 | BD73: 116 | BP73: =B1 -> 0 | BQ73: Count in Cohort | CG73: =CG72*(1+PctMarried) -> 0 | CH73: with spouses | CJ73: PVSalary @ Attained Age | CK73: =SUM(CP76:CP138) -> 3.42559844 | CN73: 59 | CO73: 24 | CP73: 1.225571568 | CR73: 10 | CS73: 0.007 | CT73: 1.007
A74: 2069 | B74: 106 | D74: =VLOOKUP(B74,Lookups!A:B,2) -> 4612.238145 | E74: =VLOOKUP(B74,Lookups!A:C,3) -> 2128.40628 | G74: =VLOOKUP(B74,Lookups!A:D,4) -> 8039.70144 | H74: =VLOOKUP(B74,Lookups!A:E,5) -> 5299.56576 | J74: =VLOOKUP(A74,Trends!$A$3:$Q$94,IF(ExFlg=0,2,10))+IF(B74>=$B$2,Sens,0) -> 1.04 | K74: 6.422660657 | L74: =VLOOKUP(A74,Trends!$A$3:$Q$94,IF(ExFlg=0,4,12))+IF(B74>=$B$2,Sens,0) -> 1.04 | M74: 6.324840121 | N74: =VLOOKUP(A74,Trends!$A$3:$Z$94,IF(ExFlg=0,19,23))+IF(B74>=$B$2,Sens,0) -> 1.04 | O74: 6.90394588 | P74: =VLOOKUP(A74,Trends!$A$3:$Q$94,IF(ExFlg=0,6,14))+IF(B74>=$B$2,Sens,0) -> 1.04 | Q74: 6.533730526 | R74: =VLOOKUP(A74,Trends!$A$3:$Q$94,IF(ExFlg=0,8,16))+IF(B74>=$B$2,Sens,0) -> 1.04 | S74: 6.706613327 | T74: =VLOOKUP(A74,Trends!$A$3:$Z$94,IF(ExFlg=0,21,25))+IF(B74>=$B$2,Sens,0) -> 1.04 | U74: 7.347469174 | W74: 29171.66887 | X74: 14694.40177 | Y74: 14477.2671 | AA74: 53919.16882 | AB74: 38938.39606 | AC74: 14980.77277 | AE74: 14854.89635 | AG74: =IF(B74<71,IF(B74-35<30,VLOOKUP(B74,Lookups!A:G,6),VLOOKUP(B74,Lookups!A:G,7)),"") ->  | AJ74: =IF(OR(B74<55,B74-35<20),VLOOKUP(B74-$B$3,Lookups!$O$3:$Q$53,2),VLOOKUP(B74,Lookups!$O$57:$P$122,2)) -> 0 | AK74: 0 | AL74: 0 | AM74: =IF(B74<55,VLOOKUP(B74,Lookups!A:M,12),"") ->  | AN74: =IF(B74<55,VLOOKUP(B74,Lookups!A:M,13),"") ->  | AP74: =IF(B74<70,VLOOKUP(B74,Lookups!A:I,8)*(1-VLOOKUP(B74,Lookups!$U$3:$W$103,2))^(B74-$B$2),"") ->  | AQ74: =IF(B74<70,VLOOKUP(B74,Lookups!A:I,9)*(1-VLOOKUP(B74,Lookups!$U$3:$W$103,3))^(B74-$B$2),"") ->  | AV74: 117 | AW74: =IF(BD74>=$B$3,VLOOKUP(BD74,Lookups!A:I,8)*(1-VLOOKUP(BD74,Lookups!U:W,2))^(BD74-$B$2),"") -> 0.5 | AX74: =IF(BD74>=$B$3,VLOOKUP(BD74,Lookups!A:I,9)*(1-VLOOKUP(BD74,Lookups!U:W,3))^(BD74-$B$2),"") -> 0.5 | AY74: 0.5 | AZ74: 2.295701395e-05 | BA74: 0.09163523717 | BB74: 0.762168 | BD74: 117 | BP74: =BP68*BP73 -> 0 | CN74: 60 | CO74: 25 | CP74: 1.165915211 | CR74: 11 | CS74: 0.005 | CT74: 1.005
A75: 2070 | B75: 107 | D75: =VLOOKUP(B75,Lookups!A:B,2) -> 4612.238145 | E75: =VLOOKUP(B75,Lookups!A:C,3) -> 2128.40628 | G75: =VLOOKUP(B75,Lookups!A:D,4) -> 8039.70144 | H75: =VLOOKUP(B75,Lookups!A:E,5) -> 5299.56576 | J75: =VLOOKUP(A75,Trends!$A$3:$Q$94,IF(ExFlg=0,2,10))+IF(B75>=$B$2,Sens,0) -> 1.039 | K75: 6.679567083 | L75: =VLOOKUP(A75,Trends!$A$3:$Q$94,IF(ExFlg=0,4,12))+IF(B75>=$B$2,Sens,0) -> 1.039 | M75: 6.577833725 | N75: =VLOOKUP(A75,Trends!$A$3:$Z$94,IF(ExFlg=0,19,23))+IF(B75>=$B$2,Sens,0) -> 1.039 | O75: 7.180103715 | P75: =VLOOKUP(A75,Trends!$A$3:$Q$94,IF(ExFlg=0,6,14))+IF(B75>=$B$2,Sens,0) -> 1.04 | Q75: 6.795079747 | R75: =VLOOKUP(A75,Trends!$A$3:$Q$94,IF(ExFlg=0,8,16))+IF(B75>=$B$2,Sens,0) -> 1.039 | S75: 6.97487786 | T75: =VLOOKUP(A75,Trends!$A$3:$Z$94,IF(ExFlg=0,21,25))+IF(B75>=$B$2,Sens,0) -> 1.039 | U75: 7.641367941 | W75: 30338.53562 | X75: 15282.17784 | Y75: 15056.35778 | AA75: 56075.93558 | AB75: 40495.9319 | AC75: 15580.00368 | AE75: 15449.0922 | AG75: =IF(B75<71,IF(B75-35<30,VLOOKUP(B75,Lookups!A:G,6),VLOOKUP(B75,Lookups!A:G,7)),"") ->  | AJ75: =IF(OR(B75<55,B75-35<20),VLOOKUP(B75-$B$3,Lookups!$O$3:$Q$53,2),VLOOKUP(B75,Lookups!$O$57:$P$122,2)) -> 0 | AK75: 0 | AL75: 0 | AM75: =IF(B75<55,VLOOKUP(B75,Lookups!A:M,12),"") ->  | AN75: =IF(B75<55,VLOOKUP(B75,Lookups!A:M,13),"") ->  | AP75: =IF(B75<70,VLOOKUP(B75,Lookups!A:I,8)*(1-VLOOKUP(B75,Lookups!$U$3:$W$103,2))^(B75-$B$2),"") ->  | AQ75: =IF(B75<70,VLOOKUP(B75,Lookups!A:I,9)*(1-VLOOKUP(B75,Lookups!$U$3:$W$103,3))^(B75-$B$2),"") ->  | AV75: 118 | AW75: =IF(BD75>=$B$3,VLOOKUP(BD75,Lookups!A:I,8)*(1-VLOOKUP(BD75,Lookups!U:W,2))^(BD75-$B$2),"") -> 0.5 | AX75: =IF(BD75>=$B$3,VLOOKUP(BD75,Lookups!A:I,9)*(1-VLOOKUP(BD75,Lookups!U:W,3))^(BD75-$B$2),"") -> 0.5 | AY75: 0.5 | AZ75: 1.147850697e-05 | BA75: 0.08817015027 | BB75: 0.762168 | BD75: 118 | BP75: =BP74*(1+PctMarried) -> 0 | BQ75: with spouses | CJ75: PV Benefits from Entry Age | CK75: =Explicit+Implicit -> 0 | CN75: 61 | CO75: =IF(CO76=0,0,CO76-1) -> 26 | CP75: 1.09739483 | CR75: 12 | CS75: 0.005 | CT75: 1.005
A76: 2071 | B76: 108 | D76: =VLOOKUP(B76,Lookups!A:B,2) -> 4612.238145 | E76: =VLOOKUP(B76,Lookups!A:C,3) -> 2128.40628 | G76: =VLOOKUP(B76,Lookups!A:D,4) -> 8039.70144 | H76: =VLOOKUP(B76,Lookups!A:E,5) -> 5299.56576 | J76: =VLOOKUP(A76,Trends!$A$3:$Q$94,IF(ExFlg=0,2,10))+IF(B76>=$B$2,Sens,0) -> 1.039 | K76: 6.9400702 | L76: =VLOOKUP(A76,Trends!$A$3:$Q$94,IF(ExFlg=0,4,12))+IF(B76>=$B$2,Sens,0) -> 1.039 | M76: 6.834369241 | N76: =VLOOKUP(A76,Trends!$A$3:$Z$94,IF(ExFlg=0,19,23))+IF(B76>=$B$2,Sens,0) -> 1.039 | O76: 7.46012776 | P76: =VLOOKUP(A76,Trends!$A$3:$Q$94,IF(ExFlg=0,6,14))+IF(B76>=$B$2,Sens,0) -> 1.039 | Q76: 7.066882937 | R76: =VLOOKUP(A76,Trends!$A$3:$Q$94,IF(ExFlg=0,8,16))+IF(B76>=$B$2,Sens,0) -> 1.039 | S76: 7.246898097 | T76: =VLOOKUP(A76,Trends!$A$3:$Z$94,IF(ExFlg=0,21,25))+IF(B76>=$B$2,Sens,0) -> 1.039 | U76: 7.939381291 | W76: 31521.73851 | X76: 15878.18277 | Y76: 15643.55574 | AA76: 58262.89706 | AB76: 42075.27324 | AC76: 16187.62382 | AE76: 16051.6068 | AG76: =IF(B76<71,IF(B76-35<30,VLOOKUP(B76,Lookups!A:G,6),VLOOKUP(B76,Lookups!A:G,7)),"") ->  | AJ76: =IF(OR(B76<55,B76-35<20),VLOOKUP(B76-$B$3,Lookups!$O$3:$Q$53,2),VLOOKUP(B76,Lookups!$O$57:$P$122,2)) -> 0 | AK76: 0 | AL76: 0 | AM76: =IF(B76<55,VLOOKUP(B76,Lookups!A:M,12),"") ->  | AN76: =IF(B76<55,VLOOKUP(B76,Lookups!A:M,13),"") ->  | AP76: =IF(B76<70,VLOOKUP(B76,Lookups!A:I,8)*(1-VLOOKUP(B76,Lookups!$U$3:$W$103,2))^(B76-$B$2),"") ->  | AQ76: =IF(B76<70,VLOOKUP(B76,Lookups!A:I,9)*(1-VLOOKUP(B76,Lookups!$U$3:$W$103,3))^(B76-$B$2),"") ->  | AV76: 119 | AW76: =IF(BD76>=$B$3,VLOOKUP(BD76,Lookups!A:I,8)*(1-VLOOKUP(BD76,Lookups!U:W,2))^(BD76-$B$2),"") -> 0.5 | AX76: =IF(BD76>=$B$3,VLOOKUP(BD76,Lookups!A:I,9)*(1-VLOOKUP(BD76,Lookups!U:W,3))^(BD76-$B$2),"") -> 0.5 | AY76: 0.5 | AZ76: 5.739253487e-06 | BA76: 0.08483609186 | BB76: 0.762168 | BD76: 119 | BP76: PV Benefits Attained Age | CG76: PVFB | CJ76: PVFB | CK76: =CG82+BP82 -> 0 | CM76: Current Age | CN76: =B2 -> 62 | CO76: =MS -> 27 | CP76: 1 | CR76: 13 | CS76: 0.005 | CT76: 1.005
A77: 2072 | B77: 109 | D77: =VLOOKUP(B77,Lookups!A:B,2) -> 4612.238145 | E77: =VLOOKUP(B77,Lookups!A:C,3) -> 2128.40628 | G77: =VLOOKUP(B77,Lookups!A:D,4) -> 8039.70144 | H77: =VLOOKUP(B77,Lookups!A:E,5) -> 5299.56576 | J77: =VLOOKUP(A77,Trends!$A$3:$Q$94,IF(ExFlg=0,2,10))+IF(B77>=$B$2,Sens,0) -> 1.039 | K77: 7.210732937 | L77: =VLOOKUP(A77,Trends!$A$3:$Q$94,IF(ExFlg=0,4,12))+IF(B77>=$B$2,Sens,0) -> 1.038 | M77: 7.100909641 | N77: =VLOOKUP(A77,Trends!$A$3:$Z$94,IF(ExFlg=0,19,23))+IF(B77>=$B$2,Sens,0) -> 1.038 | O77: 7.751072742 | P77: =VLOOKUP(A77,Trends!$A$3:$Q$94,IF(ExFlg=0,6,14))+IF(B77>=$B$2,Sens,0) -> 1.039 | Q77: 7.342491372 | R77: =VLOOKUP(A77,Trends!$A$3:$Q$94,IF(ExFlg=0,8,16))+IF(B77>=$B$2,Sens,0) -> 1.038 | S77: 7.529527122 | T77: =VLOOKUP(A77,Trends!$A$3:$Z$94,IF(ExFlg=0,21,25))+IF(B77>=$B$2,Sens,0) -> 1.038 | U77: 8.249017161 | W77: 32751.08631 | X77: 16497.4319 | Y77: 16253.65441 | AA77: 60535.15005 | AB77: 43716.2089 | AC77: 16818.94115 | AE77: 16677.61946 | AG77: =IF(B77<71,IF(B77-35<30,VLOOKUP(B77,Lookups!A:G,6),VLOOKUP(B77,Lookups!A:G,7)),"") ->  | AJ77: =IF(OR(B77<55,B77-35<20),VLOOKUP(B77-$B$3,Lookups!$O$3:$Q$53,2),VLOOKUP(B77,Lookups!$O$57:$P$122,2)) -> 0 | AK77: 0 | AL77: 0 | AM77: =IF(B77<55,VLOOKUP(B77,Lookups!A:M,12),"") ->  | AN77: =IF(B77<55,VLOOKUP(B77,Lookups!A:M,13),"") ->  | AP77: =IF(B77<70,VLOOKUP(B77,Lookups!A:I,8)*(1-VLOOKUP(B77,Lookups!$U$3:$W$103,2))^(B77-$B$2),"") ->  | AQ77: =IF(B77<70,VLOOKUP(B77,Lookups!A:I,9)*(1-VLOOKUP(B77,Lookups!$U$3:$W$103,3))^(B77-$B$2),"") ->  | AV77: 120 | AW77: =IF(BD77>=$B$3,VLOOKUP(BD77,Lookups!A:I,8)*(1-VLOOKUP(BD77,Lookups!U:W,2))^(BD77-$B$2),"") -> 1 | AX77: =IF(BD77>=$B$3,VLOOKUP(BD77,Lookups!A:I,9)*(1-VLOOKUP(BD77,Lookups!U:W,3))^(BD77-$B$2),"") -> 1 | AY77: 1 | AZ77: 2.869626744e-06 | BA77: 0.08162810724 | BB77: 0.541667 | BD77: 120 | BF77: =IF(BF70<=1,SUM(BF12:BF67)*BF70*BF71*BF72*Part,"") ->  | BM77: 1562.325592 | BN77: 1260.615449 | BO77: 1074.988849 | BP77: =SUM(BF77:BO77) -> 3897.92989 | BQ77: =IF(BQ70<=1,SUM(BQ12:BQ67)*BQ70*BQ71*BQ72*Part,"") ->  | BX77: 4177.554181 | BY77: 4732.10042 | BZ77: 7565.386774 | CA77: 5095.103271 | CB77: 2419.337599 | CC77: 1055.552515 | CD77: 715.6735396 | CE77: 483.6928369 | CF77: 1085.853333 | CG77: =SUM(BQ77:CF77) -> 27330.25447 | CN77: =IF(CN76<70,CN76+1, "") -> 63 | CO77: =IF(CN77<71,CO76+1,"") -> 28 | CP77: =IF(CN77<71,CP76*(1-VLOOKUP(CN76,$B$3:$AU$93,44,FALSE))* 1/(1+IntRt)*(1+GSG)*VLOOKUP(MIN(CO76,30),$CR$63:$CT$93,3,FALSE),"") -> 0.8415209447 | CR77: 14 | CS77: 0.003 | CT77: 1.003
A78: 2073 | B78: 110 | D78: =VLOOKUP(B78,Lookups!A:B,2) -> 4612.238145 | E78: =VLOOKUP(B78,Lookups!A:C,3) -> 2128.40628 | G78: =VLOOKUP(B78,Lookups!A:D,4) -> 8039.70144 | H78: =VLOOKUP(B78,Lookups!A:E,5) -> 5299.56576 | J78: =VLOOKUP(A78,Trends!$A$3:$Q$94,IF(ExFlg=0,2,10))+IF(B78>=$B$2,Sens,0) -> 1.038 | K78: 7.491951522 | L78: =VLOOKUP(A78,Trends!$A$3:$Q$94,IF(ExFlg=0,4,12))+IF(B78>=$B$2,Sens,0) -> 1.038 | M78: 7.370744208 | N78: =VLOOKUP(A78,Trends!$A$3:$Z$94,IF(ExFlg=0,19,23))+IF(B78>=$B$2,Sens,0) -> 1.038 | O78: 8.045613507 | P78: =VLOOKUP(A78,Trends!$A$3:$Q$94,IF(ExFlg=0,6,14))+IF(B78>=$B$2,Sens,0) -> 1.038 | Q78: 7.628848535 | R78: =VLOOKUP(A78,Trends!$A$3:$Q$94,IF(ExFlg=0,8,16))+IF(B78>=$B$2,Sens,0) -> 1.038 | S78: 7.815649153 | T78: =VLOOKUP(A78,Trends!$A$3:$Z$94,IF(ExFlg=0,21,25))+IF(B78>=$B$2,Sens,0) -> 1.038 | U78: 8.562479813 | W78: 33995.62759 | X78: 17124.33431 | Y78: 16871.29328 | AA78: 62835.48575 | AB78: 45377.42484 | AC78: 17458.06091 | AE78: 17311.369 | AG78: =IF(B78<71,IF(B78-35<30,VLOOKUP(B78,Lookups!A:G,6),VLOOKUP(B78,Lookups!A:G,7)),"") ->  | AJ78: =IF(OR(B78<55,B78-35<20),VLOOKUP(B78-$B$3,Lookups!$O$3:$Q$53,2),VLOOKUP(B78,Lookups!$O$57:$P$122,2)) -> 0 | AK78: 0 | AL78: 0 | AM78: =IF(B78<55,VLOOKUP(B78,Lookups!A:M,12),"") ->  | AN78: =IF(B78<55,VLOOKUP(B78,Lookups!A:M,13),"") ->  | AP78: =IF(B78<70,VLOOKUP(B78,Lookups!A:I,8)*(1-VLOOKUP(B78,Lookups!$U$3:$W$103,2))^(B78-$B$2),"") ->  | AQ78: =IF(B78<70,VLOOKUP(B78,Lookups!A:I,9)*(1-VLOOKUP(B78,Lookups!$U$3:$W$103,3))^(B78-$B$2),"") ->  | BF78: 55 | BG78: 56 | BH78: 57 | BI78: 58 | BJ78: 59 | BK78: 60 | BL78: 61 | BM78: 62 | BN78: 63 | BO78: 64 | BQ78: 55 | BR78: 56 | BS78: 57 | BT78: 58 | BU78: 59 | BV78: 60 | BW78: 61 | BX78: 62 | BY78: 63 | BZ78: 64 | CA78: 65 | CB78: 66 | CC78: 67 | CD78: 68 | CE78: 69 | CF78: 70 | CJ78: EANC Rate | CK78: =CK75/CK72 -> 0 | CN78: =IF(CN77<70,CN77+1, "") -> 64 | CO78: 29 | CP78: 0.6661817849 | CR78: 15 | CS78: 0.003 | CT78: 1.003
A79: 2074 | B79: 111 | D79: =VLOOKUP(B79,Lookups!A:B,2) -> 4612.238145 | E79: =VLOOKUP(B79,Lookups!A:C,3) -> 2128.40628 | G79: =VLOOKUP(B79,Lookups!A:D,4) -> 8039.70144 | H79: =VLOOKUP(B79,Lookups!A:E,5) -> 5299.56576 | J79: =VLOOKUP(A79,Trends!$A$3:$Q$94,IF(ExFlg=0,2,10))+IF(B79>=$B$2,Sens,0) -> 1.038 | K79: 7.77664568 | L79: =VLOOKUP(A79,Trends!$A$3:$Q$94,IF(ExFlg=0,4,12))+IF(B79>=$B$2,Sens,0) -> 1.038 | M79: 7.650832487 | N79: =VLOOKUP(A79,Trends!$A$3:$Z$94,IF(ExFlg=0,19,23))+IF(B79>=$B$2,Sens,0) -> 1.038 | O79: 8.35134682 | P79: =VLOOKUP(A79,Trends!$A$3:$Q$94,IF(ExFlg=0,6,14))+IF(B79>=$B$2,Sens,0) -> 1.038 | Q79: 7.91874478 | R79: =VLOOKUP(A79,Trends!$A$3:$Q$94,IF(ExFlg=0,8,16))+IF(B79>=$B$2,Sens,0) -> 1.038 | S79: 8.112643821 | T79: =VLOOKUP(A79,Trends!$A$3:$Z$94,IF(ExFlg=0,21,25))+IF(B79>=$B$2,Sens,0) -> 1.038 | U79: 8.887854046 | W79: 35287.46144 | X79: 17775.05902 | Y79: 17512.40242 | AA79: 65223.23421 | AB79: 47101.76698 | AC79: 18121.46723 | AE79: 17969.20103 | AG79: =IF(B79<71,IF(B79-35<30,VLOOKUP(B79,Lookups!A:G,6),VLOOKUP(B79,Lookups!A:G,7)),"") ->  | AJ79: =IF(OR(B79<55,B79-35<20),VLOOKUP(B79-$B$3,Lookups!$O$3:$Q$53,2),VLOOKUP(B79,Lookups!$O$57:$P$122,2)) -> 0 | AK79: 0 | AL79: 0 | AM79: =IF(B79<55,VLOOKUP(B79,Lookups!A:M,12),"") ->  | AN79: =IF(B79<55,VLOOKUP(B79,Lookups!A:M,13),"") ->  | AP79: =IF(B79<70,VLOOKUP(B79,Lookups!A:I,8)*(1-VLOOKUP(B79,Lookups!$U$3:$W$103,2))^(B79-$B$2),"") ->  | AQ79: =IF(B79<70,VLOOKUP(B79,Lookups!A:I,9)*(1-VLOOKUP(B79,Lookups!$U$3:$W$103,3))^(B79-$B$2),"") ->  | BP79: Totals - Scaled for Headcount | CG79: Totals - Scaled for Headcount | CN79: 65 | CO79: 30 | CP79: 0.3948594108 | CR79: 16 | CS79: 0.003 | CT79: 1.003
A80: 2075 | B80: 112 | D80: =VLOOKUP(B80,Lookups!A:B,2) -> 4612.238145 | E80: =VLOOKUP(B80,Lookups!A:C,3) -> 2128.40628 | G80: =VLOOKUP(B80,Lookups!A:D,4) -> 8039.70144 | H80: =VLOOKUP(B80,Lookups!A:E,5) -> 5299.56576 | J80: =VLOOKUP(A80,Trends!$A$3:$Q$94,IF(ExFlg=0,2,10))+IF(B80>=$B$2,Sens,0) -> 1.038 | K80: 8.072158216 | L80: =VLOOKUP(A80,Trends!$A$3:$Q$94,IF(ExFlg=0,4,12))+IF(B80>=$B$2,Sens,0) -> 1.038 | M80: 7.941564122 | N80: =VLOOKUP(A80,Trends!$A$3:$Z$94,IF(ExFlg=0,19,23))+IF(B80>=$B$2,Sens,0) -> 1.038 | O80: 8.668697999 | P80: =VLOOKUP(A80,Trends!$A$3:$Q$94,IF(ExFlg=0,6,14))+IF(B80>=$B$2,Sens,0) -> 1.038 | Q80: 8.219657081 | R80: =VLOOKUP(A80,Trends!$A$3:$Q$94,IF(ExFlg=0,8,16))+IF(B80>=$B$2,Sens,0) -> 1.038 | S80: 8.420924286 | T80: =VLOOKUP(A80,Trends!$A$3:$Z$94,IF(ExFlg=0,21,25))+IF(B80>=$B$2,Sens,0) -> 1.038 | U80: 9.2255925 | W80: 36628.38497 | X80: 18450.51126 | Y80: 18177.87371 | AA80: 67701.71711 | AB80: 48891.63413 | AC80: 18810.08298 | AE80: 18652.03066 | AG80: =IF(B80<71,IF(B80-35<30,VLOOKUP(B80,Lookups!A:G,6),VLOOKUP(B80,Lookups!A:G,7)),"") ->  | AJ80: =IF(OR(B80<55,B80-35<20),VLOOKUP(B80-$B$3,Lookups!$O$3:$Q$53,2),VLOOKUP(B80,Lookups!$O$57:$P$122,2)) -> 0 | AK80: 0 | AL80: 0 | AM80: =IF(B80<55,VLOOKUP(B80,Lookups!A:M,12),"") ->  | AN80: =IF(B80<55,VLOOKUP(B80,Lookups!A:M,13),"") ->  | AP80: =IF(B80<70,VLOOKUP(B80,Lookups!A:I,8)*(1-VLOOKUP(B80,Lookups!$U$3:$W$103,2))^(B80-$B$2),"") ->  | AQ80: =IF(B80<70,VLOOKUP(B80,Lookups!A:I,9)*(1-VLOOKUP(B80,Lookups!$U$3:$W$103,3))^(B80-$B$2),"") ->  | BP80: =BP73 -> 0 | BQ80: Count in Cohort | CG80: =CG71 -> 0 | CH80: Count in Cohort | CJ80: PV Future Normal Cost | CK80: =CK78*CK73 -> 0 | CN80: 66 | CO80: 31 | CP80: 0.2127940947 | CR80: 17 | CS80: 0.003 | CT80: 1.003
A81: 2076 | B81: 113 | D81: =VLOOKUP(B81,Lookups!A:B,2) -> 4612.238145 | E81: =VLOOKUP(B81,Lookups!A:C,3) -> 2128.40628 | G81: =VLOOKUP(B81,Lookups!A:D,4) -> 8039.70144 | H81: =VLOOKUP(B81,Lookups!A:E,5) -> 5299.56576 | J81: =VLOOKUP(A81,Trends!$A$3:$Q$94,IF(ExFlg=0,2,10))+IF(B81>=$B$2,Sens,0) -> 1.038 | K81: 8.378900228 | L81: =VLOOKUP(A81,Trends!$A$3:$Q$94,IF(ExFlg=0,4,12))+IF(B81>=$B$2,Sens,0) -> 1.038 | M81: 8.243343559 | N81: =VLOOKUP(A81,Trends!$A$3:$Z$94,IF(ExFlg=0,19,23))+IF(B81>=$B$2,Sens,0) -> 1.038 | O81: 8.998108523 | P81: =VLOOKUP(A81,Trends!$A$3:$Q$94,IF(ExFlg=0,6,14))+IF(B81>=$B$2,Sens,0) -> 1.038 | Q81: 8.53200405 | R81: =VLOOKUP(A81,Trends!$A$3:$Q$94,IF(ExFlg=0,8,16))+IF(B81>=$B$2,Sens,0) -> 1.038 | S81: 8.740919409 | T81: =VLOOKUP(A81,Trends!$A$3:$Z$94,IF(ExFlg=0,21,25))+IF(B81>=$B$2,Sens,0) -> 1.038 | U81: 9.576165015 | W81: 38020.2636 | X81: 19151.63069 | Y81: 18868.63291 | AA81: 70274.38236 | AB81: 50749.51622 | AC81: 19524.86613 | AE81: 19360.80783 | AG81: =IF(B81<71,IF(B81-35<30,VLOOKUP(B81,Lookups!A:G,6),VLOOKUP(B81,Lookups!A:G,7)),"") ->  | AJ81: =IF(OR(B81<55,B81-35<20),VLOOKUP(B81-$B$3,Lookups!$O$3:$Q$53,2),VLOOKUP(B81,Lookups!$O$57:$P$122,2)) -> 0 | AK81: 0 | AL81: 0 | AM81: =IF(B81<55,VLOOKUP(B81,Lookups!A:M,12),"") ->  | AN81: =IF(B81<55,VLOOKUP(B81,Lookups!A:M,13),"") ->  | AP81: =IF(B81<70,VLOOKUP(B81,Lookups!A:I,8)*(1-VLOOKUP(B81,Lookups!$U$3:$W$103,2))^(B81-$B$2),"") ->  | AQ81: =IF(B81<70,VLOOKUP(B81,Lookups!A:I,9)*(1-VLOOKUP(B81,Lookups!$U$3:$W$103,3))^(B81-$B$2),"") ->  | BP81: =BP77*BP80 -> 0 | CG81: =CG77*CG80 -> 0 | CJ81: EAN Accrued Liability (TOL) | CK81: =CK76-CK80 -> 0 | CN81: 67 | CO81: 32 | CP81: 0.1251128378 | CR81: 18 | CS81: 0.001 | CT81: 1.001
A82: 2077 | B82: 114 | D82: =VLOOKUP(B82,Lookups!A:B,2) -> 4612.238145 | E82: =VLOOKUP(B82,Lookups!A:C,3) -> 2128.40628 | G82: =VLOOKUP(B82,Lookups!A:D,4) -> 8039.70144 | H82: =VLOOKUP(B82,Lookups!A:E,5) -> 5299.56576 | J82: =VLOOKUP(A82,Trends!$A$3:$Q$94,IF(ExFlg=0,2,10))+IF(B82>=$B$2,Sens,0) -> 1.038 | K82: 8.697298437 | L82: =VLOOKUP(A82,Trends!$A$3:$Q$94,IF(ExFlg=0,4,12))+IF(B82>=$B$2,Sens,0) -> 1.038 | M82: 8.556590614 | N82: =VLOOKUP(A82,Trends!$A$3:$Z$94,IF(ExFlg=0,19,23))+IF(B82>=$B$2,Sens,0) -> 1.038 | O82: 9.340036647 | P82: =VLOOKUP(A82,Trends!$A$3:$Q$94,IF(ExFlg=0,6,14))+IF(B82>=$B$2,Sens,0) -> 1.038 | Q82: 8.856220204 | R82: =VLOOKUP(A82,Trends!$A$3:$Q$94,IF(ExFlg=0,8,16))+IF(B82>=$B$2,Sens,0) -> 1.038 | S82: 9.073074346 | T82: =VLOOKUP(A82,Trends!$A$3:$Z$94,IF(ExFlg=0,21,25))+IF(B82>=$B$2,Sens,0) -> 1.038 | U82: 9.940059285 | W82: 39465.03362 | X82: 19879.39265 | Y82: 19585.64097 | AA82: 72944.80889 | AB82: 52677.99784 | AC82: 20266.81105 | AE82: 20096.51853 | AG82: =IF(B82<71,IF(B82-35<30,VLOOKUP(B82,Lookups!A:G,6),VLOOKUP(B82,Lookups!A:G,7)),"") ->  | AJ82: =IF(OR(B82<55,B82-35<20),VLOOKUP(B82-$B$3,Lookups!$O$3:$Q$53,2),VLOOKUP(B82,Lookups!$O$57:$P$122,2)) -> 0 | AK82: 0 | AL82: 0 | AM82: =IF(B82<55,VLOOKUP(B82,Lookups!A:M,12),"") ->  | AN82: =IF(B82<55,VLOOKUP(B82,Lookups!A:M,13),"") ->  | AP82: =IF(B82<70,VLOOKUP(B82,Lookups!A:I,8)*(1-VLOOKUP(B82,Lookups!$U$3:$W$103,2))^(B82-$B$2),"") ->  | AQ82: =IF(B82<70,VLOOKUP(B82,Lookups!A:I,9)*(1-VLOOKUP(B82,Lookups!$U$3:$W$103,3))^(B82-$B$2),"") ->  | BP82: =BP81*(1+PctMarried) -> 0 | BQ82: with spouses | CG82: =CG81*(1+PctMarried) -> 0 | CH82: with spouses | CN82: 68 | CO82: 33 | CP82: 0.08589731616 | CR82: 19 | CS82: 0.001 | CT82: 1.001
A83: 2078 | B83: 115 | D83: =VLOOKUP(B83,Lookups!A:B,2) -> 4612.238145 | E83: =VLOOKUP(B83,Lookups!A:C,3) -> 2128.40628 | G83: =VLOOKUP(B83,Lookups!A:D,4) -> 8039.70144 | H83: =VLOOKUP(B83,Lookups!A:E,5) -> 5299.56576 | J83: =VLOOKUP(A83,Trends!$A$3:$Q$94,IF(ExFlg=0,2,10))+IF(B83>=$B$2,Sens,0) -> 1.038 | K83: 9.027795777 | L83: =VLOOKUP(A83,Trends!$A$3:$Q$94,IF(ExFlg=0,4,12))+IF(B83>=$B$2,Sens,0) -> 1.038 | M83: 8.881741057 | N83: =VLOOKUP(A83,Trends!$A$3:$Z$94,IF(ExFlg=0,19,23))+IF(B83>=$B$2,Sens,0) -> 1.038 | O83: 9.694958039 | P83: =VLOOKUP(A83,Trends!$A$3:$Q$94,IF(ExFlg=0,6,14))+IF(B83>=$B$2,Sens,0) -> 1.038 | Q83: 9.192756572 | R83: =VLOOKUP(A83,Trends!$A$3:$Q$94,IF(ExFlg=0,8,16))+IF(B83>=$B$2,Sens,0) -> 1.038 | S83: 9.417851172 | T83: =VLOOKUP(A83,Trends!$A$3:$Z$94,IF(ExFlg=0,21,25))+IF(B83>=$B$2,Sens,0) -> 1.038 | U83: 10.31778154 | W83: 40964.7049 | X83: 20634.80958 | Y83: 20329.89532 | AA83: 75716.71163 | AB83: 54679.76176 | AC83: 21036.94987 | AE83: 20860.18623 | AG83: =IF(B83<71,IF(B83-35<30,VLOOKUP(B83,Lookups!A:G,6),VLOOKUP(B83,Lookups!A:G,7)),"") ->  | AJ83: =IF(OR(B83<55,B83-35<20),VLOOKUP(B83-$B$3,Lookups!$O$3:$Q$53,2),VLOOKUP(B83,Lookups!$O$57:$P$122,2)) -> 0 | AK83: 0 | AL83: 0 | AM83: =IF(B83<55,VLOOKUP(B83,Lookups!A:M,12),"") ->  | AN83: =IF(B83<55,VLOOKUP(B83,Lookups!A:M,13),"") ->  | AP83: =IF(B83<70,VLOOKUP(B83,Lookups!A:I,8)*(1-VLOOKUP(B83,Lookups!$U$3:$W$103,2))^(B83-$B$2),"") ->  | AQ83: =IF(B83<70,VLOOKUP(B83,Lookups!A:I,9)*(1-VLOOKUP(B83,Lookups!$U$3:$W$103,3))^(B83-$B$2),"") ->  | CJ83: Expected Benefit Payments | CK83: =IFERROR(VLOOKUP(B2,BD12:BE67,2,FALSE)*VLOOKUP(B2,AV12:BB67,7,FALSE)*VLOOKUP(B2,B3:AI93,34,FALSE)*CG80*Part*(1+PctMarried)*0.5, 0) -> 0 | CN83: 69 | CO83: 34 | CP83: 0.05890035667 | CR83: 20 | CS83: 0.001 | CT83: 1.001
A84: 2079 | B84: 116 | D84: =VLOOKUP(B84,Lookups!A:B,2) -> 4612.238145 | E84: =VLOOKUP(B84,Lookups!A:C,3) -> 2128.40628 | G84: =VLOOKUP(B84,Lookups!A:D,4) -> 8039.70144 | H84: =VLOOKUP(B84,Lookups!A:E,5) -> 5299.56576 | J84: =VLOOKUP(A84,Trends!$A$3:$Q$94,IF(ExFlg=0,2,10))+IF(B84>=$B$2,Sens,0) -> 1.038 | K84: 9.370852017 | L84: =VLOOKUP(A84,Trends!$A$3:$Q$94,IF(ExFlg=0,4,12))+IF(B84>=$B$2,Sens,0) -> 1.038 | M84: 9.219247217 | N84: =VLOOKUP(A84,Trends!$A$3:$Z$94,IF(ExFlg=0,19,23))+IF(B84>=$B$2,Sens,0) -> 1.038 | O84: 10.06336644 | P84: =VLOOKUP(A84,Trends!$A$3:$Q$94,IF(ExFlg=0,6,14))+IF(B84>=$B$2,Sens,0) -> 1.038 | Q84: 9.542081322 | R84: =VLOOKUP(A84,Trends!$A$3:$Q$94,IF(ExFlg=0,8,16))+IF(B84>=$B$2,Sens,0) -> 1.038 | S84: 9.775729516 | T84: =VLOOKUP(A84,Trends!$A$3:$Z$94,IF(ExFlg=0,21,25))+IF(B84>=$B$2,Sens,0) -> 1.038 | U84: 10.70985724 | W84: 42521.36368 | X84: 21418.93234 | Y84: 21102.43134 | AA84: 78593.94667 | AB84: 56757.59271 | AC84: 21836.35396 | AE84: 21652.87331 | AG84: =IF(B84<71,IF(B84-35<30,VLOOKUP(B84,Lookups!A:G,6),VLOOKUP(B84,Lookups!A:G,7)),"") ->  | AJ84: =IF(OR(B84<55,B84-35<20),VLOOKUP(B84-$B$3,Lookups!$O$3:$Q$53,2),VLOOKUP(B84,Lookups!$O$57:$P$122,2)) -> 0 | AK84: 0 | AL84: 0 | AM84: =IF(B84<55,VLOOKUP(B84,Lookups!A:M,12),"") ->  | AN84: =IF(B84<55,VLOOKUP(B84,Lookups!A:M,13),"") ->  | AP84: =IF(B84<70,VLOOKUP(B84,Lookups!A:I,8)*(1-VLOOKUP(B84,Lookups!$U$3:$W$103,2))^(B84-$B$2),"") ->  | AQ84: =IF(B84<70,VLOOKUP(B84,Lookups!A:I,9)*(1-VLOOKUP(B84,Lookups!$U$3:$W$103,3))^(B84-$B$2),"") ->  | CN84: 70 | CO84: 35 | CP84: 0.04033169407 | CR84: 21 | CS84: 0 | CT84: 1
A85: 2080 | B85: 117 | D85: =VLOOKUP(B85,Lookups!A:B,2) -> 4612.238145 | E85: =VLOOKUP(B85,Lookups!A:C,3) -> 2128.40628 | G85: =VLOOKUP(B85,Lookups!A:D,4) -> 8039.70144 | H85: =VLOOKUP(B85,Lookups!A:E,5) -> 5299.56576 | J85: =VLOOKUP(A85,Trends!$A$3:$Q$94,IF(ExFlg=0,2,10))+IF(B85>=$B$2,Sens,0) -> 1.038 | K85: 9.726944393 | L85: =VLOOKUP(A85,Trends!$A$3:$Q$94,IF(ExFlg=0,4,12))+IF(B85>=$B$2,Sens,0) -> 1.038 | M85: 9.569578612 | N85: =VLOOKUP(A85,Trends!$A$3:$Z$94,IF(ExFlg=0,19,23))+IF(B85>=$B$2,Sens,0) -> 1.038 | O85: 10.44577437 | P85: =VLOOKUP(A85,Trends!$A$3:$Q$94,IF(ExFlg=0,6,14))+IF(B85>=$B$2,Sens,0) -> 1.038 | Q85: 9.904680412 | R85: =VLOOKUP(A85,Trends!$A$3:$Q$94,IF(ExFlg=0,8,16))+IF(B85>=$B$2,Sens,0) -> 1.038 | S85: 10.14720724 | T85: =VLOOKUP(A85,Trends!$A$3:$Z$94,IF(ExFlg=0,21,25))+IF(B85>=$B$2,Sens,0) -> 1.038 | U85: 11.11683181 | W85: 44137.1755 | X85: 22232.85177 | Y85: 21904.32374 | AA85: 81580.51664 | AB85: 58914.38123 | AC85: 22666.13541 | AE85: 22475.68249 | AG85: =IF(B85<71,IF(B85-35<30,VLOOKUP(B85,Lookups!A:G,6),VLOOKUP(B85,Lookups!A:G,7)),"") ->  | AJ85: =IF(OR(B85<55,B85-35<20),VLOOKUP(B85-$B$3,Lookups!$O$3:$Q$53,2),VLOOKUP(B85,Lookups!$O$57:$P$122,2)) -> 0 | AK85: 0 | AL85: 0 | AM85: =IF(B85<55,VLOOKUP(B85,Lookups!A:M,12),"") ->  | AN85: =IF(B85<55,VLOOKUP(B85,Lookups!A:M,13),"") ->  | AP85: =IF(B85<70,VLOOKUP(B85,Lookups!A:I,8)*(1-VLOOKUP(B85,Lookups!$U$3:$W$103,2))^(B85-$B$2),"") ->  | AQ85: =IF(B85<70,VLOOKUP(B85,Lookups!A:I,9)*(1-VLOOKUP(B85,Lookups!$U$3:$W$103,3))^(B85-$B$2),"") ->  | CR85: 22 | CS85: 0 | CT85: 1
A86: 2081 | B86: 118 | D86: =VLOOKUP(B86,Lookups!A:B,2) -> 4612.238145 | E86: =VLOOKUP(B86,Lookups!A:C,3) -> 2128.40628 | G86: =VLOOKUP(B86,Lookups!A:D,4) -> 8039.70144 | H86: =VLOOKUP(B86,Lookups!A:E,5) -> 5299.56576 | J86: =VLOOKUP(A86,Trends!$A$3:$Q$94,IF(ExFlg=0,2,10))+IF(B86>=$B$2,Sens,0) -> 1.038 | K86: 10.09656828 | L86: =VLOOKUP(A86,Trends!$A$3:$Q$94,IF(ExFlg=0,4,12))+IF(B86>=$B$2,Sens,0) -> 1.038 | M86: 9.933222599 | N86: =VLOOKUP(A86,Trends!$A$3:$Z$94,IF(ExFlg=0,19,23))+IF(B86>=$B$2,Sens,0) -> 1.038 | O86: 10.8427138 | P86: =VLOOKUP(A86,Trends!$A$3:$Q$94,IF(ExFlg=0,6,14))+IF(B86>=$B$2,Sens,0) -> 1.038 | Q86: 10.28105827 | R86: =VLOOKUP(A86,Trends!$A$3:$Q$94,IF(ExFlg=0,8,16))+IF(B86>=$B$2,Sens,0) -> 1.038 | S86: 10.53280111 | T86: =VLOOKUP(A86,Trends!$A$3:$Z$94,IF(ExFlg=0,21,25))+IF(B86>=$B$2,Sens,0) -> 1.038 | U86: 11.53927142 | W86: 45814.38817 | X86: 23077.70014 | Y86: 22736.68804 | AA86: 84680.57627 | AB86: 61153.12771 | AC86: 23527.44856 | AE86: 23329.75843 | AG86: =IF(B86<71,IF(B86-35<30,VLOOKUP(B86,Lookups!A:G,6),VLOOKUP(B86,Lookups!A:G,7)),"") ->  | AJ86: =IF(OR(B86<55,B86-35<20),VLOOKUP(B86-$B$3,Lookups!$O$3:$Q$53,2),VLOOKUP(B86,Lookups!$O$57:$P$122,2)) -> 0 | AK86: 0 | AL86: 0 | AM86: =IF(B86<55,VLOOKUP(B86,Lookups!A:M,12),"") ->  | AN86: =IF(B86<55,VLOOKUP(B86,Lookups!A:M,13),"") ->  | AP86: =IF(B86<70,VLOOKUP(B86,Lookups!A:I,8)*(1-VLOOKUP(B86,Lookups!$U$3:$W$103,2))^(B86-$B$2),"") ->  | AQ86: =IF(B86<70,VLOOKUP(B86,Lookups!A:I,9)*(1-VLOOKUP(B86,Lookups!$U$3:$W$103,3))^(B86-$B$2),"") ->  | CK86: 2227910551 | CR86: 23 | CS86: 0 | CT86: 1
A87: 2082 | B87: 119 | D87: =VLOOKUP(B87,Lookups!A:B,2) -> 4612.238145 | E87: =VLOOKUP(B87,Lookups!A:C,3) -> 2128.40628 | G87: =VLOOKUP(B87,Lookups!A:D,4) -> 8039.70144 | H87: =VLOOKUP(B87,Lookups!A:E,5) -> 5299.56576 | J87: =VLOOKUP(A87,Trends!$A$3:$Q$94,IF(ExFlg=0,2,10))+IF(B87>=$B$2,Sens,0) -> 1.038 | K87: 10.48023787 | L87: =VLOOKUP(A87,Trends!$A$3:$Q$94,IF(ExFlg=0,4,12))+IF(B87>=$B$2,Sens,0) -> 1.038 | M87: 10.31068506 | N87: =VLOOKUP(A87,Trends!$A$3:$Z$94,IF(ExFlg=0,19,23))+IF(B87>=$B$2,Sens,0) -> 1.038 | O87: 11.25473692 | P87: =VLOOKUP(A87,Trends!$A$3:$Q$94,IF(ExFlg=0,6,14))+IF(B87>=$B$2,Sens,0) -> 1.038 | Q87: 10.67173848 | R87: =VLOOKUP(A87,Trends!$A$3:$Q$94,IF(ExFlg=0,8,16))+IF(B87>=$B$2,Sens,0) -> 1.038 | S87: 10.93304756 | T87: =VLOOKUP(A87,Trends!$A$3:$Z$94,IF(ExFlg=0,21,25))+IF(B87>=$B$2,Sens,0) -> 1.038 | U87: 11.97776373 | W87: 47555.33492 | X87: 23954.65274 | Y87: 23600.68218 | AA87: 87898.43817 | AB87: 63476.94657 | AC87: 24421.4916 | AE87: 24216.28925 | AG87: =IF(B87<71,IF(B87-35<30,VLOOKUP(B87,Lookups!A:G,6),VLOOKUP(B87,Lookups!A:G,7)),"") ->  | AJ87: =IF(OR(B87<55,B87-35<20),VLOOKUP(B87-$B$3,Lookups!$O$3:$Q$53,2),VLOOKUP(B87,Lookups!$O$57:$P$122,2)) -> 0 | AK87: 0 | AL87: 0 | AM87: =IF(B87<55,VLOOKUP(B87,Lookups!A:M,12),"") ->  | AN87: =IF(B87<55,VLOOKUP(B87,Lookups!A:M,13),"") ->  | AP87: =IF(B87<70,VLOOKUP(B87,Lookups!A:I,8)*(1-VLOOKUP(B87,Lookups!$U$3:$W$103,2))^(B87-$B$2),"") ->  | AQ87: =IF(B87<70,VLOOKUP(B87,Lookups!A:I,9)*(1-VLOOKUP(B87,Lookups!$U$3:$W$103,3))^(B87-$B$2),"") ->  | CR87: 24 | CS87: 0 | CT87: 1
A88: 2083 | B88: 120 | D88: =VLOOKUP(B88,Lookups!A:B,2) -> 4612.238145 | E88: =VLOOKUP(B88,Lookups!A:C,3) -> 2128.40628 | G88: =VLOOKUP(B88,Lookups!A:D,4) -> 8039.70144 | H88: =VLOOKUP(B88,Lookups!A:E,5) -> 5299.56576 | J88: =VLOOKUP(A88,Trends!$A$3:$Q$94,IF(ExFlg=0,2,10))+IF(B88>=$B$2,Sens,0) -> 1.038 | K88: 10.87848691 | L88: =VLOOKUP(A88,Trends!$A$3:$Q$94,IF(ExFlg=0,4,12))+IF(B88>=$B$2,Sens,0) -> 1.038 | M88: 10.70249109 | N88: =VLOOKUP(A88,Trends!$A$3:$Z$94,IF(ExFlg=0,19,23))+IF(B88>=$B$2,Sens,0) -> 1.038 | O88: 11.68241692 | P88: =VLOOKUP(A88,Trends!$A$3:$Q$94,IF(ExFlg=0,6,14))+IF(B88>=$B$2,Sens,0) -> 1.038 | Q88: 11.07726454 | R88: =VLOOKUP(A88,Trends!$A$3:$Q$94,IF(ExFlg=0,8,16))+IF(B88>=$B$2,Sens,0) -> 1.038 | S88: 11.34850336 | T88: =VLOOKUP(A88,Trends!$A$3:$Z$94,IF(ExFlg=0,21,25))+IF(B88>=$B$2,Sens,0) -> 1.038 | U88: 12.43291876 | W88: 49362.43765 | X88: 24864.92954 | Y88: 24497.50811 | AA88: 91238.57882 | AB88: 65889.07054 | AC88: 25349.50829 | AE88: 25136.50824 | AG88: =IF(B88<71,IF(B88-35<30,VLOOKUP(B88,Lookups!A:G,6),VLOOKUP(B88,Lookups!A:G,7)),"") ->  | AJ88: =IF(OR(B88<55,B88-35<20),VLOOKUP(B88-$B$3,Lookups!$O$3:$Q$53,2),VLOOKUP(B88,Lookups!$O$57:$P$122,2)) -> 0 | AK88: 0 | AL88: 0 | AM88: =IF(B88<55,VLOOKUP(B88,Lookups!A:M,12),"") ->  | AN88: =IF(B88<55,VLOOKUP(B88,Lookups!A:M,13),"") ->  | AP88: =IF(B88<70,VLOOKUP(B88,Lookups!A:I,8)*(1-VLOOKUP(B88,Lookups!$U$3:$W$103,2))^(B88-$B$2),"") ->  | AQ88: =IF(B88<70,VLOOKUP(B88,Lookups!A:I,9)*(1-VLOOKUP(B88,Lookups!$U$3:$W$103,3))^(B88-$B$2),"") ->  | CR88: 25 | CS88: 0 | CT88: 1
A89: 2084 | B89: 121 | D89: =VLOOKUP(B89,Lookups!A:B,2) -> 4612.238145 | E89: =VLOOKUP(B89,Lookups!A:C,3) -> 2128.40628 | G89: =VLOOKUP(B89,Lookups!A:D,4) -> 8039.70144 | H89: =VLOOKUP(B89,Lookups!A:E,5) -> 5299.56576 | J89: =VLOOKUP(A89,Trends!$A$3:$Q$94,IF(ExFlg=0,2,10))+IF(B89>=$B$2,Sens,0) -> 1.038 | K89: 11.29186942 | L89: =VLOOKUP(A89,Trends!$A$3:$Q$94,IF(ExFlg=0,4,12))+IF(B89>=$B$2,Sens,0) -> 1.038 | M89: 11.10918575 | N89: =VLOOKUP(A89,Trends!$A$3:$Z$94,IF(ExFlg=0,19,23))+IF(B89>=$B$2,Sens,0) -> 1.038 | O89: 12.12634877 | P89: =VLOOKUP(A89,Trends!$A$3:$Q$94,IF(ExFlg=0,6,14))+IF(B89>=$B$2,Sens,0) -> 1.038 | Q89: 11.4982006 | R89: =VLOOKUP(A89,Trends!$A$3:$Q$94,IF(ExFlg=0,8,16))+IF(B89>=$B$2,Sens,0) -> 1.038 | S89: 11.77974649 | T89: =VLOOKUP(A89,Trends!$A$3:$Z$94,IF(ExFlg=0,21,25))+IF(B89>=$B$2,Sens,0) -> 1.038 | U89: 12.90536967 | W89: 51238.21028 | X89: 25809.79687 | Y89: 25428.41341 | AA89: 94705.64482 | AB89: 68392.85522 | AC89: 26312.7896 | AE89: 26091.69555 | AG89: =IF(B89<71,IF(B89-35<30,VLOOKUP(B89,Lookups!A:G,6),VLOOKUP(B89,Lookups!A:G,7)),"") ->  | AJ89: =IF(OR(B89<55,B89-35<20),VLOOKUP(B89-$B$3,Lookups!$O$3:$Q$53,2),VLOOKUP(B89,Lookups!$O$57:$P$122,2)) -> 0 | AK89: 0 | AL89: 0 | AM89: =IF(B89<55,VLOOKUP(B89,Lookups!A:M,12),"") ->  | AN89: =IF(B89<55,VLOOKUP(B89,Lookups!A:M,13),"") ->  | AP89: =IF(B89<70,VLOOKUP(B89,Lookups!A:I,8)*(1-VLOOKUP(B89,Lookups!$U$3:$W$103,2))^(B89-$B$2),"") ->  | AQ89: =IF(B89<70,VLOOKUP(B89,Lookups!A:I,9)*(1-VLOOKUP(B89,Lookups!$U$3:$W$103,3))^(B89-$B$2),"") ->  | CR89: 26 | CS89: 0 | CT89: 1
A90: 2085 | B90: 122 | D90: =VLOOKUP(B90,Lookups!A:B,2) -> 4612.238145 | E90: =VLOOKUP(B90,Lookups!A:C,3) -> 2128.40628 | G90: =VLOOKUP(B90,Lookups!A:D,4) -> 8039.70144 | H90: =VLOOKUP(B90,Lookups!A:E,5) -> 5299.56576 | J90: =VLOOKUP(A90,Trends!$A$3:$Q$94,IF(ExFlg=0,2,10))+IF(B90>=$B$2,Sens,0) -> 1.038 | K90: 11.72096045 | L90: =VLOOKUP(A90,Trends!$A$3:$Q$94,IF(ExFlg=0,4,12))+IF(B90>=$B$2,Sens,0) -> 1.038 | M90: 11.53133481 | N90: =VLOOKUP(A90,Trends!$A$3:$Z$94,IF(ExFlg=0,19,23))+IF(B90>=$B$2,Sens,0) -> 1.038 | O90: 12.58715002 | P90: =VLOOKUP(A90,Trends!$A$3:$Q$94,IF(ExFlg=0,6,14))+IF(B90>=$B$2,Sens,0) -> 1.038 | Q90: 11.93513222 | R90: =VLOOKUP(A90,Trends!$A$3:$Q$94,IF(ExFlg=0,8,16))+IF(B90>=$B$2,Sens,0) -> 1.038 | S90: 12.22737686 | T90: =VLOOKUP(A90,Trends!$A$3:$Z$94,IF(ExFlg=0,21,25))+IF(B90>=$B$2,Sens,0) -> 1.038 | U90: 13.39577372 | W90: 53185.26227 | X90: 26790.56915 | Y90: 26394.69312 | AA90: 98304.45932 | AB90: 70991.78372 | AC90: 27312.6756 | AE90: 27083.17998 | AG90: =IF(B90<71,IF(B90-35<30,VLOOKUP(B90,Lookups!A:G,6),VLOOKUP(B90,Lookups!A:G,7)),"") ->  | AJ90: =IF(OR(B90<55,B90-35<20),VLOOKUP(B90-$B$3,Lookups!$O$3:$Q$53,2),VLOOKUP(B90,Lookups!$O$57:$P$122,2)) -> 0 | AK90: 0 | AL90: 0 | AM90: =IF(B90<55,VLOOKUP(B90,Lookups!A:M,12),"") ->  | AN90: =IF(B90<55,VLOOKUP(B90,Lookups!A:M,13),"") ->  | AP90: =IF(B90<70,VLOOKUP(B90,Lookups!A:I,8)*(1-VLOOKUP(B90,Lookups!$U$3:$W$103,2))^(B90-$B$2),"") ->  | AQ90: =IF(B90<70,VLOOKUP(B90,Lookups!A:I,9)*(1-VLOOKUP(B90,Lookups!$U$3:$W$103,3))^(B90-$B$2),"") ->  | CR90: 27 | CS90: 0 | CT90: 1
A91: 2086 | B91: 123 | D91: =VLOOKUP(B91,Lookups!A:B,2) -> 4612.238145 | E91: =VLOOKUP(B91,Lookups!A:C,3) -> 2128.40628 | G91: =VLOOKUP(B91,Lookups!A:D,4) -> 8039.70144 | H91: =VLOOKUP(B91,Lookups!A:E,5) -> 5299.56576 | J91: =VLOOKUP(A91,Trends!$A$3:$Q$94,IF(ExFlg=0,2,10))+IF(B91>=$B$2,Sens,0) -> 1.038 | K91: 12.16635695 | L91: =VLOOKUP(A91,Trends!$A$3:$Q$94,IF(ExFlg=0,4,12))+IF(B91>=$B$2,Sens,0) -> 1.038 | M91: 11.96952553 | N91: =VLOOKUP(A91,Trends!$A$3:$Z$94,IF(ExFlg=0,19,23))+IF(B91>=$B$2,Sens,0) -> 1.038 | O91: 13.06546172 | P91: =VLOOKUP(A91,Trends!$A$3:$Q$94,IF(ExFlg=0,6,14))+IF(B91>=$B$2,Sens,0) -> 1.038 | Q91: 12.38866724 | R91: =VLOOKUP(A91,Trends!$A$3:$Q$94,IF(ExFlg=0,8,16))+IF(B91>=$B$2,Sens,0) -> 1.038 | S91: 12.69201718 | T91: =VLOOKUP(A91,Trends!$A$3:$Z$94,IF(ExFlg=0,21,25))+IF(B91>=$B$2,Sens,0) -> 1.038 | U91: 13.90481312 | W91: 55206.30224 | X91: 27808.61078 | Y91: 27397.69146 | AA91: 102040.0288 | AB91: 73689.4715 | AC91: 28350.55728 | AE91: 28112.34082 | AG91: =IF(B91<71,IF(B91-35<30,VLOOKUP(B91,Lookups!A:G,6),VLOOKUP(B91,Lookups!A:G,7)),"") ->  | AJ91: =IF(OR(B91<55,B91-35<20),VLOOKUP(B91-$B$3,Lookups!$O$3:$Q$53,2),VLOOKUP(B91,Lookups!$O$57:$P$122,2)) -> 0 | AK91: 0 | AL91: 0 | AM91: =IF(B91<55,VLOOKUP(B91,Lookups!A:M,12),"") ->  | AN91: =IF(B91<55,VLOOKUP(B91,Lookups!A:M,13),"") ->  | AP91: =IF(B91<70,VLOOKUP(B91,Lookups!A:I,8)*(1-VLOOKUP(B91,Lookups!$U$3:$W$103,2))^(B91-$B$2),"") ->  | AQ91: =IF(B91<70,VLOOKUP(B91,Lookups!A:I,9)*(1-VLOOKUP(B91,Lookups!$U$3:$W$103,3))^(B91-$B$2),"") ->  | CR91: 28 | CS91: 0 | CT91: 1
A92: 2087 | B92: 124 | D92: =VLOOKUP(B92,Lookups!A:B,2) -> 4612.238145 | E92: =VLOOKUP(B92,Lookups!A:C,3) -> 2128.40628 | G92: =VLOOKUP(B92,Lookups!A:D,4) -> 8039.70144 | H92: =VLOOKUP(B92,Lookups!A:E,5) -> 5299.56576 | J92: =VLOOKUP(A92,Trends!$A$3:$Q$94,IF(ExFlg=0,2,10))+IF(B92>=$B$2,Sens,0) -> 1.038 | K92: 12.62867852 | L92: =VLOOKUP(A92,Trends!$A$3:$Q$94,IF(ExFlg=0,4,12))+IF(B92>=$B$2,Sens,0) -> 1.038 | M92: 12.4243675 | N92: =VLOOKUP(A92,Trends!$A$3:$Z$94,IF(ExFlg=0,19,23))+IF(B92>=$B$2,Sens,0) -> 1.038 | O92: 13.56194927 | P92: =VLOOKUP(A92,Trends!$A$3:$Q$94,IF(ExFlg=0,6,14))+IF(B92>=$B$2,Sens,0) -> 1.038 | Q92: 12.8594366 | R92: =VLOOKUP(A92,Trends!$A$3:$Q$94,IF(ExFlg=0,8,16))+IF(B92>=$B$2,Sens,0) -> 1.038 | S92: 13.17431383 | T92: =VLOOKUP(A92,Trends!$A$3:$Z$94,IF(ExFlg=0,21,25))+IF(B92>=$B$2,Sens,0) -> 1.038 | U92: 14.43319602 | W92: 57304.14172 | X92: 28865.33799 | Y92: 28438.80374 | AA92: 105917.5499 | AB92: 76489.67141 | AC92: 29427.87845 | AE92: 29180.60978 | AG92: =IF(B92<71,IF(B92-35<30,VLOOKUP(B92,Lookups!A:G,6),VLOOKUP(B92,Lookups!A:G,7)),"") ->  | AJ92: =IF(OR(B92<55,B92-35<20),VLOOKUP(B92-$B$3,Lookups!$O$3:$Q$53,2),VLOOKUP(B92,Lookups!$O$57:$P$122,2)) -> 0 | AK92: 0 | AL92: 0 | AM92: =IF(B92<55,VLOOKUP(B92,Lookups!A:M,12),"") ->  | AN92: =IF(B92<55,VLOOKUP(B92,Lookups!A:M,13),"") ->  | AP92: =IF(B92<70,VLOOKUP(B92,Lookups!A:I,8)*(1-VLOOKUP(B92,Lookups!$U$3:$W$103,2))^(B92-$B$2),"") ->  | AQ92: =IF(B92<70,VLOOKUP(B92,Lookups!A:I,9)*(1-VLOOKUP(B92,Lookups!$U$3:$W$103,3))^(B92-$B$2),"") ->  | CR92: 29 | CS92: 0 | CT92: 1
A93: 2088 | B93: 125 | D93: =VLOOKUP(B93,Lookups!A:B,2) -> 4612.238145 | E93: =VLOOKUP(B93,Lookups!A:C,3) -> 2128.40628 | G93: =VLOOKUP(B93,Lookups!A:D,4) -> 8039.70144 | H93: =VLOOKUP(B93,Lookups!A:E,5) -> 5299.56576 | K93: 13.1085683 | M93: 12.89649347 | N93: =VLOOKUP(A93,Trends!$A$3:$Z$94,IF(ExFlg=0,19,23))+IF(B93>=$B$2,Sens,0) -> 1.038 | O93: 14.07730334 | Q93: 13.34809519 | S93: 13.67493776 | T93: =VLOOKUP(A93,Trends!$A$3:$Z$94,IF(ExFlg=0,21,25))+IF(B93>=$B$2,Sens,0) -> 1.038 | U93: 14.98165746 | W93: 59481.69911 | X93: 29962.22083 | Y93: 29519.47828 | AA93: 109942.4168 | AB93: 79396.27893 | AC93: 30546.13784 | AE93: 30289.47295 | AG93: =IF(B93<71,IF(B93-35<30,VLOOKUP(B93,Lookups!A:G,6),VLOOKUP(B93,Lookups!A:G,7)),"") ->  | AJ93: =IF(OR(B93<55,B93-35<20),VLOOKUP(B93-$B$3,Lookups!$O$3:$Q$53,2),VLOOKUP(B93,Lookups!$O$57:$P$122,2)) -> 0 | AK93: 0 | AL93: 0 | AM93: =IF(B93<55,VLOOKUP(B93,Lookups!A:M,12),"") ->  | AN93: =IF(B93<55,VLOOKUP(B93,Lookups!A:M,13),"") ->  | AP93: =IF(B93<70,VLOOKUP(B93,Lookups!A:I,8)*(1-VLOOKUP(B93,Lookups!$U$3:$W$103,2))^(B93-$B$2),"") ->  | AQ93: =IF(B93<70,VLOOKUP(B93,Lookups!A:I,9)*(1-VLOOKUP(B93,Lookups!$U$3:$W$103,3))^(B93-$B$2),"") ->  | CR93: 30 | CS93: 0 | CT93: 1
CO102: =IF(CN102<71,CO101+1,"") -> 
CP109: =IF(CN109<71,CP108*(1-VLOOKUP(CN108,$B$3:$AU$93,44,FALSE))* 1/(1+IntRt)*(1+GSG)*VLOOKUP(MIN(CO108,30),$CR$63:$CT$93,3,FALSE),"") -> 

Sheet Inactive (hidden)
A1: Inactives | B1: 0 | D1: Insured | G1: UMP | J1: Implicit | K1: Insured | L1: Explicit | M1: Insured | N1: Insured Med | O1: Insured | P1: Implicit | Q1: UMP | R1: Explicit | S1: UMP | T1: UMP Med | U1: UMP | X1: Insured | AB1: UMP | AE1: Average | AI1: 0.5 | AN1: Implicit | AO1: Explicit
A2: Year | D2: Cost | E2: Prem | G2: Cost | H2: Prem | J2: Trend | K2: Rel Trend | L2: Trend | M2: Rel Trend | N2: Premium | O2: Med Accum | P2: Trend | Q2: Rel Trend | R2: Trend | S2: Rel Trend | T2: Premium | U2: Med Accum | W2: Cost | X2: Prem | Y2: Net | AA2: Cost | AB2: Prem | AC2: Net | AE2: Net | AG2: Mort - M | AH2: Mort - F | AI2: Mortality | AJ2: Survive | AK2: Interest | AL2: Pay Timing | AN2: Subsidy | AO2: Subsidy
A3: =ToolYear -> 2025 | B3: 94 | D3: =VLOOKUP(B3,Lookups!A:B,2) -> 4612.238145 | E3: =VLOOKUP(B3,Lookups!A:C,3) -> 2128.40628 | G3: =VLOOKUP(B3,Lookups!A:D,4) -> 8039.70144 | H3: =VLOOKUP(B3,Lookups!A:E,5) -> 5299.56576 | J3: =VLOOKUP(A3,Trends!$A$3:$Q$94,IF(ExFlg=0,2,10))+Sens -> 1.059 | K3: 1 | L3: =VLOOKUP(A3,Trends!$A$3:$Q$94,IF(ExFlg=0,4,12))+Sens -> 1.06 | M3: 1 | N3: =VLOOKUP(A3,Trends!$A$3:$Z$94,IF(ExFlg=0,19,23))+Sens -> 1.091 | O3: 1 | P3: =VLOOKUP(A3,Trends!$A$3:$Q$94,IF(ExFlg=0,6,14))+Sens -> 1.06 | Q3: 1 | R3: =VLOOKUP(A3,Trends!$A$3:$Q$94,IF(ExFlg=0,8,16))+Sens -> 1.088 | S3: 1 | T3: =VLOOKUP(A3,Trends!$A$3:$Z$94,IF(ExFlg=0,21,25))+Sens -> 1.127 | U3: 1 | W3: =IF(B3<65,D3*K3,D3*M3) -> 4612.238145 | X3: =IF(B3<65,E3*K3,E3*O3) -> 2128.40628 | Y3: =W3-X3 -> 2483.831865 | AA3: =IF(B3<65,G3*Q3,G3*S3) -> 8039.70144 | AB3: =IF(B3<65,H3*Q3,H3*U3) -> 5299.56576 | AC3: =AA3-AB3 -> 2740.13568 | AE3: =(1-PctUMP)*Y3+PctUMP*AC3 -> 2676.059726 | AG3: =IF($B3<121,VLOOKUP($B3,Lookups!A:I,8)*(1-VLOOKUP($B3,Lookups!$U$3:$W$103,2))^(B3-$B$3),"") -> 0.1962902869 | AH3: =IF($B3<121,VLOOKUP($B3,Lookups!A:I,9)*(1-VLOOKUP($B3,Lookups!$U$3:$W$103,3))^(B3-$B$3),"") -> 0.159817386 | AI3: =IF(B3<121,(PCTMALE*AG3+(1-PCTMALE)*AH3),"") -> 0.1780538365 | AJ3: 1 | AK3: 1 | AL3: =IF(AI3="","",ROUND((13/24)+(11/24)*(1/(1+IntRt))*(1-AI3),6)) -> 0.904147 | AN3: =IF(B3<65,AE3*AJ3*AK3*AL3,"") ->  | AO3: =IF(AND(B3>=65,B3<121),AE3*AJ3*AK3*AL3,"") -> 2419.551373
A4: =1+A3 -> 2026 | B4: =1+B3 -> 95 | D4: =VLOOKUP(B4,Lookups!A:B,2) -> 4612.238145 | E4: =VLOOKUP(B4,Lookups!A:C,3) -> 2128.40628 | G4: =VLOOKUP(B4,Lookups!A:D,4) -> 8039.70144 | H4: =VLOOKUP(B4,Lookups!A:E,5) -> 5299.56576 | J4: =VLOOKUP(A4,Trends!$A$3:$Q$94,IF(ExFlg=0,2,10))+Sens -> 1.054 | K4: =K3*J3 -> 1.059 | L4: =VLOOKUP(A4,Trends!$A$3:$Q$94,IF(ExFlg=0,4,12))+Sens -> 1.053 | M4: =M3*L3 -> 1.06 | N4: =VLOOKUP(A4,Trends!$A$3:$Z$94,IF(ExFlg=0,19,23))+Sens -> 1.082 | O4: =O3*N3 -> 1.091 | P4: =VLOOKUP(A4,Trends!$A$3:$Q$94,IF(ExFlg=0,6,14))+Sens -> 1.061 | Q4: =Q3*P3 -> 1.06 | R4: =VLOOKUP(A4,Trends!$A$3:$Q$94,IF(ExFlg=0,8,16))+Sens -> 1.092 | S4: =S3*R3 -> 1.088 | T4: =VLOOKUP(A4,Trends!$A$3:$Z$94,IF(ExFlg=0,21,25))+Sens -> 1.119 | U4: =U3*T3 -> 1.127 | W4: =IF(B4<65,D4*K4,D4*M4) -> 4888.972434 | X4: =IF(B4<65,E4*K4,E4*O4) -> 2322.091251 | Y4: 2566.881182 | AA4: =IF(B4<65,G4*Q4,G4*S4) -> 8747.195167 | AB4: =IF(B4<65,H4*Q4,H4*U4) -> 5972.610612 | AC4: 2774.584555 | AE4: =(1-PctUMP)*Y4+PctUMP*AC4 -> 2722.658712 | AG4: =IF($B4<121,VLOOKUP($B4,Lookups!A:I,8)*(1-VLOOKUP($B4,Lookups!$U$3:$W$103,2))^(B4-$B$3),"") -> 0.2105032947 | AH4: =IF($B4<121,VLOOKUP($B4,Lookups!A:I,9)*(1-VLOOKUP($B4,Lookups!$U$3:$W$103,3))^(B4-$B$3),"") -> 0.1734552339 | AI4: 0.1919792643 | AJ4: =IF(B4<121,AJ3*(1-AI3),"") -> 0.8219461636 | AK4: =IF(B4<121,AK3/(1+IntRt),"") -> 0.9621860868 | AL4: 0.898005 | AN4: =IF(B4<65,AE4*AJ4*AK4*AL4,"") ->  | AO4: =IF(AND(B4>=65,B4<121),AE4*AJ4*AK4*AL4,"") -> 1933.634587
A5: 2027 | B5: 96 | D5: =VLOOKUP(B5,Lookups!A:B,2) -> 4612.238145 | E5: =VLOOKUP(B5,Lookups!A:C,3) -> 2128.40628 | G5: =VLOOKUP(B5,Lookups!A:D,4) -> 8039.70144 | H5: =VLOOKUP(B5,Lookups!A:E,5) -> 5299.56576 | J5: =VLOOKUP(A5,Trends!$A$3:$Q$94,IF(ExFlg=0,2,10))+Sens -> 1.052 | K5: =K4*J4 -> 1.116186 | L5: =VLOOKUP(A5,Trends!$A$3:$Q$94,IF(ExFlg=0,4,12))+Sens -> 1.051 | M5: =M4*L4 -> 1.11618 | N5: =VLOOKUP(A5,Trends!$A$3:$Z$94,IF(ExFlg=0,19,23))+Sens -> 1.053 | O5: =O4*N4 -> 1.180462 | P5: =VLOOKUP(A5,Trends!$A$3:$Q$94,IF(ExFlg=0,6,14))+Sens -> 1.053 | Q5: =Q4*P4 -> 1.12466 | R5: =VLOOKUP(A5,Trends!$A$3:$Q$94,IF(ExFlg=0,8,16))+Sens -> 1.051 | S5: =S4*R4 -> 1.188096 | T5: =VLOOKUP(A5,Trends!$A$3:$Z$94,IF(ExFlg=0,21,25))+Sens -> 1.053 | U5: =U4*T4 -> 1.261113 | W5: 5148.087973 | X5: =IF(B5<65,E5*K5,E5*O5) -> 2512.502734 | Y5: 2635.585239 | AA5: 9551.937122 | AB5: 6683.351274 | AC5: 2868.585848 | AE5: 2810.335695 | AG5: =IF($B5<121,VLOOKUP($B5,Lookups!A:I,8)*(1-VLOOKUP($B5,Lookups!$U$3:$W$103,2))^(B5-$B$3),"") -> 0.2257999579 | AH5: =IF($B5<121,VLOOKUP($B5,Lookups!A:I,9)*(1-VLOOKUP($B5,Lookups!$U$3:$W$103,3))^(B5-$B$3),"") -> 0.1882913836 | AI5: 0.2070456708 | AJ5: =IF(B5<121,AJ4*(1-AI4),"") -> 0.6641495437 | AK5: 0.9258020656 | AL5: 0.891361 | AO5: 1540.266437
A6: 2028 | B6: 97 | D6: =VLOOKUP(B6,Lookups!A:B,2) -> 4612.238145 | E6: =VLOOKUP(B6,Lookups!A:C,3) -> 2128.40628 | G6: =VLOOKUP(B6,Lookups!A:D,4) -> 8039.70144 | H6: =VLOOKUP(B6,Lookups!A:E,5) -> 5299.56576 | J6: =VLOOKUP(A6,Trends!$A$3:$Q$94,IF(ExFlg=0,2,10))+Sens -> 1.05 | K6: 1.174227672 | L6: =VLOOKUP(A6,Trends!$A$3:$Q$94,IF(ExFlg=0,4,12))+Sens -> 1.05 | M6: 1.17310518 | N6: =VLOOKUP(A6,Trends!$A$3:$Z$94,IF(ExFlg=0,19,23))+Sens -> 1.052 | O6: 1.243026486 | P6: =VLOOKUP(A6,Trends!$A$3:$Q$94,IF(ExFlg=0,6,14))+Sens -> 1.051 | Q6: 1.18426698 | R6: =VLOOKUP(A6,Trends!$A$3:$Q$94,IF(ExFlg=0,8,16))+Sens -> 1.049 | S6: 1.248688896 | T6: =VLOOKUP(A6,Trends!$A$3:$Z$94,IF(ExFlg=0,21,25))+Sens -> 1.051 | U6: 1.327951989 | W6: 5410.640459 | X6: =IF(B6<65,E6*K6,E6*O6) -> 2645.665379 | Y6: 2764.97508 | AA6: 10039.08592 | AB6: 7037.568892 | AC6: 3001.517023 | AE6: 2942.381538 | AG6: =IF($B6<121,VLOOKUP($B6,Lookups!A:I,8)*(1-VLOOKUP($B6,Lookups!$U$3:$W$103,2))^(B6-$B$3),"") -> 0.2416642226 | AH6: =IF($B6<121,VLOOKUP($B6,Lookups!A:I,9)*(1-VLOOKUP($B6,Lookups!$U$3:$W$103,3))^(B6-$B$3),"") -> 0.2039796009 | AI6: 0.2228219117 | AJ6: 0.526640256 | AK6: 0.8907938667 | AL6: 0.884404 | AO6: 1220.789981 | AS6: Retirees - Default Ages
A7: 2029 | B7: 98 | D7: =VLOOKUP(B7,Lookups!A:B,2) -> 4612.238145 | E7: =VLOOKUP(B7,Lookups!A:C,3) -> 2128.40628 | G7: =VLOOKUP(B7,Lookups!A:D,4) -> 8039.70144 | H7: =VLOOKUP(B7,Lookups!A:E,5) -> 5299.56576 | J7: =VLOOKUP(A7,Trends!$A$3:$Q$94,IF(ExFlg=0,2,10))+Sens -> 1.049 | K7: 1.232939056 | L7: =VLOOKUP(A7,Trends!$A$3:$Q$94,IF(ExFlg=0,4,12))+Sens -> 1.048 | M7: =M6*L6 -> 1.231760439 | N7: =VLOOKUP(A7,Trends!$A$3:$Z$94,IF(ExFlg=0,19,23))+Sens -> 1.05 | O7: 1.307663863 | P7: =VLOOKUP(A7,Trends!$A$3:$Q$94,IF(ExFlg=0,6,14))+Sens -> 1.049 | Q7: 1.244664596 | R7: =VLOOKUP(A7,Trends!$A$3:$Q$94,IF(ExFlg=0,8,16))+Sens -> 1.048 | S7: 1.309874652 | T7: =VLOOKUP(A7,Trends!$A$3:$Z$94,IF(ExFlg=0,21,25))+Sens -> 1.05 | U7: 1.39567754 | W7: 5681.172482 | X7: 2783.239979 | Y7: 2897.932504 | AA7: 10531.00113 | AB7: 7396.484905 | AC7: 3134.51622 | AE7: 3075.370291 | AG7: =IF($B7<121,VLOOKUP($B7,Lookups!A:I,8)*(1-VLOOKUP($B7,Lookups!$U$3:$W$103,2))^(B7-$B$3),"") -> 0.2586461859 | AH7: =IF($B7<121,VLOOKUP($B7,Lookups!A:I,9)*(1-VLOOKUP($B7,Lookups!$U$3:$W$103,3))^(B7-$B$3),"") -> 0.2210320423 | AI7: 0.2398391141 | AJ7: 0.4092932673 | AK7: 0.8571094647 | AL7: 0.876899 | AO7: 946.0582582 | AS7: Age Divisions | AT7: 20-64 | AU7: 65-70 | AV7: 71-77 | AW7: 78+
A8: 2030 | B8: 99 | D8: =VLOOKUP(B8,Lookups!A:B,2) -> 4612.238145 | E8: =VLOOKUP(B8,Lookups!A:C,3) -> 2128.40628 | G8: =VLOOKUP(B8,Lookups!A:D,4) -> 8039.70144 | H8: =VLOOKUP(B8,Lookups!A:E,5) -> 5299.56576 | J8: =VLOOKUP(A8,Trends!$A$3:$Q$94,IF(ExFlg=0,2,10))+Sens -> 1.047 | K8: 1.293353069 | L8: =VLOOKUP(A8,Trends!$A$3:$Q$94,IF(ExFlg=0,4,12))+Sens -> 1.046 | M8: 1.29088494 | N8: =VLOOKUP(A8,Trends!$A$3:$Z$94,IF(ExFlg=0,19,23))+Sens -> 1.048 | O8: 1.373047056 | P8: =VLOOKUP(A8,Trends!$A$3:$Q$94,IF(ExFlg=0,6,14))+Sens -> 1.047 | Q8: 1.305653161 | R8: =VLOOKUP(A8,Trends!$A$3:$Q$94,IF(ExFlg=0,8,16))+Sens -> 1.046 | S8: 1.372748635 | T8: =VLOOKUP(A8,Trends!$A$3:$Z$94,IF(ExFlg=0,21,25))+Sens -> 1.048 | U8: 1.465461417 | W8: 5953.868761 | X8: 2922.401978 | Y8: 3031.466784 | AA8: 11036.48918 | AB8: 7766.309151 | AC8: 3270.180029 | AE8: 3210.501717 | AG8: =IF($B8<121,VLOOKUP($B8,Lookups!A:I,8)*(1-VLOOKUP($B8,Lookups!$U$3:$W$103,2))^(B8-$B$3),"") -> 0.2758207484 | AH8: =IF($B8<121,VLOOKUP($B8,Lookups!A:I,9)*(1-VLOOKUP($B8,Lookups!$U$3:$W$103,3))^(B8-$B$3),"") -> 0.2386817472 | AI8: 0.2572512478 | AJ8: 0.3111287327 | AK8: 0.8246988018 | AL8: 0.86922 | AO8: 716.0413466 | AS8: Number Inactive | AT8: 60 | AU8: =ROUND((70+65)/2,0) -> 68 | AV8: =ROUND((77+71)/2,0) -> 74 | AW8: 82
A9: 2031 | B9: 100 | D9: =VLOOKUP(B9,Lookups!A:B,2) -> 4612.238145 | E9: =VLOOKUP(B9,Lookups!A:C,3) -> 2128.40628 | G9: =VLOOKUP(B9,Lookups!A:D,4) -> 8039.70144 | H9: =VLOOKUP(B9,Lookups!A:E,5) -> 5299.56576 | J9: =VLOOKUP(A9,Trends!$A$3:$Q$94,IF(ExFlg=0,2,10))+Sens -> 1.045 | K9: 1.354140664 | L9: =VLOOKUP(A9,Trends!$A$3:$Q$94,IF(ExFlg=0,4,12))+Sens -> 1.045 | M9: 1.350265647 | N9: =VLOOKUP(A9,Trends!$A$3:$Z$94,IF(ExFlg=0,19,23))+Sens -> 1.046 | O9: 1.438953315 | P9: =VLOOKUP(A9,Trends!$A$3:$Q$94,IF(ExFlg=0,6,14))+Sens -> 1.045 | Q9: 1.36701886 | R9: =VLOOKUP(A9,Trends!$A$3:$Q$94,IF(ExFlg=0,8,16))+Sens -> 1.044 | S9: 1.435895072 | T9: =VLOOKUP(A9,Trends!$A$3:$Z$94,IF(ExFlg=0,21,25))+Sens -> 1.045 | U9: 1.535803565 | W9: 6227.746724 | X9: 3062.677273 | Y9: 3165.069452 | AA9: 11544.16768 | AB9: 8139.09199 | AC9: 3405.075692 | AE9: 3345.074132 | AG9: =IF($B9<121,VLOOKUP($B9,Lookups!A:I,8)*(1-VLOOKUP($B9,Lookups!$U$3:$W$103,2))^(B9-$B$3),"") -> 0.29353922 | AH9: =IF($B9<121,VLOOKUP($B9,Lookups!A:I,9)*(1-VLOOKUP($B9,Lookups!$U$3:$W$103,3))^(B9-$B$3),"") -> 0.2572303135 | AI9: 0.2753847668 | AJ9: 0.231090478 | AK9: 0.7935137129 | AL9: 0.861223 | AO9: 528.2723177
A10: 2032 | B10: 101 | D10: =VLOOKUP(B10,Lookups!A:B,2) -> 4612.238145 | E10: =VLOOKUP(B10,Lookups!A:C,3) -> 2128.40628 | G10: =VLOOKUP(B10,Lookups!A:D,4) -> 8039.70144 | H10: =VLOOKUP(B10,Lookups!A:E,5) -> 5299.56576 | J10: =VLOOKUP(A10,Trends!$A$3:$Q$94,IF(ExFlg=0,2,10))+Sens -> 1.043 | K10: 1.415076993 | L10: =VLOOKUP(A10,Trends!$A$3:$Q$94,IF(ExFlg=0,4,12))+Sens -> 1.042 | M10: 1.411027601 | N10: =VLOOKUP(A10,Trends!$A$3:$Z$94,IF(ExFlg=0,19,23))+Sens -> 1.043 | O10: 1.505145168 | P10: =VLOOKUP(A10,Trends!$A$3:$Q$94,IF(ExFlg=0,6,14))+Sens -> 1.043 | Q10: 1.428534708 | R10: =VLOOKUP(A10,Trends!$A$3:$Q$94,IF(ExFlg=0,8,16))+Sens -> 1.042 | S10: 1.499074456 | T10: =VLOOKUP(A10,Trends!$A$3:$Z$94,IF(ExFlg=0,21,25))+Sens -> 1.043 | U10: 1.604914726 | W10: 6507.995327 | X10: 3203.560427 | Y10: 3304.4349 | AA10: 12052.11106 | AB10: 8505.351129 | AC10: 3546.75993 | AE10: 3486.178672 | AG10: =IF($B10<121,VLOOKUP($B10,Lookups!A:I,8)*(1-VLOOKUP($B10,Lookups!$U$3:$W$103,2))^(B10-$B$3),"") -> 0.311651609 | AH10: =IF($B10<121,VLOOKUP($B10,Lookups!A:I,9)*(1-VLOOKUP($B10,Lookups!$U$3:$W$103,3))^(B10-$B$3),"") -> 0.2764803389 | AI10: 0.294065974 | AJ10: 0.1674516806 | AK10: 0.7635078542 | AL10: 0.852985 | AO10: 380.1841922
A11: 2033 | B11: 102 | D11: =VLOOKUP(B11,Lookups!A:B,2) -> 4612.238145 | E11: =VLOOKUP(B11,Lookups!A:C,3) -> 2128.40628 | G11: =VLOOKUP(B11,Lookups!A:D,4) -> 8039.70144 | H11: =VLOOKUP(B11,Lookups!A:E,5) -> 5299.56576 | J11: =VLOOKUP(A11,Trends!$A$3:$Q$94,IF(ExFlg=0,2,10))+Sens -> 1.041 | K11: 1.475925304 | L11: =VLOOKUP(A11,Trends!$A$3:$Q$94,IF(ExFlg=0,4,12))+Sens -> 1.041 | M11: 1.470290761 | N11: =VLOOKUP(A11,Trends!$A$3:$Z$94,IF(ExFlg=0,19,23))+Sens -> 1.042 | O11: 1.56986641 | P11: =VLOOKUP(A11,Trends!$A$3:$Q$94,IF(ExFlg=0,6,14))+Sens -> 1.042 | Q11: 1.489961701 | R11: =VLOOKUP(A11,Trends!$A$3:$Q$94,IF(ExFlg=0,8,16))+Sens -> 1.041 | S11: 1.562035583 | T11: =VLOOKUP(A11,Trends!$A$3:$Z$94,IF(ExFlg=0,21,25))+Sens -> 1.042 | U11: 1.673926059 | W11: 6781.331131 | X11: 3341.313525 | Y11: 3440.017605 | AA11: 12558.29972 | AB11: 8871.081228 | AC11: 3687.218496 | AE11: 3625.418273 | AG11: =IF($B11<121,VLOOKUP($B11,Lookups!A:I,8)*(1-VLOOKUP($B11,Lookups!$U$3:$W$103,2))^(B11-$B$3),"") -> 0.330598138 | AH11: =IF($B11<121,VLOOKUP($B11,Lookups!A:I,9)*(1-VLOOKUP($B11,Lookups!$U$3:$W$103,3))^(B11-$B$3),"") -> 0.2967639324 | AI11: 0.3136810352 | AJ11: 0.118209839 | AK11: 0.7346366345 | AL11: 0.844335 | AO11: =IF(AND(B11>=65,B11<121),AE11*AJ11*AK11*AL11,"") -> 265.827018
A12: 2034 | B12: 103 | D12: =VLOOKUP(B12,Lookups!A:B,2) -> 4612.238145 | E12: =VLOOKUP(B12,Lookups!A:C,3) -> 2128.40628 | G12: =VLOOKUP(B12,Lookups!A:D,4) -> 8039.70144 | H12: =VLOOKUP(B12,Lookups!A:E,5) -> 5299.56576 | J12: =VLOOKUP(A12,Trends!$A$3:$Q$94,IF(ExFlg=0,2,10))+Sens -> 1.041 | K12: 1.536438242 | L12: =VLOOKUP(A12,Trends!$A$3:$Q$94,IF(ExFlg=0,4,12))+Sens -> 1.041 | M12: 1.530572682 | N12: =VLOOKUP(A12,Trends!$A$3:$Z$94,IF(ExFlg=0,19,23))+Sens -> 1.042 | O12: 1.635800799 | P12: =VLOOKUP(A12,Trends!$A$3:$Q$94,IF(ExFlg=0,6,14))+Sens -> 1.042 | Q12: 1.552540092 | R12: =VLOOKUP(A12,Trends!$A$3:$Q$94,IF(ExFlg=0,8,16))+Sens -> 1.041 | S12: 1.626079042 | T12: =VLOOKUP(A12,Trends!$A$3:$Z$94,IF(ExFlg=0,21,25))+Sens -> 1.042 | U12: 1.744230954 | W12: 7059.365707 | X12: 3481.648694 | Y12: 3577.717014 | AA12: 13073.19001 | AB12: 9243.666639 | AC12: 3829.523373 | AE12: 3766.571783 | AG12: =IF($B12<121,VLOOKUP($B12,Lookups!A:I,8)*(1-VLOOKUP($B12,Lookups!$U$3:$W$103,2))^(B12-$B$3),"") -> 0.348854039 | AH12: =IF($B12<121,VLOOKUP($B12,Lookups!A:I,9)*(1-VLOOKUP($B12,Lookups!$U$3:$W$103,3))^(B12-$B$3),"") -> 0.3166570977 | AI12: 0.3327555684 | AJ12: 0.08112965437 | AK12: 0.7068571485 | AL12: 0.835923 | AO12: =IF(AND(B12>=65,B12<121),AE12*AJ12*AK12*AL12,"") -> 180.5609386
A13: 2035 | B13: 104 | D13: =VLOOKUP(B13,Lookups!A:B,2) -> 4612.238145 | E13: =VLOOKUP(B13,Lookups!A:C,3) -> 2128.40628 | G13: =VLOOKUP(B13,Lookups!A:D,4) -> 8039.70144 | H13: =VLOOKUP(B13,Lookups!A:E,5) -> 5299.56576 | J13: =VLOOKUP(A13,Trends!$A$3:$Q$94,IF(ExFlg=0,2,10))+Sens -> 1.041 | K13: 1.59943221 | L13: =VLOOKUP(A13,Trends!$A$3:$Q$94,IF(ExFlg=0,4,12))+Sens -> 1.041 | M13: 1.593326162 | N13: =VLOOKUP(A13,Trends!$A$3:$Z$94,IF(ExFlg=0,19,23))+Sens -> 1.042 | O13: 1.704504433 | P13: =VLOOKUP(A13,Trends!$A$3:$Q$94,IF(ExFlg=0,6,14))+Sens -> 1.042 | Q13: 1.617746776 | R13: =VLOOKUP(A13,Trends!$A$3:$Q$94,IF(ExFlg=0,8,16))+Sens -> 1.041 | S13: 1.692748282 | T13: =VLOOKUP(A13,Trends!$A$3:$Z$94,IF(ExFlg=0,21,25))+Sens -> 1.042 | U13: 1.817488654 | W13: 7348.799701 | X13: 3627.877939 | Y13: 3720.921762 | AA13: 13609.1908 | AB13: 9631.900638 | AC13: 3977.290165 | AE13: 3913.198064 | AG13: =IF($B13<121,VLOOKUP($B13,Lookups!A:I,8)*(1-VLOOKUP($B13,Lookups!$U$3:$W$103,2))^(B13-$B$3),"") -> 0.3670246459 | AH13: =IF($B13<121,VLOOKUP($B13,Lookups!A:I,9)*(1-VLOOKUP($B13,Lookups!$U$3:$W$103,3))^(B13-$B$3),"") -> 0.336651155 | AI13: 0.3518379004 | AJ13: 0.05413331012 | AK13: 0.6801281137 | AL13: 0.827507 | AO13: 119.2226628
A14: 2036 | B14: 105 | D14: =VLOOKUP(B14,Lookups!A:B,2) -> 4612.238145 | E14: =VLOOKUP(B14,Lookups!A:C,3) -> 2128.40628 | G14: =VLOOKUP(B14,Lookups!A:D,4) -> 8039.70144 | H14: =VLOOKUP(B14,Lookups!A:E,5) -> 5299.56576 | J14: =VLOOKUP(A14,Trends!$A$3:$Q$94,IF(ExFlg=0,2,10))+Sens -> 1.041 | K14: 1.66500893 | L14: =VLOOKUP(A14,Trends!$A$3:$Q$94,IF(ExFlg=0,4,12))+Sens -> 1.041 | M14: 1.658652534 | N14: =VLOOKUP(A14,Trends!$A$3:$Z$94,IF(ExFlg=0,19,23))+Sens -> 1.042 | O14: 1.776093619 | P14: =VLOOKUP(A14,Trends!$A$3:$Q$94,IF(ExFlg=0,6,14))+Sens -> 1.042 | Q14: 1.685692141 | R14: =VLOOKUP(A14,Trends!$A$3:$Q$94,IF(ExFlg=0,8,16))+Sens -> 1.041 | S14: 1.762150962 | T14: =VLOOKUP(A14,Trends!$A$3:$Z$94,IF(ExFlg=0,21,25))+Sens -> 1.042 | U14: 1.893823177 | W14: 7650.100489 | X14: 3780.248812 | Y14: 3869.851677 | AA14: 14167.16763 | AB14: 10036.44047 | AC14: 4130.727161 | AE14: 4065.50829 | AG14: =IF($B14<121,VLOOKUP($B14,Lookups!A:I,8)*(1-VLOOKUP($B14,Lookups!$U$3:$W$103,2))^(B14-$B$3),"") -> 0.3850402831 | AH14: =IF($B14<121,VLOOKUP($B14,Lookups!A:I,9)*(1-VLOOKUP($B14,Lookups!$U$3:$W$103,3))^(B14-$B$3),"") -> 0.3566376569 | AI14: 0.37083897 | AJ14: 0.03508715994 | AK14: 0.6544098082 | AL14: 0.819128 | AO14: 76.46534263
A15: 2037 | B15: 106 | D15: =VLOOKUP(B15,Lookups!A:B,2) -> 4612.238145 | E15: =VLOOKUP(B15,Lookups!A:C,3) -> 2128.40628 | G15: =VLOOKUP(B15,Lookups!A:D,4) -> 8039.70144 | H15: =VLOOKUP(B15,Lookups!A:E,5) -> 5299.56576 | J15: =VLOOKUP(A15,Trends!$A$3:$Q$94,IF(ExFlg=0,2,10))+Sens -> 1.041 | K15: 1.733274296 | L15: =VLOOKUP(A15,Trends!$A$3:$Q$94,IF(ExFlg=0,4,12))+Sens -> 1.041 | M15: 1.726657288 | N15: =VLOOKUP(A15,Trends!$A$3:$Z$94,IF(ExFlg=0,19,23))+Sens -> 1.042 | O15: 1.850689551 | P15: =VLOOKUP(A15,Trends!$A$3:$Q$94,IF(ExFlg=0,6,14))+Sens -> 1.042 | Q15: 1.756491211 | R15: =VLOOKUP(A15,Trends!$A$3:$Q$94,IF(ExFlg=0,8,16))+Sens -> 1.041 | S15: 1.834399151 | T15: =VLOOKUP(A15,Trends!$A$3:$Z$94,IF(ExFlg=0,21,25))+Sens -> 1.042 | U15: 1.973363751 | W15: 7963.754609 | X15: 3939.019262 | Y15: 4024.735347 | AA15: 14748.0215 | AB15: 10457.97096 | AC15: 4290.050534 | AE15: 4223.721737 | AG15: =IF($B15<121,VLOOKUP($B15,Lookups!A:I,8)*(1-VLOOKUP($B15,Lookups!$U$3:$W$103,2))^(B15-$B$3),"") -> 0.4039469763 | AH15: =IF($B15<121,VLOOKUP($B15,Lookups!A:I,9)*(1-VLOOKUP($B15,Lookups!$U$3:$W$103,3))^(B15-$B$3),"") -> 0.3775360506 | AI15: 0.3907415135 | AJ15: 0.02207547369 | AK15: 0.6296640125 | AL15: 0.810351 | AO15: 47.57593969
A16: 2038 | B16: 107 | D16: =VLOOKUP(B16,Lookups!A:B,2) -> 4612.238145 | E16: =VLOOKUP(B16,Lookups!A:C,3) -> 2128.40628 | G16: =VLOOKUP(B16,Lookups!A:D,4) -> 8039.70144 | H16: =VLOOKUP(B16,Lookups!A:E,5) -> 5299.56576 | J16: =VLOOKUP(A16,Trends!$A$3:$Q$94,IF(ExFlg=0,2,10))+Sens -> 1.041 | K16: 1.804338542 | L16: =VLOOKUP(A16,Trends!$A$3:$Q$94,IF(ExFlg=0,4,12))+Sens -> 1.041 | M16: 1.797450237 | N16: =VLOOKUP(A16,Trends!$A$3:$Z$94,IF(ExFlg=0,19,23))+Sens -> 1.042 | O16: 1.928418512 | P16: =VLOOKUP(A16,Trends!$A$3:$Q$94,IF(ExFlg=0,6,14))+Sens -> 1.042 | Q16: 1.830263842 | R16: =VLOOKUP(A16,Trends!$A$3:$Q$94,IF(ExFlg=0,8,16))+Sens -> 1.041 | S16: 1.909609517 | T16: =VLOOKUP(A16,Trends!$A$3:$Z$94,IF(ExFlg=0,21,25))+Sens -> 1.042 | U16: 2.056245028 | W16: 8290.268548 | X16: 4104.458071 | Y16: 4185.810477 | AA16: 15352.69038 | AB16: 10897.20575 | AC16: 4455.484635 | AE16: 4388.066095 | AG16: =IF($B16<121,VLOOKUP($B16,Lookups!A:I,8)*(1-VLOOKUP($B16,Lookups!$U$3:$W$103,2))^(B16-$B$3),"") -> 0.4216054219 | AH16: =IF($B16<121,VLOOKUP($B16,Lookups!A:I,9)*(1-VLOOKUP($B16,Lookups!$U$3:$W$103,3))^(B16-$B$3),"") -> 0.3973070599 | AI16: 0.4094562409 | AJ16: 0.01344966969 | AK16: 0.6058539522 | AL16: 0.802098 | AO16: 28.68006675
A17: 2039 | B17: 108 | D17: =VLOOKUP(B17,Lookups!A:B,2) -> 4612.238145 | E17: =VLOOKUP(B17,Lookups!A:C,3) -> 2128.40628 | G17: =VLOOKUP(B17,Lookups!A:D,4) -> 8039.70144 | H17: =VLOOKUP(B17,Lookups!A:E,5) -> 5299.56576 | J17: =VLOOKUP(A17,Trends!$A$3:$Q$94,IF(ExFlg=0,2,10))+Sens -> 1.041 | K17: 1.878316423 | L17: =VLOOKUP(A17,Trends!$A$3:$Q$94,IF(ExFlg=0,4,12))+Sens -> 1.041 | M17: 1.871145697 | N17: =VLOOKUP(A17,Trends!$A$3:$Z$94,IF(ExFlg=0,19,23))+Sens -> 1.042 | O17: 2.009412089 | P17: =VLOOKUP(A17,Trends!$A$3:$Q$94,IF(ExFlg=0,6,14))+Sens -> 1.042 | Q17: 1.907134923 | R17: =VLOOKUP(A17,Trends!$A$3:$Q$94,IF(ExFlg=0,8,16))+Sens -> 1.041 | S17: 1.987903507 | T17: =VLOOKUP(A17,Trends!$A$3:$Z$94,IF(ExFlg=0,21,25))+Sens -> 1.042 | U17: 2.142607319 | W17: 8630.169558 | X17: 4276.84531 | Y17: 4353.324248 | AA17: 15982.15069 | AB17: 11354.88839 | AC17: 4627.262299 | AE17: =(1-PctUMP)*Y17+PctUMP*AC17 -> 4558.777786 | AG17: =IF($B17<121,VLOOKUP($B17,Lookups!A:I,8)*(1-VLOOKUP($B17,Lookups!$U$3:$W$103,2))^(B17-$B$3),"") -> 0.4389939871 | AH17: =IF($B17<121,VLOOKUP($B17,Lookups!A:I,9)*(1-VLOOKUP($B17,Lookups!$U$3:$W$103,3))^(B17-$B$3),"") -> 0.4168230371 | AI17: 0.4279085121 | AJ17: 0.007942618497 | AK17: 0.5829442434 | AL17: 0.79396 | AN17: =IF(B17<65,AE17*AJ17*AK17*AL17,"") ->  | AO17: 16.75860124
A18: 2040 | B18: 109 | D18: =VLOOKUP(B18,Lookups!A:B,2) -> 4612.238145 | E18: =VLOOKUP(B18,Lookups!A:C,3) -> 2128.40628 | G18: =VLOOKUP(B18,Lookups!A:D,4) -> 8039.70144 | H18: =VLOOKUP(B18,Lookups!A:E,5) -> 5299.56576 | J18: =VLOOKUP(A18,Trends!$A$3:$Q$94,IF(ExFlg=0,2,10))+Sens -> 1.042 | K18: 1.955327396 | L18: =VLOOKUP(A18,Trends!$A$3:$Q$94,IF(ExFlg=0,4,12))+Sens -> 1.041 | M18: 1.947862671 | N18: =VLOOKUP(A18,Trends!$A$3:$Z$94,IF(ExFlg=0,19,23))+Sens -> 1.042 | O18: 2.093807397 | P18: =VLOOKUP(A18,Trends!$A$3:$Q$94,IF(ExFlg=0,6,14))+Sens -> 1.042 | Q18: 1.98723459 | R18: =VLOOKUP(A18,Trends!$A$3:$Q$94,IF(ExFlg=0,8,16))+Sens -> 1.041 | S18: 2.069407551 | T18: =VLOOKUP(A18,Trends!$A$3:$Z$94,IF(ExFlg=0,21,25))+Sens -> 1.042 | U18: 2.232596827 | W18: 8984.00651 | X18: =IF(B18<65,E18*K18,E18*O18) -> 4456.472813 | Y18: 4527.533697 | AA18: 16637.41886 | AB18: 11831.7937 | AC18: 4805.625165 | AE18: =(1-PctUMP)*Y18+PctUMP*AC18 -> 4736.102298 | AG18: =IF($B18<121,VLOOKUP($B18,Lookups!A:I,8)*(1-VLOOKUP($B18,Lookups!$U$3:$W$103,2))^(B18-$B$3),"") -> 0.4561185096 | AH18: =IF($B18<121,VLOOKUP($B18,Lookups!A:I,9)*(1-VLOOKUP($B18,Lookups!$U$3:$W$103,3))^(B18-$B$3),"") -> 0.4360299538 | AI18: 0.4460742317 | AJ18: 0.004543904434 | AK18: 0.5609008404 | AL18: 0.785949 | AO18: 9.487039737
A19: 2041 | B19: 110 | D19: =VLOOKUP(B19,Lookups!A:B,2) -> 4612.238145 | E19: =VLOOKUP(B19,Lookups!A:C,3) -> 2128.40628 | G19: =VLOOKUP(B19,Lookups!A:D,4) -> 8039.70144 | H19: =VLOOKUP(B19,Lookups!A:E,5) -> 5299.56576 | J19: =VLOOKUP(A19,Trends!$A$3:$Q$94,IF(ExFlg=0,2,10))+Sens -> 1.042 | K19: 2.037451147 | L19: =VLOOKUP(A19,Trends!$A$3:$Q$94,IF(ExFlg=0,4,12))+Sens -> 1.041 | M19: 2.02772504 | N19: =VLOOKUP(A19,Trends!$A$3:$Z$94,IF(ExFlg=0,19,23))+Sens -> 1.042 | O19: 2.181747308 | P19: =VLOOKUP(A19,Trends!$A$3:$Q$94,IF(ExFlg=0,6,14))+Sens -> 1.042 | Q19: 2.070698442 | R19: =VLOOKUP(A19,Trends!$A$3:$Q$94,IF(ExFlg=0,8,16))+Sens -> 1.041 | S19: 2.15425326 | T19: =VLOOKUP(A19,Trends!$A$3:$Z$94,IF(ExFlg=0,21,25))+Sens -> 1.042 | U19: 2.326365893 | W19: 9352.350777 | X19: 4643.644671 | Y19: 4708.706106 | AA19: 17319.55304 | AB19: 12328.72903 | AC19: 4990.824003 | AE19: 4920.294529 | AG19: =IF($B19<121,VLOOKUP($B19,Lookups!A:I,8)*(1-VLOOKUP($B19,Lookups!$U$3:$W$103,2))^(B19-$B$3),"") -> 0.4684548335 | AH19: =IF($B19<121,VLOOKUP($B19,Lookups!A:I,9)*(1-VLOOKUP($B19,Lookups!$U$3:$W$103,3))^(B19-$B$3),"") -> 0.4563222625 | AI19: 0.462388548 | AJ19: 0.002516985754 | AK19: 0.5396909847 | AL19: 0.778754 | AO19: 5.204958987
A20: 2042 | B20: 111 | D20: =VLOOKUP(B20,Lookups!A:B,2) -> 4612.238145 | E20: =VLOOKUP(B20,Lookups!A:C,3) -> 2128.40628 | G20: =VLOOKUP(B20,Lookups!A:D,4) -> 8039.70144 | H20: =VLOOKUP(B20,Lookups!A:E,5) -> 5299.56576 | J20: =VLOOKUP(A20,Trends!$A$3:$Q$94,IF(ExFlg=0,2,10))+Sens -> 1.042 | K20: 2.123024095 | L20: =VLOOKUP(A20,Trends!$A$3:$Q$94,IF(ExFlg=0,4,12))+Sens -> 1.041 | M20: 2.110861767 | N20: =VLOOKUP(A20,Trends!$A$3:$Z$94,IF(ExFlg=0,19,23))+Sens -> 1.042 | O20: 2.273380695 | P20: =VLOOKUP(A20,Trends!$A$3:$Q$94,IF(ExFlg=0,6,14))+Sens -> 1.042 | Q20: 2.157667777 | R20: =VLOOKUP(A20,Trends!$A$3:$Q$94,IF(ExFlg=0,8,16))+Sens -> 1.041 | S20: 2.242577644 | T20: =VLOOKUP(A20,Trends!$A$3:$Z$94,IF(ExFlg=0,21,25))+Sens -> 1.042 | U20: 2.424073261 | W20: 9735.797159 | X20: 4838.677748 | Y20: 4897.119411 | AA20: 18029.65471 | AB20: 12846.53565 | AC20: 5183.119058 | AE20: 5111.619147 | AG20: =IF($B20<121,VLOOKUP($B20,Lookups!A:I,8)*(1-VLOOKUP($B20,Lookups!$U$3:$W$103,2))^(B20-$B$3),"") -> 0.4735050676 | AH20: =IF($B20<121,VLOOKUP($B20,Lookups!A:I,9)*(1-VLOOKUP($B20,Lookups!$U$3:$W$103,3))^(B20-$B$3),"") -> 0.4735050676 | AI20: 0.4735050676 | AJ20: 0.001353160366 | AK20: 0.5192831566 | AL20: 0.773852 | AO20: 2.779520635
A21: 2043 | B21: 112 | D21: =VLOOKUP(B21,Lookups!A:B,2) -> 4612.238145 | E21: =VLOOKUP(B21,Lookups!A:C,3) -> 2128.40628 | G21: =VLOOKUP(B21,Lookups!A:D,4) -> 8039.70144 | H21: =VLOOKUP(B21,Lookups!A:E,5) -> 5299.56576 | J21: =VLOOKUP(A21,Trends!$A$3:$Q$94,IF(ExFlg=0,2,10))+Sens -> 1.042 | K21: 2.212191107 | L21: =VLOOKUP(A21,Trends!$A$3:$Q$94,IF(ExFlg=0,4,12))+Sens -> 1.041 | M21: 2.197407099 | N21: =VLOOKUP(A21,Trends!$A$3:$Z$94,IF(ExFlg=0,19,23))+Sens -> 1.042 | O21: 2.368862684 | P21: =VLOOKUP(A21,Trends!$A$3:$Q$94,IF(ExFlg=0,6,14))+Sens -> 1.042 | Q21: 2.248289824 | R21: =VLOOKUP(A21,Trends!$A$3:$Q$94,IF(ExFlg=0,8,16))+Sens -> 1.041 | S21: 2.334523327 | T21: =VLOOKUP(A21,Trends!$A$3:$Z$94,IF(ExFlg=0,21,25))+Sens -> 1.042 | U21: 2.525884338 | W21: 10134.96484 | X21: 5041.902213 | Y21: 5093.06263 | AA21: 18768.87055 | AB21: 13386.09015 | AC21: 5382.780404 | AE21: 5310.35096 | AG21: =IF($B21<121,VLOOKUP($B21,Lookups!A:I,8)*(1-VLOOKUP($B21,Lookups!$U$3:$W$103,2))^(B21-$B$3),"") -> 0.4789897401 | AH21: =IF($B21<121,VLOOKUP($B21,Lookups!A:I,9)*(1-VLOOKUP($B21,Lookups!$U$3:$W$103,3))^(B21-$B$3),"") -> 0.4789897401 | AI21: 0.4789897401 | AJ21: 0.0007124320755 | AK21: 0.4996470284 | AL21: 0.771433 | AO21: 1.458237326
A22: 2044 | B22: 113 | D22: =VLOOKUP(B22,Lookups!A:B,2) -> 4612.238145 | E22: =VLOOKUP(B22,Lookups!A:C,3) -> 2128.40628 | G22: =VLOOKUP(B22,Lookups!A:D,4) -> 8039.70144 | H22: =VLOOKUP(B22,Lookups!A:E,5) -> 5299.56576 | J22: =VLOOKUP(A22,Trends!$A$3:$Q$94,IF(ExFlg=0,2,10))+Sens -> 1.042 | K22: 2.305103133 | L22: =VLOOKUP(A22,Trends!$A$3:$Q$94,IF(ExFlg=0,4,12))+Sens -> 1.041 | M22: 2.28750079 | N22: =VLOOKUP(A22,Trends!$A$3:$Z$94,IF(ExFlg=0,19,23))+Sens -> 1.042 | O22: 2.468354917 | P22: =VLOOKUP(A22,Trends!$A$3:$Q$94,IF(ExFlg=0,6,14))+Sens -> 1.042 | Q22: 2.342717996 | R22: =VLOOKUP(A22,Trends!$A$3:$Q$94,IF(ExFlg=0,8,16))+Sens -> 1.041 | S22: 2.430238784 | T22: =VLOOKUP(A22,Trends!$A$3:$Z$94,IF(ExFlg=0,21,25))+Sens -> 1.042 | U22: 2.63197148 | W22: 10550.4984 | X22: 5253.662106 | Y22: 5296.836295 | AA22: 19538.39425 | AB22: 13948.30594 | AC22: 5590.08831 | AE22: 5516.775307 | AG22: =IF($B22<121,VLOOKUP($B22,Lookups!A:I,8)*(1-VLOOKUP($B22,Lookups!$U$3:$W$103,2))^(B22-$B$3),"") -> 0.4849253114 | AH22: =IF($B22<121,VLOOKUP($B22,Lookups!A:I,9)*(1-VLOOKUP($B22,Lookups!$U$3:$W$103,3))^(B22-$B$3),"") -> 0.4849253114 | AI22: 0.4849253114 | AJ22: 0.0003711844208 | AK22: 0.480753419 | AL22: 0.768816 | AO22: 0.7568674535
A23: 2045 | B23: 114 | D23: =VLOOKUP(B23,Lookups!A:B,2) -> 4612.238145 | E23: =VLOOKUP(B23,Lookups!A:C,3) -> 2128.40628 | G23: =VLOOKUP(B23,Lookups!A:D,4) -> 8039.70144 | H23: =VLOOKUP(B23,Lookups!A:E,5) -> 5299.56576 | J23: =VLOOKUP(A23,Trends!$A$3:$Q$94,IF(ExFlg=0,2,10))+Sens -> 1.042 | K23: 2.401917465 | L23: =VLOOKUP(A23,Trends!$A$3:$Q$94,IF(ExFlg=0,4,12))+Sens -> 1.041 | M23: 2.381288323 | N23: =VLOOKUP(A23,Trends!$A$3:$Z$94,IF(ExFlg=0,19,23))+Sens -> 1.042 | O23: 2.572025823 | P23: =VLOOKUP(A23,Trends!$A$3:$Q$94,IF(ExFlg=0,6,14))+Sens -> 1.042 | Q23: 2.441112152 | R23: =VLOOKUP(A23,Trends!$A$3:$Q$94,IF(ExFlg=0,8,16))+Sens -> 1.041 | S23: 2.529878574 | T23: =VLOOKUP(A23,Trends!$A$3:$Z$94,IF(ExFlg=0,21,25))+Sens -> 1.042 | U23: 2.742514282 | W23: 10983.06884 | X23: 5474.315914 | Y23: 5508.752921 | AA23: 20339.46841 | AB23: 14534.13479 | AC23: 5805.333625 | AE23: 5731.188449 | AG23: =IF($B23<121,VLOOKUP($B23,Lookups!A:I,8)*(1-VLOOKUP($B23,Lookups!$U$3:$W$103,2))^(B23-$B$3),"") -> 0.4930471251 | AH23: =IF($B23<121,VLOOKUP($B23,Lookups!A:I,9)*(1-VLOOKUP($B23,Lookups!$U$3:$W$103,3))^(B23-$B$3),"") -> 0.4930471251 | AI23: 0.4930471251 | AJ23: 0.0001911877 | AK23: 0.462574251 | AL23: 0.765234 | AO23: 0.3878647838
A24: 2046 | B24: 115 | D24: =VLOOKUP(B24,Lookups!A:B,2) -> 4612.238145 | E24: =VLOOKUP(B24,Lookups!A:C,3) -> 2128.40628 | G24: =VLOOKUP(B24,Lookups!A:D,4) -> 8039.70144 | H24: =VLOOKUP(B24,Lookups!A:E,5) -> 5299.56576 | J24: =VLOOKUP(A24,Trends!$A$3:$Q$94,IF(ExFlg=0,2,10))+Sens -> 1.042 | K24: 2.502797998 | L24: =VLOOKUP(A24,Trends!$A$3:$Q$94,IF(ExFlg=0,4,12))+Sens -> 1.041 | M24: 2.478921144 | N24: =VLOOKUP(A24,Trends!$A$3:$Z$94,IF(ExFlg=0,19,23))+Sens -> 1.042 | O24: 2.680050908 | P24: =VLOOKUP(A24,Trends!$A$3:$Q$94,IF(ExFlg=0,6,14))+Sens -> 1.042 | Q24: 2.543638863 | R24: =VLOOKUP(A24,Trends!$A$3:$Q$94,IF(ExFlg=0,8,16))+Sens -> 1.041 | S24: 2.633603595 | T24: =VLOOKUP(A24,Trends!$A$3:$Z$94,IF(ExFlg=0,21,25))+Sens -> 1.042 | U24: 2.857699882 | W24: 11433.37466 | X24: 5704.237183 | Y24: 5729.137475 | AA24: 21173.38662 | AB24: 15144.56845 | AC24: 6028.818169 | AE24: 5953.897995 | AG24: =IF($B24<121,VLOOKUP($B24,Lookups!A:I,8)*(1-VLOOKUP($B24,Lookups!$U$3:$W$103,2))^(B24-$B$3),"") -> 0.5 | AH24: =IF($B24<121,VLOOKUP($B24,Lookups!A:I,9)*(1-VLOOKUP($B24,Lookups!$U$3:$W$103,3))^(B24-$B$3),"") -> 0.5 | AI24: 0.5 | AJ24: 9.692315414e-05 | AK24: 0.4450825084 | AL24: 0.762168 | AO24: 0.1957582917
A25: 2047 | B25: 116 | D25: =VLOOKUP(B25,Lookups!A:B,2) -> 4612.238145 | E25: =VLOOKUP(B25,Lookups!A:C,3) -> 2128.40628 | G25: =VLOOKUP(B25,Lookups!A:D,4) -> 8039.70144 | H25: =VLOOKUP(B25,Lookups!A:E,5) -> 5299.56576 | J25: =VLOOKUP(A25,Trends!$A$3:$Q$94,IF(ExFlg=0,2,10))+Sens -> 1.042 | K25: 2.607915514 | L25: =VLOOKUP(A25,Trends!$A$3:$Q$94,IF(ExFlg=0,4,12))+Sens -> 1.041 | M25: 2.580556911 | N25: =VLOOKUP(A25,Trends!$A$3:$Z$94,IF(ExFlg=0,19,23))+Sens -> 1.042 | O25: 2.792613046 | P25: =VLOOKUP(A25,Trends!$A$3:$Q$94,IF(ExFlg=0,6,14))+Sens -> 1.042 | Q25: 2.650471695 | R25: =VLOOKUP(A25,Trends!$A$3:$Q$94,IF(ExFlg=0,8,16))+Sens -> 1.041 | S25: 2.741581343 | T25: =VLOOKUP(A25,Trends!$A$3:$Z$94,IF(ExFlg=0,21,25))+Sens -> 1.042 | U25: 2.977723277 | W25: 11902.14302 | X25: 5943.815144 | Y25: 5958.327874 | AA25: 22041.49547 | AB25: 15780.64032 | AC25: 6260.855145 | AE25: 6185.223328 | AG25: =IF($B25<121,VLOOKUP($B25,Lookups!A:I,8)*(1-VLOOKUP($B25,Lookups!$U$3:$W$103,2))^(B25-$B$3),"") -> 0.5 | AH25: =IF($B25<121,VLOOKUP($B25,Lookups!A:I,9)*(1-VLOOKUP($B25,Lookups!$U$3:$W$103,3))^(B25-$B$3),"") -> 0.5 | AI25: 0.5 | AJ25: 4.846157707e-05 | AK25: 0.4282521971 | AL25: 0.762168 | AO25: 0.09783702509
A26: 2048 | B26: 117 | D26: =VLOOKUP(B26,Lookups!A:B,2) -> 4612.238145 | E26: =VLOOKUP(B26,Lookups!A:C,3) -> 2128.40628 | G26: =VLOOKUP(B26,Lookups!A:D,4) -> 8039.70144 | H26: =VLOOKUP(B26,Lookups!A:E,5) -> 5299.56576 | J26: =VLOOKUP(A26,Trends!$A$3:$Q$94,IF(ExFlg=0,2,10))+Sens -> 1.042 | K26: 2.717447966 | L26: =VLOOKUP(A26,Trends!$A$3:$Q$94,IF(ExFlg=0,4,12))+Sens -> 1.041 | M26: 2.686359744 | N26: =VLOOKUP(A26,Trends!$A$3:$Z$94,IF(ExFlg=0,19,23))+Sens -> 1.042 | O26: 2.909902794 | P26: =VLOOKUP(A26,Trends!$A$3:$Q$94,IF(ExFlg=0,6,14))+Sens -> 1.042 | Q26: 2.761791506 | R26: =VLOOKUP(A26,Trends!$A$3:$Q$94,IF(ExFlg=0,8,16))+Sens -> 1.041 | S26: 2.853986178 | T26: =VLOOKUP(A26,Trends!$A$3:$Z$94,IF(ExFlg=0,21,25))+Sens -> 1.042 | U26: 3.102787655 | W26: 12390.13088 | X26: 6193.455381 | Y26: 6196.675502 | AA26: 22945.19678 | AB26: 16443.42722 | AC26: 6501.769566 | AE26: 6425.49605 | AG26: =IF($B26<121,VLOOKUP($B26,Lookups!A:I,8)*(1-VLOOKUP($B26,Lookups!$U$3:$W$103,2))^(B26-$B$3),"") -> 0.5 | AH26: =IF($B26<121,VLOOKUP($B26,Lookups!A:I,9)*(1-VLOOKUP($B26,Lookups!$U$3:$W$103,3))^(B26-$B$3),"") -> 0.5 | AI26: 0.5 | AJ26: 2.423078853e-05 | AK26: 0.4120583056 | AL26: 0.762168 | AO26: 0.04889715505
A27: 2049 | B27: 118 | D27: =VLOOKUP(B27,Lookups!A:B,2) -> 4612.238145 | E27: =VLOOKUP(B27,Lookups!A:C,3) -> 2128.40628 | G27: =VLOOKUP(B27,Lookups!A:D,4) -> 8039.70144 | H27: =VLOOKUP(B27,Lookups!A:E,5) -> 5299.56576 | J27: =VLOOKUP(A27,Trends!$A$3:$Q$94,IF(ExFlg=0,2,10))+Sens -> 1.042 | K27: 2.83158078 | L27: =VLOOKUP(A27,Trends!$A$3:$Q$94,IF(ExFlg=0,4,12))+Sens -> 1.041 | M27: 2.796500494 | N27: =VLOOKUP(A27,Trends!$A$3:$Z$94,IF(ExFlg=0,19,23))+Sens -> 1.042 | O27: 3.032118711 | P27: =VLOOKUP(A27,Trends!$A$3:$Q$94,IF(ExFlg=0,6,14))+Sens -> 1.042 | Q27: 2.877786749 | R27: =VLOOKUP(A27,Trends!$A$3:$Q$94,IF(ExFlg=0,8,16))+Sens -> 1.041 | S27: 2.970999611 | T27: =VLOOKUP(A27,Trends!$A$3:$Z$94,IF(ExFlg=0,21,25))+Sens -> 1.042 | U27: 3.233104736 | W27: 12898.12625 | X27: 6453.580507 | Y27: 6444.545742 | AA27: 23885.94985 | AB27: 17134.05116 | AC27: 6751.898691 | AE27: 6675.060454 | AG27: =IF($B27<121,VLOOKUP($B27,Lookups!A:I,8)*(1-VLOOKUP($B27,Lookups!$U$3:$W$103,2))^(B27-$B$3),"") -> 0.5 | AH27: =IF($B27<121,VLOOKUP($B27,Lookups!A:I,9)*(1-VLOOKUP($B27,Lookups!$U$3:$W$103,3))^(B27-$B$3),"") -> 0.5 | AI27: 0.5 | AJ27: 1.211539427e-05 | AK27: 0.3964767686 | AL27: 0.762168 | AO27: 0.02443774963
A28: 2050 | B28: 119 | D28: =VLOOKUP(B28,Lookups!A:B,2) -> 4612.238145 | E28: =VLOOKUP(B28,Lookups!A:C,3) -> 2128.40628 | G28: =VLOOKUP(B28,Lookups!A:D,4) -> 8039.70144 | H28: =VLOOKUP(B28,Lookups!A:E,5) -> 5299.56576 | J28: =VLOOKUP(A28,Trends!$A$3:$Q$94,IF(ExFlg=0,2,10))+Sens -> 1.042 | K28: 2.950507173 | L28: =VLOOKUP(A28,Trends!$A$3:$Q$94,IF(ExFlg=0,4,12))+Sens -> 1.042 | M28: 2.911157014 | N28: =VLOOKUP(A28,Trends!$A$3:$Z$94,IF(ExFlg=0,19,23))+Sens -> 1.043 | O28: 3.159467697 | P28: =VLOOKUP(A28,Trends!$A$3:$Q$94,IF(ExFlg=0,6,14))+Sens -> 1.042 | Q28: 2.998653793 | R28: =VLOOKUP(A28,Trends!$A$3:$Q$94,IF(ExFlg=0,8,16))+Sens -> 1.041 | S28: 3.092810595 | T28: =VLOOKUP(A28,Trends!$A$3:$Z$94,IF(ExFlg=0,21,25))+Sens -> 1.042 | U28: 3.368895135 | W28: 13426.94942 | X28: 6724.630888 | Y28: 6702.318537 | AA28: 24865.27379 | AB28: 17853.68131 | AC28: 7011.592486 | AE28: 6934.273999 | AG28: =IF($B28<121,VLOOKUP($B28,Lookups!A:I,8)*(1-VLOOKUP($B28,Lookups!$U$3:$W$103,2))^(B28-$B$3),"") -> 0.5 | AH28: =IF($B28<121,VLOOKUP($B28,Lookups!A:I,9)*(1-VLOOKUP($B28,Lookups!$U$3:$W$103,3))^(B28-$B$3),"") -> 0.5 | AI28: 0.5 | AJ28: 6.057697134e-06 | AK28: 0.3814844305 | AL28: 0.762168 | AO28: 0.012213386
A29: 2051 | B29: 120 | D29: =VLOOKUP(B29,Lookups!A:B,2) -> 4612.238145 | E29: =VLOOKUP(B29,Lookups!A:C,3) -> 2128.40628 | G29: =VLOOKUP(B29,Lookups!A:D,4) -> 8039.70144 | H29: =VLOOKUP(B29,Lookups!A:E,5) -> 5299.56576 | J29: =VLOOKUP(A29,Trends!$A$3:$Q$94,IF(ExFlg=0,2,10))+Sens -> 1.042 | K29: 3.074428475 | L29: =VLOOKUP(A29,Trends!$A$3:$Q$94,IF(ExFlg=0,4,12))+Sens -> 1.042 | M29: 3.033425608 | N29: =VLOOKUP(A29,Trends!$A$3:$Z$94,IF(ExFlg=0,19,23))+Sens -> 1.043 | O29: 3.295324808 | P29: =VLOOKUP(A29,Trends!$A$3:$Q$94,IF(ExFlg=0,6,14))+Sens -> 1.042 | Q29: 3.124597252 | R29: =VLOOKUP(A29,Trends!$A$3:$Q$94,IF(ExFlg=0,8,16))+Sens -> 1.041 | S29: 3.219615829 | T29: =VLOOKUP(A29,Trends!$A$3:$Z$94,IF(ExFlg=0,21,25))+Sens -> 1.042 | U29: 3.510388731 | W29: 13990.8813 | X29: 7013.790016 | Y29: 6977.091285 | AA29: 25884.75002 | AB29: 18603.53592 | AC29: 7281.214097 | AE29: 7205.183394 | AG29: =IF($B29<121,VLOOKUP($B29,Lookups!A:I,8)*(1-VLOOKUP($B29,Lookups!$U$3:$W$103,2))^(B29-$B$3),"") -> 1 | AH29: =IF($B29<121,VLOOKUP($B29,Lookups!A:I,9)*(1-VLOOKUP($B29,Lookups!$U$3:$W$103,3))^(B29-$B$3),"") -> 1 | AI29: 1 | AJ29: 3.028848567e-06 | AK29: 0.3670590114 | AL29: 0.541667 | AO29: 0.004339012171
A30: 2052 | B30: 121 | D30: =VLOOKUP(B30,Lookups!A:B,2) -> 4612.238145 | E30: =VLOOKUP(B30,Lookups!A:C,3) -> 2128.40628 | G30: =VLOOKUP(B30,Lookups!A:D,4) -> 8039.70144 | H30: =VLOOKUP(B30,Lookups!A:E,5) -> 5299.56576 | J30: =VLOOKUP(A30,Trends!$A$3:$Q$94,IF(ExFlg=0,2,10))+Sens -> 1.042 | K30: 3.20355447 | L30: =VLOOKUP(A30,Trends!$A$3:$Q$94,IF(ExFlg=0,4,12))+Sens -> 1.042 | M30: 3.160829484 | N30: =VLOOKUP(A30,Trends!$A$3:$Z$94,IF(ExFlg=0,19,23))+Sens -> 1.043 | O30: 3.437023775 | P30: =VLOOKUP(A30,Trends!$A$3:$Q$94,IF(ExFlg=0,6,14))+Sens -> 1.042 | Q30: 3.255830337 | R30: =VLOOKUP(A30,Trends!$A$3:$Q$94,IF(ExFlg=0,8,16))+Sens -> 1.042 | S30: 3.351620078 | T30: =VLOOKUP(A30,Trends!$A$3:$Z$94,IF(ExFlg=0,21,25))+Sens -> 1.043 | U30: 3.657825058 | W30: 14578.49832 | X30: 7315.382987 | Y30: 7263.115329 | AA30: 26946.02477 | AB30: 19384.88443 | AC30: 7561.140339 | AE30: 7486.634086 | AG30: =IF($B30<121,VLOOKUP($B30,Lookups!A:I,8)*(1-VLOOKUP($B30,Lookups!$U$3:$W$103,2))^(B30-$B$3),"") ->  | AH30: =IF($B30<121,VLOOKUP($B30,Lookups!A:I,9)*(1-VLOOKUP($B30,Lookups!$U$3:$W$103,3))^(B30-$B$3),"") -> 
A31: 2053 | B31: 122 | D31: =VLOOKUP(B31,Lookups!A:B,2) -> 4612.238145 | E31: =VLOOKUP(B31,Lookups!A:C,3) -> 2128.40628 | G31: =VLOOKUP(B31,Lookups!A:D,4) -> 8039.70144 | H31: =VLOOKUP(B31,Lookups!A:E,5) -> 5299.56576 | J31: =VLOOKUP(A31,Trends!$A$3:$Q$94,IF(ExFlg=0,2,10))+Sens -> 1.042 | K31: 3.338103758 | L31: =VLOOKUP(A31,Trends!$A$3:$Q$94,IF(ExFlg=0,4,12))+Sens -> 1.042 | M31: 3.293584322 | N31: =VLOOKUP(A31,Trends!$A$3:$Z$94,IF(ExFlg=0,19,23))+Sens -> 1.043 | O31: 3.584815797 | P31: =VLOOKUP(A31,Trends!$A$3:$Q$94,IF(ExFlg=0,6,14))+Sens -> 1.042 | Q31: 3.392575211 | R31: =VLOOKUP(A31,Trends!$A$3:$Q$94,IF(ExFlg=0,8,16))+Sens -> 1.042 | S31: 3.492388122 | T31: =VLOOKUP(A31,Trends!$A$3:$Z$94,IF(ExFlg=0,21,25))+Sens -> 1.043 | U31: 3.815111535 | W31: 15190.79524 | X31: 7629.944455 | Y31: 7560.85079 | AA31: 28077.75781 | AB31: 20218.43446 | AC31: 7859.323349 | AE31: 7784.705209 | AG31: =IF($B31<121,VLOOKUP($B31,Lookups!A:I,8)*(1-VLOOKUP($B31,Lookups!$U$3:$W$103,2))^(B31-$B$3),"") ->  | AH31: =IF($B31<121,VLOOKUP($B31,Lookups!A:I,9)*(1-VLOOKUP($B31,Lookups!$U$3:$W$103,3))^(B31-$B$3),"") -> 
A32: 2054 | B32: 123 | D32: =VLOOKUP(B32,Lookups!A:B,2) -> 4612.238145 | E32: =VLOOKUP(B32,Lookups!A:C,3) -> 2128.40628 | G32: =VLOOKUP(B32,Lookups!A:D,4) -> 8039.70144 | H32: =VLOOKUP(B32,Lookups!A:E,5) -> 5299.56576 | J32: =VLOOKUP(A32,Trends!$A$3:$Q$94,IF(ExFlg=0,2,10))+Sens -> 1.042 | K32: 3.478304116 | L32: =VLOOKUP(A32,Trends!$A$3:$Q$94,IF(ExFlg=0,4,12))+Sens -> 1.042 | M32: 3.431914864 | N32: =VLOOKUP(A32,Trends!$A$3:$Z$94,IF(ExFlg=0,19,23))+Sens -> 1.043 | O32: 3.738962876 | P32: =VLOOKUP(A32,Trends!$A$3:$Q$94,IF(ExFlg=0,6,14))+Sens -> 1.042 | Q32: 3.535063369 | R32: =VLOOKUP(A32,Trends!$A$3:$Q$94,IF(ExFlg=0,8,16))+Sens -> 1.042 | S32: 3.639068423 | T32: =VLOOKUP(A32,Trends!$A$3:$Z$94,IF(ExFlg=0,21,25))+Sens -> 1.043 | U32: 3.979161331 | W32: 15828.80864 | X32: 7958.032067 | Y32: 7870.776578 | AA32: 29257.02364 | AB32: 21087.82714 | AC32: 8169.196495 | AE32: 8094.591516 | AG32: =IF($B32<121,VLOOKUP($B32,Lookups!A:I,8)*(1-VLOOKUP($B32,Lookups!$U$3:$W$103,2))^(B32-$B$3),"") ->  | AH32: =IF($B32<121,VLOOKUP($B32,Lookups!A:I,9)*(1-VLOOKUP($B32,Lookups!$U$3:$W$103,3))^(B32-$B$3),"") -> 
A33: 2055 | B33: 124 | D33: =VLOOKUP(B33,Lookups!A:B,2) -> 4612.238145 | E33: =VLOOKUP(B33,Lookups!A:C,3) -> 2128.40628 | G33: =VLOOKUP(B33,Lookups!A:D,4) -> 8039.70144 | H33: =VLOOKUP(B33,Lookups!A:E,5) -> 5299.56576 | J33: =VLOOKUP(A33,Trends!$A$3:$Q$94,IF(ExFlg=0,2,10))+Sens -> 1.042 | K33: 3.624392889 | L33: =VLOOKUP(A33,Trends!$A$3:$Q$94,IF(ExFlg=0,4,12))+Sens -> 1.042 | M33: 3.576055288 | N33: =VLOOKUP(A33,Trends!$A$3:$Z$94,IF(ExFlg=0,19,23))+Sens -> 1.043 | O33: 3.89973828 | P33: =VLOOKUP(A33,Trends!$A$3:$Q$94,IF(ExFlg=0,6,14))+Sens -> 1.042 | Q33: 3.683536031 | R33: =VLOOKUP(A33,Trends!$A$3:$Q$94,IF(ExFlg=0,8,16))+Sens -> 1.042 | S33: 3.791909297 | T33: =VLOOKUP(A33,Trends!$A$3:$Z$94,IF(ExFlg=0,21,25))+Sens -> 1.043 | U33: 4.150265268 | W33: 16493.61861 | X33: 8300.227446 | Y33: 8193.391162 | AA33: 30485.81863 | AB33: 21994.60371 | AC33: 8491.214921 | AE33: 8416.758981 | AG33: =IF($B33<121,VLOOKUP($B33,Lookups!A:I,8)*(1-VLOOKUP($B33,Lookups!$U$3:$W$103,2))^(B33-$B$3),"") ->  | AH33: =IF($B33<121,VLOOKUP($B33,Lookups!A:I,9)*(1-VLOOKUP($B33,Lookups!$U$3:$W$103,3))^(B33-$B$3),"") -> 
A34: 2056 | B34: 125 | D34: =VLOOKUP(B34,Lookups!A:B,2) -> 4612.238145 | E34: =VLOOKUP(B34,Lookups!A:C,3) -> 2128.40628 | G34: =VLOOKUP(B34,Lookups!A:D,4) -> 8039.70144 | H34: =VLOOKUP(B34,Lookups!A:E,5) -> 5299.56576 | J34: =VLOOKUP(A34,Trends!$A$3:$Q$94,IF(ExFlg=0,2,10))+Sens -> 1.042 | K34: 3.77661739 | L34: =VLOOKUP(A34,Trends!$A$3:$Q$94,IF(ExFlg=0,4,12))+Sens -> 1.042 | M34: 3.72624961 | N34: =VLOOKUP(A34,Trends!$A$3:$Z$94,IF(ExFlg=0,19,23))+Sens -> 1.042 | O34: 4.067427026 | P34: =VLOOKUP(A34,Trends!$A$3:$Q$94,IF(ExFlg=0,6,14))+Sens -> 1.042 | Q34: 3.838244544 | R34: =VLOOKUP(A34,Trends!$A$3:$Q$94,IF(ExFlg=0,8,16))+Sens -> 1.042 | S34: 3.951169487 | T34: =VLOOKUP(A34,Trends!$A$3:$Z$94,IF(ExFlg=0,21,25))+Sens -> 1.042 | U34: 4.328726675 | W34: 17186.35059 | X34: 8657.137226 | Y34: 8529.213364 | AA34: 31766.22301 | AB34: 22940.37167 | AC34: 8825.851344 | AE34: 8751.691849 | AG34: =IF($B34<121,VLOOKUP($B34,Lookups!A:I,8)*(1-VLOOKUP($B34,Lookups!$U$3:$W$103,2))^(B34-$B$3),"") ->  | AH34: =IF($B34<121,VLOOKUP($B34,Lookups!A:I,9)*(1-VLOOKUP($B34,Lookups!$U$3:$W$103,3))^(B34-$B$3),"") -> 
A35: 2057 | B35: 126 | D35: =VLOOKUP(B35,Lookups!A:B,2) -> 4612.238145 | E35: =VLOOKUP(B35,Lookups!A:C,3) -> 2128.40628 | G35: =VLOOKUP(B35,Lookups!A:D,4) -> 8039.70144 | H35: =VLOOKUP(B35,Lookups!A:E,5) -> 5299.56576 | J35: =VLOOKUP(A35,Trends!$A$3:$Q$94,IF(ExFlg=0,2,10))+Sens -> 1.042 | K35: 3.935235321 | L35: =VLOOKUP(A35,Trends!$A$3:$Q$94,IF(ExFlg=0,4,12))+Sens -> 1.042 | M35: 3.882752094 | N35: =VLOOKUP(A35,Trends!$A$3:$Z$94,IF(ExFlg=0,19,23))+Sens -> 1.042 | O35: 4.238258961 | P35: =VLOOKUP(A35,Trends!$A$3:$Q$94,IF(ExFlg=0,6,14))+Sens -> 1.042 | Q35: 3.999450815 | R35: =VLOOKUP(A35,Trends!$A$3:$Q$94,IF(ExFlg=0,8,16))+Sens -> 1.042 | S35: 4.117118605 | T35: =VLOOKUP(A35,Trends!$A$3:$Z$94,IF(ExFlg=0,21,25))+Sens -> 1.042 | U35: 4.510533195 | W35: =IF(B35<65,D35*K35,D35*M35) -> 17908.17731 | X35: 9020.736989 | Y35: =W35-X35 -> 8887.440325 | AA35: =IF(B35<65,G35*Q35,G35*S35) -> 33100.40438 | AB35: 23903.86728 | AC35: =AA35-AB35 -> 9196.5371 | AE35: =(1-PctUMP)*Y35+PctUMP*AC35 -> 9119.262906 | AG35: =IF($B35<121,VLOOKUP($B35,Lookups!A:I,8)*(1-VLOOKUP($B35,Lookups!$U$3:$W$103,2))^(B35-$B$3),"") ->  | AH35: =IF($B35<121,VLOOKUP($B35,Lookups!A:I,9)*(1-VLOOKUP($B35,Lookups!$U$3:$W$103,3))^(B35-$B$3),"") ->  | AI35: =IF(B35<121,(PCTMALE*AG35+(1-PCTMALE)*AH35),"") ->  | AL35: =IF(AI35="","",ROUND((13/24)+(11/24)*(1/(1+IntRt))*(1-AI35),6)) ->  | AN35: =IF(B35<65,AE35*AJ35*AK35*AL35,"") -> 
A36: =1+A35 -> 2058 | B36: =1+B35 -> 127 | D36: =VLOOKUP(B36,Lookups!A:B,2) -> 4612.238145 | E36: =VLOOKUP(B36,Lookups!A:C,3) -> 2128.40628 | G36: =VLOOKUP(B36,Lookups!A:D,4) -> 8039.70144 | H36: =VLOOKUP(B36,Lookups!A:E,5) -> 5299.56576 | J36: =VLOOKUP(A36,Trends!$A$3:$Q$94,IF(ExFlg=0,2,10))+Sens -> 1.042 | K36: 4.100515204 | L36: =VLOOKUP(A36,Trends!$A$3:$Q$94,IF(ExFlg=0,4,12))+Sens -> 1.042 | M36: 4.045827682 | N36: =VLOOKUP(A36,Trends!$A$3:$Z$94,IF(ExFlg=0,19,23))+Sens -> 1.042 | O36: 4.416265838 | P36: =VLOOKUP(A36,Trends!$A$3:$Q$94,IF(ExFlg=0,6,14))+Sens -> 1.042 | Q36: 4.167427749 | R36: =VLOOKUP(A36,Trends!$A$3:$Q$94,IF(ExFlg=0,8,16))+Sens -> 1.042 | S36: 4.290037587 | T36: =VLOOKUP(A36,Trends!$A$3:$Z$94,IF(ExFlg=0,21,25))+Sens -> 1.042 | U36: 4.699975589 | W36: 18660.32076 | X36: 9399.607943 | Y36: 9260.712819 | AA36: 34490.62136 | AB36: 24907.82971 | AC36: 9582.791658 | AE36: 9502.271948 | AG36: =IF($B36<121,VLOOKUP($B36,Lookups!A:I,8)*(1-VLOOKUP($B36,Lookups!$U$3:$W$103,2))^(B36-$B$3),"") ->  | AH36: =IF($B36<121,VLOOKUP($B36,Lookups!A:I,9)*(1-VLOOKUP($B36,Lookups!$U$3:$W$103,3))^(B36-$B$3),"") ->  | AK36: =IF(B36<121,AK35/(1+IntRt),"") -> 
A37: 2059 | B37: 128 | D37: =VLOOKUP(B37,Lookups!A:B,2) -> 4612.238145 | E37: =VLOOKUP(B37,Lookups!A:C,3) -> 2128.40628 | G37: =VLOOKUP(B37,Lookups!A:D,4) -> 8039.70144 | H37: =VLOOKUP(B37,Lookups!A:E,5) -> 5299.56576 | J37: =VLOOKUP(A37,Trends!$A$3:$Q$94,IF(ExFlg=0,2,10))+Sens -> 1.042 | K37: 4.272736843 | L37: =VLOOKUP(A37,Trends!$A$3:$Q$94,IF(ExFlg=0,4,12))+Sens -> 1.042 | M37: 4.215752444 | N37: =VLOOKUP(A37,Trends!$A$3:$Z$94,IF(ExFlg=0,19,23))+Sens -> 1.042 | O37: 4.601749003 | P37: =VLOOKUP(A37,Trends!$A$3:$Q$94,IF(ExFlg=0,6,14))+Sens -> 1.042 | Q37: 4.342459715 | R37: =VLOOKUP(A37,Trends!$A$3:$Q$94,IF(ExFlg=0,8,16))+Sens -> 1.042 | S37: 4.470219166 | T37: =VLOOKUP(A37,Trends!$A$3:$Z$94,IF(ExFlg=0,21,25))+Sens -> 1.042 | U37: 4.897374564 | W37: 19444.05423 | X37: 9794.391476 | Y37: 9649.662757 | AA37: 35939.22746 | AB37: 25953.95855 | AC37: 9985.268908 | AE37: 9901.36737 | AG37: =IF($B37<121,VLOOKUP($B37,Lookups!A:I,8)*(1-VLOOKUP($B37,Lookups!$U$3:$W$103,2))^(B37-$B$3),"") ->  | AH37: =IF($B37<121,VLOOKUP($B37,Lookups!A:I,9)*(1-VLOOKUP($B37,Lookups!$U$3:$W$103,3))^(B37-$B$3),"") -> 
A38: 2060 | B38: 129 | D38: =VLOOKUP(B38,Lookups!A:B,2) -> 4612.238145 | E38: =VLOOKUP(B38,Lookups!A:C,3) -> 2128.40628 | G38: =VLOOKUP(B38,Lookups!A:D,4) -> 8039.70144 | H38: =VLOOKUP(B38,Lookups!A:E,5) -> 5299.56576 | J38: =VLOOKUP(A38,Trends!$A$3:$Q$94,IF(ExFlg=0,2,10))+Sens -> 1.042 | K38: 4.45219179 | L38: =VLOOKUP(A38,Trends!$A$3:$Q$94,IF(ExFlg=0,4,12))+Sens -> 1.042 | M38: 4.392814047 | N38: =VLOOKUP(A38,Trends!$A$3:$Z$94,IF(ExFlg=0,19,23))+Sens -> 1.042 | O38: 4.795022461 | P38: =VLOOKUP(A38,Trends!$A$3:$Q$94,IF(ExFlg=0,6,14))+Sens -> 1.043 | Q38: 4.524843023 | R38: =VLOOKUP(A38,Trends!$A$3:$Q$94,IF(ExFlg=0,8,16))+Sens -> 1.042 | S38: 4.65796837 | T38: =VLOOKUP(A38,Trends!$A$3:$Z$94,IF(ExFlg=0,21,25))+Sens -> 1.042 | U38: 5.103064296 | W38: 20260.70451 | X38: 10205.75592 | Y38: 10054.94859 | AA38: 37448.67502 | AB38: 27044.02481 | AC38: 10404.6502 | AE38: 10317.2248 | AG38: =IF($B38<121,VLOOKUP($B38,Lookups!A:I,8)*(1-VLOOKUP($B38,Lookups!$U$3:$W$103,2))^(B38-$B$3),"") ->  | AH38: =IF($B38<121,VLOOKUP($B38,Lookups!A:I,9)*(1-VLOOKUP($B38,Lookups!$U$3:$W$103,3))^(B38-$B$3),"") -> 
A39: 2061 | B39: 130 | D39: =VLOOKUP(B39,Lookups!A:B,2) -> 4612.238145 | E39: =VLOOKUP(B39,Lookups!A:C,3) -> 2128.40628 | G39: =VLOOKUP(B39,Lookups!A:D,4) -> 8039.70144 | H39: =VLOOKUP(B39,Lookups!A:E,5) -> 5299.56576 | J39: =VLOOKUP(A39,Trends!$A$3:$Q$94,IF(ExFlg=0,2,10))+Sens -> 1.042 | K39: 4.639183845 | L39: =VLOOKUP(A39,Trends!$A$3:$Q$94,IF(ExFlg=0,4,12))+Sens -> 1.042 | M39: 4.577312237 | N39: =VLOOKUP(A39,Trends!$A$3:$Z$94,IF(ExFlg=0,19,23))+Sens -> 1.042 | O39: 4.996413404 | P39: =VLOOKUP(A39,Trends!$A$3:$Q$94,IF(ExFlg=0,6,14))+Sens -> 1.042 | Q39: 4.719411273 | R39: =VLOOKUP(A39,Trends!$A$3:$Q$94,IF(ExFlg=0,8,16))+Sens -> 1.042 | S39: 4.853603042 | T39: =VLOOKUP(A39,Trends!$A$3:$Z$94,IF(ExFlg=0,21,25))+Sens -> 1.042 | U39: 5.317392996 | W39: 21111.6541 | X39: 10634.39767 | Y39: 10477.25643 | AA39: 39021.51937 | AB39: 28179.87386 | AC39: 10841.64551 | AE39: 10750.54824 | AG39: =IF($B39<121,VLOOKUP($B39,Lookups!A:I,8)*(1-VLOOKUP($B39,Lookups!$U$3:$W$103,2))^(B39-$B$3),"") ->  | AH39: =IF($B39<121,VLOOKUP($B39,Lookups!A:I,9)*(1-VLOOKUP($B39,Lookups!$U$3:$W$103,3))^(B39-$B$3),"") -> 
A40: 2062 | B40: 131 | D40: =VLOOKUP(B40,Lookups!A:B,2) -> 4612.238145 | E40: =VLOOKUP(B40,Lookups!A:C,3) -> 2128.40628 | G40: =VLOOKUP(B40,Lookups!A:D,4) -> 8039.70144 | H40: =VLOOKUP(B40,Lookups!A:E,5) -> 5299.56576 | J40: =VLOOKUP(A40,Trends!$A$3:$Q$94,IF(ExFlg=0,2,10))+Sens -> 1.042 | K40: 4.834029567 | L40: =VLOOKUP(A40,Trends!$A$3:$Q$94,IF(ExFlg=0,4,12))+Sens -> 1.042 | M40: 4.769559351 | N40: =VLOOKUP(A40,Trends!$A$3:$Z$94,IF(ExFlg=0,19,23))+Sens -> 1.042 | O40: 5.206262767 | P40: =VLOOKUP(A40,Trends!$A$3:$Q$94,IF(ExFlg=0,6,14))+Sens -> 1.042 | Q40: 4.917626546 | R40: =VLOOKUP(A40,Trends!$A$3:$Q$94,IF(ExFlg=0,8,16))+Sens -> 1.042 | S40: 5.05745437 | T40: =VLOOKUP(A40,Trends!$A$3:$Z$94,IF(ExFlg=0,21,25))+Sens -> 1.042 | U40: 5.540723502 | W40: 21998.34357 | X40: 11081.04237 | Y40: 10917.3012 | AA40: 40660.42318 | AB40: 29363.42856 | AC40: 11296.99462 | AE40: 11202.07127 | AG40: =IF($B40<121,VLOOKUP($B40,Lookups!A:I,8)*(1-VLOOKUP($B40,Lookups!$U$3:$W$103,2))^(B40-$B$3),"") ->  | AH40: =IF($B40<121,VLOOKUP($B40,Lookups!A:I,9)*(1-VLOOKUP($B40,Lookups!$U$3:$W$103,3))^(B40-$B$3),"") -> 
A41: 2063 | B41: 132 | D41: =VLOOKUP(B41,Lookups!A:B,2) -> 4612.238145 | E41: =VLOOKUP(B41,Lookups!A:C,3) -> 2128.40628 | G41: =VLOOKUP(B41,Lookups!A:D,4) -> 8039.70144 | H41: =VLOOKUP(B41,Lookups!A:E,5) -> 5299.56576 | J41: =VLOOKUP(A41,Trends!$A$3:$Q$94,IF(ExFlg=0,2,10))+Sens -> 1.042 | K41: 5.037058809 | L41: =VLOOKUP(A41,Trends!$A$3:$Q$94,IF(ExFlg=0,4,12))+Sens -> 1.042 | M41: 4.969880844 | N41: =VLOOKUP(A41,Trends!$A$3:$Z$94,IF(ExFlg=0,19,23))+Sens -> 1.042 | O41: 5.424925803 | P41: =VLOOKUP(A41,Trends!$A$3:$Q$94,IF(ExFlg=0,6,14))+Sens -> 1.042 | Q41: 5.124166861 | R41: =VLOOKUP(A41,Trends!$A$3:$Q$94,IF(ExFlg=0,8,16))+Sens -> 1.042 | S41: 5.269867453 | T41: =VLOOKUP(A41,Trends!$A$3:$Z$94,IF(ExFlg=0,21,25))+Sens -> 1.042 | U41: 5.773433889 | W41: 22922.274 | X41: 11546.44615 | Y41: 11375.82785 | AA41: 42368.16095 | AB41: 30596.69256 | AC41: 11771.4684 | AE41: 11672.55826 | AG41: =IF($B41<121,VLOOKUP($B41,Lookups!A:I,8)*(1-VLOOKUP($B41,Lookups!$U$3:$W$103,2))^(B41-$B$3),"") ->  | AH41: =IF($B41<121,VLOOKUP($B41,Lookups!A:I,9)*(1-VLOOKUP($B41,Lookups!$U$3:$W$103,3))^(B41-$B$3),"") -> 
A42: 2064 | B42: 133 | D42: =VLOOKUP(B42,Lookups!A:B,2) -> 4612.238145 | E42: =VLOOKUP(B42,Lookups!A:C,3) -> 2128.40628 | G42: =VLOOKUP(B42,Lookups!A:D,4) -> 8039.70144 | H42: =VLOOKUP(B42,Lookups!A:E,5) -> 5299.56576 | J42: =VLOOKUP(A42,Trends!$A$3:$Q$94,IF(ExFlg=0,2,10))+Sens -> 1.042 | K42: 5.248615279 | L42: =VLOOKUP(A42,Trends!$A$3:$Q$94,IF(ExFlg=0,4,12))+Sens -> 1.042 | M42: 5.178615839 | N42: =VLOOKUP(A42,Trends!$A$3:$Z$94,IF(ExFlg=0,19,23))+Sens -> 1.042 | O42: 5.652772687 | P42: =VLOOKUP(A42,Trends!$A$3:$Q$94,IF(ExFlg=0,6,14))+Sens -> 1.042 | Q42: 5.339381869 | R42: =VLOOKUP(A42,Trends!$A$3:$Q$94,IF(ExFlg=0,8,16))+Sens -> 1.042 | S42: 5.491201886 | T42: =VLOOKUP(A42,Trends!$A$3:$Z$94,IF(ExFlg=0,21,25))+Sens -> 1.042 | U42: 6.015918113 | W42: 23885.00951 | X42: 12031.39689 | Y42: 11853.61262 | AA42: 44147.62371 | AB42: 31881.75364 | AC42: 12265.87007 | AE42: 12162.80571 | AG42: =IF($B42<121,VLOOKUP($B42,Lookups!A:I,8)*(1-VLOOKUP($B42,Lookups!$U$3:$W$103,2))^(B42-$B$3),"") ->  | AH42: =IF($B42<121,VLOOKUP($B42,Lookups!A:I,9)*(1-VLOOKUP($B42,Lookups!$U$3:$W$103,3))^(B42-$B$3),"") -> 
A43: 2065 | B43: 134 | D43: =VLOOKUP(B43,Lookups!A:B,2) -> 4612.238145 | E43: =VLOOKUP(B43,Lookups!A:C,3) -> 2128.40628 | G43: =VLOOKUP(B43,Lookups!A:D,4) -> 8039.70144 | H43: =VLOOKUP(B43,Lookups!A:E,5) -> 5299.56576 | J43: =VLOOKUP(A43,Trends!$A$3:$Q$94,IF(ExFlg=0,2,10))+Sens -> 1.042 | K43: 5.46905712 | L43: =VLOOKUP(A43,Trends!$A$3:$Q$94,IF(ExFlg=0,4,12))+Sens -> 1.041 | M43: 5.396117704 | N43: =VLOOKUP(A43,Trends!$A$3:$Z$94,IF(ExFlg=0,19,23))+Sens -> 1.041 | O43: 5.89018914 | P43: =VLOOKUP(A43,Trends!$A$3:$Q$94,IF(ExFlg=0,6,14))+Sens -> 1.042 | Q43: 5.563635908 | R43: =VLOOKUP(A43,Trends!$A$3:$Q$94,IF(ExFlg=0,8,16))+Sens -> 1.041 | S43: 5.721832366 | T43: =VLOOKUP(A43,Trends!$A$3:$Z$94,IF(ExFlg=0,21,25))+Sens -> 1.041 | U43: 6.268586673 | W43: 24888.17991 | X43: 12536.71556 | Y43: 12351.46435 | AA43: 46001.82391 | AB43: 33220.7873 | AC43: 12781.03661 | AE43: 12673.64355 | AG43: =IF($B43<121,VLOOKUP($B43,Lookups!A:I,8)*(1-VLOOKUP($B43,Lookups!$U$3:$W$103,2))^(B43-$B$3),"") ->  | AH43: =IF($B43<121,VLOOKUP($B43,Lookups!A:I,9)*(1-VLOOKUP($B43,Lookups!$U$3:$W$103,3))^(B43-$B$3),"") -> 
A44: 2066 | B44: 135 | D44: =VLOOKUP(B44,Lookups!A:B,2) -> 4612.238145 | E44: =VLOOKUP(B44,Lookups!A:C,3) -> 2128.40628 | G44: =VLOOKUP(B44,Lookups!A:D,4) -> 8039.70144 | H44: =VLOOKUP(B44,Lookups!A:E,5) -> 5299.56576 | J44: =VLOOKUP(A44,Trends!$A$3:$Q$94,IF(ExFlg=0,2,10))+Sens -> 1.041 | K44: 5.698757519 | L44: =VLOOKUP(A44,Trends!$A$3:$Q$94,IF(ExFlg=0,4,12))+Sens -> 1.041 | M44: 5.61735853 | N44: =VLOOKUP(A44,Trends!$A$3:$Z$94,IF(ExFlg=0,19,23))+Sens -> 1.041 | O44: 6.131686895 | P44: =VLOOKUP(A44,Trends!$A$3:$Q$94,IF(ExFlg=0,6,14))+Sens -> 1.041 | Q44: 5.797308616 | R44: =VLOOKUP(A44,Trends!$A$3:$Q$94,IF(ExFlg=0,8,16))+Sens -> 1.041 | S44: 5.956427493 | T44: =VLOOKUP(A44,Trends!$A$3:$Z$94,IF(ExFlg=0,21,25))+Sens -> 1.041 | U44: 6.525598727 | W44: 25908.59529 | X44: 13050.72089 | Y44: 12857.87439 | AA44: 47887.89869 | AB44: 34582.83958 | AC44: 13305.05911 | AE44: 13193.26293 | AG44: =IF($B44<121,VLOOKUP($B44,Lookups!A:I,8)*(1-VLOOKUP($B44,Lookups!$U$3:$W$103,2))^(B44-$B$3),"") ->  | AH44: =IF($B44<121,VLOOKUP($B44,Lookups!A:I,9)*(1-VLOOKUP($B44,Lookups!$U$3:$W$103,3))^(B44-$B$3),"") -> 
A45: 2067 | B45: 136 | D45: =VLOOKUP(B45,Lookups!A:B,2) -> 4612.238145 | E45: =VLOOKUP(B45,Lookups!A:C,3) -> 2128.40628 | G45: =VLOOKUP(B45,Lookups!A:D,4) -> 8039.70144 | H45: =VLOOKUP(B45,Lookups!A:E,5) -> 5299.56576 | J45: =VLOOKUP(A45,Trends!$A$3:$Q$94,IF(ExFlg=0,2,10))+Sens -> 1.041 | K45: 5.932406578 | L45: =VLOOKUP(A45,Trends!$A$3:$Q$94,IF(ExFlg=0,4,12))+Sens -> 1.04 | M45: 5.84767023 | N45: =VLOOKUP(A45,Trends!$A$3:$Z$94,IF(ExFlg=0,19,23))+Sens -> 1.04 | O45: 6.383086057 | P45: =VLOOKUP(A45,Trends!$A$3:$Q$94,IF(ExFlg=0,6,14))+Sens -> 1.041 | Q45: 6.034998269 | R45: =VLOOKUP(A45,Trends!$A$3:$Q$94,IF(ExFlg=0,8,16))+Sens -> 1.04 | S45: 6.20064102 | T45: =VLOOKUP(A45,Trends!$A$3:$Z$94,IF(ExFlg=0,21,25))+Sens -> 1.04 | U45: 6.793148275 | W45: 26970.84769 | X45: 13585.80045 | Y45: 13385.04724 | AA45: 49851.30254 | AB45: 36000.736 | AC45: 13850.56654 | AE45: 13734.18671 | AG45: =IF($B45<121,VLOOKUP($B45,Lookups!A:I,8)*(1-VLOOKUP($B45,Lookups!$U$3:$W$103,2))^(B45-$B$3),"") ->  | AH45: =IF($B45<121,VLOOKUP($B45,Lookups!A:I,9)*(1-VLOOKUP($B45,Lookups!$U$3:$W$103,3))^(B45-$B$3),"") -> 
A46: 2068 | B46: 137 | D46: =VLOOKUP(B46,Lookups!A:B,2) -> 4612.238145 | E46: =VLOOKUP(B46,Lookups!A:C,3) -> 2128.40628 | G46: =VLOOKUP(B46,Lookups!A:D,4) -> 8039.70144 | H46: =VLOOKUP(B46,Lookups!A:E,5) -> 5299.56576 | J46: =VLOOKUP(A46,Trends!$A$3:$Q$94,IF(ExFlg=0,2,10))+Sens -> 1.04 | K46: 6.175635247 | L46: =VLOOKUP(A46,Trends!$A$3:$Q$94,IF(ExFlg=0,4,12))+Sens -> 1.04 | M46: 6.081577039 | N46: =VLOOKUP(A46,Trends!$A$3:$Z$94,IF(ExFlg=0,19,23))+Sens -> 1.04 | O46: 6.6384095 | P46: =VLOOKUP(A46,Trends!$A$3:$Q$94,IF(ExFlg=0,6,14))+Sens -> 1.04 | Q46: 6.282433198 | R46: =VLOOKUP(A46,Trends!$A$3:$Q$94,IF(ExFlg=0,8,16))+Sens -> 1.04 | S46: 6.448666661 | T46: =VLOOKUP(A46,Trends!$A$3:$Z$94,IF(ExFlg=0,21,25))+Sens -> 1.04 | U46: 7.064874206 | W46: 28049.6816 | X46: 14129.23247 | Y46: 13920.44913 | AA46: 51845.35464 | AB46: 37440.76544 | AC46: 14404.5892 | AE46: 14283.55418 | AG46: =IF($B46<121,VLOOKUP($B46,Lookups!A:I,8)*(1-VLOOKUP($B46,Lookups!$U$3:$W$103,2))^(B46-$B$3),"") ->  | AH46: =IF($B46<121,VLOOKUP($B46,Lookups!A:I,9)*(1-VLOOKUP($B46,Lookups!$U$3:$W$103,3))^(B46-$B$3),"") -> 
A47: 2069 | B47: 138 | D47: =VLOOKUP(B47,Lookups!A:B,2) -> 4612.238145 | E47: =VLOOKUP(B47,Lookups!A:C,3) -> 2128.40628 | G47: =VLOOKUP(B47,Lookups!A:D,4) -> 8039.70144 | H47: =VLOOKUP(B47,Lookups!A:E,5) -> 5299.56576 | J47: =VLOOKUP(A47,Trends!$A$3:$Q$94,IF(ExFlg=0,2,10))+Sens -> 1.04 | K47: 6.422660657 | L47: =VLOOKUP(A47,Trends!$A$3:$Q$94,IF(ExFlg=0,4,12))+Sens -> 1.04 | M47: 6.324840121 | N47: =VLOOKUP(A47,Trends!$A$3:$Z$94,IF(ExFlg=0,19,23))+Sens -> 1.04 | O47: 6.90394588 | P47: =VLOOKUP(A47,Trends!$A$3:$Q$94,IF(ExFlg=0,6,14))+Sens -> 1.04 | Q47: 6.533730526 | R47: =VLOOKUP(A47,Trends!$A$3:$Q$94,IF(ExFlg=0,8,16))+Sens -> 1.04 | S47: 6.706613327 | T47: =VLOOKUP(A47,Trends!$A$3:$Z$94,IF(ExFlg=0,21,25))+Sens -> 1.04 | U47: 7.347469174 | W47: 29171.66887 | X47: 14694.40177 | Y47: 14477.2671 | AA47: 53919.16882 | AB47: 38938.39606 | AC47: 14980.77277 | AE47: 14854.89635 | AG47: =IF($B47<121,VLOOKUP($B47,Lookups!A:I,8)*(1-VLOOKUP($B47,Lookups!$U$3:$W$103,2))^(B47-$B$3),"") ->  | AH47: =IF($B47<121,VLOOKUP($B47,Lookups!A:I,9)*(1-VLOOKUP($B47,Lookups!$U$3:$W$103,3))^(B47-$B$3),"") -> 
A48: 2070 | B48: 139 | D48: =VLOOKUP(B48,Lookups!A:B,2) -> 4612.238145 | E48: =VLOOKUP(B48,Lookups!A:C,3) -> 2128.40628 | G48: =VLOOKUP(B48,Lookups!A:D,4) -> 8039.70144 | H48: =VLOOKUP(B48,Lookups!A:E,5) -> 5299.56576 | J48: =VLOOKUP(A48,Trends!$A$3:$Q$94,IF(ExFlg=0,2,10))+Sens -> 1.039 | K48: 6.679567083 | L48: =VLOOKUP(A48,Trends!$A$3:$Q$94,IF(ExFlg=0,4,12))+Sens -> 1.039 | M48: 6.577833725 | N48: =VLOOKUP(A48,Trends!$A$3:$Z$94,IF(ExFlg=0,19,23))+Sens -> 1.039 | O48: 7.180103715 | P48: =VLOOKUP(A48,Trends!$A$3:$Q$94,IF(ExFlg=0,6,14))+Sens -> 1.04 | Q48: 6.795079747 | R48: =VLOOKUP(A48,Trends!$A$3:$Q$94,IF(ExFlg=0,8,16))+Sens -> 1.039 | S48: 6.97487786 | T48: =VLOOKUP(A48,Trends!$A$3:$Z$94,IF(ExFlg=0,21,25))+Sens -> 1.039 | U48: 7.641367941 | W48: 30338.53562 | X48: 15282.17784 | Y48: 15056.35778 | AA48: 56075.93558 | AB48: 40495.9319 | AC48: 15580.00368 | AE48: 15449.0922 | AG48: =IF($B48<121,VLOOKUP($B48,Lookups!A:I,8)*(1-VLOOKUP($B48,Lookups!$U$3:$W$103,2))^(B48-$B$3),"") ->  | AH48: =IF($B48<121,VLOOKUP($B48,Lookups!A:I,9)*(1-VLOOKUP($B48,Lookups!$U$3:$W$103,3))^(B48-$B$3),"") -> 
A49: 2071 | B49: 140 | D49: =VLOOKUP(B49,Lookups!A:B,2) -> 4612.238145 | E49: =VLOOKUP(B49,Lookups!A:C,3) -> 2128.40628 | G49: =VLOOKUP(B49,Lookups!A:D,4) -> 8039.70144 | H49: =VLOOKUP(B49,Lookups!A:E,5) -> 5299.56576 | J49: =VLOOKUP(A49,Trends!$A$3:$Q$94,IF(ExFlg=0,2,10))+Sens -> 1.039 | K49: 6.9400702 | L49: =VLOOKUP(A49,Trends!$A$3:$Q$94,IF(ExFlg=0,4,12))+Sens -> 1.039 | M49: 6.834369241 | N49: =VLOOKUP(A49,Trends!$A$3:$Z$94,IF(ExFlg=0,19,23))+Sens -> 1.039 | O49: 7.46012776 | P49: =VLOOKUP(A49,Trends!$A$3:$Q$94,IF(ExFlg=0,6,14))+Sens -> 1.039 | Q49: 7.066882937 | R49: =VLOOKUP(A49,Trends!$A$3:$Q$94,IF(ExFlg=0,8,16))+Sens -> 1.039 | S49: 7.246898097 | T49: =VLOOKUP(A49,Trends!$A$3:$Z$94,IF(ExFlg=0,21,25))+Sens -> 1.039 | U49: 7.939381291 | W49: 31521.73851 | X49: 15878.18277 | Y49: 15643.55574 | AA49: 58262.89706 | AB49: 42075.27324 | AC49: 16187.62382 | AE49: 16051.6068 | AG49: =IF($B49<121,VLOOKUP($B49,Lookups!A:I,8)*(1-VLOOKUP($B49,Lookups!$U$3:$W$103,2))^(B49-$B$3),"") ->  | AH49: =IF($B49<121,VLOOKUP($B49,Lookups!A:I,9)*(1-VLOOKUP($B49,Lookups!$U$3:$W$103,3))^(B49-$B$3),"") -> 
A50: 2072 | B50: 141 | D50: =VLOOKUP(B50,Lookups!A:B,2) -> 4612.238145 | E50: =VLOOKUP(B50,Lookups!A:C,3) -> 2128.40628 | G50: =VLOOKUP(B50,Lookups!A:D,4) -> 8039.70144 | H50: =VLOOKUP(B50,Lookups!A:E,5) -> 5299.56576 | J50: =VLOOKUP(A50,Trends!$A$3:$Q$94,IF(ExFlg=0,2,10))+Sens -> 1.039 | K50: 7.210732937 | L50: =VLOOKUP(A50,Trends!$A$3:$Q$94,IF(ExFlg=0,4,12))+Sens -> 1.038 | M50: 7.100909641 | N50: =VLOOKUP(A50,Trends!$A$3:$Z$94,IF(ExFlg=0,19,23))+Sens -> 1.038 | O50: 7.751072742 | P50: =VLOOKUP(A50,Trends!$A$3:$Q$94,IF(ExFlg=0,6,14))+Sens -> 1.039 | Q50: 7.342491372 | R50: =VLOOKUP(A50,Trends!$A$3:$Q$94,IF(ExFlg=0,8,16))+Sens -> 1.038 | S50: 7.529527122 | T50: =VLOOKUP(A50,Trends!$A$3:$Z$94,IF(ExFlg=0,21,25))+Sens -> 1.038 | U50: 8.249017161 | W50: 32751.08631 | X50: 16497.4319 | Y50: 16253.65441 | AA50: 60535.15005 | AB50: 43716.2089 | AC50: 16818.94115 | AE50: 16677.61946 | AG50: =IF($B50<121,VLOOKUP($B50,Lookups!A:I,8)*(1-VLOOKUP($B50,Lookups!$U$3:$W$103,2))^(B50-$B$3),"") ->  | AH50: =IF($B50<121,VLOOKUP($B50,Lookups!A:I,9)*(1-VLOOKUP($B50,Lookups!$U$3:$W$103,3))^(B50-$B$3),"") -> 
A51: 2073 | B51: 142 | D51: =VLOOKUP(B51,Lookups!A:B,2) -> 4612.238145 | E51: =VLOOKUP(B51,Lookups!A:C,3) -> 2128.40628 | G51: =VLOOKUP(B51,Lookups!A:D,4) -> 8039.70144 | H51: =VLOOKUP(B51,Lookups!A:E,5) -> 5299.56576 | J51: =VLOOKUP(A51,Trends!$A$3:$Q$94,IF(ExFlg=0,2,10))+Sens -> 1.038 | K51: 7.491951522 | L51: =VLOOKUP(A51,Trends!$A$3:$Q$94,IF(ExFlg=0,4,12))+Sens -> 1.038 | M51: 7.370744208 | N51: =VLOOKUP(A51,Trends!$A$3:$Z$94,IF(ExFlg=0,19,23))+Sens -> 1.038 | O51: 8.045613507 | P51: =VLOOKUP(A51,Trends!$A$3:$Q$94,IF(ExFlg=0,6,14))+Sens -> 1.038 | Q51: 7.628848535 | R51: =VLOOKUP(A51,Trends!$A$3:$Q$94,IF(ExFlg=0,8,16))+Sens -> 1.038 | S51: 7.815649153 | T51: =VLOOKUP(A51,Trends!$A$3:$Z$94,IF(ExFlg=0,21,25))+Sens -> 1.038 | U51: 8.562479813 | W51: 33995.62759 | X51: 17124.33431 | Y51: 16871.29328 | AA51: 62835.48575 | AB51: 45377.42484 | AC51: 17458.06091 | AE51: 17311.369 | AG51: =IF($B51<121,VLOOKUP($B51,Lookups!A:I,8)*(1-VLOOKUP($B51,Lookups!$U$3:$W$103,2))^(B51-$B$3),"") ->  | AH51: =IF($B51<121,VLOOKUP($B51,Lookups!A:I,9)*(1-VLOOKUP($B51,Lookups!$U$3:$W$103,3))^(B51-$B$3),"") -> 
A52: 2074 | B52: 143 | D52: =VLOOKUP(B52,Lookups!A:B,2) -> 4612.238145 | E52: =VLOOKUP(B52,Lookups!A:C,3) -> 2128.40628 | G52: =VLOOKUP(B52,Lookups!A:D,4) -> 8039.70144 | H52: =VLOOKUP(B52,Lookups!A:E,5) -> 5299.56576 | J52: =VLOOKUP(A52,Trends!$A$3:$Q$94,IF(ExFlg=0,2,10))+Sens -> 1.038 | K52: 7.77664568 | L52: =VLOOKUP(A52,Trends!$A$3:$Q$94,IF(ExFlg=0,4,12))+Sens -> 1.038 | M52: 7.650832487 | N52: =VLOOKUP(A52,Trends!$A$3:$Z$94,IF(ExFlg=0,19,23))+Sens -> 1.038 | O52: 8.35134682 | P52: =VLOOKUP(A52,Trends!$A$3:$Q$94,IF(ExFlg=0,6,14))+Sens -> 1.038 | Q52: 7.91874478 | R52: =VLOOKUP(A52,Trends!$A$3:$Q$94,IF(ExFlg=0,8,16))+Sens -> 1.038 | S52: 8.112643821 | T52: =VLOOKUP(A52,Trends!$A$3:$Z$94,IF(ExFlg=0,21,25))+Sens -> 1.038 | U52: 8.887854046 | W52: 35287.46144 | X52: 17775.05902 | Y52: 17512.40242 | AA52: 65223.23421 | AB52: 47101.76698 | AC52: 18121.46723 | AE52: 17969.20103 | AG52: =IF($B52<121,VLOOKUP($B52,Lookups!A:I,8)*(1-VLOOKUP($B52,Lookups!$U$3:$W$103,2))^(B52-$B$3),"") ->  | AH52: =IF($B52<121,VLOOKUP($B52,Lookups!A:I,9)*(1-VLOOKUP($B52,Lookups!$U$3:$W$103,3))^(B52-$B$3),"") -> 
A53: 2075 | B53: 144 | D53: =VLOOKUP(B53,Lookups!A:B,2) -> 4612.238145 | E53: =VLOOKUP(B53,Lookups!A:C,3) -> 2128.40628 | G53: =VLOOKUP(B53,Lookups!A:D,4) -> 8039.70144 | H53: =VLOOKUP(B53,Lookups!A:E,5) -> 5299.56576 | J53: =VLOOKUP(A53,Trends!$A$3:$Q$94,IF(ExFlg=0,2,10))+Sens -> 1.038 | K53: 8.072158216 | L53: =VLOOKUP(A53,Trends!$A$3:$Q$94,IF(ExFlg=0,4,12))+Sens -> 1.038 | M53: 7.941564122 | N53: =VLOOKUP(A53,Trends!$A$3:$Z$94,IF(ExFlg=0,19,23))+Sens -> 1.038 | O53: 8.668697999 | P53: =VLOOKUP(A53,Trends!$A$3:$Q$94,IF(ExFlg=0,6,14))+Sens -> 1.038 | Q53: 8.219657081 | R53: =VLOOKUP(A53,Trends!$A$3:$Q$94,IF(ExFlg=0,8,16))+Sens -> 1.038 | S53: 8.420924286 | T53: =VLOOKUP(A53,Trends!$A$3:$Z$94,IF(ExFlg=0,21,25))+Sens -> 1.038 | U53: 9.2255925 | W53: 36628.38497 | X53: 18450.51126 | Y53: 18177.87371 | AA53: 67701.71711 | AB53: 48891.63413 | AC53: 18810.08298 | AE53: 18652.03066 | AG53: =IF($B53<121,VLOOKUP($B53,Lookups!A:I,8)*(1-VLOOKUP($B53,Lookups!$U$3:$W$103,2))^(B53-$B$3),"") ->  | AH53: =IF($B53<121,VLOOKUP($B53,Lookups!A:I,9)*(1-VLOOKUP($B53,Lookups!$U$3:$W$103,3))^(B53-$B$3),"") -> 
A54: 2076 | B54: 145 | D54: =VLOOKUP(B54,Lookups!A:B,2) -> 4612.238145 | E54: =VLOOKUP(B54,Lookups!A:C,3) -> 2128.40628 | G54: =VLOOKUP(B54,Lookups!A:D,4) -> 8039.70144 | H54: =VLOOKUP(B54,Lookups!A:E,5) -> 5299.56576 | J54: =VLOOKUP(A54,Trends!$A$3:$Q$94,IF(ExFlg=0,2,10))+Sens -> 1.038 | K54: 8.378900228 | L54: =VLOOKUP(A54,Trends!$A$3:$Q$94,IF(ExFlg=0,4,12))+Sens -> 1.038 | M54: 8.243343559 | N54: =VLOOKUP(A54,Trends!$A$3:$Z$94,IF(ExFlg=0,19,23))+Sens -> 1.038 | O54: 8.998108523 | P54: =VLOOKUP(A54,Trends!$A$3:$Q$94,IF(ExFlg=0,6,14))+Sens -> 1.038 | Q54: 8.53200405 | R54: =VLOOKUP(A54,Trends!$A$3:$Q$94,IF(ExFlg=0,8,16))+Sens -> 1.038 | S54: 8.740919409 | T54: =VLOOKUP(A54,Trends!$A$3:$Z$94,IF(ExFlg=0,21,25))+Sens -> 1.038 | U54: 9.576165015 | W54: 38020.2636 | X54: 19151.63069 | Y54: 18868.63291 | AA54: 70274.38236 | AB54: 50749.51622 | AC54: 19524.86613 | AE54: 19360.80783 | AG54: =IF($B54<121,VLOOKUP($B54,Lookups!A:I,8)*(1-VLOOKUP($B54,Lookups!$U$3:$W$103,2))^(B54-$B$3),"") ->  | AH54: =IF($B54<121,VLOOKUP($B54,Lookups!A:I,9)*(1-VLOOKUP($B54,Lookups!$U$3:$W$103,3))^(B54-$B$3),"") -> 
A55: 2077 | B55: 146 | D55: =VLOOKUP(B55,Lookups!A:B,2) -> 4612.238145 | E55: =VLOOKUP(B55,Lookups!A:C,3) -> 2128.40628 | G55: =VLOOKUP(B55,Lookups!A:D,4) -> 8039.70144 | H55: =VLOOKUP(B55,Lookups!A:E,5) -> 5299.56576 | J55: =VLOOKUP(A55,Trends!$A$3:$Q$94,IF(ExFlg=0,2,10))+Sens -> 1.038 | K55: 8.697298437 | L55: =VLOOKUP(A55,Trends!$A$3:$Q$94,IF(ExFlg=0,4,12))+Sens -> 1.038 | M55: 8.556590614 | N55: =VLOOKUP(A55,Trends!$A$3:$Z$94,IF(ExFlg=0,19,23))+Sens -> 1.038 | O55: 9.340036647 | P55: =VLOOKUP(A55,Trends!$A$3:$Q$94,IF(ExFlg=0,6,14))+Sens -> 1.038 | Q55: 8.856220204 | R55: =VLOOKUP(A55,Trends!$A$3:$Q$94,IF(ExFlg=0,8,16))+Sens -> 1.038 | S55: 9.073074346 | T55: =VLOOKUP(A55,Trends!$A$3:$Z$94,IF(ExFlg=0,21,25))+Sens -> 1.038 | U55: 9.940059285 | W55: 39465.03362 | X55: 19879.39265 | Y55: 19585.64097 | AA55: 72944.80889 | AB55: 52677.99784 | AC55: 20266.81105 | AE55: 20096.51853 | AG55: =IF($B55<121,VLOOKUP($B55,Lookups!A:I,8)*(1-VLOOKUP($B55,Lookups!$U$3:$W$103,2))^(B55-$B$3),"") ->  | AH55: =IF($B55<121,VLOOKUP($B55,Lookups!A:I,9)*(1-VLOOKUP($B55,Lookups!$U$3:$W$103,3))^(B55-$B$3),"") -> 
A56: 2078 | B56: 147 | D56: =VLOOKUP(B56,Lookups!A:B,2) -> 4612.238145 | E56: =VLOOKUP(B56,Lookups!A:C,3) -> 2128.40628 | G56: =VLOOKUP(B56,Lookups!A:D,4) -> 8039.70144 | H56: =VLOOKUP(B56,Lookups!A:E,5) -> 5299.56576 | J56: =VLOOKUP(A56,Trends!$A$3:$Q$94,IF(ExFlg=0,2,10))+Sens -> 1.038 | K56: 9.027795777 | L56: =VLOOKUP(A56,Trends!$A$3:$Q$94,IF(ExFlg=0,4,12))+Sens -> 1.038 | M56: 8.881741057 | N56: =VLOOKUP(A56,Trends!$A$3:$Z$94,IF(ExFlg=0,19,23))+Sens -> 1.038 | O56: 9.694958039 | P56: =VLOOKUP(A56,Trends!$A$3:$Q$94,IF(ExFlg=0,6,14))+Sens -> 1.038 | Q56: 9.192756572 | R56: =VLOOKUP(A56,Trends!$A$3:$Q$94,IF(ExFlg=0,8,16))+Sens -> 1.038 | S56: 9.417851172 | T56: =VLOOKUP(A56,Trends!$A$3:$Z$94,IF(ExFlg=0,21,25))+Sens -> 1.038 | U56: 10.31778154 | W56: =IF(B56<65,D56*K56,D56*M56) -> 40964.7049 | X56: 20634.80958 | Y56: 20329.89532 | AA56: 75716.71163 | AB56: 54679.76176 | AC56: 21036.94987 | AE56: 20860.18623 | AG56: =IF($B56<121,VLOOKUP($B56,Lookups!A:I,8)*(1-VLOOKUP($B56,Lookups!$U$3:$W$103,2))^(B56-$B$3),"") ->  | AH56: =IF($B56<121,VLOOKUP($B56,Lookups!A:I,9)*(1-VLOOKUP($B56,Lookups!$U$3:$W$103,3))^(B56-$B$3),"") -> 
A57: 2079 | B57: 148 | D57: =VLOOKUP(B57,Lookups!A:B,2) -> 4612.238145 | E57: =VLOOKUP(B57,Lookups!A:C,3) -> 2128.40628 | G57: =VLOOKUP(B57,Lookups!A:D,4) -> 8039.70144 | H57: =VLOOKUP(B57,Lookups!A:E,5) -> 5299.56576 | J57: =VLOOKUP(A57,Trends!$A$3:$Q$94,IF(ExFlg=0,2,10))+Sens -> 1.038 | K57: 9.370852017 | L57: =VLOOKUP(A57,Trends!$A$3:$Q$94,IF(ExFlg=0,4,12))+Sens -> 1.038 | M57: 9.219247217 | N57: =VLOOKUP(A57,Trends!$A$3:$Z$94,IF(ExFlg=0,19,23))+Sens -> 1.038 | O57: 10.06336644 | P57: =VLOOKUP(A57,Trends!$A$3:$Q$94,IF(ExFlg=0,6,14))+Sens -> 1.038 | Q57: 9.542081322 | R57: =VLOOKUP(A57,Trends!$A$3:$Q$94,IF(ExFlg=0,8,16))+Sens -> 1.038 | S57: 9.775729516 | T57: =VLOOKUP(A57,Trends!$A$3:$Z$94,IF(ExFlg=0,21,25))+Sens -> 1.038 | U57: 10.70985724 | W57: 42521.36368 | X57: 21418.93234 | Y57: 21102.43134 | AA57: 78593.94667 | AB57: 56757.59271 | AC57: 21836.35396 | AE57: 21652.87331 | AG57: =IF($B57<121,VLOOKUP($B57,Lookups!A:I,8)*(1-VLOOKUP($B57,Lookups!$U$3:$W$103,2))^(B57-$B$3),"") ->  | AH57: =IF($B57<121,VLOOKUP($B57,Lookups!A:I,9)*(1-VLOOKUP($B57,Lookups!$U$3:$W$103,3))^(B57-$B$3),"") -> 
A58: 2080 | B58: 149 | D58: =VLOOKUP(B58,Lookups!A:B,2) -> 4612.238145 | E58: =VLOOKUP(B58,Lookups!A:C,3) -> 2128.40628 | G58: =VLOOKUP(B58,Lookups!A:D,4) -> 8039.70144 | H58: =VLOOKUP(B58,Lookups!A:E,5) -> 5299.56576 | J58: =VLOOKUP(A58,Trends!$A$3:$Q$94,IF(ExFlg=0,2,10))+Sens -> 1.038 | K58: 9.726944393 | L58: =VLOOKUP(A58,Trends!$A$3:$Q$94,IF(ExFlg=0,4,12))+Sens -> 1.038 | M58: 9.569578612 | N58: =VLOOKUP(A58,Trends!$A$3:$Z$94,IF(ExFlg=0,19,23))+Sens -> 1.038 | O58: 10.44577437 | P58: =VLOOKUP(A58,Trends!$A$3:$Q$94,IF(ExFlg=0,6,14))+Sens -> 1.038 | Q58: 9.904680412 | R58: =VLOOKUP(A58,Trends!$A$3:$Q$94,IF(ExFlg=0,8,16))+Sens -> 1.038 | S58: 10.14720724 | T58: =VLOOKUP(A58,Trends!$A$3:$Z$94,IF(ExFlg=0,21,25))+Sens -> 1.038 | U58: 11.11683181 | W58: 44137.1755 | X58: 22232.85177 | Y58: 21904.32374 | AA58: 81580.51664 | AB58: 58914.38123 | AC58: 22666.13541 | AE58: 22475.68249 | AG58: =IF($B58<121,VLOOKUP($B58,Lookups!A:I,8)*(1-VLOOKUP($B58,Lookups!$U$3:$W$103,2))^(B58-$B$3),"") ->  | AH58: =IF($B58<121,VLOOKUP($B58,Lookups!A:I,9)*(1-VLOOKUP($B58,Lookups!$U$3:$W$103,3))^(B58-$B$3),"") -> 
A59: 2081 | B59: 150 | D59: =VLOOKUP(B59,Lookups!A:B,2) -> 4612.238145 | E59: =VLOOKUP(B59,Lookups!A:C,3) -> 2128.40628 | G59: =VLOOKUP(B59,Lookups!A:D,4) -> 8039.70144 | H59: =VLOOKUP(B59,Lookups!A:E,5) -> 5299.56576 | J59: =VLOOKUP(A59,Trends!$A$3:$Q$94,IF(ExFlg=0,2,10))+Sens -> 1.038 | K59: 10.09656828 | L59: =VLOOKUP(A59,Trends!$A$3:$Q$94,IF(ExFlg=0,4,12))+Sens -> 1.038 | M59: 9.933222599 | N59: =VLOOKUP(A59,Trends!$A$3:$Z$94,IF(ExFlg=0,19,23))+Sens -> 1.038 | O59: 10.8427138 | P59: =VLOOKUP(A59,Trends!$A$3:$Q$94,IF(ExFlg=0,6,14))+Sens -> 1.038 | Q59: 10.28105827 | R59: =VLOOKUP(A59,Trends!$A$3:$Q$94,IF(ExFlg=0,8,16))+Sens -> 1.038 | S59: 10.53280111 | T59: =VLOOKUP(A59,Trends!$A$3:$Z$94,IF(ExFlg=0,21,25))+Sens -> 1.038 | U59: 11.53927142 | W59: 45814.38817 | X59: 23077.70014 | Y59: 22736.68804 | AA59: 84680.57627 | AB59: 61153.12771 | AC59: 23527.44856 | AE59: 23329.75843 | AG59: =IF($B59<121,VLOOKUP($B59,Lookups!A:I,8)*(1-VLOOKUP($B59,Lookups!$U$3:$W$103,2))^(B59-$B$3),"") ->  | AH59: =IF($B59<121,VLOOKUP($B59,Lookups!A:I,9)*(1-VLOOKUP($B59,Lookups!$U$3:$W$103,3))^(B59-$B$3),"") -> 
A60: 2082 | B60: 151 | D60: =VLOOKUP(B60,Lookups!A:B,2) -> 4612.238145 | E60: =VLOOKUP(B60,Lookups!A:C,3) -> 2128.40628 | G60: =VLOOKUP(B60,Lookups!A:D,4) -> 8039.70144 | H60: =VLOOKUP(B60,Lookups!A:E,5) -> 5299.56576 | J60: =VLOOKUP(A60,Trends!$A$3:$Q$94,IF(ExFlg=0,2,10))+Sens -> 1.038 | K60: 10.48023787 | L60: =VLOOKUP(A60,Trends!$A$3:$Q$94,IF(ExFlg=0,4,12))+Sens -> 1.038 | M60: 10.31068506 | N60: =VLOOKUP(A60,Trends!$A$3:$Z$94,IF(ExFlg=0,19,23))+Sens -> 1.038 | O60: 11.25473692 | P60: =VLOOKUP(A60,Trends!$A$3:$Q$94,IF(ExFlg=0,6,14))+Sens -> 1.038 | Q60: 10.67173848 | R60: =VLOOKUP(A60,Trends!$A$3:$Q$94,IF(ExFlg=0,8,16))+Sens -> 1.038 | S60: 10.93304756 | T60: =VLOOKUP(A60,Trends!$A$3:$Z$94,IF(ExFlg=0,21,25))+Sens -> 1.038 | U60: 11.97776373 | W60: 47555.33492 | X60: 23954.65274 | Y60: 23600.68218 | AA60: 87898.43817 | AB60: 63476.94657 | AC60: 24421.4916 | AE60: 24216.28925 | AG60: =IF($B60<121,VLOOKUP($B60,Lookups!A:I,8)*(1-VLOOKUP($B60,Lookups!$U$3:$W$103,2))^(B60-$B$3),"") ->  | AH60: =IF($B60<121,VLOOKUP($B60,Lookups!A:I,9)*(1-VLOOKUP($B60,Lookups!$U$3:$W$103,3))^(B60-$B$3),"") -> 
A61: 2083 | B61: 152 | D61: =VLOOKUP(B61,Lookups!A:B,2) -> 4612.238145 | E61: =VLOOKUP(B61,Lookups!A:C,3) -> 2128.40628 | G61: =VLOOKUP(B61,Lookups!A:D,4) -> 8039.70144 | H61: =VLOOKUP(B61,Lookups!A:E,5) -> 5299.56576 | J61: =VLOOKUP(A61,Trends!$A$3:$Q$94,IF(ExFlg=0,2,10))+Sens -> 1.038 | K61: 10.87848691 | L61: =VLOOKUP(A61,Trends!$A$3:$Q$94,IF(ExFlg=0,4,12))+Sens -> 1.038 | M61: 10.70249109 | N61: =VLOOKUP(A61,Trends!$A$3:$Z$94,IF(ExFlg=0,19,23))+Sens -> 1.038 | O61: 11.68241692 | P61: =VLOOKUP(A61,Trends!$A$3:$Q$94,IF(ExFlg=0,6,14))+Sens -> 1.038 | Q61: 11.07726454 | R61: =VLOOKUP(A61,Trends!$A$3:$Q$94,IF(ExFlg=0,8,16))+Sens -> 1.038 | S61: 11.34850336 | T61: =VLOOKUP(A61,Trends!$A$3:$Z$94,IF(ExFlg=0,21,25))+Sens -> 1.038 | U61: 12.43291876 | W61: 49362.43765 | X61: 24864.92954 | Y61: 24497.50811 | AA61: 91238.57882 | AB61: 65889.07054 | AC61: 25349.50829 | AE61: 25136.50824 | AG61: =IF($B61<121,VLOOKUP($B61,Lookups!A:I,8)*(1-VLOOKUP($B61,Lookups!$U$3:$W$103,2))^(B61-$B$3),"") ->  | AH61: =IF($B61<121,VLOOKUP($B61,Lookups!A:I,9)*(1-VLOOKUP($B61,Lookups!$U$3:$W$103,3))^(B61-$B$3),"") -> 
